Workbook

Sheet Front Sheet
B3: National Grid
B5: Transmission Services Charges - calculation model
B6: including the calculation of Reference Prices and Reserve Prices for NTS Entry Capacity and NTS Exit Capacity Charges
B7: Contact for any questions: box.transmissioncapacityandcharging@nationalgrid.com
C9: Comments | F9: This is a copy of a draft NTS Tranmission Services Model that calculates charges associated to the Transmission Services as discussed as part of the development of the GB Gas Charging Review (incorporating the EU Network code on Tariffs.) This version is to allow Users to test sentivities of various combinations of potential changes and should not be used as any indication of actual charges.
C17: Disclaimer: This NTS Tranmission Services Model is provided to you by National Grid Gas plc (“NGG”) solely for the purposes of study in connection with the development of the GB Gas Charging Review and the work associated to the EU Network Code on Tariffs and is not to be used for any commercial purpose. The information that it contains is for guidance purposes only and is given in good faith. However, no warranty or representation or other obligation or commitment of any kind is given by NGG, its employees or advisors as to the accuracy or completeness of any such information. Neither NGG nor its employees or advisors shall be under any liability for any error or misstatement in the information provided. While certain precautions have been taken to detect computer viruses, we cannot guarantee that the Tariff Model is virus-free and NGG shall not be liable for any loss or damage which occurs as a result of any virus. Your use of the Tariff Model shall constitute your acceptance of the above.
B26: Model Software Change History - Specific to this copy produced for the development of the GB Gas Charging Review and incorporating aspects of the EU Tariff Code
E29: Version | F29: Date | I29: Produced by | K29: Description
E30: 1.0 | F30: 2017-04-19 | I30: National Grid | K30: Version Created for study purposes in connection with the development of the GB Gas Charging Review and the work associated to the EU Network Code on Tariffs. This has been tested on Excel 2010 only.
E31: 1.1 | F31: 2017-04-28 | I31: National Grid | K31: Number of anticipated booking Scenarios increased and choice of denominators added for unit price adjustment in the Anticipated Revenue Recovery tabs.

Sheet Model Assumptions
A1: Postage Stamp Reference Price Model
A4: Assumptions:
A5: Where the Forecast Contracted Capacity for a given point is zero or if the Forecasted Contracted Capacity is less than the Existing Contracts (where Existing contracts have been excluded from the calculations), the calculation results in an error or a negative price respectively. For the benefit of this illustrative model, where this is the case the reference price for the relevant ASEP/NTS Exit Point has been set to match that of the nearest ASEP/NTS Exit Point respectively.
A6: Only one form of Revenue Recovery Adjustment is used at a time
A7: Easington and Rough have been split in this model (following a request from the subgroup), the forecasted contracted capacity for each has been set such that the entry forecasts match the corresponding exit forecasts for Rough and any remaining capacity as been associated to Easington.

Sheet User Inputs
A1: Postage Stamp Reference Price Model
A4: Reset Model | B4: Please click on the Reset button before the initial interation of the model
C6: Gas Year | D6: Number of Days in Gas Year
A7: Gas Year | B7: Please select relevant Gas Year from drop down list | C7: 01-Oct-2016 to 30-Sep-2017 | D7: =VLOOKUP(C7,'Drop Down Inputs'!$A$14:$D$18,4,FALSE) -> 365
C9: Revenue (£m)
A10: Revenue | B10: Part of the transmission services revenue to be recovered from capacity-based transmission tariffs (£m) | C10: =VLOOKUP(C7,'Revenue Input'!A10:B14,2,FALSE) -> 737.7907592
C12: Entry | D12: Exit
A13: Revenue Split | B13: Entry/Exit Split: Percentage of Revenue associated to capacity-based transmission tariffs at entry points (note: Exit percentage will automatically calculate) | C13: 50 | D13: =100-C13 -> 50
C15: Entry | D15: Exit
A16: Revenue Reconcilliation | B16: Please enter the relevant Entry or Exit 'K' adjustment figure from year t-2 (£) | C16: 0 | D16: 0
C18: Entry | D18: Exit
A19: Forecast Contracted Capacity | B19: Select scenario from drop down list | C19: Obligated Entry Capacity | D19: Obligated Exit Capacity
B20: Select a percentage multiplier to apply to the FCC for each NTS Entry/Exit point | C20: 100 | D20: 100
C22: Entry | D22: Exit
A23: Exclude Existing Contracts | B23: Removes Revenue and Capacity levels associated with Existing Contracts from the Target Revenue and Forecast Contracted Capacity respectively | C23: Yes | D23: Not Applicable
C25: Entry | D25: Exit
A26: Non-IP Multipliers | B26: Quarterly standard capacity products | C26: 1 | D26: 1
B27: Monthly standard capacity products | C27: 1 | D27: 1
B28: Daily standard capacity products | C28: 1 | D28: 1
B29: Within-day standard capacity products | C29: 1 | D29: 1
C31: Entry | D31: Exit
A32: IP Multipliers | B32: Quarterly standard capacity products | C32: 1 | D32: 1
B33: Monthly standard capacity products | C33: 1 | D33: 1
B34: Daily standard capacity products | C34: 1 | D34: 1
B35: Within-day standard capacity products | C35: 1 | D35: 1
C37: Entry | D37: Exit
A38: Storage Discount | B38: Percentage Discount | C38: 50 | D38: 50
A39: LNG Discount | B39: Percentage Discount | C39: 0 | D39: Not Applicable
A40: IP Discount | B40: Percentage Discount | C40: 0 | D40: 0
C42: Entry | D42: Exit
A43: Probability of Interruption | B43: Please select the relevant tab to complete any required probabilities of interruption
A46: Calculate Prices | B46: Please click on the 'Calculate Prices' button once your inputs have been selected and before proceeding to view the outputs in the following tabs
B47: Once you have received a message to say that prices have been caculated, please click on the relevant button to see the initial Entry or Exit Prices. Please note that these will be overwritten once adjustments have been applied.
C49: Entry | D49: Exit
A50: Estimated Capacity Booking Split | B50: Yearly (%) | C50: =100-C51-C52-C53-C54-C55 -> 100 | D50: =100-D51-D52-D53-D54-D55 -> 100
B51: Quarterly (%) | C51: 0 | D51: 0
B52: Monthly (%) | C52: 0 | D52: 0
B53: Daily (%) | C53: 0 | D53: 0
B54: Within Day (%) | C54: 0 | D54: 0
B55: Daily Interruptible (%) | C55: 0 | D55: 0
C57: Entry | D57: Exit
A58: Expected Revenue Recovery Results | B58: Total Revenue Recovered (£): | C58: =SUM('Entry Adjustment Calcs'!$Y$2:$Y$27)+IF($C$23="Yes",('Revenue Input'!$F$3),0)+IF($C$66="Yes",C72*(HLOOKUP($C$7,'Existing Contracts - Entry'!$A$1:$E$30,29,FALSE)),0) -> 326685417.8 | D58: =SUM('Exit Adjustment Calcs'!$Y$2:$Y$222) -> 348686684.5
B59: Target Revenue Recovery for Entry/Exit (£): | C59: =($C$13/100)* 'Revenue Input'!$B$3+C16 -> 368895379.6 | D59: =($D$13/100)* 'Revenue Input'!$B$3+$D$16 -> 368895379.6
B60: Difference to Target Recovery (£): | C60: =C58-C59 -> -42209961.77 | D60: =D58-D59 -> -20208695.05
B61: Difference to Target Recovery (£m): | C61: =C60/1000000 -> -42.20996177 | D61: =D60/1000000 -> -20.20869505
C63: Entry | D63: Exit
A64: Adjustments | B64: Type of adjustment: | C64: Revenue | D64: Revenue
B65: Basis for CRRC (if applicable): | C65: Forecast Entry Flow Levels | D65: Forecast Exit Flow Levels
B66: Include Existing Contracts if making Unit Reserve Price Adjustment? | C66: No
B67: Calculate adjusted prices:
C69: Entry | D69: Exit
A70: Outputs | B70: Revenue Input Figure Adjustment (£): | C70: 0 | D70: 0
B71: Unit Reference Price Adjustment (p/kWh/d): | C71: 0 | D71: 0
B72: Unit Reserve Price Adjustment (p/kWh/d): | C72: 0 | D72: 0
B73: Scaling Factor Adjustment to Reference Price: | C73: 1 | D73: 1
B74: CRRC (p/kWh): | C74: =100*(-$C$60/(HLOOKUP($C$65,'CRRC Inputs - Entry'!A:F,29,FALSE)*$D$7)) -> 0.004964039591 | D74: =100*(-$D$60/(HLOOKUP($D$65,'CRRC Inputs - Exit'!A:F,224,FALSE)*$D$7)) -> 0.002313670043
B75: Expected Recovery following CRRC (£): | C75: =$C$58+(HLOOKUP($C$65,'CRRC Inputs - Entry'!A:F,29,FALSE)*$D$7)*C74/100 -> 368895379.6 | D75: =$D$58+(HLOOKUP($D$65,'CRRC Inputs - Exit'!A:F,224,FALSE)*$D$7)*D74/100 -> 368895379.6
B76: Difference to target recovery following CRRC (£): | C76: =$C$75-$C$59 -> 0 | D76: =$D$75-$D$59 -> 0
C78: Entry | D78: Exit
A79: Adjusted Prices | B79: Please click on the relevant button to see the initial Entry or Exit Prices.
C83: Entry | D83: Exit
A84: If you have reason to believe that your selected FCC is not reflective of anticipated bookings then please use the following tabs to apply further adjustments:

Sheet Drop Down Inputs (hidden)
A1: Entry_CRRC_Denominators | C1: Adjustment_Types | E1: Exit_CRRC_Denominators | G1: Yes_or_No | I1: Entry_Flow_Scenarios | K1: Exit_Flow_Scenarios
A2: Historical Sold Entry Capacity Levels | C2: Revenue | E2: Historical Sold Exit Capacity Levels | G2: Yes | I2: Historical Entry Flow Levels | K2: Historical Exit Flow Levels
A3: Historical Entry Flow Levels | C3: Unit Reference Price | E3: Historical Exit Flow Levels | G3: No | I3: Forecast Entry Flow Levels | K3: Forecast Exit Flow Levels
A4: Forecast Entry Capacity | C4: Unit Reserve Price | E4: Forecast Exit Capacity
A5: Forecast Entry Flow Levels | C5: Scaling Factor | E5: Forecast Exit Flow Levels
C6: CRRC
A9: Entry_Sheet_Lookup | B9: Exit_Sheet_Lookup
A10: =VLOOKUP('User Inputs'!$C$7,$A$14:$F$18,5,FALSE) -> 16-17 FCC - Entry | B10: =VLOOKUP('User Inputs'!$C$7,$A$14:$F$18,6,FALSE) -> 16-17 FCC - Exit
A14: Gas Year | B14: Gas Year Start | C14: Gas Year End | D14: Number of days in Gas Year | E14: Entry Forecast Sheet | F14: Exit Forecast Sheet
A15: 01-Oct-2016 to 30-Sep-2017 | B15: 2016-10-01 | C15: 2017-09-30 | D15: =C15-B15+1 -> 365 | E15: 16-17 FCC - Entry | F15: 16-17 FCC - Exit
A16: 01-Oct-2017 to 30-Sep-2018 | B16: 2017-10-01 | C16: 2018-09-30 | D16: 365 | E16: 17-18 FCC - Entry | F16: 17-18 FCC - Exit
A17: 01-Oct-2018 to 30-Sep-2019 | B17: 2018-10-01 | C17: 2019-09-30 | D17: 365 | E17: 18-19 FCC - Entry | F17: 18-19 FCC - Exit
A18: 01-Oct-2019 to 30-Sep-2020 | B18: 2019-10-01 | C18: 2020-09-30 | D18: =C18-B18+1 -> 366 | E18: 18-19 FCC - Entry | F18: 18-19 FCC - Exit
A22: Entry_Adjustment_Denominators | C22: Exit_Adjustment_Denominators
A23: Historical Sold Entry Capacity Levels | C23: Historical Sold Exit Capacity Levels
A24: Historical Entry Flow Levels | C24: Historical Exit Flow Levels
A25: Anticipated Entry Capacity Bookings | C25: Anticipated Exit Capacity Bookings
A26: Forecast Entry Flow Levels | C26: Forecast Exit Flow Levels

Sheet Entry Interruption Prob's
A1: Entry Point | B1: Entry Point Type | C1: Pro | D1: A | E1: Di_ex-ante (%)
A2: Avonmouth | B2: =VLOOKUP(A2,'Locations & Types'!$A:$B,2,FALSE) -> STORAGE SITE | C2: 0 | D2: 1 | E2: =C2*D2*100 -> 0
A3: Bacton IP | B3: =VLOOKUP(A3,'Locations & Types'!$A:$B,2,FALSE) -> INTERCONNECTION POINT | C3: 0 | D3: 1 | E3: =C3*D3*100 -> 0
A4: Bacton UKCS | B4: =VLOOKUP(A4,'Locations & Types'!$A:$B,2,FALSE) -> BEACH TERMINAL | C4: 0 | D4: 1 | E4: 0
A5: Burton Point | B5: =VLOOKUP(A5,'Locations & Types'!$A:$B,2,FALSE) -> ONSHORE FIELD | C5: 0 | D5: 1 | E5: 0
A6: Barrow | B6: =VLOOKUP(A6,'Locations & Types'!$A:$B,2,FALSE) -> BEACH TERMINAL | C6: 0 | D6: 1 | E6: 0
A7: Barton Stacey | B7: =VLOOKUP(A7,'Locations & Types'!$A:$B,2,FALSE) -> STORAGE SITE | C7: 0 | D7: 1 | E7: 0
A8: Canonbie | B8: =VLOOKUP(A8,'Locations & Types'!$A:$B,2,FALSE) -> ONSHORE FIELD | C8: 0 | D8: 1 | E8: 0
A9: Cheshire | B9: =VLOOKUP(A9,'Locations & Types'!$A:$B,2,FALSE) -> STORAGE SITE | C9: 0 | D9: 1 | E9: 0
A10: Caythorpe | B10: =VLOOKUP(A10,'Locations & Types'!$A:$B,2,FALSE) -> STORAGE SITE | C10: 0 | D10: 1 | E10: 0
A11: Dynevor Arms | B11: =VLOOKUP(A11,'Locations & Types'!$A:$B,2,FALSE) -> STORAGE SITE | C11: 0 | D11: 1 | E11: 0
A12: Easington (not incl. Rough) | B12: =VLOOKUP(A12,'Locations & Types'!$A:$B,2,FALSE) -> BEACH TERMINAL | C12: 0 | D12: 1 | E12: 0
A13: Fleetwood | B13: =VLOOKUP(A13,'Locations & Types'!$A:$B,2,FALSE) -> STORAGE SITE | C13: 0 | D13: 1 | E13: 0
A14: Glenmavis | B14: =VLOOKUP(A14,'Locations & Types'!$A:$B,2,FALSE) -> STORAGE SITE | C14: 0 | D14: 1 | E14: 0
A15: Garton | B15: =VLOOKUP(A15,'Locations & Types'!$A:$B,2,FALSE) -> STORAGE SITE | C15: 0 | D15: 1 | E15: 0
A16: Hole House Farm | B16: =VLOOKUP(A16,'Locations & Types'!$A:$B,2,FALSE) -> STORAGE SITE | C16: 0 | D16: 1 | E16: 0
A17: Hatfield Moor (onshore) | B17: =VLOOKUP(A17,'Locations & Types'!$A:$B,2,FALSE) -> ONSHORE FIELD | C17: 0 | D17: 1 | E17: 0
A18: Hornsea | B18: =VLOOKUP(A18,'Locations & Types'!$A:$B,2,FALSE) -> STORAGE SITE | C18: 0 | D18: 1 | E18: 0
A19: Hatfield Moor (storage) | B19: =VLOOKUP(A19,'Locations & Types'!$A:$B,2,FALSE) -> STORAGE SITE | C19: 0 | D19: 1 | E19: 0
A20: Isle of Grain | B20: =VLOOKUP(A20,'Locations & Types'!$A:$B,2,FALSE) -> LNG IMPORTATION TERMINAL | C20: 0 | D20: 1 | E20: 0
A21: Milford Haven | B21: =VLOOKUP(A21,'Locations & Types'!$A:$B,2,FALSE) -> LNG IMPORTATION TERMINAL | C21: 0 | D21: 1 | E21: 0
A22: Partington | B22: =VLOOKUP(A22,'Locations & Types'!$A:$B,2,FALSE) -> STORAGE SITE | C22: 0 | D22: 1 | E22: 0
A23: Rough | B23: =VLOOKUP(A23,'Locations & Types'!$A:$B,2,FALSE) -> STORAGE SITE | C23: 0 | D23: 1 | E23: 0
A24: St Fergus | B24: =VLOOKUP(A24,'Locations & Types'!$A:$B,2,FALSE) -> BEACH TERMINAL | C24: 0 | D24: 1 | E24: 0
A25: Teesside | B25: =VLOOKUP(A25,'Locations & Types'!$A:$B,2,FALSE) -> BEACH TERMINAL | C25: 0 | D25: 1 | E25: 0
A26: Theddlethorpe | B26: =VLOOKUP(A26,'Locations & Types'!$A:$B,2,FALSE) -> BEACH TERMINAL | C26: 0 | D26: 1 | E26: 0
A27: Wytch Farm | B27: =VLOOKUP(A27,'Locations & Types'!$A:$B,2,FALSE) -> ONSHORE FIELD | C27: 0 | D27: 1 | E27: 0

Sheet Exit Interruption Prob's
A1: Exit Point | B1: Exit Point Type | C1: Pro | D1: A | E1: Di_ex-ante (%)
A2: Aberdeen | B2: =VLOOKUP(A2,'Locations & Types'!$E:$F,2,FALSE) -> GDN (SC) | C2: 0 | D2: 1 | E2: =C2*D2*100 -> 0
A3: Abson (Seabank Power Station phase I) | B3: =VLOOKUP(A3,'Locations & Types'!$E:$F,2,FALSE) -> DC | C3: 0 | D3: 1 | E3: =C3*D3*100 -> 0
A4: Alrewas (EM) | B4: =VLOOKUP(A4,'Locations & Types'!$E:$F,2,FALSE) -> GDN (EM) | C4: 0 | D4: 1 | E4: 0
A5: Alrewas (WM) | B5: =VLOOKUP(A5,'Locations & Types'!$E:$F,2,FALSE) -> GDN (WM) | C5: 0 | D5: 1 | E5: 0
A6: Apache (Sage Black Start) | B6: =VLOOKUP(A6,'Locations & Types'!$E:$F,2,FALSE) -> DC | C6: 0 | D6: 1 | E6: 0
A7: Armadale | B7: =VLOOKUP(A7,'Locations & Types'!$E:$F,2,FALSE) -> GDN (SC) | C7: 0 | D7: 1 | E7: 0
A8: Aspley | B8: =VLOOKUP(A8,'Locations & Types'!$E:$F,2,FALSE) -> GDN (WM) | C8: 0 | D8: 1 | E8: 0
A9: Asselby | B9: =VLOOKUP(A9,'Locations & Types'!$E:$F,2,FALSE) -> GDN (NE) | C9: 0 | D9: 1 | E9: 0
A10: Audley (NW) | B10: =VLOOKUP(A10,'Locations & Types'!$E:$F,2,FALSE) -> GDN (NW) | C10: 0 | D10: 1 | E10: 0
A11: Audley (WM) | B11: =VLOOKUP(A11,'Locations & Types'!$E:$F,2,FALSE) -> GDN (WM) | C11: 0 | D11: 1 | E11: 0
A12: Austrey | B12: =VLOOKUP(A12,'Locations & Types'!$E:$F,2,FALSE) -> GDN (WM) | C12: 0 | D12: 1 | E12: 0
A13: Avonmouth Max Refill | B13: =VLOOKUP(A13,'Locations & Types'!$E:$F,2,FALSE) -> STORAGE SITE | C13: 0 | D13: 1 | E13: 0
A14: Aylesbeare | B14: =VLOOKUP(A14,'Locations & Types'!$E:$F,2,FALSE) -> GDN (SW) | C14: 0 | D14: 1 | E14: 0
A15: Bacton | B15: =VLOOKUP(A15,'Locations & Types'!$E:$F,2,FALSE) -> GDN (EA) | C15: 0 | D15: 1 | E15: 0
A16: Bacton (Baird) | B16: =VLOOKUP(A16,'Locations & Types'!$E:$F,2,FALSE) -> STORAGE SITE | C16: 0 | D16: 1 | E16: 0
A17: Bacton (BBL) | B17: =VLOOKUP(A17,'Locations & Types'!$E:$F,2,FALSE) -> INTERCONNECTOR | C17: 0 | D17: 1 | E17: 0
A18: Bacton (Great Yarmouth) | B18: =VLOOKUP(A18,'Locations & Types'!$E:$F,2,FALSE) -> DC | C18: 0 | D18: 1 | E18: 0
A19: Bacton (IUK) | B19: =VLOOKUP(A19,'Locations & Types'!$E:$F,2,FALSE) -> INTERCONNECTOR | C19: 0 | D19: 1 | E19: 0
A20: Baldersby | B20: =VLOOKUP(A20,'Locations & Types'!$E:$F,2,FALSE) -> GDN (NE) | C20: 0 | D20: 1 | E20: 0
A21: Balgray | B21: =VLOOKUP(A21,'Locations & Types'!$E:$F,2,FALSE) -> GDN (SC) | C21: 0 | D21: 1 | E21: 0
A22: Barking (Horndon) | B22: =VLOOKUP(A22,'Locations & Types'!$E:$F,2,FALSE) -> DC | C22: 0 | D22: 1 | E22: 0
A23: Barrow (Bains) | B23: =VLOOKUP(A23,'Locations & Types'!$E:$F,2,FALSE) -> STORAGE SITE | C23: 0 | D23: 1 | E23: 0
A24: Barrow (Black Start) | B24: =VLOOKUP(A24,'Locations & Types'!$E:$F,2,FALSE) -> DC | C24: 0 | D24: 1 | E24: 0
A25: Barrow (Gateway) | B25: =VLOOKUP(A25,'Locations & Types'!$E:$F,2,FALSE) -> STORAGE SITE | C25: 0 | D25: 1 | E25: 0
A26: Barton Stacey Max Refill (Humbly Grove) | B26: =VLOOKUP(A26,'Locations & Types'!$E:$F,2,FALSE) -> STORAGE SITE | C26: 0 | D26: 1 | E26: 0
A27: Bathgate | B27: =VLOOKUP(A27,'Locations & Types'!$E:$F,2,FALSE) -> GDN (SC) | C27: 0 | D27: 1 | E27: 0
A28: Billingham ICI (Terra Billingham) | B28: =VLOOKUP(A28,'Locations & Types'!$E:$F,2,FALSE) -> DC | C28: 0 | D28: 1 | E28: =C28*D28*100 -> 0
A29: Bishop Auckland | B29: =VLOOKUP(A29,'Locations & Types'!$E:$F,2,FALSE) -> GDN (NO) | C29: 0 | D29: 1 | E29: 0
A30: Bishop Auckland (test facility) | B30: =VLOOKUP(A30,'Locations & Types'!$E:$F,2,FALSE) -> DC | C30: 0 | D30: 1 | E30: 0
A31: Blaby | B31: =VLOOKUP(A31,'Locations & Types'!$E:$F,2,FALSE) -> GDN (EM) | C31: 0 | D31: 1 | E31: 0
A32: Blackness (BP Grangemouth) | B32: =VLOOKUP(A32,'Locations & Types'!$E:$F,2,FALSE) -> DC | C32: 0 | D32: 1 | E32: 0
A33: Blackrod | B33: =VLOOKUP(A33,'Locations & Types'!$E:$F,2,FALSE) -> GDN (NW) | C33: 0 | D33: 1 | E33: 0
A34: Blyborough | B34: =VLOOKUP(A34,'Locations & Types'!$E:$F,2,FALSE) -> GDN (EM) | C34: 0 | D34: 1 | E34: 0
A35: Blyborough (Brigg) | B35: =VLOOKUP(A35,'Locations & Types'!$E:$F,2,FALSE) -> DC | C35: 0 | D35: 1 | E35: 0
A36: Blyborough (Cottam) | B36: =VLOOKUP(A36,'Locations & Types'!$E:$F,2,FALSE) -> DC | C36: 0 | D36: 1 | E36: 0
A37: Braishfield A | B37: =VLOOKUP(A37,'Locations & Types'!$E:$F,2,FALSE) -> GDN (SO) | C37: 0 | D37: 1 | E37: 0
A38: Braishfield B | B38: =VLOOKUP(A38,'Locations & Types'!$E:$F,2,FALSE) -> GDN (SO) | C38: 0 | D38: 1 | E38: 0
A39: Brine Field (Teesside) Power Station | B39: =VLOOKUP(A39,'Locations & Types'!$E:$F,2,FALSE) -> DC | C39: 0 | D39: 1 | E39: 0
A40: Brisley | B40: =VLOOKUP(A40,'Locations & Types'!$E:$F,2,FALSE) -> GDN (EA) | C40: 0 | D40: 1 | E40: 0
A41: Broxburn | B41: =VLOOKUP(A41,'Locations & Types'!$E:$F,2,FALSE) -> GDN (SC) | C41: 0 | D41: 1 | E41: 0
A42: Burley Bank | B42: =VLOOKUP(A42,'Locations & Types'!$E:$F,2,FALSE) -> GDN (NE) | C42: 0 | D42: 1 | E42: 0
A43: Burnhervie | B43: =VLOOKUP(A43,'Locations & Types'!$E:$F,2,FALSE) -> GDN (SC) | C43: 0 | D43: 1 | E43: 0
A44: Burton Point (Connahs Quay) | B44: =VLOOKUP(A44,'Locations & Types'!$E:$F,2,FALSE) -> DC | C44: 0 | D44: 1 | E44: 0
A45: Caldecott | B45: =VLOOKUP(A45,'Locations & Types'!$E:$F,2,FALSE) -> GDN (EM) | C45: 0 | D45: 1 | E45: 0
A46: Caldecott (Corby Power Station) | B46: =VLOOKUP(A46,'Locations & Types'!$E:$F,2,FALSE) -> DC | C46: 0 | D46: 1 | E46: 0
A47: Cambridge | B47: =VLOOKUP(A47,'Locations & Types'!$E:$F,2,FALSE) -> GDN (EA) | C47: 0 | D47: 1 | E47: 0
A48: Careston | B48: =VLOOKUP(A48,'Locations & Types'!$E:$F,2,FALSE) -> GDN (SC) | C48: 0 | D48: 1 | E48: 0
A49: Carrington (Partington) Power Station | B49: =VLOOKUP(A49,'Locations & Types'!$E:$F,2,FALSE) -> DC | C49: 0 | D49: 1 | E49: 0
A50: Caythorpe | B50: =VLOOKUP(A50,'Locations & Types'!$E:$F,2,FALSE) -> STORAGE SITE | C50: 0 | D50: 1 | E50: 0
A51: Centrax Industrial | B51: =VLOOKUP(A51,'Locations & Types'!$E:$F,2,FALSE) -> DC | C51: 0 | D51: 1 | E51: 0
A52: Cirencester | B52: =VLOOKUP(A52,'Locations & Types'!$E:$F,2,FALSE) -> GDN (SW) | C52: 0 | D52: 1 | E52: 0
A53: Cockenzie Power Station | B53: =VLOOKUP(A53,'Locations & Types'!$E:$F,2,FALSE) -> DC | C53: 0 | D53: 1 | E53: 0
A54: Coffinswell | B54: =VLOOKUP(A54,'Locations & Types'!$E:$F,2,FALSE) -> GDN (SW) | C54: 0 | D54: 1 | E54: 0
A55: Coldstream | B55: =VLOOKUP(A55,'Locations & Types'!$E:$F,2,FALSE) -> GDN (NO) | C55: 0 | D55: 1 | E55: 0
A56: Corbridge | B56: =VLOOKUP(A56,'Locations & Types'!$E:$F,2,FALSE) -> GDN (NO) | C56: 0 | D56: 1 | E56: 0
A57: Coryton 2 (Thames Haven) Power Station | B57: =VLOOKUP(A57,'Locations & Types'!$E:$F,2,FALSE) -> DC | C57: 0 | D57: 1 | E57: 0
A58: Cowpen Bewley | B58: =VLOOKUP(A58,'Locations & Types'!$E:$F,2,FALSE) -> GDN (NO) | C58: 0 | D58: 1 | E58: 0
A59: Crawley Down | B59: =VLOOKUP(A59,'Locations & Types'!$E:$F,2,FALSE) -> GDN (SO) | C59: 0 | D59: 1 | E59: 0
A60: Deborah Storage (Bacton) | B60: =VLOOKUP(A60,'Locations & Types'!$E:$F,2,FALSE) -> STORAGE SITE | C60: 0 | D60: 1 | E60: 0
A61: Deeside | B61: =VLOOKUP(A61,'Locations & Types'!$E:$F,2,FALSE) -> DC | C61: 0 | D61: 1 | E61: 0
A62: Didcot | B62: =VLOOKUP(A62,'Locations & Types'!$E:$F,2,FALSE) -> DC | C62: 0 | D62: 1 | E62: 0
A63: Dowlais | B63: =VLOOKUP(A63,'Locations & Types'!$E:$F,2,FALSE) -> GDN (WS) | C63: 0 | D63: 1 | E63: 0
A64: Drakelow Power Station | B64: =VLOOKUP(A64,'Locations & Types'!$E:$F,2,FALSE) -> DC | C64: 0 | D64: 1 | E64: 0
A65: Drointon | B65: =VLOOKUP(A65,'Locations & Types'!$E:$F,2,FALSE) -> GDN (EM) | C65: 0 | D65: 1 | E65: 0
A66: Drum | B66: =VLOOKUP(A66,'Locations & Types'!$E:$F,2,FALSE) -> GDN (SC) | C66: 0 | D66: 1 | E66: 0
A67: Dyffryn Clydach | B67: =VLOOKUP(A67,'Locations & Types'!$E:$F,2,FALSE) -> GDN (WS) | C67: 0 | D67: 1 | E67: 0
A68: Dynevor Max Refill | B68: =VLOOKUP(A68,'Locations & Types'!$E:$F,2,FALSE) -> STORAGE SITE | C68: 0 | D68: 1 | E68: 0
A69: Eastoft (Keadby Blackstart) | B69: =VLOOKUP(A69,'Locations & Types'!$E:$F,2,FALSE) -> DC | C69: 0 | D69: 1 | E69: 0
A70: Eastoft (Keadby) | B70: =VLOOKUP(A70,'Locations & Types'!$E:$F,2,FALSE) -> DC | C70: 0 | D70: 1 | E70: 0
A71: Easton Grey | B71: =VLOOKUP(A71,'Locations & Types'!$E:$F,2,FALSE) -> GDN (SW) | C71: 0 | D71: 1 | E71: 0
A72: Ecclestone | B72: =VLOOKUP(A72,'Locations & Types'!$E:$F,2,FALSE) -> GDN (NW) | C72: 0 | D72: 1 | E72: 0
A73: Elton | B73: =VLOOKUP(A73,'Locations & Types'!$E:$F,2,FALSE) -> GDN (NO) | C73: 0 | D73: 1 | E73: 0
A74: Enron Billingham | B74: =VLOOKUP(A74,'Locations & Types'!$E:$F,2,FALSE) -> DC | C74: 0 | D74: 1 | E74: 0
A75: Epping Green (Enfield Energy, aka Brimsdown) | B75: =VLOOKUP(A75,'Locations & Types'!$E:$F,2,FALSE) -> DC | C75: 0 | D75: 1 | E75: 0
A76: Evesham | B76: =VLOOKUP(A76,'Locations & Types'!$E:$F,2,FALSE) -> GDN (SW) | C76: 0 | D76: 1 | E76: 0
A77: Farningham | B77: =VLOOKUP(A77,'Locations & Types'!$E:$F,2,FALSE) -> GDN (SE) | C77: 0 | D77: 1 | E77: 0
A78: Farningham B | B78: =VLOOKUP(A78,'Locations & Types'!$E:$F,2,FALSE) -> GDN (SE) | C78: 0 | D78: 1 | E78: 0
A79: Ferny Knoll (AM Paper) | B79: =VLOOKUP(A79,'Locations & Types'!$E:$F,2,FALSE) -> DC | C79: 0 | D79: 1 | E79: 0
A80: Fiddington | B80: =VLOOKUP(A80,'Locations & Types'!$E:$F,2,FALSE) -> GDN (SW) | C80: 0 | D80: 1 | E80: 0
A81: Ganstead | B81: =VLOOKUP(A81,'Locations & Types'!$E:$F,2,FALSE) -> GDN (NE) | C81: 0 | D81: 1 | E81: 0
A82: Garton Max Refill (Aldbrough) | B82: =VLOOKUP(A82,'Locations & Types'!$E:$F,2,FALSE) -> STORAGE SITE | C82: 0 | D82: 1 | E82: 0
A83: Gilwern | B83: =VLOOKUP(A83,'Locations & Types'!$E:$F,2,FALSE) -> GDN (WS) | C83: 0 | D83: 1 | E83: 0
A84: Glenmavis | B84: =VLOOKUP(A84,'Locations & Types'!$E:$F,2,FALSE) -> GDN (SC) | C84: 0 | D84: 1 | E84: 0
A85: Glenmavis Max Refill | B85: =VLOOKUP(A85,'Locations & Types'!$E:$F,2,FALSE) -> STORAGE SITE | C85: 0 | D85: 1 | E85: 0
A86: Goole (Guardian Glass) | B86: =VLOOKUP(A86,'Locations & Types'!$E:$F,2,FALSE) -> DC | C86: 0 | D86: 1 | E86: 0
A87: Gosberton | B87: =VLOOKUP(A87,'Locations & Types'!$E:$F,2,FALSE) -> GDN (EM) | C87: 0 | D87: 1 | E87: 0
A88: Gowkhall (Longannet) | B88: =VLOOKUP(A88,'Locations & Types'!$E:$F,2,FALSE) -> DC | C88: 0 | D88: 1 | E88: 0
A89: Grain Power Station | B89: =VLOOKUP(A89,'Locations & Types'!$E:$F,2,FALSE) -> DC | C89: 0 | D89: 1 | E89: 0
A90: Great Wilbraham | B90: =VLOOKUP(A90,'Locations & Types'!$E:$F,2,FALSE) -> GDN (EA) | C90: 0 | D90: 1 | E90: 0
A91: Guyzance | B91: =VLOOKUP(A91,'Locations & Types'!$E:$F,2,FALSE) -> GDN (NO) | C91: 0 | D91: 1 | E91: 0
A92: Hardwick | B92: =VLOOKUP(A92,'Locations & Types'!$E:$F,2,FALSE) -> GDN (SO) | C92: 0 | D92: 1 | E92: =C92*D92*100 -> 0
A93: Harwarden (Shotton, aka Shotton Paper) | B93: =VLOOKUP(A93,'Locations & Types'!$E:$F,2,FALSE) -> DC | C93: 0 | D93: 1 | E93: 0
A94: Hatfield Moor Max Refill | B94: =VLOOKUP(A94,'Locations & Types'!$E:$F,2,FALSE) -> STORAGE SITE | C94: 0 | D94: 1 | E94: 0
A95: Hatfield Power Station | B95: =VLOOKUP(A95,'Locations & Types'!$E:$F,2,FALSE) -> DC | C95: 0 | D95: 1 | E95: 0
A96: Hill Top Farm (Hole House Farm) | B96: =VLOOKUP(A96,'Locations & Types'!$E:$F,2,FALSE) -> STORAGE SITE | C96: 0 | D96: 1 | E96: 0
A97: Hole House Max Refill | B97: =VLOOKUP(A97,'Locations & Types'!$E:$F,2,FALSE) -> STORAGE SITE | C97: 0 | D97: 1 | E97: 0
A98: Holford | B98: =VLOOKUP(A98,'Locations & Types'!$E:$F,2,FALSE) -> STORAGE SITE | C98: 0 | D98: 1 | E98: 0
A99: Hollingsgreen (Hays Chemicals) | B99: =VLOOKUP(A99,'Locations & Types'!$E:$F,2,FALSE) -> DC | C99: 0 | D99: 1 | E99: 0
A100: Holmes Chapel | B100: =VLOOKUP(A100,'Locations & Types'!$E:$F,2,FALSE) -> GDN (NW) | C100: 0 | D100: 1 | E100: 0
A101: Horndon | B101: =VLOOKUP(A101,'Locations & Types'!$E:$F,2,FALSE) -> GDN (NT) | C101: 0 | D101: 1 | E101: 0
A102: Hornsea Max Refill | B102: =VLOOKUP(A102,'Locations & Types'!$E:$F,2,FALSE) -> STORAGE SITE | C102: 0 | D102: 1 | E102: 0
A103: Humbleton | B103: =VLOOKUP(A103,'Locations & Types'!$E:$F,2,FALSE) -> GDN (NO) | C103: 0 | D103: 1 | E103: 0
A104: Hume | B104: =VLOOKUP(A104,'Locations & Types'!$E:$F,2,FALSE) -> GDN (SC) | C104: 0 | D104: 1 | E104: 0
A105: Ilchester | B105: =VLOOKUP(A105,'Locations & Types'!$E:$F,2,FALSE) -> GDN (SW) | C105: 0 | D105: 1 | E105: 0
A106: Ipsden | B106: =VLOOKUP(A106,'Locations & Types'!$E:$F,2,FALSE) -> GDN (SO) | C106: 0 | D106: 1 | E106: 0
A107: Ipsden 2 | B107: =VLOOKUP(A107,'Locations & Types'!$E:$F,2,FALSE) -> GDN (SO) | C107: 0 | D107: 1 | E107: 0
A108: Keld | B108: =VLOOKUP(A108,'Locations & Types'!$E:$F,2,FALSE) -> GDN (NO) | C108: 0 | D108: 1 | E108: 0
A109: Kenn | B109: =VLOOKUP(A109,'Locations & Types'!$E:$F,2,FALSE) -> GDN (SW) | C109: 0 | D109: 1 | E109: 0
A110: Kinknockie | B110: =VLOOKUP(A110,'Locations & Types'!$E:$F,2,FALSE) -> GDN (SC) | C110: 0 | D110: 1 | E110: 0
A111: Kirkstead | B111: =VLOOKUP(A111,'Locations & Types'!$E:$F,2,FALSE) -> GDN (EM) | C111: 0 | D111: 1 | E111: 0
A112: Langage Power Station | B112: =VLOOKUP(A112,'Locations & Types'!$E:$F,2,FALSE) -> DC | C112: 0 | D112: 1 | E112: 0
A113: Langholm | B113: =VLOOKUP(A113,'Locations & Types'!$E:$F,2,FALSE) -> GDN (SC) | C113: 0 | D113: 1 | E113: 0
A114: Lauderhill | B114: =VLOOKUP(A114,'Locations & Types'!$E:$F,2,FALSE) -> GDN (SC) | C114: 0 | D114: 1 | E114: 0
A115: Leamington | B115: =VLOOKUP(A115,'Locations & Types'!$E:$F,2,FALSE) -> GDN (WM) | C115: 0 | D115: 1 | E115: 0
A116: Little Burdon | B116: =VLOOKUP(A116,'Locations & Types'!$E:$F,2,FALSE) -> GDN (NO) | C116: 0 | D116: 1 | E116: 0
A117: Littleton Drew | B117: =VLOOKUP(A117,'Locations & Types'!$E:$F,2,FALSE) -> GDN (SW) | C117: 0 | D117: 1 | E117: 0
A118: Lockerbie | B118: =VLOOKUP(A118,'Locations & Types'!$E:$F,2,FALSE) -> GDN (SC) | C118: 0 | D118: 1 | E118: 0
A119: Lower Quinton | B119: =VLOOKUP(A119,'Locations & Types'!$E:$F,2,FALSE) -> GDN (WM) | C119: 0 | D119: 1 | E119: 0
A120: Lupton | B120: =VLOOKUP(A120,'Locations & Types'!$E:$F,2,FALSE) -> GDN (NW) | C120: 0 | D120: 1 | E120: 0
A121: Luxborough Lane | B121: =VLOOKUP(A121,'Locations & Types'!$E:$F,2,FALSE) -> GDN (NT) | C121: 0 | D121: 1 | E121: 0
A122: Lyneham (Choakford) | B122: =VLOOKUP(A122,'Locations & Types'!$E:$F,2,FALSE) -> GDN (SW) | C122: 0 | D122: 1 | E122: 0
A123: Maelor | B123: =VLOOKUP(A123,'Locations & Types'!$E:$F,2,FALSE) -> GDN (WN) | C123: 0 | D123: 1 | E123: 0
A124: Malpas | B124: =VLOOKUP(A124,'Locations & Types'!$E:$F,2,FALSE) -> GDN (NW) | C124: 0 | D124: 1 | E124: 0
A125: Mappowder | B125: =VLOOKUP(A125,'Locations & Types'!$E:$F,2,FALSE) -> GDN (SO) | C125: 0 | D125: 1 | E125: 0
A126: Marchwood Power Station | B126: =VLOOKUP(A126,'Locations & Types'!$E:$F,2,FALSE) -> DC | C126: 0 | D126: 1 | E126: 0
A127: Market Harborough | B127: =VLOOKUP(A127,'Locations & Types'!$E:$F,2,FALSE) -> GDN (EM) | C127: 0 | D127: 1 | E127: 0
A128: Matching Green | B128: =VLOOKUP(A128,'Locations & Types'!$E:$F,2,FALSE) -> GDN (EA) | C128: 0 | D128: 1 | E128: 0
A129: Medway (aka Isle of Grain Power Station, NOT Grain Power) | B129: =VLOOKUP(A129,'Locations & Types'!$E:$F,2,FALSE) -> DC | C129: 0 | D129: 1 | E129: 0
A130: Melkinthorpe | B130: =VLOOKUP(A130,'Locations & Types'!$E:$F,2,FALSE) -> GDN (NO) | C130: 0 | D130: 1 | E130: 0
A131: Mickle Trafford | B131: =VLOOKUP(A131,'Locations & Types'!$E:$F,2,FALSE) -> GDN (NW) | C131: 0 | D131: 1 | E131: 0
A132: Middle Stoke (Damhead Creek, aka Kingsnorth Power Station) | B132: =VLOOKUP(A132,'Locations & Types'!$E:$F,2,FALSE) -> DC | C132: 0 | D132: 1 | E132: 0
A133: Milwich | B133: =VLOOKUP(A133,'Locations & Types'!$E:$F,2,FALSE) -> GDN (WM) | C133: 0 | D133: 1 | E133: 0
A134: Moffat (Irish Interconnector) | B134: =VLOOKUP(A134,'Locations & Types'!$E:$F,2,FALSE) -> INTERCONNECTOR | C134: 0 | D134: 1 | E134: 0
A135: Netherhowcleugh | B135: =VLOOKUP(A135,'Locations & Types'!$E:$F,2,FALSE) -> GDN (SC) | C135: 0 | D135: 1 | E135: 0
A136: Pannal | B136: =VLOOKUP(A136,'Locations & Types'!$E:$F,2,FALSE) -> GDN (NE) | C136: 0 | D136: 1 | E136: 0
A137: Partington | B137: =VLOOKUP(A137,'Locations & Types'!$E:$F,2,FALSE) -> GDN (NW) | C137: 0 | D137: 1 | E137: 0
A138: Partington Max Refill | B138: =VLOOKUP(A138,'Locations & Types'!$E:$F,2,FALSE) -> STORAGE SITE | C138: 0 | D138: 1 | E138: 0
A139: Paull | B139: =VLOOKUP(A139,'Locations & Types'!$E:$F,2,FALSE) -> GDN (NE) | C139: 0 | D139: 1 | E139: 0
A140: Pembroke Power Station | B140: =VLOOKUP(A140,'Locations & Types'!$E:$F,2,FALSE) -> DC | C140: 0 | D140: 1 | E140: 0
A141: Peterborough (Peterborough Power Station) | B141: =VLOOKUP(A141,'Locations & Types'!$E:$F,2,FALSE) -> DC | C141: 0 | D141: 1 | E141: 0
A142: Peterborough Eye (Tee) | B142: =VLOOKUP(A142,'Locations & Types'!$E:$F,2,FALSE) -> GDN (EA) | C142: 0 | D142: 1 | E142: 0
A143: Peters Green | B143: =VLOOKUP(A143,'Locations & Types'!$E:$F,2,FALSE) -> GDN (NT) | C143: 0 | D143: 1 | E143: 0
A144: Peters Green South Mimms | B144: =VLOOKUP(A144,'Locations & Types'!$E:$F,2,FALSE) -> GDN (NT) | C144: 0 | D144: 1 | E144: 0
A145: Phillips Petroleum, Teesside | B145: =VLOOKUP(A145,'Locations & Types'!$E:$F,2,FALSE) -> DC | C145: 0 | D145: 1 | E145: 0
A146: Pickering | B146: =VLOOKUP(A146,'Locations & Types'!$E:$F,2,FALSE) -> GDN (NE) | C146: 0 | D146: 1 | E146: 0
A147: Pickmere (Winnington Power, aka Brunner Mond) | B147: =VLOOKUP(A147,'Locations & Types'!$E:$F,2,FALSE) -> DC | C147: 0 | D147: 1 | E147: 0
A148: Pitcairngreen | B148: =VLOOKUP(A148,'Locations & Types'!$E:$F,2,FALSE) -> GDN (SC) | C148: 0 | D148: 1 | E148: 0
A149: Pucklechurch | B149: =VLOOKUP(A149,'Locations & Types'!$E:$F,2,FALSE) -> GDN (SW) | C149: 0 | D149: 1 | E149: 0
A150: Rawcliffe | B150: =VLOOKUP(A150,'Locations & Types'!$E:$F,2,FALSE) -> GDN (NE) | C150: 0 | D150: 1 | E150: 0
A151: Rollswood Kintore | B151: =VLOOKUP(A151,'Locations & Types'!$E:$F,2,FALSE) -> DC | C151: 0 | D151: 1 | E151: 0
A152: Roosecote Power Station (Barrow) | B152: =VLOOKUP(A152,'Locations & Types'!$E:$F,2,FALSE) -> DC | C152: 0 | D152: 1 | E152: 0
A153: Rosehill (Saltend Power Station) | B153: =VLOOKUP(A153,'Locations & Types'!$E:$F,2,FALSE) -> DC | C153: 0 | D153: 1 | E153: 0
A154: Ross (SW) | B154: =VLOOKUP(A154,'Locations & Types'!$E:$F,2,FALSE) -> GDN (SW) | C154: 0 | D154: 1 | E154: 0
A155: Ross (WM) | B155: =VLOOKUP(A155,'Locations & Types'!$E:$F,2,FALSE) -> GDN (WM) | C155: 0 | D155: 1 | E155: 0
A156: Roudham Heath | B156: =VLOOKUP(A156,'Locations & Types'!$E:$F,2,FALSE) -> GDN (EA) | C156: 0 | D156: 1 | E156: =C156*D156*100 -> 0
A157: Rough Max Refill | B157: =VLOOKUP(A157,'Locations & Types'!$E:$F,2,FALSE) -> STORAGE SITE | C157: 0 | D157: 1 | E157: 0
A158: Royston | B158: =VLOOKUP(A158,'Locations & Types'!$E:$F,2,FALSE) -> GDN (EA) | C158: 0 | D158: 1 | E158: 0
A159: Rugby | B159: =VLOOKUP(A159,'Locations & Types'!$E:$F,2,FALSE) -> GDN (WM) | C159: 0 | D159: 1 | E159: 0
A160: Ryehouse | B160: =VLOOKUP(A160,'Locations & Types'!$E:$F,2,FALSE) -> DC | C160: 0 | D160: 1 | E160: 0
A161: Saddle Bow (Kings Lynn) | B161: =VLOOKUP(A161,'Locations & Types'!$E:$F,2,FALSE) -> DC | C161: 0 | D161: 1 | E161: 0
A162: Saltend BPHP (BP Saltend HP) | B162: =VLOOKUP(A162,'Locations & Types'!$E:$F,2,FALSE) -> DC | C162: 0 | D162: 1 | E162: 0
A163: Saltfleetby Storage (Theddlethorpe) | B163: =VLOOKUP(A163,'Locations & Types'!$E:$F,2,FALSE) -> STORAGE SITE | C163: 0 | D163: 1 | E163: 0
A164: Saltwick Pressure Controlled | B164: =VLOOKUP(A164,'Locations & Types'!$E:$F,2,FALSE) -> GDN (NO) | C164: 0 | D164: 1 | E164: 0
A165: Saltwick Volumetric Controlled | B165: =VLOOKUP(A165,'Locations & Types'!$E:$F,2,FALSE) -> GDN (NO) | C165: 0 | D165: 1 | E165: 0
A166: Samlesbury | B166: =VLOOKUP(A166,'Locations & Types'!$E:$F,2,FALSE) -> GDN (NW) | C166: 0 | D166: 1 | E166: 0
A167: Sandy Lane (Blackburn CHP, aka Sappi Paper Mill) | B167: =VLOOKUP(A167,'Locations & Types'!$E:$F,2,FALSE) -> DC | C167: 0 | D167: 1 | E167: 0
A168: Seabank (DN) | B168: =VLOOKUP(A168,'Locations & Types'!$E:$F,2,FALSE) -> GDN (SW) | C168: 0 | D168: 1 | E168: 0
A169: Seabank (Seabank Power Station phase II) | B169: =VLOOKUP(A169,'Locations & Types'!$E:$F,2,FALSE) -> DC | C169: 0 | D169: 1 | E169: 0
A170: Seal Sands TGPP | B170: =VLOOKUP(A170,'Locations & Types'!$E:$F,2,FALSE) -> DC | C170: 0 | D170: 1 | E170: 0
A171: Sellafield Power Station | B171: =VLOOKUP(A171,'Locations & Types'!$E:$F,2,FALSE) -> DC | C171: 0 | D171: 1 | E171: 0
A172: Shellstar (aka Kemira, not Kemira CHP) | B172: =VLOOKUP(A172,'Locations & Types'!$E:$F,2,FALSE) -> DC | C172: 0 | D172: 1 | E172: 0
A173: Shorne | B173: =VLOOKUP(A173,'Locations & Types'!$E:$F,2,FALSE) -> GDN (SE) | C173: 0 | D173: 1 | E173: 0
A174: Shotwick (Bridgewater Paper) | B174: =VLOOKUP(A174,'Locations & Types'!$E:$F,2,FALSE) -> DC | C174: 0 | D174: 1 | E174: 0
A175: Shustoke | B175: =VLOOKUP(A175,'Locations & Types'!$E:$F,2,FALSE) -> GDN (WM) | C175: 0 | D175: 1 | E175: 0
A176: Silk Willoughby | B176: =VLOOKUP(A176,'Locations & Types'!$E:$F,2,FALSE) -> GDN (EM) | C176: 0 | D176: 1 | E176: 0
A177: Soutra | B177: =VLOOKUP(A177,'Locations & Types'!$E:$F,2,FALSE) -> GDN (SC) | C177: 0 | D177: 1 | E177: 0
A178: Spalding 2 (South Holland) Power Station | B178: =VLOOKUP(A178,'Locations & Types'!$E:$F,2,FALSE) -> DC | C178: 0 | D178: 1 | E178: 0
A179: St Fergus | B179: =VLOOKUP(A179,'Locations & Types'!$E:$F,2,FALSE) -> GDN (SC) | C179: 0 | D179: 1 | E179: 0
A180: St. Fergus (Peterhead) | B180: =VLOOKUP(A180,'Locations & Types'!$E:$F,2,FALSE) -> DC | C180: 0 | D180: 1 | E180: 0
A181: St. Fergus (Shell Blackstart) | B181: =VLOOKUP(A181,'Locations & Types'!$E:$F,2,FALSE) -> DC | C181: 0 | D181: 1 | E181: 0
A182: St. Neots (Little Barford) | B182: =VLOOKUP(A182,'Locations & Types'!$E:$F,2,FALSE) -> DC | C182: 0 | D182: 1 | E182: 0
A183: Stallingborough | B183: =VLOOKUP(A183,'Locations & Types'!$E:$F,2,FALSE) -> DC | C183: 0 | D183: 1 | E183: 0
A184: Stanford Le Hope (Coryton) | B184: =VLOOKUP(A184,'Locations & Types'!$E:$F,2,FALSE) -> DC | C184: 0 | D184: 1 | E184: 0
A185: Staythorpe | B185: =VLOOKUP(A185,'Locations & Types'!$E:$F,2,FALSE) -> DC | C185: 0 | D185: 1 | E185: 0
A186: Stranraer | B186: =VLOOKUP(A186,'Locations & Types'!$E:$F,2,FALSE) -> GDN (SC) | C186: 0 | D186: 1 | E186: 0
A187: Stratford-upon-Avon | B187: =VLOOKUP(A187,'Locations & Types'!$E:$F,2,FALSE) -> GDN (WM) | C187: 0 | D187: 1 | E187: 0
A188: Stublach (Cheshire) | B188: =VLOOKUP(A188,'Locations & Types'!$E:$F,2,FALSE) -> STORAGE SITE | C188: 0 | D188: 1 | E188: 0
A189: Sutton Bridge | B189: =VLOOKUP(A189,'Locations & Types'!$E:$F,2,FALSE) -> GDN (EM) | C189: 0 | D189: 1 | E189: 0
A190: Sutton Bridge Power Station | B190: =VLOOKUP(A190,'Locations & Types'!$E:$F,2,FALSE) -> DC | C190: 0 | D190: 1 | E190: 0
A191: Tatsfield | B191: =VLOOKUP(A191,'Locations & Types'!$E:$F,2,FALSE) -> GDN (SE) | C191: 0 | D191: 1 | E191: 0
A192: Teesside (BASF, aka BASF Teesside) | B192: =VLOOKUP(A192,'Locations & Types'!$E:$F,2,FALSE) -> DC | C192: 0 | D192: 1 | E192: 0
A193: Teesside Hydrogen | B193: =VLOOKUP(A193,'Locations & Types'!$E:$F,2,FALSE) -> DC | C193: 0 | D193: 1 | E193: 0
A194: Terra Nitrogen (aka ICI, Terra Severnside) | B194: =VLOOKUP(A194,'Locations & Types'!$E:$F,2,FALSE) -> DC | C194: 0 | D194: 1 | E194: 0
A195: Thornton Curtis (DN) | B195: =VLOOKUP(A195,'Locations & Types'!$E:$F,2,FALSE) -> GDN (EM) | C195: 0 | D195: 1 | E195: 0
A196: Thornton Curtis (Humber Refinery, aka Immingham) | B196: =VLOOKUP(A196,'Locations & Types'!$E:$F,2,FALSE) -> DC | C196: 0 | D196: 1 | E196: 0
A197: Thornton Curtis (Killingholme) | B197: =VLOOKUP(A197,'Locations & Types'!$E:$F,2,FALSE) -> DC | C197: 0 | D197: 1 | E197: 0
A198: Thrintoft | B198: =VLOOKUP(A198,'Locations & Types'!$E:$F,2,FALSE) -> GDN (NO) | C198: 0 | D198: 1 | E198: 0
A199: Tilbury Power Station | B199: =VLOOKUP(A199,'Locations & Types'!$E:$F,2,FALSE) -> DC | C199: 0 | D199: 1 | E199: 0
A200: Tonna (Baglan Bay) | B200: =VLOOKUP(A200,'Locations & Types'!$E:$F,2,FALSE) -> DC | C200: 0 | D200: 1 | E200: 0
... 22 more rows

Sheet Revenue Input (hidden)
A1: Revenue Inputs
A2: Part of the transmission services revenue to be recovered from capacity-based transmission tariffs (£m) | B2: ='User Inputs'!$C$10 -> 737.7907592
A3: Part of the transmission services revenue to be recovered from capacity-based transmission tariffs (£) | B3: =B2*1000000 -> 737790759.2 | E3: Revenue associated to Existing Contracts for Entry Capacity (£) | F3: =HLOOKUP('User Inputs'!$C$7,'Existing Contracts - Entry'!$A$1:$E$30,30,FALSE) -> 79512694.86
A4: Part of the transmission services revenue to be recovered from capacity-based transmission tariffs (p) | B4: =B3*100 -> 7.377907592e+10 | E4: Revenue associated to Existing Contracts for Entry Capacity (p) | F4: =F3*100 -> 7951269486
A5: Part of the transmission services revenue to be recovered from capacity-based transmission tariffs at all entry points (R_∑En) - WITHOUT EXITING CONTRACTS IF APPLICABLE | B5: =(IF('User Inputs'!C23="Yes",((('User Inputs'!C13/100)*B4)-F4),('User Inputs'!C13/100)*B4))+100*(F6+'User Inputs'!C16) -> 2.893826847e+10
A6: Part of the transmission services revenue to be recovered from capacity-based transmission tariffs at all exit points (R_∑Ex) | B6: =(('User Inputs'!D13/100)*B4)+100*(F7+'User Inputs'!D16) -> 3.688953796e+10 | E6: Entry Revenue Adjustment (£) | F6: ='User Inputs'!C70 -> 0
E7: Exit Revenue Adjustment (£) | F7: ='User Inputs'!D70 -> 0
A10: Gas Year | B10: Part of the transmission services revenue to be recovered from capacity-based transmission tariffs (£m)
A11: 01-Oct-2016 to 30-Sep-2017 | B11: 737.7907592
A12: 01-Oct-2017 to 30-Sep-2018 | B12: 788.3051889
A13: 01-Oct-2018 to 30-Sep-2019 | B13: 693.9471447
A14: 01-Oct-2019 to 30-Sep-2020 | B14: 866.5018837

Sheet Locations & Types (hidden)
A1: Entry Point | B1: Location Type | E1: Exit Point | F1: Location Type | G1: Exit Zone (if applicable)
A2: Avonmouth | B2: STORAGE SITE | E2: Aberdeen | F2: GDN (SC) | G2: SC1
A3: Bacton IP | B3: INTERCONNECTION POINT | E3: Abson (Seabank Power Station phase I) | F3: DC | G3: Other
A4: Bacton UKCS | B4: BEACH TERMINAL | E4: Alrewas (EM) | F4: GDN (EM) | G4: EM3
A5: Barrow | B5: BEACH TERMINAL | E5: Alrewas (WM) | F5: GDN (WM) | G5: WM2
A6: Barton Stacey | B6: STORAGE SITE | E6: Apache (Sage Black Start) | F6: DC | G6: Other
A7: Burton Point | B7: ONSHORE FIELD | E7: Armadale | F7: GDN (SC) | G7: SC2
A8: Canonbie | B8: ONSHORE FIELD | E8: Aspley | F8: GDN (WM) | G8: WM1
A9: Caythorpe | B9: STORAGE SITE | E9: Asselby | F9: GDN (NE) | G9: NE1
A10: Cheshire | B10: STORAGE SITE | E10: Audley (NW) | F10: GDN (NW) | G10: NW2
A11: Dynevor Arms | B11: STORAGE SITE | E11: Audley (WM) | F11: GDN (WM) | G11: WM1
A12: Easington (not incl. Rough) | B12: BEACH TERMINAL | E12: Austrey | F12: GDN (WM) | G12: WM2
A13: Fleetwood | B13: STORAGE SITE | E13: Avonmouth Max Refill | F13: STORAGE SITE | G13: Other
A14: Garton | B14: STORAGE SITE | E14: Aylesbeare | F14: GDN (SW) | G14: SW3
A15: Glenmavis | B15: STORAGE SITE | E15: Bacton | F15: GDN (EA) | G15: EA1
A16: Hatfield Moor (onshore) | B16: ONSHORE FIELD | E16: Bacton (Baird) | F16: STORAGE SITE | G16: Other
A17: Hatfield Moor (storage) | B17: STORAGE SITE | E17: Bacton (BBL) | F17: INTERCONNECTOR | G17: Other
A18: Hole House Farm | B18: STORAGE SITE | E18: Bacton (Great Yarmouth) | F18: DC | G18: Other
A19: Hornsea | B19: STORAGE SITE | E19: Bacton (IUK) | F19: INTERCONNECTOR | G19: Other
A20: Isle of Grain | B20: LNG IMPORTATION TERMINAL | E20: Baldersby | F20: GDN (NE) | G20: NE1
A21: Milford Haven | B21: LNG IMPORTATION TERMINAL | E21: Balgray | F21: GDN (SC) | G21: SC1
A22: Partington | B22: STORAGE SITE | E22: Barking (Horndon) | F22: DC | G22: Other
A23: Rough | B23: STORAGE SITE | E23: Barrow (Bains) | F23: STORAGE SITE | G23: Other
A24: St Fergus | B24: BEACH TERMINAL | E24: Barrow (Black Start) | F24: DC | G24: Other
A25: Teesside | B25: BEACH TERMINAL | E25: Barrow (Gateway) | F25: STORAGE SITE | G25: Other
A26: Theddlethorpe | B26: BEACH TERMINAL | E26: Barton Stacey Max Refill (Humbly Grove) | F26: STORAGE SITE | G26: Other
A27: Wytch Farm | B27: ONSHORE FIELD | E27: Bathgate | F27: GDN (SC) | G27: SC4
E28: Billingham ICI (Terra Billingham) | F28: DC | G28: Other
E29: Bishop Auckland | F29: GDN (NO) | G29: NO1
E30: Bishop Auckland (test facility) | F30: DC | G30: Other
E31: Blaby | F31: GDN (EM) | G31: EM3
E32: Blackness (BP Grangemouth) | F32: DC | G32: Other
E33: Blackrod | F33: GDN (NW) | G33: NW1
E34: Blyborough | F34: GDN (EM) | G34: EM2
E35: Blyborough (Brigg) | F35: DC | G35: Other
E36: Blyborough (Cottam) | F36: DC | G36: Other
E37: Braishfield A | F37: GDN (SO) | G37: SO2
E38: Braishfield B | F38: GDN (SO) | G38: SO2
E39: Brine Field (Teesside) Power Station | F39: DC | G39: Other
E40: Brisley | F40: GDN (EA) | G40: EA1
E41: Broxburn | F41: GDN (SC) | G41: SC2
E42: Burley Bank | F42: GDN (NE) | G42: NE1
E43: Burnhervie | F43: GDN (SC) | G43: SC1
E44: Burton Point (Connahs Quay) | F44: DC | G44: Other
E45: Caldecott | F45: GDN (EM) | G45: EM4
E46: Caldecott (Corby Power Station) | F46: DC | G46: Other
E47: Cambridge | F47: GDN (EA) | G47: EA4
E48: Careston | F48: GDN (SC) | G48: SC1
E49: Carrington (Partington) Power Station | F49: DC | G49: Other
E50: Caythorpe | F50: STORAGE SITE | G50: Other
E51: Centrax Industrial | F51: DC | G51: Other
E52: Cirencester | F52: GDN (SW) | G52: SW2
E53: Cockenzie Power Station | F53: DC | G53: Other
E54: Coffinswell | F54: GDN (SW) | G54: SW3
E55: Coldstream | F55: GDN (NO) | G55: NO1
E56: Corbridge | F56: GDN (NO) | G56: NO1
E57: Coryton 2 (Thames Haven) Power Station | F57: DC | G57: Other
E58: Cowpen Bewley | F58: GDN (NO) | G58: NO1
E59: Crawley Down | F59: GDN (SO) | G59: SO2
E60: Deborah Storage (Bacton) | F60: STORAGE SITE | G60: Other
E61: Deeside | F61: DC | G61: Other
E62: Didcot | F62: DC | G62: Other
E63: Dowlais | F63: GDN (WS) | G63: WS
E64: Drakelow Power Station | F64: DC | G64: Other
E65: Drointon | F65: GDN (EM) | G65: EM3
E66: Drum | F66: GDN (SC) | G66: SC4
E67: Dyffryn Clydach | F67: GDN (WS) | G67: WS
E68: Dynevor Max Refill | F68: STORAGE SITE | G68: Other
E69: Eastoft (Keadby Blackstart) | F69: DC | G69: Other
E70: Eastoft (Keadby) | F70: DC | G70: Other
E71: Easton Grey | F71: GDN (SW) | G71: SW2
E72: Ecclestone | F72: GDN (NW) | G72: NW2
E73: Elton | F73: GDN (NO) | G73: NO1
E74: Enron Billingham | F74: DC | G74: Other
E75: Epping Green (Enfield Energy, aka Brimsdown) | F75: DC | G75: Other
E76: Evesham | F76: GDN (SW) | G76: SW1
E77: Farningham | F77: GDN (SE) | G77: SE1
E78: Farningham B | F78: GDN (SE) | G78: SE1
E79: Ferny Knoll (AM Paper) | F79: DC | G79: Other
E80: Fiddington | F80: GDN (SW) | G80: SW1
E81: Ganstead | F81: GDN (NE) | G81: NE2
E82: Garton Max Refill (Aldbrough) | F82: STORAGE SITE | G82: Other
E83: Gilwern | F83: GDN (WS) | G83: WS
E84: Glenmavis | F84: GDN (SC) | G84: SC4
E85: Glenmavis Max Refill | F85: STORAGE SITE | G85: Other
E86: Goole (Guardian Glass) | F86: DC | G86: Other
E87: Gosberton | F87: GDN (EM) | G87: EM2
E88: Gowkhall (Longannet) | F88: DC | G88: Other
E89: Grain Power Station | F89: DC | G89: Other
E90: Great Wilbraham | F90: GDN (EA) | G90: EA2
E91: Guyzance | F91: GDN (NO) | G91: NO1
E92: Hardwick | F92: GDN (SO) | G92: SO1
E93: Harwarden (Shotton, aka Shotton Paper) | F93: DC | G93: Other
E94: Hatfield Moor Max Refill | F94: STORAGE SITE | G94: Other
E95: Hatfield Power Station | F95: DC | G95: Other
E96: Hill Top Farm (Hole House Farm) | F96: STORAGE SITE | G96: Other
E97: Hole House Max Refill | F97: STORAGE SITE | G97: Other
E98: Holford | F98: STORAGE SITE | G98: Other
E99: Hollingsgreen (Hays Chemicals) | F99: DC | G99: Other
E100: Holmes Chapel | F100: GDN (NW) | G100: NW2
E101: Horndon | F101: GDN (NT) | G101: NT2
E102: Hornsea Max Refill | F102: STORAGE SITE | G102: Other
E103: Humbleton | F103: GDN (NO) | G103: NO1
E104: Hume | F104: GDN (SC) | G104: SC2
E105: Ilchester | F105: GDN (SW) | G105: SW2
E106: Ipsden | F106: GDN (SO) | G106: SO2
E107: Ipsden 2 | F107: GDN (SO) | G107: SO2
E108: Keld | F108: GDN (NO) | G108: NO2
E109: Kenn | F109: GDN (SW) | G109: SW3
E110: Kinknockie | F110: GDN (SC) | G110: SC1
E111: Kirkstead | F111: GDN (EM) | G111: EM2
E112: Langage Power Station | F112: DC | G112: Other
E113: Langholm | F113: GDN (SC) | G113: SC4
E114: Lauderhill | F114: GDN (SC) | G114: SC2
E115: Leamington | F115: GDN (WM) | G115: WM3
E116: Little Burdon | F116: GDN (NO) | G116: NO1
E117: Littleton Drew | F117: GDN (SW) | G117: SW2
E118: Lockerbie | F118: GDN (SC) | G118: SC4
E119: Lower Quinton | F119: GDN (WM) | G119: WM3
E120: Lupton | F120: GDN (NW) | G120: NW1
E121: Luxborough Lane | F121: GDN (NT) | G121: NT2
E122: Lyneham (Choakford) | F122: GDN (SW) | G122: SW3
E123: Maelor | F123: GDN (WN) | G123: WN
E124: Malpas | F124: GDN (NW) | G124: NW2
E125: Mappowder | F125: GDN (SO) | G125: SO2
E126: Marchwood Power Station | F126: DC | G126: Other
E127: Market Harborough | F127: GDN (EM) | G127: EM4
E128: Matching Green | F128: GDN (EA) | G128: EA4
E129: Medway (aka Isle of Grain Power Station, NOT Grain Power) | F129: DC | G129: Other
E130: Melkinthorpe | F130: GDN (NO) | G130: NO2
E131: Mickle Trafford | F131: GDN (NW) | G131: NW2
E132: Middle Stoke (Damhead Creek, aka Kingsnorth Power Station) | F132: DC | G132: Other
E133: Milwich | F133: GDN (WM) | G133: WM1
E134: Moffat (Irish Interconnector) | F134: INTERCONNECTOR | G134: Other
E135: Netherhowcleugh | F135: GDN (SC) | G135: SC4
E136: Pannal | F136: GDN (NE) | G136: NE1
E137: Partington | F137: GDN (NW) | G137: NW2
E138: Partington Max Refill | F138: STORAGE SITE | G138: Other
E139: Paull | F139: GDN (NE) | G139: NE3
E140: Pembroke Power Station | F140: DC | G140: Other
E141: Peterborough (Peterborough Power Station) | F141: DC | G141: Other
E142: Peterborough Eye (Tee) | F142: GDN (EA) | G142: EA1
E143: Peters Green | F143: GDN (NT) | G143: NT3
E144: Peters Green South Mimms | F144: GDN (NT) | G144: NT3
E145: Phillips Petroleum, Teesside | F145: DC | G145: Other
E146: Pickering | F146: GDN (NE) | G146: NE2
E147: Pickmere (Winnington Power, aka Brunner Mond) | F147: DC | G147: Other
E148: Pitcairngreen | F148: GDN (SC) | G148: SC1
E149: Pucklechurch | F149: GDN (SW) | G149: SW2
E150: Rawcliffe | F150: GDN (NE) | G150: NE1
E151: Rollswood Kintore | F151: DC | G151: Other
E152: Roosecote Power Station (Barrow) | F152: DC | G152: Other
E153: Rosehill (Saltend Power Station) | F153: DC | G153: Other
E154: Ross (SW) | F154: GDN (SW) | G154: SW1
E155: Ross (WM) | F155: GDN (WM) | G155: WM3
E156: Roudham Heath | F156: GDN (EA) | G156: EA2
E157: Rough Max Refill | F157: STORAGE SITE | G157: Other
E158: Royston | F158: GDN (EA) | G158: EA4
E159: Rugby | F159: GDN (WM) | G159: WM3
E160: Ryehouse | F160: DC | G160: Other
E161: Saddle Bow (Kings Lynn) | F161: DC | G161: Other
E162: Saltend BPHP (BP Saltend HP) | F162: DC | G162: Other
E163: Saltfleetby Storage (Theddlethorpe) | F163: STORAGE SITE | G163: Other
E164: Saltwick Pressure Controlled | F164: GDN (NO) | G164: NO1
E165: Saltwick Volumetric Controlled | F165: GDN (NO) | G165: NO1
E166: Samlesbury | F166: GDN (NW) | G166: NW1
E167: Sandy Lane (Blackburn CHP, aka Sappi Paper Mill) | F167: DC | G167: Other
E168: Seabank (DN) | F168: GDN (SW) | G168: SW2
E169: Seabank (Seabank Power Station phase II) | F169: DC | G169: Other
E170: Seal Sands TGPP | F170: DC | G170: Other
E171: Sellafield Power Station | F171: DC | G171: Other
E172: Shellstar (aka Kemira, not Kemira CHP) | F172: DC | G172: Other
E173: Shorne | F173: GDN (SE) | G173: SE1
E174: Shotwick (Bridgewater Paper) | F174: DC | G174: Other
E175: Shustoke | F175: GDN (WM) | G175: WM2
E176: Silk Willoughby | F176: GDN (EM) | G176: EM2
E177: Soutra | F177: GDN (SC) | G177: SC2
E178: Spalding 2 (South Holland) Power Station | F178: DC | G178: Other
E179: St Fergus | F179: GDN (SC) | G179: SC1
E180: St. Fergus (Peterhead) | F180: DC | G180: Other
E181: St. Fergus (Shell Blackstart) | F181: DC | G181: Other
E182: St. Neots (Little Barford) | F182: DC | G182: Other
E183: Stallingborough | F183: DC | G183: Other
E184: Stanford Le Hope (Coryton) | F184: DC | G184: Other
E185: Staythorpe | F185: DC | G185: Other
E186: Stranraer | F186: GDN (SC) | G186: SC4
E187: Stratford-upon-Avon | F187: GDN (WM) | G187: WM3
E188: Stublach (Cheshire) | F188: STORAGE SITE | G188: Other
E189: Sutton Bridge | F189: GDN (EM) | G189: EM2
E190: Sutton Bridge Power Station | F190: DC | G190: Other
E191: Tatsfield | F191: GDN (SE) | G191: SE1
E192: Teesside (BASF, aka BASF Teesside) | F192: DC | G192: Other
E193: Teesside Hydrogen | F193: DC | G193: Other
E194: Terra Nitrogen (aka ICI, Terra Severnside) | F194: DC | G194: Other
E195: Thornton Curtis (DN) | F195: GDN (EM) | G195: EM1
E196: Thornton Curtis (Humber Refinery, aka Immingham) | F196: DC | G196: Other
E197: Thornton Curtis (Killingholme) | F197: DC | G197: Other
E198: Thrintoft | F198: GDN (NO) | G198: NO1
E199: Tilbury Power Station | F199: DC | G199: Other
E200: Tonna (Baglan Bay) | F200: DC | G200: Other
... 22 more rows

Sheet Existing Contracts - Entry (hidden)
A1: Gas Year | B1: ='Drop Down Inputs'!A15 -> 01-Oct-2016 to 30-Sep-2017 | C1: ='Drop Down Inputs'!A16 -> 01-Oct-2017 to 30-Sep-2018 | D1: ='Drop Down Inputs'!A17 -> 01-Oct-2018 to 30-Sep-2019 | E1: ='Drop Down Inputs'!A18 -> 01-Oct-2019 to 30-Sep-2020
A2: Entry Point | B2: Existing Contracts (kWh/d) | C2: Existing Contracts (kWh/d) | D2: Existing Contracts (kWh/d) | E2: Existing Contracts (kWh/d)
A3: Avonmouth | B3: 0 | C3: 0 | D3: 0 | E3: 0
A4: Bacton IP | B4: 211850257.2 | C4: 135532701.6 | D4: 89136101.67 | E4: 89258918.6
A5: Bacton UKCS | B5: 255185717.9 | C5: 248808024.8 | D5: 243317684.9 | E5: 239339580.5
A6: Burton Point | B6: 39656912.17 | C6: 31243264.59 | D6: 14936970.81 | E6: 11545376.78
A7: Barrow | B7: 98691763.19 | C7: 83639566.25 | D7: 75516797.68 | E7: 45116444.12
A8: Barton Stacey | B8: 90000000 | C8: 90000000 | D8: 90000000 | E8: 90246575.34
A9: Canonbie | B9: 0 | C9: 0 | D9: 0 | E9: 0
A10: Cheshire | B10: 514110000 | C10: 514110000 | D10: 514110000 | E10: 515518520.5
A11: Caythorpe | B11: 90000000 | C11: 90000000 | D11: 90000000 | E11: 90246575.34
A12: Dynevor Arms | B12: 0 | C12: 0 | D12: 0 | E12: 0
A13: Easington (not incl. Rough) | B13: 614523291.9 | C13: 596622022.3 | D13: 586731739.1 | E13: 562701692.6
A14: Fleetwood | B14: 0 | C14: 0 | D14: 0 | E14: 0
A15: Glenmavis | B15: 0 | C15: 0 | D15: 0 | E15: 0
A16: Garton | B16: 420000000 | C16: 420000000 | D16: 420000000 | E16: 421150684.9
A17: Hole House Farm | B17: 283440000 | C17: 283440000 | D17: 283440000 | E17: 284216547.9
A18: Hatfield Moor (onshore) | B18: 0 | C18: 0 | D18: 0 | E18: 0
A19: Hornsea | B19: 100674794.5 | C19: 100674794.5 | D19: 50742739.73 | E19: 51306547.95
A20: Hatfield Moor (storage) | B20: 5424657.534 | C20: 5424657.534 | D20: 5424657.534 | E20: 5484931.507
A21: Isle of Grain | B21: 608296985.8 | C21: 643392876.2 | D21: 643392876.2 | E21: 645212876.2
A22: Milford Haven | B22: 876298630.1 | C22: 876298630.1 | D22: 876298630.1 | E22: 929038356.2
A23: Partington | B23: 0 | C23: 0 | D23: 0 | E23: 0
A24: Rough | B24: 0 | C24: 0 | D24: 0 | E24: 0
A25: St Fergus | B25: 253741793.2 | C25: 243377936.6 | D25: 121747002.1 | E25: 71599454.35
A26: Teesside | B26: 163817316 | C26: 123628749.8 | D26: 102865550.2 | E26: 81794006.44
A27: Theddlethorpe | B27: 26073373.67 | C27: 16769692.16 | D27: 10700821.92 | E27: 8573424.658
A28: Wytch Farm | B28: 0 | C28: 0 | D28: 0 | E28: 0
A29: Total Capacity (kWh/d) | B29: =SUM(B3:B28) -> 4651785493 | C29: =SUM(C3:C28) -> 4502962916 | D29: =SUM(D3:D28) -> 4218361572 | E29: =SUM(E3:E28) -> 4142350514
A30: Total Revenue (£/annum) | B30: 79512694.86 | C30: 77673133.11 | D30: 58611155.06 | E30: 48845613.78

Sheet 16-17 FCC - Entry (hidden)
A1: Entry Point | B1: Entry Point Type | C1: Obligated Entry Capacity | D1: Non-Incremental Obligated Entry Capacity | E1: Historical Sold Entry Capacity Levels | F1: Historical Entry Flow Levels
C2: (kWh/d) | D2: (kWh/d) | E2: (kWh/d) | F2: (kWh/d)
A3: Avonmouth | B3: =VLOOKUP(A3,'Locations & Types'!$A:$B,2,FALSE) -> STORAGE SITE | C3: 179300000 | D3: 179300000 | E3: 95491112.66 | F3: 1520429.077
A4: Bacton IP | B4: =VLOOKUP(A4,'Locations & Types'!$A:$B,2,FALSE) -> INTERCONNECTION POINT | C4: 1297800000 | D4: 1297800000 | E4: 709653797.2 | F4: 121923629.7
A5: Bacton UKCS | B5: =VLOOKUP(A5,'Locations & Types'!$A:$B,2,FALSE) -> BEACH TERMINAL | C5: 485600000 | D5: 485600000 | E5: 788918770.1 | F5: 314195775.5
A6: Burton Point | B6: =VLOOKUP(A6,'Locations & Types'!$A:$B,2,FALSE) -> ONSHORE FIELD | C6: 73500000 | D6: 73500000 | E6: 67706970.84 | F6: 8761255.096
A7: Barrow | B7: =VLOOKUP(A7,'Locations & Types'!$A:$B,2,FALSE) -> BEACH TERMINAL | C7: 340010000 | D7: 340010000 | E7: 246833253.4 | F7: 38682778.19
A8: Barton Stacey | B8: =VLOOKUP(A8,'Locations & Types'!$A:$B,2,FALSE) -> STORAGE SITE | C8: 172600000 | D8: 172600000 | E8: 90286722.05 | F8: 10261349.33
A9: Canonbie | B9: =VLOOKUP(A9,'Locations & Types'!$A:$B,2,FALSE) -> ONSHORE FIELD | C9: 0 | D9: 0 | E9: 0 | F9: 0
A10: Cheshire | B10: =VLOOKUP(A10,'Locations & Types'!$A:$B,2,FALSE) -> STORAGE SITE | C10: 542700000 | D10: 542700000 | E10: 550375322.4 | F10: 41530662.44
A11: Caythorpe | B11: =VLOOKUP(A11,'Locations & Types'!$A:$B,2,FALSE) -> STORAGE SITE | C11: 90000000 | D11: 90000000 | E11: 90246575.34 | F11: 0
A12: Dynevor Arms | B12: =VLOOKUP(A12,'Locations & Types'!$A:$B,2,FALSE) -> STORAGE SITE | C12: 49000000 | D12: 49000000 | E12: 0 | F12: 0
A13: Easington (not incl. Rough) | B13: =VLOOKUP(A13,'Locations & Types'!$A:$B,2,FALSE) -> BEACH TERMINAL | C13: 1036670879 | D13: 902000000 | E13: 1348967900 | F13: 586383612.9
A14: Fleetwood | B14: =VLOOKUP(A14,'Locations & Types'!$A:$B,2,FALSE) -> STORAGE SITE | C14: 650000000 | D14: 0 | E14: 0 | F14: 0
A15: Glenmavis | B15: =VLOOKUP(A15,'Locations & Types'!$A:$B,2,FALSE) -> STORAGE SITE | C15: 99000000 | D15: 99000000 | E15: 0 | F15: 0
A16: Garton | B16: =VLOOKUP(A16,'Locations & Types'!$A:$B,2,FALSE) -> STORAGE SITE | C16: 420000000 | D16: 420000000 | E16: 421150684.9 | F16: 29593765.3
A17: Hole House Farm | B17: =VLOOKUP(A17,'Locations & Types'!$A:$B,2,FALSE) -> STORAGE SITE | C17: 296600000 | D17: 296600000 | E17: 297412602.7 | F17: 7788777.047
A18: Hatfield Moor (onshore) | B18: =VLOOKUP(A18,'Locations & Types'!$A:$B,2,FALSE) -> ONSHORE FIELD | C18: 300000 | D18: 300000 | E18: 0 | F18: 0
A19: Hornsea | B19: =VLOOKUP(A19,'Locations & Types'!$A:$B,2,FALSE) -> STORAGE SITE | C19: 233100000 | D19: 175000000 | E19: 302361554.8 | F19: 14306813.68
A20: Hatfield Moor (storage) | B20: =VLOOKUP(A20,'Locations & Types'!$A:$B,2,FALSE) -> STORAGE SITE | C20: 25000000 | D20: 25000000 | E20: 20769863.01 | F20: 2854778.833
A21: Isle of Grain | B21: =VLOOKUP(A21,'Locations & Types'!$A:$B,2,FALSE) -> LNG IMPORTATION TERMINAL | C21: 699680000 | D21: 464240000 | E21: 867242640.7 | F21: 28632532.37
A22: Milford Haven | B22: =VLOOKUP(A22,'Locations & Types'!$A:$B,2,FALSE) -> LNG IMPORTATION TERMINAL | C22: 950000000 | D22: 0 | E22: 1098756297 | F22: 350778725.9
A23: Partington | B23: =VLOOKUP(A23,'Locations & Types'!$A:$B,2,FALSE) -> STORAGE SITE | C23: 215000000 | D23: 215000000 | E23: 0 | F23: 87671.23288
A24: Rough | B24: =VLOOKUP(A24,'Locations & Types'!$A:$B,2,FALSE) -> STORAGE SITE | C24: 370479121 | D24: 160000000 | E24: 396081179.6 | F24: 37921827.74
A25: St Fergus | B25: =VLOOKUP(A25,'Locations & Types'!$A:$B,2,FALSE) -> BEACH TERMINAL | C25: 1670700000 | D25: 1670700000 | E25: 1775232509 | F25: 798066433.2
A26: Teesside | B26: =VLOOKUP(A26,'Locations & Types'!$A:$B,2,FALSE) -> BEACH TERMINAL | C26: 445090000 | D26: 445090000 | E26: 701067110.8 | F26: 168087469.5
A27: Theddlethorpe | B27: =VLOOKUP(A27,'Locations & Types'!$A:$B,2,FALSE) -> BEACH TERMINAL | C27: 610700000 | D27: 610700000 | E27: 462947532.4 | F27: 67045923.47
A28: Wytch Farm | B28: =VLOOKUP(A28,'Locations & Types'!$A:$B,2,FALSE) -> ONSHORE FIELD | C28: 3300000 | D28: 3300000 | E28: 5521556.121 | F28: 76995.00822

Sheet 17-18 FCC - Entry (hidden)
A1: Entry Point | B1: Entry Point Type | C1: Obligated Entry Capacity | D1: Non-Incremental Obligated Entry Capacity | E1: Historical Sold Entry Capacity Levels | F1: Historical Entry Flow Levels
C2: (kWh/d) | D2: (kWh/d) | E2: (kWh/d) | F2: (kWh/d)
A3: Avonmouth | B3: =VLOOKUP(A3,'Locations & Types'!$A:$B,2,FALSE) -> STORAGE SITE | C3: 179300000 | D3: 179300000 | E3: 39881249.64 | F3: 748532.4247
A4: Bacton IP | B4: =VLOOKUP(A4,'Locations & Types'!$A:$B,2,FALSE) -> INTERCONNECTION POINT | C4: 1297800000 | D4: 1297800000 | E4: 740645236.6 | F4: 241582707.1
A5: Bacton UKCS | B5: =VLOOKUP(A5,'Locations & Types'!$A:$B,2,FALSE) -> BEACH TERMINAL | C5: 485600000 | D5: 485600000 | E5: 752013192.2 | F5: 343150259.5
A6: Burton Point | B6: =VLOOKUP(A6,'Locations & Types'!$A:$B,2,FALSE) -> ONSHORE FIELD | C6: 73500000 | D6: 73500000 | E6: 83462089.64 | F6: 13991963.67
A7: Barrow | B7: =VLOOKUP(A7,'Locations & Types'!$A:$B,2,FALSE) -> BEACH TERMINAL | C7: 340010000 | D7: 340010000 | E7: 247442853 | F7: 31286724.14
A8: Barton Stacey | B8: =VLOOKUP(A8,'Locations & Types'!$A:$B,2,FALSE) -> STORAGE SITE | C8: 172600000 | D8: 172600000 | E8: 90000000 | F8: 10664688.59
A9: Canonbie | B9: =VLOOKUP(A9,'Locations & Types'!$A:$B,2,FALSE) -> ONSHORE FIELD | C9: 0 | D9: 0 | E9: 0 | F9: 0
A10: Cheshire | B10: =VLOOKUP(A10,'Locations & Types'!$A:$B,2,FALSE) -> STORAGE SITE | C10: 542700000 | D10: 542700000 | E10: 534408904.1 | F10: 54791575.48
A11: Caythorpe | B11: =VLOOKUP(A11,'Locations & Types'!$A:$B,2,FALSE) -> STORAGE SITE | C11: 90000000 | D11: 90000000 | E11: 90000000 | F11: 0
A12: Dynevor Arms | B12: =VLOOKUP(A12,'Locations & Types'!$A:$B,2,FALSE) -> STORAGE SITE | C12: 49000000 | D12: 49000000 | E12: 0 | F12: 0
A13: Easington (not incl. Rough) | B13: =VLOOKUP(A13,'Locations & Types'!$A:$B,2,FALSE) -> BEACH TERMINAL | C13: 1036670879 | D13: 691520879 | E13: 1349766066 | F13: 678339109
A14: Fleetwood | B14: =VLOOKUP(A14,'Locations & Types'!$A:$B,2,FALSE) -> STORAGE SITE | C14: 650000000 | D14: 0 | E14: 0 | F14: 0
A15: Glenmavis | B15: =VLOOKUP(A15,'Locations & Types'!$A:$B,2,FALSE) -> STORAGE SITE | C15: 99000000 | D15: 99000000 | E15: 0 | F15: 50894.06575
A16: Garton | B16: =VLOOKUP(A16,'Locations & Types'!$A:$B,2,FALSE) -> STORAGE SITE | C16: 420000000 | D16: 420000000 | E16: 420000000 | F16: 37767119.79
A17: Hole House Farm | B17: =VLOOKUP(A17,'Locations & Types'!$A:$B,2,FALSE) -> STORAGE SITE | C17: 296600000 | D17: 296600000 | E17: 283476054.8 | F17: 11251338.75
A18: Hatfield Moor (onshore) | B18: =VLOOKUP(A18,'Locations & Types'!$A:$B,2,FALSE) -> ONSHORE FIELD | C18: 300000 | D18: 300000 | E18: 0 | F18: 0
A19: Hornsea | B19: =VLOOKUP(A19,'Locations & Types'!$A:$B,2,FALSE) -> STORAGE SITE | C19: 233100000 | D19: 175000000 | E19: 311345865.4 | F19: 23894204.77
A20: Hatfield Moor (storage) | B20: =VLOOKUP(A20,'Locations & Types'!$A:$B,2,FALSE) -> STORAGE SITE | C20: 25000000 | D20: 25000000 | E20: 21222739.72 | F20: 3265392.107
A21: Isle of Grain | B21: =VLOOKUP(A21,'Locations & Types'!$A:$B,2,FALSE) -> LNG IMPORTATION TERMINAL | C21: 699680000 | D21: 464240000 | E21: 853214749.8 | F21: 31135782.74
A22: Milford Haven | B22: =VLOOKUP(A22,'Locations & Types'!$A:$B,2,FALSE) -> LNG IMPORTATION TERMINAL | C22: 950000000 | D22: 0 | E22: 1028178917 | F22: 233676867.1
A23: Partington | B23: =VLOOKUP(A23,'Locations & Types'!$A:$B,2,FALSE) -> STORAGE SITE | C23: 215000000 | D23: 215000000 | E23: 0 | F23: 0
A24: Rough | B24: =VLOOKUP(A24,'Locations & Types'!$A:$B,2,FALSE) -> STORAGE SITE | C24: 370479121 | D24: 370479121 | E24: 368609643.6 | F24: 25972353.15
A25: St Fergus | B25: =VLOOKUP(A25,'Locations & Types'!$A:$B,2,FALSE) -> BEACH TERMINAL | C25: 1670700000 | D25: 1670700000 | E25: 1819180362 | F25: 992518716.6
A26: Teesside | B26: =VLOOKUP(A26,'Locations & Types'!$A:$B,2,FALSE) -> BEACH TERMINAL | C26: 445090000 | D26: 445090000 | E26: 637151677.5 | F26: 179861236.3
A27: Theddlethorpe | B27: =VLOOKUP(A27,'Locations & Types'!$A:$B,2,FALSE) -> BEACH TERMINAL | C27: 610700000 | D27: 610700000 | E27: 445591889.6 | F27: 69774574.67
A28: Wytch Farm | B28: =VLOOKUP(A28,'Locations & Types'!$A:$B,2,FALSE) -> ONSHORE FIELD | C28: 3300000 | D28: 3300000 | E28: 5854005.493 | F28: 69190.63014

Sheet 18-19 FCC - Entry (hidden)
A1: Entry Point | B1: Entry Point Type | C1: Obligated Entry Capacity | D1: Non-Incremental Obligated Entry Capacity | E1: Historical Sold Entry Capacity Levels | F1: Historical Entry Flow Levels
C2: (kWh/d) | D2: (kWh/d) | E2: (kWh/d) | F2: (kWh/d)
A3: Avonmouth | B3: =VLOOKUP(A3,'Locations & Types'!$A:$B,2,FALSE) -> STORAGE SITE | C3: 179300000 | D3: 179300000 | E3: 39881249.64 | F3: 748532.4247
A4: Bacton IP | B4: =VLOOKUP(A4,'Locations & Types'!$A:$B,2,FALSE) -> INTERCONNECTION POINT | C4: 1297800000 | D4: 1297800000 | E4: 664327680.9 | F4: 241582707.1
A5: Bacton UKCS | B5: =VLOOKUP(A5,'Locations & Types'!$A:$B,2,FALSE) -> BEACH TERMINAL | C5: 485600000 | D5: 485600000 | E5: 743582088.2 | F5: 343150259.5
A6: Burton Point | B6: =VLOOKUP(A6,'Locations & Types'!$A:$B,2,FALSE) -> ONSHORE FIELD | C6: 73500000 | D6: 73500000 | E6: 75048442.07 | F6: 13991963.67
A7: Barrow | B7: =VLOOKUP(A7,'Locations & Types'!$A:$B,2,FALSE) -> BEACH TERMINAL | C7: 340010000 | D7: 340010000 | E7: 232390656.1 | F7: 31286724.14
A8: Barton Stacey | B8: =VLOOKUP(A8,'Locations & Types'!$A:$B,2,FALSE) -> STORAGE SITE | C8: 172600000 | D8: 172600000 | E8: 90000000 | F8: 10664688.59
A9: Canonbie | B9: =VLOOKUP(A9,'Locations & Types'!$A:$B,2,FALSE) -> ONSHORE FIELD | C9: 0 | D9: 0 | E9: 0 | F9: 0
A10: Cheshire | B10: =VLOOKUP(A10,'Locations & Types'!$A:$B,2,FALSE) -> STORAGE SITE | C10: 542700000 | D10: 542700000 | E10: 534408904.1 | F10: 54791575.48
A11: Caythorpe | B11: =VLOOKUP(A11,'Locations & Types'!$A:$B,2,FALSE) -> STORAGE SITE | C11: 90000000 | D11: 90000000 | E11: 90000000 | F11: 0
A12: Dynevor Arms | B12: =VLOOKUP(A12,'Locations & Types'!$A:$B,2,FALSE) -> STORAGE SITE | C12: 49000000 | D12: 49000000 | E12: 0 | F12: 0
A13: Easington (not incl. Rough) | B13: =VLOOKUP(A13,'Locations & Types'!$A:$B,2,FALSE) -> BEACH TERMINAL | C13: 1036670879 | D13: 691520879 | E13: 1331864796 | F13: 678339109
A14: Fleetwood | B14: =VLOOKUP(A14,'Locations & Types'!$A:$B,2,FALSE) -> STORAGE SITE | C14: 650000000 | D14: 0 | E14: 0 | F14: 0
A15: Glenmavis | B15: =VLOOKUP(A15,'Locations & Types'!$A:$B,2,FALSE) -> STORAGE SITE | C15: 99000000 | D15: 99000000 | E15: 0 | F15: 50894.06575
A16: Garton | B16: =VLOOKUP(A16,'Locations & Types'!$A:$B,2,FALSE) -> STORAGE SITE | C16: 420000000 | D16: 420000000 | E16: 420000000 | F16: 37767119.79
A17: Hole House Farm | B17: =VLOOKUP(A17,'Locations & Types'!$A:$B,2,FALSE) -> STORAGE SITE | C17: 296600000 | D17: 296600000 | E17: 283476054.8 | F17: 11251338.75
A18: Hatfield Moor (onshore) | B18: =VLOOKUP(A18,'Locations & Types'!$A:$B,2,FALSE) -> ONSHORE FIELD | C18: 300000 | D18: 300000 | E18: 0 | F18: 0
A19: Hornsea | B19: =VLOOKUP(A19,'Locations & Types'!$A:$B,2,FALSE) -> STORAGE SITE | C19: 233100000 | D19: 175000000 | E19: 311345865.4 | F19: 23894204.77
A20: Hatfield Moor (storage) | B20: =VLOOKUP(A20,'Locations & Types'!$A:$B,2,FALSE) -> STORAGE SITE | C20: 25000000 | D20: 25000000 | E20: 21222739.72 | F20: 3265392.107
A21: Isle of Grain | B21: =VLOOKUP(A21,'Locations & Types'!$A:$B,2,FALSE) -> LNG IMPORTATION TERMINAL | C21: 699680000 | D21: 464240000 | E21: 888310640.2 | F21: 31135782.74
A22: Milford Haven | B22: =VLOOKUP(A22,'Locations & Types'!$A:$B,2,FALSE) -> LNG IMPORTATION TERMINAL | C22: 950000000 | D22: 0 | E22: 1028178917 | F22: 233676867.1
A23: Partington | B23: =VLOOKUP(A23,'Locations & Types'!$A:$B,2,FALSE) -> STORAGE SITE | C23: 215000000 | D23: 215000000 | E23: 0 | F23: 0
A24: Rough | B24: =VLOOKUP(A24,'Locations & Types'!$A:$B,2,FALSE) -> STORAGE SITE | C24: 370479121 | D24: 370479121 | E24: 368609643.6 | F24: 25972353.15
A25: St Fergus | B25: =VLOOKUP(A25,'Locations & Types'!$A:$B,2,FALSE) -> BEACH TERMINAL | C25: 1670700000 | D25: 1670700000 | E25: 1808816505 | F25: 992518716.6
A26: Teesside | B26: =VLOOKUP(A26,'Locations & Types'!$A:$B,2,FALSE) -> BEACH TERMINAL | C26: 445090000 | D26: 445090000 | E26: 596963111.3 | F26: 179861236.3
A27: Theddlethorpe | B27: =VLOOKUP(A27,'Locations & Types'!$A:$B,2,FALSE) -> BEACH TERMINAL | C27: 610700000 | D27: 610700000 | E27: 436288208.1 | F27: 69774574.67
A28: Wytch Farm | B28: =VLOOKUP(A28,'Locations & Types'!$A:$B,2,FALSE) -> ONSHORE FIELD | C28: 3300000 | D28: 3300000 | E28: 5854005.493 | F28: 69190.63014

Sheet 19-20 FCC - Entry (hidden)
A1: Entry Point | B1: Entry Point Type | C1: Obligated Entry Capacity | D1: Non-Incremental Obligated Entry Capacity | E1: Historical Sold Entry Capacity Levels | F1: Historical Entry Flow Levels
C2: (kWh/d) | D2: (kWh/d) | E2: (kWh/d) | F2: (kWh/d)
A3: Avonmouth | B3: =VLOOKUP(A3,'Locations & Types'!$A:$B,2,FALSE) -> STORAGE SITE | C3: 179300000 | D3: 179300000 | E3: 39881249.64 | F3: 748532.4247
A4: Bacton IP | B4: =VLOOKUP(A4,'Locations & Types'!$A:$B,2,FALSE) -> INTERCONNECTION POINT | C4: 1297800000 | D4: 1297800000 | E4: 617931081.1 | F4: 241582707.1
A5: Bacton UKCS | B5: =VLOOKUP(A5,'Locations & Types'!$A:$B,2,FALSE) -> BEACH TERMINAL | C5: 485600000 | D5: 485600000 | E5: 738091748.2 | F5: 343150259.5
A6: Burton Point | B6: =VLOOKUP(A6,'Locations & Types'!$A:$B,2,FALSE) -> ONSHORE FIELD | C6: 73500000 | D6: 73500000 | E6: 58742148.28 | F6: 13991963.67
A7: Barrow | B7: =VLOOKUP(A7,'Locations & Types'!$A:$B,2,FALSE) -> BEACH TERMINAL | C7: 340010000 | D7: 340010000 | E7: 224267887.5 | F7: 31286724.14
A8: Barton Stacey | B8: =VLOOKUP(A8,'Locations & Types'!$A:$B,2,FALSE) -> STORAGE SITE | C8: 172600000 | D8: 172600000 | E8: 90000000 | F8: 10664688.59
A9: Canonbie | B9: =VLOOKUP(A9,'Locations & Types'!$A:$B,2,FALSE) -> ONSHORE FIELD | C9: 0 | D9: 0 | E9: 0 | F9: 0
A10: Cheshire | B10: =VLOOKUP(A10,'Locations & Types'!$A:$B,2,FALSE) -> STORAGE SITE | C10: 542700000 | D10: 542700000 | E10: 534408904.1 | F10: 54791575.48
A11: Caythorpe | B11: =VLOOKUP(A11,'Locations & Types'!$A:$B,2,FALSE) -> STORAGE SITE | C11: 90000000 | D11: 90000000 | E11: 90000000 | F11: 0
A12: Dynevor Arms | B12: =VLOOKUP(A12,'Locations & Types'!$A:$B,2,FALSE) -> STORAGE SITE | C12: 49000000 | D12: 49000000 | E12: 0 | F12: 0
A13: Easington (not incl. Rough) | B13: =VLOOKUP(A13,'Locations & Types'!$A:$B,2,FALSE) -> BEACH TERMINAL | C13: 1036670879 | D13: 691520879 | E13: 1321974513 | F13: 678339109
A14: Fleetwood | B14: =VLOOKUP(A14,'Locations & Types'!$A:$B,2,FALSE) -> STORAGE SITE | C14: 650000000 | D14: 0 | E14: 0 | F14: 0
A15: Glenmavis | B15: =VLOOKUP(A15,'Locations & Types'!$A:$B,2,FALSE) -> STORAGE SITE | C15: 99000000 | D15: 99000000 | E15: 0 | F15: 50894.06575
A16: Garton | B16: =VLOOKUP(A16,'Locations & Types'!$A:$B,2,FALSE) -> STORAGE SITE | C16: 420000000 | D16: 420000000 | E16: 420000000 | F16: 37767119.79
A17: Hole House Farm | B17: =VLOOKUP(A17,'Locations & Types'!$A:$B,2,FALSE) -> STORAGE SITE | C17: 296600000 | D17: 296600000 | E17: 283476054.8 | F17: 11251338.75
A18: Hatfield Moor (onshore) | B18: =VLOOKUP(A18,'Locations & Types'!$A:$B,2,FALSE) -> ONSHORE FIELD | C18: 300000 | D18: 300000 | E18: 0 | F18: 0
A19: Hornsea | B19: =VLOOKUP(A19,'Locations & Types'!$A:$B,2,FALSE) -> STORAGE SITE | C19: 233100000 | D19: 175000000 | E19: 261413810.6 | F19: 23894204.77
A20: Hatfield Moor (storage) | B20: =VLOOKUP(A20,'Locations & Types'!$A:$B,2,FALSE) -> STORAGE SITE | C20: 25000000 | D20: 25000000 | E20: 21222739.72 | F20: 3265392.107
A21: Isle of Grain | B21: =VLOOKUP(A21,'Locations & Types'!$A:$B,2,FALSE) -> LNG IMPORTATION TERMINAL | C21: 699680000 | D21: 464240000 | E21: 888310640.2 | F21: 31135782.74
A22: Milford Haven | B22: =VLOOKUP(A22,'Locations & Types'!$A:$B,2,FALSE) -> LNG IMPORTATION TERMINAL | C22: 950000000 | D22: 0 | E22: 1028178917 | F22: 233676867.1
A23: Partington | B23: =VLOOKUP(A23,'Locations & Types'!$A:$B,2,FALSE) -> STORAGE SITE | C23: 215000000 | D23: 215000000 | E23: 0 | F23: 0
A24: Rough | B24: =VLOOKUP(A24,'Locations & Types'!$A:$B,2,FALSE) -> STORAGE SITE | C24: 370479121 | D24: 370479121 | E24: 368609643.6 | F24: 25972353.15
A25: St Fergus | B25: =VLOOKUP(A25,'Locations & Types'!$A:$B,2,FALSE) -> BEACH TERMINAL | C25: 1670700000 | D25: 1670700000 | E25: 1687185571 | F25: 992518716.6
A26: Teesside | B26: =VLOOKUP(A26,'Locations & Types'!$A:$B,2,FALSE) -> BEACH TERMINAL | C26: 445090000 | D26: 445090000 | E26: 576199911.7 | F26: 179861236.3
A27: Theddlethorpe | B27: =VLOOKUP(A27,'Locations & Types'!$A:$B,2,FALSE) -> BEACH TERMINAL | C27: 610700000 | D27: 610700000 | E27: 430219337.9 | F27: 69774574.67
A28: Wytch Farm | B28: =VLOOKUP(A28,'Locations & Types'!$A:$B,2,FALSE) -> ONSHORE FIELD | C28: 3300000 | D28: 3300000 | E28: 5854005.493 | F28: 69190.63014

Sheet 16-17 FCC - Exit (hidden)
A1: Exit Point | B1: Exit Point Type | C1: Obligated Exit Capacity | D1: Non-Incremental Obligated Exit Capacity | E1: Historical Sold Exit Capacity Levels | F1: Historical Exit Flow Levels
C2: (kWh/d) | D2: (kWh/d) | E2: (kWh/d) | F2: (kWh/d)
A3: Aberdeen | B3: =VLOOKUP(A3,'Locations & Types'!$E:$F,2,FALSE) -> GDN (SC) | C3: 23536855 | D3: 23090000 | E3: 23947813.9 | F3: 9164426.301
A4: Abson (Seabank Power Station phase I) | B4: =VLOOKUP(A4,'Locations & Types'!$E:$F,2,FALSE) -> DC | C4: 36590000 | D4: 36590000 | E4: 62667554.78 | F4: 17103649.19
A5: Alrewas (EM) | B5: =VLOOKUP(A5,'Locations & Types'!$E:$F,2,FALSE) -> GDN (EM) | C5: 139912893 | D5: 139870000 | E5: 68237312.36 | F5: 20803402.74
A6: Alrewas (WM) | B6: =VLOOKUP(A6,'Locations & Types'!$E:$F,2,FALSE) -> GDN (WM) | C6: 128480000 | D6: 128480000 | E6: 72669637 | F6: 17233865.75
A7: Apache (Sage Black Start) | B7: =VLOOKUP(A7,'Locations & Types'!$E:$F,2,FALSE) -> DC | C7: 0 | D7: 0 | E7: 0 | F7: 0
A8: Armadale | B8: =VLOOKUP(A8,'Locations & Types'!$E:$F,2,FALSE) -> GDN (SC) | C8: 16011750 | D8: 3010000 | E8: 7861275 | F8: 1823922.192
A9: Aspley | B9: =VLOOKUP(A9,'Locations & Types'!$E:$F,2,FALSE) -> GDN (WM) | C9: 84650000 | D9: 84650000 | E9: 50992393 | F9: 26605843.84
A10: Asselby | B10: =VLOOKUP(A10,'Locations & Types'!$E:$F,2,FALSE) -> GDN (NE) | C10: 4586470 | D10: 3920000 | E10: 4586470 | F10: 1556157.26
A11: Audley (NW) | B11: =VLOOKUP(A11,'Locations & Types'!$E:$F,2,FALSE) -> GDN (NW) | C11: 12140000 | D11: 12140000 | E11: 8989765 | F11: 3158527.397
A12: Audley (WM) | B12: =VLOOKUP(A12,'Locations & Types'!$E:$F,2,FALSE) -> GDN (WM) | C12: 21830000 | D12: 21830000 | E12: 15330890 | F12: 2438644.658
A13: Austrey | B13: =VLOOKUP(A13,'Locations & Types'!$E:$F,2,FALSE) -> GDN (WM) | C13: 87835508 | D13: 87810000 | E13: 59601211 | F13: 20205702.74
A14: Avonmouth Max Refill | B14: =VLOOKUP(A14,'Locations & Types'!$E:$F,2,FALSE) -> STORAGE SITE | C14: 2300000 | D14: 2300000 | E14: 3947455.882 | F14: 13357.72603
A15: Aylesbeare | B15: =VLOOKUP(A15,'Locations & Types'!$E:$F,2,FALSE) -> GDN (SW) | C15: 22680000 | D15: 22680000 | E15: 19128874 | F15: 5796565.205
A16: Bacton | B16: =VLOOKUP(A16,'Locations & Types'!$E:$F,2,FALSE) -> GDN (EA) | C16: 3660000 | D16: 3660000 | E16: 2673627 | F16: 884625.4795
A17: Bacton (Baird) | B17: =VLOOKUP(A17,'Locations & Types'!$E:$F,2,FALSE) -> STORAGE SITE | C17: 0 | D17: 0 | E17: 0 | F17: 0
A18: Bacton (BBL) | B18: =VLOOKUP(A18,'Locations & Types'!$E:$F,2,FALSE) -> INTERCONNECTOR | C18: 0 | D18: 0 | E18: 102941764.4 | F18: 1018.630137
A19: Bacton (Great Yarmouth) | B19: =VLOOKUP(A19,'Locations & Types'!$E:$F,2,FALSE) -> DC | C19: 20040000 | D19: 20040000 | E19: 24365504.03 | F19: 11454140.26
A20: Bacton (IUK) | B20: =VLOOKUP(A20,'Locations & Types'!$E:$F,2,FALSE) -> INTERCONNECTOR | C20: 651676940 | D20: 623580000 | E20: 633277992.7 | F20: 243075728.4
A21: Baldersby | B21: =VLOOKUP(A21,'Locations & Types'!$E:$F,2,FALSE) -> GDN (NE) | C21: 1340000 | D21: 1340000 | E21: 1301089 | F21: 461224.3836
A22: Balgray | B22: =VLOOKUP(A22,'Locations & Types'!$E:$F,2,FALSE) -> GDN (SC) | C22: 15723362 | D22: 11400000 | E22: 15057981 | F22: 5080518.356
A23: Barking (Horndon) | B23: =VLOOKUP(A23,'Locations & Types'!$E:$F,2,FALSE) -> DC | C23: 58590000 | D23: 58590000 | E23: 0 | F23: 0
A24: Barrow (Bains) | B24: =VLOOKUP(A24,'Locations & Types'!$E:$F,2,FALSE) -> STORAGE SITE | C24: 0 | D24: 0 | E24: 0 | F24: 0
A25: Barrow (Black Start) | B25: =VLOOKUP(A25,'Locations & Types'!$E:$F,2,FALSE) -> DC | C25: 1000000 | D25: 0 | E25: 1000000 | F25: 12345.05479
A26: Barrow (Gateway) | B26: =VLOOKUP(A26,'Locations & Types'!$E:$F,2,FALSE) -> STORAGE SITE | C26: 0 | D26: 0 | E26: 0 | F26: 0
A27: Barton Stacey Max Refill (Humbly Grove) | B27: =VLOOKUP(A27,'Locations & Types'!$E:$F,2,FALSE) -> STORAGE SITE | C27: 100940000 | D27: 100940000 | E27: 99178082.19 | F27: 7231466.301
A28: Bathgate | B28: =VLOOKUP(A28,'Locations & Types'!$E:$F,2,FALSE) -> GDN (SC) | C28: 24176039 | D28: 24176039 | E28: 21109163.26 | F28: 8303908.219
A29: Billingham ICI (Terra Billingham) | B29: =VLOOKUP(A29,'Locations & Types'!$E:$F,2,FALSE) -> DC | C29: 43540000 | D29: 43540000 | E29: 33654178.21 | F29: 14946298.58
A30: Bishop Auckland | B30: =VLOOKUP(A30,'Locations & Types'!$E:$F,2,FALSE) -> GDN (NO) | C30: 62130000 | D30: 62130000 | E30: 57090000 | F30: 23393264.38
A31: Bishop Auckland (test facility) | B31: =VLOOKUP(A31,'Locations & Types'!$E:$F,2,FALSE) -> DC | C31: 0 | D31: 0 | E31: 0 | F31: 416553.4247
A32: Blaby | B32: =VLOOKUP(A32,'Locations & Types'!$E:$F,2,FALSE) -> GDN (EM) | C32: 13400271 | D32: 13400000 | E32: 9867513 | F32: 5924105.479
A33: Blackness (BP Grangemouth) | B33: =VLOOKUP(A33,'Locations & Types'!$E:$F,2,FALSE) -> DC | C33: 27290000 | D33: 27290000 | E33: 27290410.96 | F33: 15426123.48
A34: Blackrod | B34: =VLOOKUP(A34,'Locations & Types'!$E:$F,2,FALSE) -> GDN (NW) | C34: 166545212 | D34: 166490000 | E34: 135755882 | F34: 47590495.89
A35: Blyborough | B35: =VLOOKUP(A35,'Locations & Types'!$E:$F,2,FALSE) -> GDN (EM) | C35: 79330000 | D35: 79330000 | E35: 56288103 | F35: 8190815.89
A36: Blyborough (Brigg) | B36: =VLOOKUP(A36,'Locations & Types'!$E:$F,2,FALSE) -> DC | C36: 16890000 | D36: 16890000 | E36: 11775342.47 | F36: 152750.3315
A37: Blyborough (Cottam) | B37: =VLOOKUP(A37,'Locations & Types'!$E:$F,2,FALSE) -> DC | C37: 19300000 | D37: 17540000 | E37: 20419178.08 | F37: 8065992.408
A38: Braishfield A | B38: =VLOOKUP(A38,'Locations & Types'!$E:$F,2,FALSE) -> GDN (SO) | C38: 107280000 | D38: 107280000 | E38: 80189647 | F38: 23502304.11
A39: Braishfield B | B39: =VLOOKUP(A39,'Locations & Types'!$E:$F,2,FALSE) -> GDN (SO) | C39: 58866000 | D39: 46650000 | E39: 57139307 | F39: 17449222.74
A40: Brine Field (Teesside) Power Station | B40: =VLOOKUP(A40,'Locations & Types'!$E:$F,2,FALSE) -> DC | C40: 0 | D40: 0 | E40: 0 | F40: 6267115.89
A41: Brisley | B41: =VLOOKUP(A41,'Locations & Types'!$E:$F,2,FALSE) -> GDN (EA) | C41: 3110000 | D41: 3110000 | E41: 2554794 | F41: 969764.3836
A42: Broxburn | B42: =VLOOKUP(A42,'Locations & Types'!$E:$F,2,FALSE) -> GDN (SC) | C42: 60444108 | D42: 60444108 | E42: 56250554 | F42: 19844689.04
A43: Burley Bank | B43: =VLOOKUP(A43,'Locations & Types'!$E:$F,2,FALSE) -> GDN (NE) | C43: 20310000 | D43: 20310000 | E43: 18061165 | F43: 7811654.521
A44: Burnhervie | B44: =VLOOKUP(A44,'Locations & Types'!$E:$F,2,FALSE) -> GDN (SC) | C44: 22380000 | D44: 22380000 | E44: 20624435 | F44: 9075728.767
A45: Burton Point (Connahs Quay) | B45: =VLOOKUP(A45,'Locations & Types'!$E:$F,2,FALSE) -> DC | C45: 73210000 | D45: 73210000 | E45: 72197260.27 | F45: 1057699.929
A46: Caldecott | B46: =VLOOKUP(A46,'Locations & Types'!$E:$F,2,FALSE) -> GDN (EM) | C46: 11080000 | D46: 11080000 | E46: 8977861 | F46: 3397459.452
A47: Caldecott (Corby Power Station) | B47: =VLOOKUP(A47,'Locations & Types'!$E:$F,2,FALSE) -> DC | C47: 21120000 | D47: 21120000 | E47: 21101384.97 | F47: 76615.48767
A48: Cambridge | B48: =VLOOKUP(A48,'Locations & Types'!$E:$F,2,FALSE) -> GDN (EA) | C48: 0 | D48: 0 | E48: 0 | F48: 0
A49: Careston | B49: =VLOOKUP(A49,'Locations & Types'!$E:$F,2,FALSE) -> GDN (SC) | C49: 3851761 | D49: 3050000 | E49: 3576724 | F49: 1712059.452
A50: Carrington (Partington) Power Station | B50: =VLOOKUP(A50,'Locations & Types'!$E:$F,2,FALSE) -> DC | C50: 45000000 | D50: 0 | E50: 45000273.97 | F50: 5502061.37
A51: Caythorpe | B51: =VLOOKUP(A51,'Locations & Types'!$E:$F,2,FALSE) -> STORAGE SITE | C51: 75000000 | D51: 0 | E51: 0 | F51: 0
A52: Centrax Industrial | B52: =VLOOKUP(A52,'Locations & Types'!$E:$F,2,FALSE) -> DC | C52: 85000 | D52: 0 | E52: 104520.5479 | F52: 19981.75342
A53: Cirencester | B53: =VLOOKUP(A53,'Locations & Types'!$E:$F,2,FALSE) -> GDN (SW) | C53: 8970000 | D53: 8970000 | E53: 7743399 | F53: 2093607.671
A54: Cockenzie Power Station | B54: =VLOOKUP(A54,'Locations & Types'!$E:$F,2,FALSE) -> DC | C54: 0 | D54: 0 | E54: 0 | F54: 0
A55: Coffinswell | B55: =VLOOKUP(A55,'Locations & Types'!$E:$F,2,FALSE) -> GDN (SW) | C55: 5150000 | D55: 5150000 | E55: 4830571 | F55: 1641062.74
A56: Coldstream | B56: =VLOOKUP(A56,'Locations & Types'!$E:$F,2,FALSE) -> GDN (NO) | C56: 2848927 | D56: 2315892 | E56: 2848927 | F56: 878328.2192
A57: Corbridge | B57: =VLOOKUP(A57,'Locations & Types'!$E:$F,2,FALSE) -> GDN (NO) | C57: 166692 | D57: 70000 | E57: 166692 | F57: 723951.5068
A58: Coryton 2 (Thames Haven) Power Station | B58: =VLOOKUP(A58,'Locations & Types'!$E:$F,2,FALSE) -> DC | C58: 0 | D58: 0 | E58: 0 | F58: 12760497.26
A59: Cowpen Bewley | B59: =VLOOKUP(A59,'Locations & Types'!$E:$F,2,FALSE) -> GDN (NO) | C59: 52120008 | D59: 52120000 | E59: 41700000 | F59: 16851200.55
A60: Crawley Down | B60: =VLOOKUP(A60,'Locations & Types'!$E:$F,2,FALSE) -> GDN (SO) | C60: 0 | D60: 0 | E60: 0 | F60: 0
A61: Deborah Storage (Bacton) | B61: =VLOOKUP(A61,'Locations & Types'!$E:$F,2,FALSE) -> STORAGE SITE | C61: 0 | D61: 0 | E61: 0 | F61: 0
A62: Deeside | B62: =VLOOKUP(A62,'Locations & Types'!$E:$F,2,FALSE) -> DC | C62: 28480000 | D62: 28480000 | E62: 26881008.22 | F62: 2905176.479
A63: Didcot | B63: =VLOOKUP(A63,'Locations & Types'!$E:$F,2,FALSE) -> DC | C63: 137760000 | D63: 137760000 | E63: 90256849.32 | F63: 29267580.14
A64: Dowlais | B64: =VLOOKUP(A64,'Locations & Types'!$E:$F,2,FALSE) -> GDN (WS) | C64: 105977456 | D64: 105977456 | E64: 94743289 | F64: 30837906.85
A65: Drakelow Power Station | B65: =VLOOKUP(A65,'Locations & Types'!$E:$F,2,FALSE) -> DC | C65: 0 | D65: 0 | E65: 0 | F65: 0
A66: Drointon | B66: =VLOOKUP(A66,'Locations & Types'!$E:$F,2,FALSE) -> GDN (EM) | C66: 74272791 | D66: 74270000 | E66: 51005055.17 | F66: 35389619.18
A67: Drum | B67: =VLOOKUP(A67,'Locations & Types'!$E:$F,2,FALSE) -> GDN (SC) | C67: 82525354 | D67: 77040000 | E67: 82525354 | F67: 17383023.01
A68: Dyffryn Clydach | B68: =VLOOKUP(A68,'Locations & Types'!$E:$F,2,FALSE) -> GDN (WS) | C68: 40231974 | D68: 40231974 | E68: 40231974 | F68: 12808069.86
A69: Dynevor Max Refill | B69: =VLOOKUP(A69,'Locations & Types'!$E:$F,2,FALSE) -> STORAGE SITE | C69: 2610000 | D69: 2610000 | E69: 23931 | F69: 0
A70: Eastoft (Keadby Blackstart) | B70: =VLOOKUP(A70,'Locations & Types'!$E:$F,2,FALSE) -> DC | C70: 2380000 | D70: 2380000 | E70: 1457215 | F70: 2620200
A71: Eastoft (Keadby) | B71: =VLOOKUP(A71,'Locations & Types'!$E:$F,2,FALSE) -> DC | C71: 36060000 | D71: 36060000 | E71: 36060000 | F71: 3498547.973
A72: Easton Grey | B72: =VLOOKUP(A72,'Locations & Types'!$E:$F,2,FALSE) -> GDN (SW) | C72: 29600000 | D72: 29600000 | E72: 27391725 | F72: 3652003.288
A73: Ecclestone | B73: =VLOOKUP(A73,'Locations & Types'!$E:$F,2,FALSE) -> GDN (NW) | C73: 21140000 | D73: 21140000 | E73: 16565698 | F73: 5686178.904
A74: Elton | B74: =VLOOKUP(A74,'Locations & Types'!$E:$F,2,FALSE) -> GDN (NO) | C74: 60212185 | D74: 38270000 | E74: 60212185 | F74: 17569241.92
A75: Enron Billingham | B75: =VLOOKUP(A75,'Locations & Types'!$E:$F,2,FALSE) -> DC | C75: 121510000 | D75: 121510000 | E75: 2357950.973 | F75: 0
A76: Epping Green (Enfield Energy, aka Brimsdown) | B76: =VLOOKUP(A76,'Locations & Types'!$E:$F,2,FALSE) -> DC | C76: 19600000 | D76: 18410000 | E76: 20451780.82 | F76: 5288306.899
A77: Evesham | B77: =VLOOKUP(A77,'Locations & Types'!$E:$F,2,FALSE) -> GDN (SW) | C77: 6570000 | D77: 6570000 | E77: 5584329 | F77: 3208869.041
A78: Farningham | B78: =VLOOKUP(A78,'Locations & Types'!$E:$F,2,FALSE) -> GDN (SE) | C78: 135120000 | D78: 135120000 | E78: 142828886.5 | F78: 65175373.7
A79: Farningham B | B79: =VLOOKUP(A79,'Locations & Types'!$E:$F,2,FALSE) -> GDN (SE) | C79: 117883000 | D79: 0 | E79: 117883000 | F79: 9786621.918
A80: Ferny Knoll (AM Paper) | B80: =VLOOKUP(A80,'Locations & Types'!$E:$F,2,FALSE) -> DC | C80: 1080000 | D80: 1080000 | E80: 0 | F80: 0
A81: Fiddington | B81: =VLOOKUP(A81,'Locations & Types'!$E:$F,2,FALSE) -> GDN (SW) | C81: 25952278 | D81: 25950000 | E81: 22229864 | F81: 8064418.904
A82: Ganstead | B82: =VLOOKUP(A82,'Locations & Types'!$E:$F,2,FALSE) -> GDN (NE) | C82: 23150000 | D82: 23150000 | E82: 20000000 | F82: 9583998.904
A83: Garton Max Refill (Aldbrough) | B83: =VLOOKUP(A83,'Locations & Types'!$E:$F,2,FALSE) -> STORAGE SITE | C83: 325510001 | D83: 211010000 | E83: 337535452.1 | F83: 29789023.74
A84: Gilwern | B84: =VLOOKUP(A84,'Locations & Types'!$E:$F,2,FALSE) -> GDN (WS) | C84: 82680000 | D84: 52740000 | E84: 78188679 | F84: 28707623.29
A85: Glenmavis | B85: =VLOOKUP(A85,'Locations & Types'!$E:$F,2,FALSE) -> GDN (SC) | C85: 145790000 | D85: 145790000 | E85: 128262344 | F85: 50641086.85
A86: Glenmavis Max Refill | B86: =VLOOKUP(A86,'Locations & Types'!$E:$F,2,FALSE) -> STORAGE SITE | C86: 1620000 | D86: 1620000 | E86: 488720 | F86: 0
A87: Goole (Guardian Glass) | B87: =VLOOKUP(A87,'Locations & Types'!$E:$F,2,FALSE) -> DC | C87: 1620000 | D87: 1620000 | E87: 0 | F87: 1406812.197
A88: Gosberton | B88: =VLOOKUP(A88,'Locations & Types'!$E:$F,2,FALSE) -> GDN (EM) | C88: 15230000 | D88: 15230000 | E88: 12321120 | F88: 5507812.329
A89: Gowkhall (Longannet) | B89: =VLOOKUP(A89,'Locations & Types'!$E:$F,2,FALSE) -> DC | C89: 43320000 | D89: 43320000 | E89: 43320000 | F89: 1198989.882
A90: Grain Power Station | B90: =VLOOKUP(A90,'Locations & Types'!$E:$F,2,FALSE) -> DC | C90: 0 | D90: 0 | E90: 63282191.78 | F90: 30508642.55
A91: Great Wilbraham | B91: =VLOOKUP(A91,'Locations & Types'!$E:$F,2,FALSE) -> GDN (EA) | C91: 35590000 | D91: 35590000 | E91: 20622606 | F91: 8422988.767
A92: Guyzance | B92: =VLOOKUP(A92,'Locations & Types'!$E:$F,2,FALSE) -> GDN (NO) | C92: 2190000 | D92: 2190000 | E92: 2022861 | F92: 3218003.836
A93: Hardwick | B93: =VLOOKUP(A93,'Locations & Types'!$E:$F,2,FALSE) -> GDN (SO) | C93: 123699000 | D93: 118680000 | E93: 95134383 | F93: 36792153.97
A94: Harwarden (Shotton, aka Shotton Paper) | B94: =VLOOKUP(A94,'Locations & Types'!$E:$F,2,FALSE) -> DC | C94: 11590000 | D94: 11590000 | E94: 0 | F94: 0
A95: Hatfield Moor Max Refill | B95: =VLOOKUP(A95,'Locations & Types'!$E:$F,2,FALSE) -> STORAGE SITE | C95: 30210000 | D95: 30210000 | E95: 30210000 | F95: 2585732.329
A96: Hatfield Power Station | B96: =VLOOKUP(A96,'Locations & Types'!$E:$F,2,FALSE) -> DC | C96: 0 | D96: 0 | E96: 0 | F96: 1405902.616
A97: Hill Top Farm (Hole House Farm) | B97: =VLOOKUP(A97,'Locations & Types'!$E:$F,2,FALSE) -> STORAGE SITE | C97: 0 | D97: 0 | E97: 65178082.19 | F97: 4412771.414
A98: Hole House Max Refill | B98: =VLOOKUP(A98,'Locations & Types'!$E:$F,2,FALSE) -> STORAGE SITE | C98: 119580000 | D98: 119580000 | E98: 131960467.7 | F98: 6439635.263
A99: Holford | B99: =VLOOKUP(A99,'Locations & Types'!$E:$F,2,FALSE) -> STORAGE SITE | C99: 0 | D99: 0 | E99: 249894796 | F99: 28976721.86
A100: Hollingsgreen (Hays Chemicals) | B100: =VLOOKUP(A100,'Locations & Types'!$E:$F,2,FALSE) -> DC | C100: 3250000 | D100: 3250000 | E100: 3008219.178 | F100: 422677.1534
A101: Holmes Chapel | B101: =VLOOKUP(A101,'Locations & Types'!$E:$F,2,FALSE) -> GDN (NW) | C101: 22199592 | D101: 22190000 | E101: 19310179 | F101: 7778879.178
A102: Horndon | B102: =VLOOKUP(A102,'Locations & Types'!$E:$F,2,FALSE) -> GDN (NT) | C102: 46410000 | D102: 46410000 | E102: 35989679.7 | F102: 9776233.699
A103: Hornsea Max Refill | B103: =VLOOKUP(A103,'Locations & Types'!$E:$F,2,FALSE) -> STORAGE SITE | C103: 44789585 | D103: 22430000 | E103: 64981318.36 | F103: 4615922.805
A104: Humbleton | B104: =VLOOKUP(A104,'Locations & Types'!$E:$F,2,FALSE) -> GDN (NO) | C104: 250000 | D104: 160000 | E104: 250000 | F104: 68357.80822
A105: Hume | B105: =VLOOKUP(A105,'Locations & Types'!$E:$F,2,FALSE) -> GDN (SC) | C105: 1684385 | D105: 1220000 | E105: 1684385 | F105: 544888.2192
A106: Ilchester | B106: =VLOOKUP(A106,'Locations & Types'!$E:$F,2,FALSE) -> GDN (SW) | C106: 34960000 | D106: 34960000 | E106: 30242930 | F106: 8574467.671
A107: Ipsden | B107: =VLOOKUP(A107,'Locations & Types'!$E:$F,2,FALSE) -> GDN (SO) | C107: 12390000 | D107: 12390000 | E107: 9369284.904 | F107: 385250.9589
A108: Ipsden 2 | B108: =VLOOKUP(A108,'Locations & Types'!$E:$F,2,FALSE) -> GDN (SO) | C108: 15678000 | D108: 14250000 | E108: 11667297 | F108: 1382804.658
A109: Keld | B109: =VLOOKUP(A109,'Locations & Types'!$E:$F,2,FALSE) -> GDN (NO) | C109: 1890000 | D109: 1890000 | E109: 1858472 | F109: 1329279.178
A110: Kenn | B110: =VLOOKUP(A110,'Locations & Types'!$E:$F,2,FALSE) -> GDN (SW) | C110: 15430000 | D110: 15430000 | E110: 14000883 | F110: 5452479.178
A111: Kinknockie | B111: =VLOOKUP(A111,'Locations & Types'!$E:$F,2,FALSE) -> GDN (SC) | C111: 3068392 | D111: 2350000 | E111: 3068392 | F111: 1073959.452
A112: Kirkstead | B112: =VLOOKUP(A112,'Locations & Types'!$E:$F,2,FALSE) -> GDN (EM) | C112: 1210000 | D112: 1210000 | E112: 858703 | F112: 196038.9041
A113: Langage Power Station | B113: =VLOOKUP(A113,'Locations & Types'!$E:$F,2,FALSE) -> DC | C113: 41616008 | D113: 41616008 | E113: 41034246.58 | F113: 9021710.759
A114: Langholm | B114: =VLOOKUP(A114,'Locations & Types'!$E:$F,2,FALSE) -> GDN (SC) | C114: 249796 | D114: 150000 | E114: 155319 | F114: 38188.49315
A115: Lauderhill | B115: =VLOOKUP(A115,'Locations & Types'!$E:$F,2,FALSE) -> GDN (SC) | C115: 1790000 | D115: 1790000 | E115: 0 | F115: 0
A116: Leamington | B116: =VLOOKUP(A116,'Locations & Types'!$E:$F,2,FALSE) -> GDN (WM) | C116: 4260000 | D116: 4260000 | E116: 2586215 | F116: 444728.7671
A117: Little Burdon | B117: =VLOOKUP(A117,'Locations & Types'!$E:$F,2,FALSE) -> GDN (NO) | C117: 20919521 | D117: 17750000 | E117: 20919521 | F117: 3464650.959
A118: Littleton Drew | B118: =VLOOKUP(A118,'Locations & Types'!$E:$F,2,FALSE) -> GDN (SW) | C118: 2470000 | D118: 2470000 | E118: 2299463 | F118: 443673.6986
A119: Lockerbie | B119: =VLOOKUP(A119,'Locations & Types'!$E:$F,2,FALSE) -> GDN (SC) | C119: 7439745 | D119: 5700000 | E119: 7177344 | F119: 2452795.342
A120: Lower Quinton | B120: =VLOOKUP(A120,'Locations & Types'!$E:$F,2,FALSE) -> GDN (WM) | C120: 29910000 | D120: 29910000 | E120: 26684207 | F120: 4672810.959
A121: Lupton | B121: =VLOOKUP(A121,'Locations & Types'!$E:$F,2,FALSE) -> GDN (NW) | C121: 19815980 | D121: 16230000 | E121: 19815980 | F121: 11580617.26
A122: Luxborough Lane | B122: =VLOOKUP(A122,'Locations & Types'!$E:$F,2,FALSE) -> GDN (NT) | C122: 165300000 | D122: 165300000 | E122: 95786050 | F122: 29673002.74
A123: Lyneham (Choakford) | B123: =VLOOKUP(A123,'Locations & Types'!$E:$F,2,FALSE) -> GDN (SW) | C123: 50300000 | D123: 50300000 | E123: 40420636 | F123: 9540126.027
A124: Maelor | B124: =VLOOKUP(A124,'Locations & Types'!$E:$F,2,FALSE) -> GDN (WN) | C124: 57560000 | D124: 57560000 | E124: 49258990 | F124: 16184203.01
A125: Malpas | B125: =VLOOKUP(A125,'Locations & Types'!$E:$F,2,FALSE) -> GDN (NW) | C125: 990000 | D125: 990000 | E125: 805524 | F125: 261966.0274
A126: Mappowder | B126: =VLOOKUP(A126,'Locations & Types'!$E:$F,2,FALSE) -> GDN (SO) | C126: 47680000 | D126: 47680000 | E126: 36407083 | F126: 10423546.03
A127: Marchwood Power Station | B127: =VLOOKUP(A127,'Locations & Types'!$E:$F,2,FALSE) -> DC | C127: 39840000 | D127: 39840000 | E127: 49317367.44 | F127: 24362953.34
A128: Market Harborough | B128: =VLOOKUP(A128,'Locations & Types'!$E:$F,2,FALSE) -> GDN (EM) | C128: 9480000 | D128: 9480000 | E128: 6965982 | F128: 1242827.671
A129: Matching Green | B129: =VLOOKUP(A129,'Locations & Types'!$E:$F,2,FALSE) -> GDN (EA) | C129: 92341877 | D129: 92310000 | E129: 79673961.74 | F129: 24537628.77
A130: Medway (aka Isle of Grain Power Station, NOT Grain Power) | B130: =VLOOKUP(A130,'Locations & Types'!$E:$F,2,FALSE) -> DC | C130: 38120000 | D130: 38120000 | E130: 38119999 | F130: 12697891.57
A131: Melkinthorpe | B131: =VLOOKUP(A131,'Locations & Types'!$E:$F,2,FALSE) -> GDN (NO) | C131: 2432914 | D131: 1770000 | E131: 2432914 | F131: 1426415.616
A132: Mickle Trafford | B132: =VLOOKUP(A132,'Locations & Types'!$E:$F,2,FALSE) -> GDN (NW) | C132: 29209411 | D132: 29080000 | E132: 29209411 | F132: 11503170.68
A133: Middle Stoke (Damhead Creek, aka Kingsnorth Power Station) | B133: =VLOOKUP(A133,'Locations & Types'!$E:$F,2,FALSE) -> DC | C133: 40940000 | D133: 40940000 | E133: 40940000 | F133: 24029310.14
A134: Milwich | B134: =VLOOKUP(A134,'Locations & Types'!$E:$F,2,FALSE) -> GDN (WM) | C134: 21635242 | D134: 21630000 | E134: 18949988 | F134: 5232905.753
A135: Moffat (Irish Interconnector) | B135: =VLOOKUP(A135,'Locations & Types'!$E:$F,2,FALSE) -> INTERCONNECTOR | C135: 530089918 | D135: 433400000 | E135: 298235464.5 | F135: 120066092.3
A136: Netherhowcleugh | B136: =VLOOKUP(A136,'Locations & Types'!$E:$F,2,FALSE) -> GDN (SC) | C136: 322112 | D136: 222112 | E136: 322112 | F136: 2801512.329
A137: Pannal | B137: =VLOOKUP(A137,'Locations & Types'!$E:$F,2,FALSE) -> GDN (NE) | C137: 148410000 | D137: 148410000 | E137: 139836023 | F137: 50589246.03
A138: Partington | B138: =VLOOKUP(A138,'Locations & Types'!$E:$F,2,FALSE) -> GDN (NW) | C138: 87630000 | D138: 87630000 | E138: 55607944 | F138: 8318363.836
A139: Partington Max Refill | B139: =VLOOKUP(A139,'Locations & Types'!$E:$F,2,FALSE) -> STORAGE SITE | C139: 2410000 | D139: 2410000 | E139: 36478 | F139: 0
A140: Paull | B140: =VLOOKUP(A140,'Locations & Types'!$E:$F,2,FALSE) -> GDN (NE) | C140: 46858561 | D140: 38140000 | E140: 46858561 | F140: 14445262.19
A141: Pembroke Power Station | B141: =VLOOKUP(A141,'Locations & Types'!$E:$F,2,FALSE) -> DC | C141: 121200056 | D141: 110198989 | E141: 119214269.4 | F141: 72785150.04
A142: Peterborough (Peterborough Power Station) | B142: =VLOOKUP(A142,'Locations & Types'!$E:$F,2,FALSE) -> DC | C142: 23280000 | D142: 23280000 | E142: 14353424.66 | F142: 4488371.781
A143: Peterborough Eye (Tee) | B143: =VLOOKUP(A143,'Locations & Types'!$E:$F,2,FALSE) -> GDN (EA) | C143: 25450000 | D143: 25450000 | E143: 22655074 | F143: 5010800.397
A144: Peters Green | B144: =VLOOKUP(A144,'Locations & Types'!$E:$F,2,FALSE) -> GDN (NT) | C144: 151860000 | D144: 151860000 | E144: 129945500 | F144: 46493754.79
A145: Peters Green South Mimms | B145: =VLOOKUP(A145,'Locations & Types'!$E:$F,2,FALSE) -> GDN (NT) | C145: 197176511 | D145: 197120000 | E145: 170162482 | F145: 44798183.01
A146: Phillips Petroleum, Teesside | B146: =VLOOKUP(A146,'Locations & Types'!$E:$F,2,FALSE) -> DC | C146: 3690000 | D146: 3690000 | E146: 4692853.882 | F146: 258555.7644
A147: Pickering | B147: =VLOOKUP(A147,'Locations & Types'!$E:$F,2,FALSE) -> GDN (NE) | C147: 9380000 | D147: 9380000 | E147: 8985676 | F147: 2580735.616
A148: Pickmere (Winnington Power, aka Brunner Mond) | B148: =VLOOKUP(A148,'Locations & Types'!$E:$F,2,FALSE) -> DC | C148: 15380000 | D148: 15380000 | E148: 13000000 | F148: 4986082.518
A149: Pitcairngreen | B149: =VLOOKUP(A149,'Locations & Types'!$E:$F,2,FALSE) -> GDN (SC) | C149: 1915791 | D149: 1590000 | E149: 3432229.356 | F149: 392470.9589
A150: Pucklechurch | B150: =VLOOKUP(A150,'Locations & Types'!$E:$F,2,FALSE) -> GDN (SW) | C150: 25794765 | D150: 25790000 | E150: 22688355 | F150: 5232692.603
A151: Rawcliffe | B151: =VLOOKUP(A151,'Locations & Types'!$E:$F,2,FALSE) -> GDN (NE) | C151: 5046154 | D151: 3550000 | E151: 5046154 | F151: 1394433.699
A152: Rollswood Kintore | B152: =VLOOKUP(A152,'Locations & Types'!$E:$F,2,FALSE) -> DC | C152: 0 | D152: 0 | E152: 0 | F152: 0
A153: Roosecote Power Station (Barrow) | B153: =VLOOKUP(A153,'Locations & Types'!$E:$F,2,FALSE) -> DC | C153: 14730000 | D153: 14730000 | E153: 0 | F153: 0
A154: Rosehill (Saltend Power Station) | B154: =VLOOKUP(A154,'Locations & Types'!$E:$F,2,FALSE) -> DC | C154: 57830000 | D154: 57830000 | E154: 57830000 | F154: 36749959.53
A155: Ross (SW) | B155: =VLOOKUP(A155,'Locations & Types'!$E:$F,2,FALSE) -> GDN (SW) | C155: 4530000 | D155: 4530000 | E155: 4023357 | F155: 1931869.589
A156: Ross (WM) | B156: =VLOOKUP(A156,'Locations & Types'!$E:$F,2,FALSE) -> GDN (WM) | C156: 16520000 | D156: 16520000 | E156: 10046347.27 | F156: 17151793.97
A157: Roudham Heath | B157: =VLOOKUP(A157,'Locations & Types'!$E:$F,2,FALSE) -> GDN (EA) | C157: 25472176 | D157: 25460000 | E157: 16310715.58 | F157: 9993710.959
A158: Rough Max Refill | B158: =VLOOKUP(A158,'Locations & Types'!$E:$F,2,FALSE) -> STORAGE SITE | C158: 370479121 | D158: 160000000 | E158: 396081179.6 | F158: 37921827.74
A159: Royston | B159: =VLOOKUP(A159,'Locations & Types'!$E:$F,2,FALSE) -> GDN (EA) | C159: 2700000 | D159: 2700000 | E159: 2367780 | F159: 4375035.068
A160: Rugby | B160: =VLOOKUP(A160,'Locations & Types'!$E:$F,2,FALSE) -> GDN (WM) | C160: 80080000 | D160: 80080000 | E160: 63016793 | F160: 30558887.4
A161: Ryehouse | B161: =VLOOKUP(A161,'Locations & Types'!$E:$F,2,FALSE) -> DC | C161: 38660000 | D161: 38660000 | E161: 38660000 | F161: 5025399.767
A162: Saddle Bow (Kings Lynn) | B162: =VLOOKUP(A162,'Locations & Types'!$E:$F,2,FALSE) -> DC | C162: 17980000 | D162: 17980000 | E162: 14500000 | F162: 0
A163: Saltend BPHP (BP Saltend HP) | B163: =VLOOKUP(A163,'Locations & Types'!$E:$F,2,FALSE) -> DC | C163: 9100000 | D163: 9100000 | E163: 9055895 | F163: 3914012.408
A164: Saltfleetby Storage (Theddlethorpe) | B164: =VLOOKUP(A164,'Locations & Types'!$E:$F,2,FALSE) -> STORAGE SITE | C164: 0 | D164: 0 | E164: 0 | F164: 0
A165: Saltwick Pressure Controlled | B165: =VLOOKUP(A165,'Locations & Types'!$E:$F,2,FALSE) -> GDN (NO) | C165: 9220000 | D165: 9220000 | E165: 6640000 | F165: 3441882.74
A166: Saltwick Volumetric Controlled | B166: =VLOOKUP(A166,'Locations & Types'!$E:$F,2,FALSE) -> GDN (NO) | C166: 69070000 | D166: 69070000 | E166: 57090000 | F166: 11459696.44
A167: Samlesbury | B167: =VLOOKUP(A167,'Locations & Types'!$E:$F,2,FALSE) -> GDN (NW) | C167: 110990000 | D167: 110990000 | E167: 101500295 | F167: 21155120.55
A168: Sandy Lane (Blackburn CHP, aka Sappi Paper Mill) | B168: =VLOOKUP(A168,'Locations & Types'!$E:$F,2,FALSE) -> DC | C168: 4550000 | D168: 4550000 | E168: 4550000 | F168: 187575.4548
A169: Seabank (DN) | B169: =VLOOKUP(A169,'Locations & Types'!$E:$F,2,FALSE) -> GDN (SW) | C169: 60740000 | D169: 60740000 | E169: 52882417 | F169: 18331680.82
A170: Seabank (Seabank Power Station phase II) | B170: =VLOOKUP(A170,'Locations & Types'!$E:$F,2,FALSE) -> DC | C170: 19100000 | D170: 19100000 | E170: 29458309.76 | F170: 1542395.014
A171: Seal Sands TGPP | B171: =VLOOKUP(A171,'Locations & Types'!$E:$F,2,FALSE) -> DC | C171: 0 | D171: 0 | E171: 1020000 | F171: 0
A172: Sellafield Power Station | B172: =VLOOKUP(A172,'Locations & Types'!$E:$F,2,FALSE) -> DC | C172: 12350000 | D172: 12350000 | E172: 12349999 | F172: 6262078.208
A173: Shellstar (aka Kemira, not Kemira CHP) | B173: =VLOOKUP(A173,'Locations & Types'!$E:$F,2,FALSE) -> DC | C173: 16240000 | D173: 16240000 | E173: 11732444 | F173: 0
A174: Shorne | B174: =VLOOKUP(A174,'Locations & Types'!$E:$F,2,FALSE) -> GDN (SE) | C174: 67060000 | D174: 67060000 | E174: 48279307 | F174: 23016.43836
A175: Shotwick (Bridgewater Paper) | B175: =VLOOKUP(A175,'Locations & Types'!$E:$F,2,FALSE) -> DC | C175: 5520000 | D175: 5520000 | E175: 3238858.447 | F175: 80702.43014
A176: Shustoke | B176: =VLOOKUP(A176,'Locations & Types'!$E:$F,2,FALSE) -> GDN (WM) | C176: 44760000 | D176: 44760000 | E176: 1900753.91 | F176: 36257.26027
A177: Silk Willoughby | B177: =VLOOKUP(A177,'Locations & Types'!$E:$F,2,FALSE) -> GDN (EM) | C177: 3530000 | D177: 3530000 | E177: 2203090 | F177: 761616.4384
A178: Soutra | B178: =VLOOKUP(A178,'Locations & Types'!$E:$F,2,FALSE) -> GDN (SC) | C178: 10726995 | D178: 4190000 | E178: 10744803.22 | F178: 2058972.877
A179: Spalding 2 (South Holland) Power Station | B179: =VLOOKUP(A179,'Locations & Types'!$E:$F,2,FALSE) -> DC | C179: 0 | D179: 0 | E179: 0 | F179: 0
A180: St Fergus | B180: =VLOOKUP(A180,'Locations & Types'!$E:$F,2,FALSE) -> GDN (SC) | C180: 1058074 | D180: 880000 | E180: 979235.2767 | F180: 485983.8356
A181: St. Fergus (Peterhead) | B181: =VLOOKUP(A181,'Locations & Types'!$E:$F,2,FALSE) -> DC | C181: 108300000 | D181: 108300000 | E181: 108288000 | F181: 6623287.46
A182: St. Fergus (Shell Blackstart) | B182: =VLOOKUP(A182,'Locations & Types'!$E:$F,2,FALSE) -> DC | C182: 2583336 | D182: 0 | E182: 2584138.934 | F182: 3266.90411
A183: St. Neots (Little Barford) | B183: =VLOOKUP(A183,'Locations & Types'!$E:$F,2,FALSE) -> DC | C183: 35200000 | D183: 35200000 | E183: 36571522.19 | F183: 16078816.96
A184: Stallingborough | B184: =VLOOKUP(A184,'Locations & Types'!$E:$F,2,FALSE) -> DC | C184: 68012169 | D184: 66500000 | E184: 60390410.96 | F184: 12076753.19
A185: Stanford Le Hope (Coryton) | B185: =VLOOKUP(A185,'Locations & Types'!$E:$F,2,FALSE) -> DC | C185: 38600000 | D185: 36610000 | E185: 38705753.42 | F185: 5536769.838
A186: Staythorpe | B186: =VLOOKUP(A186,'Locations & Types'!$E:$F,2,FALSE) -> DC | C186: 82000000 | D186: 76240000 | E186: 84230136.99 | F186: 52401011.34
A187: Stranraer | B187: =VLOOKUP(A187,'Locations & Types'!$E:$F,2,FALSE) -> GDN (SC) | C187: 930433 | D187: 680000 | E187: 742435 | F187: 207378.0822
A188: Stratford-upon-Avon | B188: =VLOOKUP(A188,'Locations & Types'!$E:$F,2,FALSE) -> GDN (WM) | C188: 4680000 | D188: 4680000 | E188: 3735040 | F188: 1219883.562
A189: Stublach (Cheshire) | B189: =VLOOKUP(A189,'Locations & Types'!$E:$F,2,FALSE) -> STORAGE SITE | C189: 0 | D189: 0 | E189: 390785030.6 | F189: 14069556.88
A190: Sutton Bridge | B190: =VLOOKUP(A190,'Locations & Types'!$E:$F,2,FALSE) -> GDN (EM) | C190: 1710546 | D190: 1710000 | E190: 1085248.825 | F190: 377395.8904
A191: Sutton Bridge Power Station | B191: =VLOOKUP(A191,'Locations & Types'!$E:$F,2,FALSE) -> DC | C191: 37470000 | D191: 37470000 | E191: 37480397.26 | F191: 7981283.189
A192: Tatsfield | B192: =VLOOKUP(A192,'Locations & Types'!$E:$F,2,FALSE) -> GDN (SE) | C192: 276460000 | D192: 276460000 | E192: 192774633 | F192: 37304383.56
A193: Teesside (BASF, aka BASF Teesside) | B193: =VLOOKUP(A193,'Locations & Types'!$E:$F,2,FALSE) -> DC | C193: 9750000 | D193: 9750000 | E193: 9371853.882 | F193: 2980265.641
A194: Teesside Hydrogen | B194: =VLOOKUP(A194,'Locations & Types'!$E:$F,2,FALSE) -> DC | C194: 13276800 | D194: 6610000 | E194: 6638400 | F194: 4334318.545
A195: Terra Nitrogen (aka ICI, Terra Severnside) | B195: =VLOOKUP(A195,'Locations & Types'!$E:$F,2,FALSE) -> DC | C195: 13100000 | D195: 13100000 | E195: 0 | F195: 0
A196: Thornton Curtis (DN) | B196: =VLOOKUP(A196,'Locations & Types'!$E:$F,2,FALSE) -> GDN (EM) | C196: 118190411 | D196: 118150000 | E196: 95532642 | F196: 42109320.27
A197: Thornton Curtis (Humber Refinery, aka Immingham) | B197: =VLOOKUP(A197,'Locations & Types'!$E:$F,2,FALSE) -> DC | C197: 67000000 | D197: 46890000 | E197: 67000000 | F197: 46408598.46
A198: Thornton Curtis (Killingholme) | B198: =VLOOKUP(A198,'Locations & Types'!$E:$F,2,FALSE) -> DC | C198: 91000001 | D198: 81220000 | E198: 47056164.38 | F198: 7732385.545
A199: Thrintoft | B199: =VLOOKUP(A199,'Locations & Types'!$E:$F,2,FALSE) -> GDN (NO) | C199: 6921484 | D199: 5160000 | E199: 6921484 | F199: 1835889.315
A200: Tilbury Power Station | B200: =VLOOKUP(A200,'Locations & Types'!$E:$F,2,FALSE) -> DC | C200: 0 | D200: 0 | E200: 0 | F200: 0
... 23 more rows

Sheet 17-18 FCC - Exit (hidden)
A1: Exit Point | B1: Exit Point Type | C1: Obligated Exit Capacity | D1: Non-Incremental Obligated Exit Capacity | E1: Historical Sold Exit Capacity Levels | F1: Historical Exit Flow Levels
C2: (kWh/d) | D2: (kWh/d) | E2: (kWh/d) | F2: (kWh/d)
A3: Aberdeen | B3: =VLOOKUP(A3,'Locations & Types'!$E:$F,2,FALSE) -> GDN (SC) | C3: 23536855 | D3: 23536855 | E3: 21639348 | F3: 7628906.849
A4: Abson (Seabank Power Station phase I) | B4: =VLOOKUP(A4,'Locations & Types'!$E:$F,2,FALSE) -> DC | C4: 36590000 | D4: 36590000 | E4: 54842243.05 | F4: 19890790.68
A5: Alrewas (EM) | B5: =VLOOKUP(A5,'Locations & Types'!$E:$F,2,FALSE) -> GDN (EM) | C5: 139912893 | D5: 139912893 | E5: 67834101 | F5: 23670945.21
A6: Alrewas (WM) | B6: =VLOOKUP(A6,'Locations & Types'!$E:$F,2,FALSE) -> GDN (WM) | C6: 128480000 | D6: 128480000 | E6: 72669637 | F6: 15030791.78
A7: Apache (Sage Black Start) | B7: =VLOOKUP(A7,'Locations & Types'!$E:$F,2,FALSE) -> DC | C7: 0 | D7: 0 | E7: 0 | F7: 0
A8: Armadale | B8: =VLOOKUP(A8,'Locations & Types'!$E:$F,2,FALSE) -> GDN (SC) | C8: 16011750 | D8: 16011750 | E8: 7519525 | F8: 1900640.274
A9: Aspley | B9: =VLOOKUP(A9,'Locations & Types'!$E:$F,2,FALSE) -> GDN (WM) | C9: 84650000 | D9: 84650000 | E9: 50992393 | F9: 30855518.36
A10: Asselby | B10: =VLOOKUP(A10,'Locations & Types'!$E:$F,2,FALSE) -> GDN (NE) | C10: 4586470 | D10: 3920000 | E10: 4586470 | F10: 1556096.164
A11: Audley (NW) | B11: =VLOOKUP(A11,'Locations & Types'!$E:$F,2,FALSE) -> GDN (NW) | C11: 12140000 | D11: 12140000 | E11: 8037574 | F11: 3263868.767
A12: Audley (WM) | B12: =VLOOKUP(A12,'Locations & Types'!$E:$F,2,FALSE) -> GDN (WM) | C12: 21830000 | D12: 21830000 | E12: 15330890 | F12: 165777.5342
A13: Austrey | B13: =VLOOKUP(A13,'Locations & Types'!$E:$F,2,FALSE) -> GDN (WM) | C13: 87835508 | D13: 87835508 | E13: 59601211 | F13: 18256115.34
A14: Avonmouth Max Refill | B14: =VLOOKUP(A14,'Locations & Types'!$E:$F,2,FALSE) -> STORAGE SITE | C14: 2300000 | D14: 2300000 | E14: 1070290.74 | F14: 183.8356164
A15: Aylesbeare | B15: =VLOOKUP(A15,'Locations & Types'!$E:$F,2,FALSE) -> GDN (SW) | C15: 22680000 | D15: 22680000 | E15: 19128874 | F15: 6191683.014
A16: Bacton | B16: =VLOOKUP(A16,'Locations & Types'!$E:$F,2,FALSE) -> GDN (EA) | C16: 3660000 | D16: 3660000 | E16: 2472724 | F16: 187210054.8
A17: Bacton (Baird) | B17: =VLOOKUP(A17,'Locations & Types'!$E:$F,2,FALSE) -> STORAGE SITE | C17: 0 | D17: 0 | E17: 0 | F17: 0
A18: Bacton (BBL) | B18: =VLOOKUP(A18,'Locations & Types'!$E:$F,2,FALSE) -> INTERCONNECTOR | C18: 0 | D18: 0 | E18: 94149369.86 | F18: 1018.630137
A19: Bacton (Great Yarmouth) | B19: =VLOOKUP(A19,'Locations & Types'!$E:$F,2,FALSE) -> DC | C19: 20040000 | D19: 20040000 | E19: 23544055.64 | F19: 12451602.19
A20: Bacton (IUK) | B20: =VLOOKUP(A20,'Locations & Types'!$E:$F,2,FALSE) -> INTERCONNECTOR | C20: 651676940 | D20: 623580000 | E20: 630224459.7 | F20: 0
A21: Baldersby | B21: =VLOOKUP(A21,'Locations & Types'!$E:$F,2,FALSE) -> GDN (NE) | C21: 1340000 | D21: 1340000 | E21: 1126642 | F21: 484355.6164
A22: Balgray | B22: =VLOOKUP(A22,'Locations & Types'!$E:$F,2,FALSE) -> GDN (SC) | C22: 15723362 | D22: 15723362 | E22: 14957981 | F22: 5016358.63
A23: Barking (Horndon) | B23: =VLOOKUP(A23,'Locations & Types'!$E:$F,2,FALSE) -> DC | C23: 58590000 | D23: 58590000 | E23: 0 | F23: 0
A24: Barrow (Bains) | B24: =VLOOKUP(A24,'Locations & Types'!$E:$F,2,FALSE) -> STORAGE SITE | C24: 0 | D24: 0 | E24: 0 | F24: 0
A25: Barrow (Black Start) | B25: =VLOOKUP(A25,'Locations & Types'!$E:$F,2,FALSE) -> DC | C25: 1000000 | D25: 1000000 | E25: 1000000 | F25: 0
A26: Barrow (Gateway) | B26: =VLOOKUP(A26,'Locations & Types'!$E:$F,2,FALSE) -> STORAGE SITE | C26: 0 | D26: 0 | E26: 0 | F26: 0
A27: Barton Stacey Max Refill (Humbly Grove) | B27: =VLOOKUP(A27,'Locations & Types'!$E:$F,2,FALSE) -> STORAGE SITE | C27: 100940000 | D27: 100940000 | E27: 82739726.03 | F27: 10634185.21
A28: Bathgate | B28: =VLOOKUP(A28,'Locations & Types'!$E:$F,2,FALSE) -> GDN (SC) | C28: 24176039 | D28: 24176039 | E28: 21081766 | F28: 7883046.027
A29: Billingham ICI (Terra Billingham) | B29: =VLOOKUP(A29,'Locations & Types'!$E:$F,2,FALSE) -> DC | C29: 43540000 | D29: 43540000 | E29: 33644543 | F29: 15595417.26
A30: Bishop Auckland | B30: =VLOOKUP(A30,'Locations & Types'!$E:$F,2,FALSE) -> GDN (NO) | C30: 62130000 | D30: 62130000 | E30: 56394702 | F30: 22932016.44
A31: Bishop Auckland (test facility) | B31: =VLOOKUP(A31,'Locations & Types'!$E:$F,2,FALSE) -> DC | C31: 0 | D31: 0 | E31: 0 | F31: 1022578.082
A32: Blaby | B32: =VLOOKUP(A32,'Locations & Types'!$E:$F,2,FALSE) -> GDN (EM) | C32: 13400271 | D32: 13400271 | E32: 9867513 | F32: 6249039.726
A33: Blackness (BP Grangemouth) | B33: =VLOOKUP(A33,'Locations & Types'!$E:$F,2,FALSE) -> DC | C33: 27290000 | D33: 27290000 | E33: 27290000 | F33: 16366026.03
A34: Blackrod | B34: =VLOOKUP(A34,'Locations & Types'!$E:$F,2,FALSE) -> GDN (NW) | C34: 166545212 | D34: 166545212 | E34: 123939267 | F34: 45674320.55
A35: Blyborough | B35: =VLOOKUP(A35,'Locations & Types'!$E:$F,2,FALSE) -> GDN (EM) | C35: 79330000 | D35: 79330000 | E35: 56288103 | F35: 10867448.49
A36: Blyborough (Brigg) | B36: =VLOOKUP(A36,'Locations & Types'!$E:$F,2,FALSE) -> DC | C36: 16890000 | D36: 16890000 | E36: 10238356.16 | F36: 234233.6986
A37: Blyborough (Cottam) | B37: =VLOOKUP(A37,'Locations & Types'!$E:$F,2,FALSE) -> DC | C37: 19300000 | D37: 19300000 | E37: 18364383.56 | F37: 12385403.29
A38: Braishfield A | B38: =VLOOKUP(A38,'Locations & Types'!$E:$F,2,FALSE) -> GDN (SO) | C38: 107280000 | D38: 107280000 | E38: 61600632 | F38: 29091413.7
A39: Braishfield B | B39: =VLOOKUP(A39,'Locations & Types'!$E:$F,2,FALSE) -> GDN (SO) | C39: 58866000 | D39: 58866000 | E39: 57139307 | F39: 18894458.9
A40: Brine Field (Teesside) Power Station | B40: =VLOOKUP(A40,'Locations & Types'!$E:$F,2,FALSE) -> DC | C40: 0 | D40: 0 | E40: 0 | F40: 18376256.44
A41: Brisley | B41: =VLOOKUP(A41,'Locations & Types'!$E:$F,2,FALSE) -> GDN (EA) | C41: 3110000 | D41: 3110000 | E41: 2295523 | F41: 981724.3836
A42: Broxburn | B42: =VLOOKUP(A42,'Locations & Types'!$E:$F,2,FALSE) -> GDN (SC) | C42: 60444108 | D42: 60444108 | E42: 56250554 | F42: 19367067.12
A43: Burley Bank | B43: =VLOOKUP(A43,'Locations & Types'!$E:$F,2,FALSE) -> GDN (NE) | C43: 20310000 | D43: 20310000 | E43: 15295179 | F43: 7737758.63
A44: Burnhervie | B44: =VLOOKUP(A44,'Locations & Types'!$E:$F,2,FALSE) -> GDN (SC) | C44: 22380000 | D44: 22380000 | E44: 20624435 | F44: 9981400
A45: Burton Point (Connahs Quay) | B45: =VLOOKUP(A45,'Locations & Types'!$E:$F,2,FALSE) -> DC | C45: 73210000 | D45: 73210000 | E45: 60361643.84 | F45: 0
A46: Caldecott | B46: =VLOOKUP(A46,'Locations & Types'!$E:$F,2,FALSE) -> GDN (EM) | C46: 11080000 | D46: 11080000 | E46: 8977861 | F46: 3821198.082
A47: Caldecott (Corby Power Station) | B47: =VLOOKUP(A47,'Locations & Types'!$E:$F,2,FALSE) -> DC | C47: 21120000 | D47: 21120000 | E47: 5318910.17 | F47: 129917.5342
A48: Cambridge | B48: =VLOOKUP(A48,'Locations & Types'!$E:$F,2,FALSE) -> GDN (EA) | C48: 0 | D48: 0 | E48: 0 | F48: 0
A49: Careston | B49: =VLOOKUP(A49,'Locations & Types'!$E:$F,2,FALSE) -> GDN (SC) | C49: 3851761 | D49: 3851761 | E49: 3576724 | F49: 1703351.507
A50: Carrington (Partington) Power Station | B50: =VLOOKUP(A50,'Locations & Types'!$E:$F,2,FALSE) -> DC | C50: 45000000 | D50: 0 | E50: 11342739.73 | F50: 21149992.33
A51: Caythorpe | B51: =VLOOKUP(A51,'Locations & Types'!$E:$F,2,FALSE) -> STORAGE SITE | C51: 75000000 | D51: 75000000 | E51: 0 | F51: 0
A52: Centrax Industrial | B52: =VLOOKUP(A52,'Locations & Types'!$E:$F,2,FALSE) -> DC | C52: 85000 | D52: 85000 | E52: 87465.75342 | F52: 19739.72603
A53: Cirencester | B53: =VLOOKUP(A53,'Locations & Types'!$E:$F,2,FALSE) -> GDN (SW) | C53: 8970000 | D53: 8970000 | E53: 7743399 | F53: 1840110.137
A54: Cockenzie Power Station | B54: =VLOOKUP(A54,'Locations & Types'!$E:$F,2,FALSE) -> DC | C54: 0 | D54: 0 | E54: 0 | F54: 0
A55: Coffinswell | B55: =VLOOKUP(A55,'Locations & Types'!$E:$F,2,FALSE) -> GDN (SW) | C55: 5150000 | D55: 5150000 | E55: 4830571 | F55: 1133771.507
A56: Coldstream | B56: =VLOOKUP(A56,'Locations & Types'!$E:$F,2,FALSE) -> GDN (NO) | C56: 2848927 | D56: 2315892 | E56: 2848927 | F56: 357858.6301
A57: Corbridge | B57: =VLOOKUP(A57,'Locations & Types'!$E:$F,2,FALSE) -> GDN (NO) | C57: 166692 | D57: 70000 | E57: 166692 | F57: 9837309.041
A58: Coryton 2 (Thames Haven) Power Station | B58: =VLOOKUP(A58,'Locations & Types'!$E:$F,2,FALSE) -> DC | C58: 0 | D58: 0 | E58: 0 | F58: 22694976.99
A59: Cowpen Bewley | B59: =VLOOKUP(A59,'Locations & Types'!$E:$F,2,FALSE) -> GDN (NO) | C59: 52120008 | D59: 52120000 | E59: 39610384 | F59: 27841060.27
A60: Crawley Down | B60: =VLOOKUP(A60,'Locations & Types'!$E:$F,2,FALSE) -> GDN (SO) | C60: 0 | D60: 0 | E60: 0 | F60: 0
A61: Deborah Storage (Bacton) | B61: =VLOOKUP(A61,'Locations & Types'!$E:$F,2,FALSE) -> STORAGE SITE | C61: 0 | D61: 0 | E61: 0 | F61: 0
A62: Deeside | B62: =VLOOKUP(A62,'Locations & Types'!$E:$F,2,FALSE) -> DC | C62: 28480000 | D62: 28480000 | E62: 22467945.21 | F62: 3702964.658
A63: Didcot | B63: =VLOOKUP(A63,'Locations & Types'!$E:$F,2,FALSE) -> DC | C63: 137760000 | D63: 137760000 | E63: 75452054.79 | F63: 36315291.51
A64: Dowlais | B64: =VLOOKUP(A64,'Locations & Types'!$E:$F,2,FALSE) -> GDN (WS) | C64: 105977456 | D64: 105977456 | E64: 94743289 | F64: 33411415.07
A65: Drakelow Power Station | B65: =VLOOKUP(A65,'Locations & Types'!$E:$F,2,FALSE) -> DC | C65: 0 | D65: 0 | E65: 0 | F65: 0
A66: Drointon | B66: =VLOOKUP(A66,'Locations & Types'!$E:$F,2,FALSE) -> GDN (EM) | C66: 74272791 | D66: 74270000 | E66: 67959667.36 | F66: 24882241.1
A67: Drum | B67: =VLOOKUP(A67,'Locations & Types'!$E:$F,2,FALSE) -> GDN (SC) | C67: 82525354 | D67: 82525354 | E67: 66956781 | F67: 17074329.59
A68: Dyffryn Clydach | B68: =VLOOKUP(A68,'Locations & Types'!$E:$F,2,FALSE) -> GDN (WS) | C68: 40231974 | D68: 40231974 | E68: 40231974 | F68: 8670474.247
A69: Dynevor Max Refill | B69: =VLOOKUP(A69,'Locations & Types'!$E:$F,2,FALSE) -> STORAGE SITE | C69: 2610000 | D69: 2610000 | E69: 23931 | F69: 0
A70: Eastoft (Keadby Blackstart) | B70: =VLOOKUP(A70,'Locations & Types'!$E:$F,2,FALSE) -> DC | C70: 2380000 | D70: 2380000 | E70: 1457215 | F70: 10078932.33
A71: Eastoft (Keadby) | B71: =VLOOKUP(A71,'Locations & Types'!$E:$F,2,FALSE) -> DC | C71: 36060000 | D71: 36060000 | E71: 36060000 | F71: 0
A72: Easton Grey | B72: =VLOOKUP(A72,'Locations & Types'!$E:$F,2,FALSE) -> GDN (SW) | C72: 29600000 | D72: 29600000 | E72: 27391725 | F72: 3880124.932
A73: Ecclestone | B73: =VLOOKUP(A73,'Locations & Types'!$E:$F,2,FALSE) -> GDN (NW) | C73: 21140000 | D73: 21140000 | E73: 16370887 | F73: 13975337.26
A74: Elton | B74: =VLOOKUP(A74,'Locations & Types'!$E:$F,2,FALSE) -> GDN (NO) | C74: 60212185 | D74: 58814835 | E74: 60212185 | F74: 8542738.63
A75: Enron Billingham | B75: =VLOOKUP(A75,'Locations & Types'!$E:$F,2,FALSE) -> DC | C75: 121510000 | D75: 121510000 | E75: 2297677 | F75: 0
A76: Epping Green (Enfield Energy, aka Brimsdown) | B76: =VLOOKUP(A76,'Locations & Types'!$E:$F,2,FALSE) -> DC | C76: 19600000 | D76: 19600000 | E76: 19053424.66 | F76: 8689135.068
A77: Evesham | B77: =VLOOKUP(A77,'Locations & Types'!$E:$F,2,FALSE) -> GDN (SW) | C77: 6570000 | D77: 6570000 | E77: 5584329 | F77: 45485675.07
A78: Farningham | B78: =VLOOKUP(A78,'Locations & Types'!$E:$F,2,FALSE) -> GDN (SE) | C78: 135120000 | D78: 135120000 | E78: 133637105.6 | F78: 27264425.21
A79: Farningham B | B79: =VLOOKUP(A79,'Locations & Types'!$E:$F,2,FALSE) -> GDN (SE) | C79: 117883000 | D79: 117883000 | E79: 58225359 | F79: 8810303.836
A80: Ferny Knoll (AM Paper) | B80: =VLOOKUP(A80,'Locations & Types'!$E:$F,2,FALSE) -> DC | C80: 1080000 | D80: 1080000 | E80: 0 | F80: 0
A81: Fiddington | B81: =VLOOKUP(A81,'Locations & Types'!$E:$F,2,FALSE) -> GDN (SW) | C81: 25952278 | D81: 25952278 | E81: 22229864 | F81: 8521790.411
A82: Ganstead | B82: =VLOOKUP(A82,'Locations & Types'!$E:$F,2,FALSE) -> GDN (NE) | C82: 23150000 | D82: 23150000 | E82: 16864011 | F82: 23880059.73
A83: Garton Max Refill (Aldbrough) | B83: =VLOOKUP(A83,'Locations & Types'!$E:$F,2,FALSE) -> STORAGE SITE | C83: 325510001 | D83: 325510001 | E83: 335891616.4 | F83: 26591131.78
A84: Gilwern | B84: =VLOOKUP(A84,'Locations & Types'!$E:$F,2,FALSE) -> GDN (WS) | C84: 82680000 | D84: 82680000 | E84: 78188679 | F84: 53323223.29
A85: Glenmavis | B85: =VLOOKUP(A85,'Locations & Types'!$E:$F,2,FALSE) -> GDN (SC) | C85: 145790000 | D85: 145790000 | E85: 128262344 | F85: 18636230.14
A86: Glenmavis Max Refill | B86: =VLOOKUP(A86,'Locations & Types'!$E:$F,2,FALSE) -> STORAGE SITE | C86: 1620000 | D86: 1620000 | E86: 488720 | F86: 0
A87: Goole (Guardian Glass) | B87: =VLOOKUP(A87,'Locations & Types'!$E:$F,2,FALSE) -> DC | C87: 1620000 | D87: 1620000 | E87: 1600000 | F87: 1430087.397
A88: Gosberton | B88: =VLOOKUP(A88,'Locations & Types'!$E:$F,2,FALSE) -> GDN (EM) | C88: 15230000 | D88: 15230000 | E88: 12321120 | F88: 8230667.123
A89: Gowkhall (Longannet) | B89: =VLOOKUP(A89,'Locations & Types'!$E:$F,2,FALSE) -> DC | C89: 43320000 | D89: 43320000 | E89: 43320000 | F89: 92610.9589
A90: Grain Power Station | B90: =VLOOKUP(A90,'Locations & Types'!$E:$F,2,FALSE) -> DC | C90: 0 | D90: 0 | E90: 53594520.55 | F90: 36506748.77
A91: Great Wilbraham | B91: =VLOOKUP(A91,'Locations & Types'!$E:$F,2,FALSE) -> GDN (EA) | C91: 35590000 | D91: 35590000 | E91: 24004050 | F91: 3121531.781
A92: Guyzance | B92: =VLOOKUP(A92,'Locations & Types'!$E:$F,2,FALSE) -> GDN (NO) | C92: 2190000 | D92: 2190000 | E92: 1806988 | F92: 29186694.79
A93: Hardwick | B93: =VLOOKUP(A93,'Locations & Types'!$E:$F,2,FALSE) -> GDN (SO) | C93: 123699000 | D93: 123699000 | E93: 95134383 | F93: 20472030.68
A94: Harwarden (Shotton, aka Shotton Paper) | B94: =VLOOKUP(A94,'Locations & Types'!$E:$F,2,FALSE) -> DC | C94: 11590000 | D94: 11590000 | E94: 0 | F94: 0
A95: Hatfield Moor Max Refill | B95: =VLOOKUP(A95,'Locations & Types'!$E:$F,2,FALSE) -> STORAGE SITE | C95: 30210000 | D95: 30210000 | E95: 30210000 | F95: 3212542.466
A96: Hatfield Power Station | B96: =VLOOKUP(A96,'Locations & Types'!$E:$F,2,FALSE) -> DC | C96: 0 | D96: 0 | E96: 0 | F96: 9133444.658
A97: Hill Top Farm (Hole House Farm) | B97: =VLOOKUP(A97,'Locations & Types'!$E:$F,2,FALSE) -> STORAGE SITE | C97: 0 | D97: 0 | E97: 54493150.68 | F97: 4069156.164
A98: Hole House Max Refill | B98: =VLOOKUP(A98,'Locations & Types'!$E:$F,2,FALSE) -> STORAGE SITE | C98: 119580000 | D98: 119580000 | E98: 110327604.2 | F98: 7180733.699
A99: Holford | B99: =VLOOKUP(A99,'Locations & Types'!$E:$F,2,FALSE) -> STORAGE SITE | C99: 0 | D99: 0 | E99: 210094574.7 | F99: 35970943.29
A100: Hollingsgreen (Hays Chemicals) | B100: =VLOOKUP(A100,'Locations & Types'!$E:$F,2,FALSE) -> DC | C100: 3250000 | D100: 3250000 | E100: 2980748.737 | F100: 771943.8356
A101: Holmes Chapel | B101: =VLOOKUP(A101,'Locations & Types'!$E:$F,2,FALSE) -> GDN (NW) | C101: 22199592 | D101: 22199592 | E101: 18387106 | F101: 11444246.3
A102: Horndon | B102: =VLOOKUP(A102,'Locations & Types'!$E:$F,2,FALSE) -> GDN (NT) | C102: 46410000 | D102: 46410000 | E102: 43008039.97 | F102: 246499.4521
A103: Hornsea Max Refill | B103: =VLOOKUP(A103,'Locations & Types'!$E:$F,2,FALSE) -> STORAGE SITE | C103: 44789585 | D103: 44789585 | E103: 59866945.84 | F103: 5903555.342
A104: Humbleton | B104: =VLOOKUP(A104,'Locations & Types'!$E:$F,2,FALSE) -> GDN (NO) | C104: 250000 | D104: 160000 | E104: 250000 | F104: 378767.6712
A105: Hume | B105: =VLOOKUP(A105,'Locations & Types'!$E:$F,2,FALSE) -> GDN (SC) | C105: 1684385 | D105: 1684385 | E105: 1684385 | F105: 6006235.068
A106: Ilchester | B106: =VLOOKUP(A106,'Locations & Types'!$E:$F,2,FALSE) -> GDN (SW) | C106: 34960000 | D106: 34960000 | E106: 30242930 | F106: 1591058.082
A107: Ipsden | B107: =VLOOKUP(A107,'Locations & Types'!$E:$F,2,FALSE) -> GDN (SO) | C107: 12390000 | D107: 12390000 | E107: 9369284.904 | F107: 1893678.63
A108: Ipsden 2 | B108: =VLOOKUP(A108,'Locations & Types'!$E:$F,2,FALSE) -> GDN (SO) | C108: 15678000 | D108: 15678000 | E108: 11667297 | F108: 577921.9178
A109: Keld | B109: =VLOOKUP(A109,'Locations & Types'!$E:$F,2,FALSE) -> GDN (NO) | C109: 1890000 | D109: 1890000 | E109: 1424555 | F109: 5367104.932
A110: Kenn | B110: =VLOOKUP(A110,'Locations & Types'!$E:$F,2,FALSE) -> GDN (SW) | C110: 15430000 | D110: 15430000 | E110: 14000883 | F110: 4416020.822
A111: Kinknockie | B111: =VLOOKUP(A111,'Locations & Types'!$E:$F,2,FALSE) -> GDN (SC) | C111: 3068392 | D111: 2968392 | E111: 3068392 | F111: 544038.9041
A112: Kirkstead | B112: =VLOOKUP(A112,'Locations & Types'!$E:$F,2,FALSE) -> GDN (EM) | C112: 1210000 | D112: 1210000 | E112: 858703 | F112: 73995.34247
A113: Langage Power Station | B113: =VLOOKUP(A113,'Locations & Types'!$E:$F,2,FALSE) -> DC | C113: 41616008 | D113: 41616008 | E113: 42258904.11 | F113: 17822423.01
A114: Langholm | B114: =VLOOKUP(A114,'Locations & Types'!$E:$F,2,FALSE) -> GDN (SC) | C114: 249796 | D114: 249796 | E114: 155319 | F114: 106636.7123
A115: Lauderhill | B115: =VLOOKUP(A115,'Locations & Types'!$E:$F,2,FALSE) -> GDN (SC) | C115: 1790000 | D115: 1790000 | E115: 0 | F115: 0
A116: Leamington | B116: =VLOOKUP(A116,'Locations & Types'!$E:$F,2,FALSE) -> GDN (WM) | C116: 4260000 | D116: 4260000 | E116: 2586215 | F116: 346307.1233
A117: Little Burdon | B117: =VLOOKUP(A117,'Locations & Types'!$E:$F,2,FALSE) -> GDN (NO) | C117: 20919521 | D117: 17750000 | E117: 20919521 | F117: 7323161.096
A118: Littleton Drew | B118: =VLOOKUP(A118,'Locations & Types'!$E:$F,2,FALSE) -> GDN (SW) | C118: 2470000 | D118: 2470000 | E118: 2299463 | F118: 1767760.274
A119: Lockerbie | B119: =VLOOKUP(A119,'Locations & Types'!$E:$F,2,FALSE) -> GDN (SC) | C119: 7439745 | D119: 7439745 | E119: 6757111 | F119: 8188782.74
A120: Lower Quinton | B120: =VLOOKUP(A120,'Locations & Types'!$E:$F,2,FALSE) -> GDN (WM) | C120: 29910000 | D120: 29910000 | E120: 26684207 | F120: 2689132.329
A121: Lupton | B121: =VLOOKUP(A121,'Locations & Types'!$E:$F,2,FALSE) -> GDN (NW) | C121: 19815980 | D121: 16230000 | E121: 19815980 | F121: 25265481.1
A122: Luxborough Lane | B122: =VLOOKUP(A122,'Locations & Types'!$E:$F,2,FALSE) -> GDN (NT) | C122: 165300000 | D122: 165300000 | E122: 76147689 | F122: 17360498.36
A123: Lyneham (Choakford) | B123: =VLOOKUP(A123,'Locations & Types'!$E:$F,2,FALSE) -> GDN (SW) | C123: 50300000 | D123: 50300000 | E123: 40420636 | F123: 0
A124: Maelor | B124: =VLOOKUP(A124,'Locations & Types'!$E:$F,2,FALSE) -> GDN (WN) | C124: 57560000 | D124: 57560000 | E124: 49258990 | F124: 5945692.877
A125: Malpas | B125: =VLOOKUP(A125,'Locations & Types'!$E:$F,2,FALSE) -> GDN (NW) | C125: 990000 | D125: 990000 | E125: 685222 | F125: 9142425.479
A126: Mappowder | B126: =VLOOKUP(A126,'Locations & Types'!$E:$F,2,FALSE) -> GDN (SO) | C126: 47680000 | D126: 47680000 | E126: 36407083 | F126: 19618955.07
A127: Marchwood Power Station | B127: =VLOOKUP(A127,'Locations & Types'!$E:$F,2,FALSE) -> DC | C127: 39840000 | D127: 39840000 | E127: 47696807.02 | F127: 28886536.44
A128: Market Harborough | B128: =VLOOKUP(A128,'Locations & Types'!$E:$F,2,FALSE) -> GDN (EM) | C128: 9480000 | D128: 9480000 | E128: 6965982 | F128: 62241.91781
A129: Matching Green | B129: =VLOOKUP(A129,'Locations & Types'!$E:$F,2,FALSE) -> GDN (EA) | C129: 92341877 | D129: 92341877 | E129: 57949003.03 | F129: 7128843.836
A130: Medway (aka Isle of Grain Power Station, NOT Grain Power) | B130: =VLOOKUP(A130,'Locations & Types'!$E:$F,2,FALSE) -> DC | C130: 38120000 | D130: 38120000 | E130: 36047733 | F130: 12681354.52
A131: Melkinthorpe | B131: =VLOOKUP(A131,'Locations & Types'!$E:$F,2,FALSE) -> GDN (NO) | C131: 2432914 | D131: 1770776 | E131: 2432914 | F131: 8057156.438
A132: Mickle Trafford | B132: =VLOOKUP(A132,'Locations & Types'!$E:$F,2,FALSE) -> GDN (NW) | C132: 29209411 | D132: 29209411 | E132: 29209411 | F132: 9793474.795
A133: Middle Stoke (Damhead Creek, aka Kingsnorth Power Station) | B133: =VLOOKUP(A133,'Locations & Types'!$E:$F,2,FALSE) -> DC | C133: 40940000 | D133: 95336184 | E133: 40940000 | F133: 28264656.71
A134: Milwich | B134: =VLOOKUP(A134,'Locations & Types'!$E:$F,2,FALSE) -> GDN (WM) | C134: 21635242 | D134: 21635242 | E134: 18949988 | F134: 3291787.671
A135: Moffat (Irish Interconnector) | B135: =VLOOKUP(A135,'Locations & Types'!$E:$F,2,FALSE) -> INTERCONNECTOR | C135: 530089918 | D135: 528478030 | E135: 202806580.9 | F135: 98632422.19
A136: Netherhowcleugh | B136: =VLOOKUP(A136,'Locations & Types'!$E:$F,2,FALSE) -> GDN (SC) | C136: 322112 | D136: 222112 | E136: 322112 | F136: 35830453.7
A137: Pannal | B137: =VLOOKUP(A137,'Locations & Types'!$E:$F,2,FALSE) -> GDN (NE) | C137: 148410000 | D137: 148410000 | E137: 127560152 | F137: 23964563.84
A138: Partington | B138: =VLOOKUP(A138,'Locations & Types'!$E:$F,2,FALSE) -> GDN (NW) | C138: 87630000 | D138: 87630000 | E138: 54702858 | F138: 10040938.63
A139: Partington Max Refill | B139: =VLOOKUP(A139,'Locations & Types'!$E:$F,2,FALSE) -> STORAGE SITE | C139: 2410000 | D139: 2410000 | E139: 0 | F139: 0
A140: Paull | B140: =VLOOKUP(A140,'Locations & Types'!$E:$F,2,FALSE) -> GDN (NE) | C140: 46858561 | D140: 40282984 | E140: 46858561 | F140: 10475073.97
A141: Pembroke Power Station | B141: =VLOOKUP(A141,'Locations & Types'!$E:$F,2,FALSE) -> DC | C141: 121200056 | D141: 110200056 | E141: 125391780.8 | F141: 80151207.67
A142: Peterborough (Peterborough Power Station) | B142: =VLOOKUP(A142,'Locations & Types'!$E:$F,2,FALSE) -> DC | C142: 23280000 | D142: 23280000 | E142: 12860273.97 | F142: 362728.7671
A143: Peterborough Eye (Tee) | B143: =VLOOKUP(A143,'Locations & Types'!$E:$F,2,FALSE) -> GDN (EA) | C143: 25450000 | D143: 25450000 | E143: 20423482 | F143: 32758988.49
A144: Peters Green | B144: =VLOOKUP(A144,'Locations & Types'!$E:$F,2,FALSE) -> GDN (NT) | C144: 151860000 | D144: 151860000 | E144: 111963144 | F144: 58700710.41
A145: Peters Green South Mimms | B145: =VLOOKUP(A145,'Locations & Types'!$E:$F,2,FALSE) -> GDN (NT) | C145: 197176511 | D145: 197176511 | E145: 164876045 | F145: 19121806.3
A146: Phillips Petroleum, Teesside | B146: =VLOOKUP(A146,'Locations & Types'!$E:$F,2,FALSE) -> DC | C146: 3690000 | D146: 3690000 | E146: 4528356.164 | F146: 220744.3836
A147: Pickering | B147: =VLOOKUP(A147,'Locations & Types'!$E:$F,2,FALSE) -> GDN (NE) | C147: 9380000 | D147: 9380000 | E147: 8379084 | F147: 1200485.753
A148: Pickmere (Winnington Power, aka Brunner Mond) | B148: =VLOOKUP(A148,'Locations & Types'!$E:$F,2,FALSE) -> DC | C148: 15380000 | D148: 15380000 | E148: 8000000 | F148: 5459134.247
A149: Pitcairngreen | B149: =VLOOKUP(A149,'Locations & Types'!$E:$F,2,FALSE) -> GDN (SC) | C149: 1915791 | D149: 1590000 | E149: 3185654.014 | F149: 6652185.205
A150: Pucklechurch | B150: =VLOOKUP(A150,'Locations & Types'!$E:$F,2,FALSE) -> GDN (SW) | C150: 25794765 | D150: 25794765 | E150: 22688355 | F150: 2082287.945
A151: Rawcliffe | B151: =VLOOKUP(A151,'Locations & Types'!$E:$F,2,FALSE) -> GDN (NE) | C151: 5046154 | D151: 3550000 | E151: 5046154 | F151: 1596003.562
A152: Rollswood Kintore | B152: =VLOOKUP(A152,'Locations & Types'!$E:$F,2,FALSE) -> DC | C152: 0 | D152: 0 | E152: 0 | F152: 0
A153: Roosecote Power Station (Barrow) | B153: =VLOOKUP(A153,'Locations & Types'!$E:$F,2,FALSE) -> DC | C153: 14730000 | D153: 14730000 | E153: 0 | F153: 0
A154: Rosehill (Saltend Power Station) | B154: =VLOOKUP(A154,'Locations & Types'!$E:$F,2,FALSE) -> DC | C154: 57830000 | D154: 57830000 | E154: 57830000 | F154: 44186722.74
A155: Ross (SW) | B155: =VLOOKUP(A155,'Locations & Types'!$E:$F,2,FALSE) -> GDN (SW) | C155: 4530000 | D155: 4530000 | E155: 4023357 | F155: 4297064.11
A156: Ross (WM) | B156: =VLOOKUP(A156,'Locations & Types'!$E:$F,2,FALSE) -> GDN (WM) | C156: 16520000 | D156: 16520000 | E156: 10023883.36 | F156: 21188302.47
A157: Roudham Heath | B157: =VLOOKUP(A157,'Locations & Types'!$E:$F,2,FALSE) -> GDN (EA) | C157: 25472176 | D157: 25472176 | E157: 21854639 | F157: 3779307.671
A158: Rough Max Refill | B158: =VLOOKUP(A158,'Locations & Types'!$E:$F,2,FALSE) -> STORAGE SITE | C158: 370479121 | D158: 370479121 | E158: 368609643.6 | F158: 25972353.15
A159: Royston | B159: =VLOOKUP(A159,'Locations & Types'!$E:$F,2,FALSE) -> GDN (EA) | C159: 2700000 | D159: 2700000 | E159: 2367780 | F159: 23071315.62
A160: Rugby | B160: =VLOOKUP(A160,'Locations & Types'!$E:$F,2,FALSE) -> GDN (WM) | C160: 80080000 | D160: 80080000 | E160: 63016793 | F160: 24026184.93
A161: Ryehouse | B161: =VLOOKUP(A161,'Locations & Types'!$E:$F,2,FALSE) -> DC | C161: 38660000 | D161: 38660000 | E161: 38660000 | F161: 6797948.767
A162: Saddle Bow (Kings Lynn) | B162: =VLOOKUP(A162,'Locations & Types'!$E:$F,2,FALSE) -> DC | C162: 17980000 | D162: 17980000 | E162: 14500000 | F162: 36.16438356
A163: Saltend BPHP (BP Saltend HP) | B163: =VLOOKUP(A163,'Locations & Types'!$E:$F,2,FALSE) -> DC | C163: 9100000 | D163: 9100000 | E163: 9055895 | F163: 4218056.986
A164: Saltfleetby Storage (Theddlethorpe) | B164: =VLOOKUP(A164,'Locations & Types'!$E:$F,2,FALSE) -> STORAGE SITE | C164: 0 | D164: 0 | E164: 0 | F164: 0
A165: Saltwick Pressure Controlled | B165: =VLOOKUP(A165,'Locations & Types'!$E:$F,2,FALSE) -> GDN (NO) | C165: 9220000 | D165: 9220000 | E165: 6171601 | F165: 4276317.808
A166: Saltwick Volumetric Controlled | B166: =VLOOKUP(A166,'Locations & Types'!$E:$F,2,FALSE) -> GDN (NO) | C166: 69070000 | D166: 69070000 | E166: 39749273 | F166: 21776148.49
A167: Samlesbury | B167: =VLOOKUP(A167,'Locations & Types'!$E:$F,2,FALSE) -> GDN (NW) | C167: 110990000 | D167: 110990000 | E167: 99858652 | F167: 16708984.93
A168: Sandy Lane (Blackburn CHP, aka Sappi Paper Mill) | B168: =VLOOKUP(A168,'Locations & Types'!$E:$F,2,FALSE) -> DC | C168: 4550000 | D168: 4550000 | E168: 3433103 | F168: 271293.1507
A169: Seabank (DN) | B169: =VLOOKUP(A169,'Locations & Types'!$E:$F,2,FALSE) -> GDN (SW) | C169: 60740000 | D169: 60740000 | E169: 50999376 | F169: 7038303.288
A170: Seabank (Seabank Power Station phase II) | B170: =VLOOKUP(A170,'Locations & Types'!$E:$F,2,FALSE) -> DC | C170: 19100000 | D170: 19100000 | E170: 26727896.9 | F170: 3236073.425
A171: Seal Sands TGPP | B171: =VLOOKUP(A171,'Locations & Types'!$E:$F,2,FALSE) -> DC | C171: 0 | D171: 0 | E171: 1023287.671 | F171: 0
A172: Sellafield Power Station | B172: =VLOOKUP(A172,'Locations & Types'!$E:$F,2,FALSE) -> DC | C172: 12350000 | D172: 12350000 | E172: 12349999 | F172: 5835930.959
A173: Shellstar (aka Kemira, not Kemira CHP) | B173: =VLOOKUP(A173,'Locations & Types'!$E:$F,2,FALSE) -> DC | C173: 16240000 | D173: 16240000 | E173: 11732444 | F173: 0
A174: Shorne | B174: =VLOOKUP(A174,'Locations & Types'!$E:$F,2,FALSE) -> GDN (SE) | C174: 67060000 | D174: 67060000 | E174: 48279307 | F174: 29938.08219
A175: Shotwick (Bridgewater Paper) | B175: =VLOOKUP(A175,'Locations & Types'!$E:$F,2,FALSE) -> DC | C175: 5520000 | D175: 5520000 | E175: 3820705.279 | F175: 135327.1233
A176: Shustoke | B176: =VLOOKUP(A176,'Locations & Types'!$E:$F,2,FALSE) -> GDN (WM) | C176: 44760000 | D176: 44760000 | E176: 2793603.211 | F176: 566680.8219
A177: Silk Willoughby | B177: =VLOOKUP(A177,'Locations & Types'!$E:$F,2,FALSE) -> GDN (EM) | C177: 3530000 | D177: 3530000 | E177: 2203090 | F177: 1916709.315
A178: Soutra | B178: =VLOOKUP(A178,'Locations & Types'!$E:$F,2,FALSE) -> GDN (SC) | C178: 10726995 | D178: 10619687 | E178: 10726995 | F178: 695890.137
A179: Spalding 2 (South Holland) Power Station | B179: =VLOOKUP(A179,'Locations & Types'!$E:$F,2,FALSE) -> DC | C179: 0 | D179: 0 | E179: 0 | F179: 0
A180: St Fergus | B180: =VLOOKUP(A180,'Locations & Types'!$E:$F,2,FALSE) -> GDN (SC) | C180: 1058074 | D180: 1058074 | E180: 1093487.058 | F180: 1133201.918
A181: St. Fergus (Peterhead) | B181: =VLOOKUP(A181,'Locations & Types'!$E:$F,2,FALSE) -> DC | C181: 108300000 | D181: 108300000 | E181: 73267750 | F181: 7745395.342
A182: St. Fergus (Shell Blackstart) | B182: =VLOOKUP(A182,'Locations & Types'!$E:$F,2,FALSE) -> DC | C182: 2583336 | D182: 0 | E182: 2584138.934 | F182: 0
A183: St. Neots (Little Barford) | B183: =VLOOKUP(A183,'Locations & Types'!$E:$F,2,FALSE) -> DC | C183: 35200000 | D183: 35200000 | E183: 30576190.68 | F183: 22259277.53
A184: Stallingborough | B184: =VLOOKUP(A184,'Locations & Types'!$E:$F,2,FALSE) -> DC | C184: 68012169 | D184: 68012169 | E184: 59650684.93 | F184: 13466139.73
A185: Stanford Le Hope (Coryton) | B185: =VLOOKUP(A185,'Locations & Types'!$E:$F,2,FALSE) -> DC | C185: 38600000 | D185: 38600000 | E185: 32360547.95 | F185: 0
A186: Staythorpe | B186: =VLOOKUP(A186,'Locations & Types'!$E:$F,2,FALSE) -> DC | C186: 82000000 | D186: 82000000 | E186: 70421917.81 | F186: 52735856.44
A187: Stranraer | B187: =VLOOKUP(A187,'Locations & Types'!$E:$F,2,FALSE) -> GDN (SC) | C187: 930433 | D187: 930433 | E187: 742435 | F187: 0
A188: Stratford-upon-Avon | B188: =VLOOKUP(A188,'Locations & Types'!$E:$F,2,FALSE) -> GDN (WM) | C188: 4680000 | D188: 4680000 | E188: 3735040 | F188: 655428.2192
A189: Stublach (Cheshire) | B189: =VLOOKUP(A189,'Locations & Types'!$E:$F,2,FALSE) -> STORAGE SITE | C189: 0 | D189: 0 | E189: 342676080.9 | F189: 16340445.75
A190: Sutton Bridge | B190: =VLOOKUP(A190,'Locations & Types'!$E:$F,2,FALSE) -> GDN (EM) | C190: 1710546 | D190: 1710546 | E190: 1079269 | F190: 38075336.71
A191: Sutton Bridge Power Station | B191: =VLOOKUP(A191,'Locations & Types'!$E:$F,2,FALSE) -> DC | C191: 37470000 | D191: 37470000 | E191: 37480397.26 | F191: 15243287.67
A192: Tatsfield | B192: =VLOOKUP(A192,'Locations & Types'!$E:$F,2,FALSE) -> GDN (SE) | C192: 221742083 | D192: 221742083 | E192: 192774633 | F192: 35058627.4
A193: Teesside (BASF, aka BASF Teesside) | B193: =VLOOKUP(A193,'Locations & Types'!$E:$F,2,FALSE) -> DC | C193: 9750000 | D193: 9750000 | E193: 10588356.16 | F193: 4528335.342
A194: Teesside Hydrogen | B194: =VLOOKUP(A194,'Locations & Types'!$E:$F,2,FALSE) -> DC | C194: 13276800 | D194: 6638400 | E194: 13276800 | F194: 4072028.219
A195: Terra Nitrogen (aka ICI, Terra Severnside) | B195: =VLOOKUP(A195,'Locations & Types'!$E:$F,2,FALSE) -> DC | C195: 13100000 | D195: 13100000 | E195: 0 | F195: 0
A196: Thornton Curtis (DN) | B196: =VLOOKUP(A196,'Locations & Types'!$E:$F,2,FALSE) -> GDN (EM) | C196: 118190411 | D196: 118150000 | E196: 95532642 | F196: 18644599.18
A197: Thornton Curtis (Humber Refinery, aka Immingham) | B197: =VLOOKUP(A197,'Locations & Types'!$E:$F,2,FALSE) -> DC | C197: 67000000 | D197: 67000000 | E197: 67000000 | F197: 49242931.51
A198: Thornton Curtis (Killingholme) | B198: =VLOOKUP(A198,'Locations & Types'!$E:$F,2,FALSE) -> DC | C198: 91000001 | D198: 91000001 | E198: 32698630.14 | F198: 7427878.082
A199: Thrintoft | B199: =VLOOKUP(A199,'Locations & Types'!$E:$F,2,FALSE) -> GDN (NO) | C199: 6921484 | D199: 5160000 | E199: 6921484 | F199: 756326.8493
A200: Tilbury Power Station | B200: =VLOOKUP(A200,'Locations & Types'!$E:$F,2,FALSE) -> DC | C200: 0 | D200: 0 | E200: 0 | F200: 0
... 23 more rows

Sheet 18-19 FCC - Exit (hidden)
A1: Exit Point | B1: Exit Point Type | C1: Obligated Exit Capacity | D1: Non-Incremental Obligated Exit Capacity | E1: Historical Sold Exit Capacity Levels | F1: Historical Exit Flow Levels
C2: (kWh/d) | D2: (kWh/d) | E2: (kWh/d) | F2: (kWh/d)
A3: Aberdeen | B3: =VLOOKUP(A3,'Locations & Types'!$E:$F,2,FALSE) -> GDN (SC) | C3: 23536855 | D3: 23536855 | E3: 21639348 | F3: 7628906.849
A4: Abson (Seabank Power Station phase I) | B4: =VLOOKUP(A4,'Locations & Types'!$E:$F,2,FALSE) -> DC | C4: 36590000 | D4: 36590000 | E4: 54842243.05 | F4: 19890790.68
A5: Alrewas (EM) | B5: =VLOOKUP(A5,'Locations & Types'!$E:$F,2,FALSE) -> GDN (EM) | C5: 139912893 | D5: 139912893 | E5: 67834101 | F5: 23670945.21
A6: Alrewas (WM) | B6: =VLOOKUP(A6,'Locations & Types'!$E:$F,2,FALSE) -> GDN (WM) | C6: 128480000 | D6: 128480000 | E6: 72669637 | F6: 15030791.78
A7: Apache (Sage Black Start) | B7: =VLOOKUP(A7,'Locations & Types'!$E:$F,2,FALSE) -> DC | C7: 0 | D7: 0 | E7: 0 | F7: 0
A8: Armadale | B8: =VLOOKUP(A8,'Locations & Types'!$E:$F,2,FALSE) -> GDN (SC) | C8: 16011750 | D8: 16011750 | E8: 7519525 | F8: 1900640.274
A9: Aspley | B9: =VLOOKUP(A9,'Locations & Types'!$E:$F,2,FALSE) -> GDN (WM) | C9: 84650000 | D9: 84650000 | E9: 50992393 | F9: 30855518.36
A10: Asselby | B10: =VLOOKUP(A10,'Locations & Types'!$E:$F,2,FALSE) -> GDN (NE) | C10: 4586470 | D10: 3920000 | E10: 4586470 | F10: 1556096.164
A11: Audley (NW) | B11: =VLOOKUP(A11,'Locations & Types'!$E:$F,2,FALSE) -> GDN (NW) | C11: 12140000 | D11: 12140000 | E11: 8037574 | F11: 3263868.767
A12: Audley (WM) | B12: =VLOOKUP(A12,'Locations & Types'!$E:$F,2,FALSE) -> GDN (WM) | C12: 21830000 | D12: 21830000 | E12: 15330890 | F12: 165777.5342
A13: Austrey | B13: =VLOOKUP(A13,'Locations & Types'!$E:$F,2,FALSE) -> GDN (WM) | C13: 87835508 | D13: 87835508 | E13: 59601211 | F13: 18256115.34
A14: Avonmouth Max Refill | B14: =VLOOKUP(A14,'Locations & Types'!$E:$F,2,FALSE) -> STORAGE SITE | C14: 2300000 | D14: 2300000 | E14: 1070290.74 | F14: 183.8356164
A15: Aylesbeare | B15: =VLOOKUP(A15,'Locations & Types'!$E:$F,2,FALSE) -> GDN (SW) | C15: 22680000 | D15: 22680000 | E15: 19128874 | F15: 6191683.014
A16: Bacton | B16: =VLOOKUP(A16,'Locations & Types'!$E:$F,2,FALSE) -> GDN (EA) | C16: 3660000 | D16: 3660000 | E16: 2472724 | F16: 187210054.8
A17: Bacton (Baird) | B17: =VLOOKUP(A17,'Locations & Types'!$E:$F,2,FALSE) -> STORAGE SITE | C17: 0 | D17: 0 | E17: 0 | F17: 0
A18: Bacton (BBL) | B18: =VLOOKUP(A18,'Locations & Types'!$E:$F,2,FALSE) -> INTERCONNECTOR | C18: 0 | D18: 0 | E18: 94149369.86 | F18: 1018.630137
A19: Bacton (Great Yarmouth) | B19: =VLOOKUP(A19,'Locations & Types'!$E:$F,2,FALSE) -> DC | C19: 20040000 | D19: 20040000 | E19: 23544055.64 | F19: 12451602.19
A20: Bacton (IUK) | B20: =VLOOKUP(A20,'Locations & Types'!$E:$F,2,FALSE) -> INTERCONNECTOR | C20: 651676940 | D20: 651676940 | E20: 491724443.7 | F20: 0
A21: Baldersby | B21: =VLOOKUP(A21,'Locations & Types'!$E:$F,2,FALSE) -> GDN (NE) | C21: 1340000 | D21: 1340000 | E21: 1126642 | F21: 484355.6164
A22: Balgray | B22: =VLOOKUP(A22,'Locations & Types'!$E:$F,2,FALSE) -> GDN (SC) | C22: 15723362 | D22: 15723362 | E22: 14957981 | F22: 5016358.63
A23: Barking (Horndon) | B23: =VLOOKUP(A23,'Locations & Types'!$E:$F,2,FALSE) -> DC | C23: 58590000 | D23: 58590000 | E23: 0 | F23: 0
A24: Barrow (Bains) | B24: =VLOOKUP(A24,'Locations & Types'!$E:$F,2,FALSE) -> STORAGE SITE | C24: 0 | D24: 0 | E24: 0 | F24: 0
A25: Barrow (Black Start) | B25: =VLOOKUP(A25,'Locations & Types'!$E:$F,2,FALSE) -> DC | C25: 1000000 | D25: 1000000 | E25: 1000000 | F25: 0
A26: Barrow (Gateway) | B26: =VLOOKUP(A26,'Locations & Types'!$E:$F,2,FALSE) -> STORAGE SITE | C26: 0 | D26: 0 | E26: 0 | F26: 0
A27: Barton Stacey Max Refill (Humbly Grove) | B27: =VLOOKUP(A27,'Locations & Types'!$E:$F,2,FALSE) -> STORAGE SITE | C27: 100940000 | D27: 100940000 | E27: 82739726.03 | F27: 10634185.21
A28: Bathgate | B28: =VLOOKUP(A28,'Locations & Types'!$E:$F,2,FALSE) -> GDN (SC) | C28: 24176039 | D28: 24176039 | E28: 21081766 | F28: 7883046.027
A29: Billingham ICI (Terra Billingham) | B29: =VLOOKUP(A29,'Locations & Types'!$E:$F,2,FALSE) -> DC | C29: 43540000 | D29: 36881691 | E29: 33644543 | F29: 15595417.26
A30: Bishop Auckland | B30: =VLOOKUP(A30,'Locations & Types'!$E:$F,2,FALSE) -> GDN (NO) | C30: 62130000 | D30: 62130000 | E30: 52568615 | F30: 22932016.44
A31: Bishop Auckland (test facility) | B31: =VLOOKUP(A31,'Locations & Types'!$E:$F,2,FALSE) -> DC | C31: 0 | D31: 0 | E31: 0 | F31: 1022578.082
A32: Blaby | B32: =VLOOKUP(A32,'Locations & Types'!$E:$F,2,FALSE) -> GDN (EM) | C32: 13400271 | D32: 13400271 | E32: 9867513 | F32: 6249039.726
A33: Blackness (BP Grangemouth) | B33: =VLOOKUP(A33,'Locations & Types'!$E:$F,2,FALSE) -> DC | C33: 27290000 | D33: 27290000 | E33: 27290000 | F33: 16366026.03
A34: Blackrod | B34: =VLOOKUP(A34,'Locations & Types'!$E:$F,2,FALSE) -> GDN (NW) | C34: 166545212 | D34: 166545212 | E34: 123939267 | F34: 45674320.55
A35: Blyborough | B35: =VLOOKUP(A35,'Locations & Types'!$E:$F,2,FALSE) -> GDN (EM) | C35: 79330000 | D35: 79330000 | E35: 56288103 | F35: 10867448.49
A36: Blyborough (Brigg) | B36: =VLOOKUP(A36,'Locations & Types'!$E:$F,2,FALSE) -> DC | C36: 16890000 | D36: 16890000 | E36: 10238356.16 | F36: 234233.6986
A37: Blyborough (Cottam) | B37: =VLOOKUP(A37,'Locations & Types'!$E:$F,2,FALSE) -> DC | C37: 19300000 | D37: 19300000 | E37: 18364383.56 | F37: 12385403.29
A38: Braishfield A | B38: =VLOOKUP(A38,'Locations & Types'!$E:$F,2,FALSE) -> GDN (SO) | C38: 107280000 | D38: 107280000 | E38: 61600632 | F38: 29091413.7
A39: Braishfield B | B39: =VLOOKUP(A39,'Locations & Types'!$E:$F,2,FALSE) -> GDN (SO) | C39: 58866000 | D39: 58866000 | E39: 57139307 | F39: 18894458.9
A40: Brine Field (Teesside) Power Station | B40: =VLOOKUP(A40,'Locations & Types'!$E:$F,2,FALSE) -> DC | C40: 0 | D40: 0 | E40: 0 | F40: 18376256.44
A41: Brisley | B41: =VLOOKUP(A41,'Locations & Types'!$E:$F,2,FALSE) -> GDN (EA) | C41: 3110000 | D41: 3110000 | E41: 2295523 | F41: 981724.3836
A42: Broxburn | B42: =VLOOKUP(A42,'Locations & Types'!$E:$F,2,FALSE) -> GDN (SC) | C42: 60444108 | D42: 60444108 | E42: 56250554 | F42: 19367067.12
A43: Burley Bank | B43: =VLOOKUP(A43,'Locations & Types'!$E:$F,2,FALSE) -> GDN (NE) | C43: 20310000 | D43: 20310000 | E43: 14453143 | F43: 7737758.63
A44: Burnhervie | B44: =VLOOKUP(A44,'Locations & Types'!$E:$F,2,FALSE) -> GDN (SC) | C44: 22380000 | D44: 22380000 | E44: 20624435 | F44: 9981400
A45: Burton Point (Connahs Quay) | B45: =VLOOKUP(A45,'Locations & Types'!$E:$F,2,FALSE) -> DC | C45: 73210000 | D45: 73210000 | E45: 60361643.84 | F45: 0
A46: Caldecott | B46: =VLOOKUP(A46,'Locations & Types'!$E:$F,2,FALSE) -> GDN (EM) | C46: 11080000 | D46: 11080000 | E46: 8977861 | F46: 3821198.082
A47: Caldecott (Corby Power Station) | B47: =VLOOKUP(A47,'Locations & Types'!$E:$F,2,FALSE) -> DC | C47: 21120000 | D47: 21120000 | E47: 5318910.17 | F47: 129917.5342
A48: Cambridge | B48: =VLOOKUP(A48,'Locations & Types'!$E:$F,2,FALSE) -> GDN (EA) | C48: 0 | D48: 0 | E48: 0 | F48: 0
A49: Careston | B49: =VLOOKUP(A49,'Locations & Types'!$E:$F,2,FALSE) -> GDN (SC) | C49: 3851761 | D49: 3851761 | E49: 3576724 | F49: 1703351.507
A50: Carrington (Partington) Power Station | B50: =VLOOKUP(A50,'Locations & Types'!$E:$F,2,FALSE) -> DC | C50: 45000000 | D50: 45000000 | E50: 11342739.73 | F50: 21149992.33
A51: Caythorpe | B51: =VLOOKUP(A51,'Locations & Types'!$E:$F,2,FALSE) -> STORAGE SITE | C51: 75000000 | D51: 75000000 | E51: 0 | F51: 0
A52: Centrax Industrial | B52: =VLOOKUP(A52,'Locations & Types'!$E:$F,2,FALSE) -> DC | C52: 85000 | D52: 85000 | E52: 87465.75342 | F52: 19739.72603
A53: Cirencester | B53: =VLOOKUP(A53,'Locations & Types'!$E:$F,2,FALSE) -> GDN (SW) | C53: 8970000 | D53: 8970000 | E53: 7743399 | F53: 1840110.137
A54: Cockenzie Power Station | B54: =VLOOKUP(A54,'Locations & Types'!$E:$F,2,FALSE) -> DC | C54: 0 | D54: 0 | E54: 0 | F54: 0
A55: Coffinswell | B55: =VLOOKUP(A55,'Locations & Types'!$E:$F,2,FALSE) -> GDN (SW) | C55: 5150000 | D55: 5150000 | E55: 4830571 | F55: 1133771.507
A56: Coldstream | B56: =VLOOKUP(A56,'Locations & Types'!$E:$F,2,FALSE) -> GDN (NO) | C56: 2848927 | D56: 2455026 | E56: 2848927 | F56: 357858.6301
A57: Corbridge | B57: =VLOOKUP(A57,'Locations & Types'!$E:$F,2,FALSE) -> GDN (NO) | C57: 166692 | D57: 166692 | E57: 166692 | F57: 9837309.041
A58: Coryton 2 (Thames Haven) Power Station | B58: =VLOOKUP(A58,'Locations & Types'!$E:$F,2,FALSE) -> DC | C58: 0 | D58: 0 | E58: 0 | F58: 22694976.99
A59: Cowpen Bewley | B59: =VLOOKUP(A59,'Locations & Types'!$E:$F,2,FALSE) -> GDN (NO) | C59: 52120008 | D59: 52120000 | E59: 35635800 | F59: 27841060.27
A60: Crawley Down | B60: =VLOOKUP(A60,'Locations & Types'!$E:$F,2,FALSE) -> GDN (SO) | C60: 0 | D60: 0 | E60: 0 | F60: 0
A61: Deborah Storage (Bacton) | B61: =VLOOKUP(A61,'Locations & Types'!$E:$F,2,FALSE) -> STORAGE SITE | C61: 0 | D61: 0 | E61: 0 | F61: 0
A62: Deeside | B62: =VLOOKUP(A62,'Locations & Types'!$E:$F,2,FALSE) -> DC | C62: 28480000 | D62: 28480000 | E62: 22467945.21 | F62: 3702964.658
A63: Didcot | B63: =VLOOKUP(A63,'Locations & Types'!$E:$F,2,FALSE) -> DC | C63: 137760000 | D63: 137760000 | E63: 75452054.79 | F63: 36315291.51
A64: Dowlais | B64: =VLOOKUP(A64,'Locations & Types'!$E:$F,2,FALSE) -> GDN (WS) | C64: 105977456 | D64: 105977456 | E64: 94743289 | F64: 33411415.07
A65: Drakelow Power Station | B65: =VLOOKUP(A65,'Locations & Types'!$E:$F,2,FALSE) -> DC | C65: 0 | D65: 0 | E65: 0 | F65: 0
A66: Drointon | B66: =VLOOKUP(A66,'Locations & Types'!$E:$F,2,FALSE) -> GDN (EM) | C66: 74272791 | D66: 74270000 | E66: 60805329.36 | F66: 24882241.1
A67: Drum | B67: =VLOOKUP(A67,'Locations & Types'!$E:$F,2,FALSE) -> GDN (SC) | C67: 82525354 | D67: 82525354 | E67: 66956781 | F67: 17074329.59
A68: Dyffryn Clydach | B68: =VLOOKUP(A68,'Locations & Types'!$E:$F,2,FALSE) -> GDN (WS) | C68: 40231974 | D68: 40231974 | E68: 40231974 | F68: 8670474.247
A69: Dynevor Max Refill | B69: =VLOOKUP(A69,'Locations & Types'!$E:$F,2,FALSE) -> STORAGE SITE | C69: 2610000 | D69: 2610000 | E69: 23931 | F69: 0
A70: Eastoft (Keadby Blackstart) | B70: =VLOOKUP(A70,'Locations & Types'!$E:$F,2,FALSE) -> DC | C70: 2380000 | D70: 2380000 | E70: 1457215 | F70: 10078932.33
A71: Eastoft (Keadby) | B71: =VLOOKUP(A71,'Locations & Types'!$E:$F,2,FALSE) -> DC | C71: 36060000 | D71: 36060000 | E71: 36060000 | F71: 0
A72: Easton Grey | B72: =VLOOKUP(A72,'Locations & Types'!$E:$F,2,FALSE) -> GDN (SW) | C72: 29600000 | D72: 29600000 | E72: 27391725 | F72: 3880124.932
A73: Ecclestone | B73: =VLOOKUP(A73,'Locations & Types'!$E:$F,2,FALSE) -> GDN (NW) | C73: 21140000 | D73: 21140000 | E73: 16370887 | F73: 13975337.26
A74: Elton | B74: =VLOOKUP(A74,'Locations & Types'!$E:$F,2,FALSE) -> GDN (NO) | C74: 60212185 | D74: 59583615 | E74: 60212185 | F74: 8542738.63
A75: Enron Billingham | B75: =VLOOKUP(A75,'Locations & Types'!$E:$F,2,FALSE) -> DC | C75: 121510000 | D75: 121510000 | E75: 2297677 | F75: 0
A76: Epping Green (Enfield Energy, aka Brimsdown) | B76: =VLOOKUP(A76,'Locations & Types'!$E:$F,2,FALSE) -> DC | C76: 19600000 | D76: 19600000 | E76: 19053424.66 | F76: 8689135.068
A77: Evesham | B77: =VLOOKUP(A77,'Locations & Types'!$E:$F,2,FALSE) -> GDN (SW) | C77: 6570000 | D77: 6570000 | E77: 5584329 | F77: 45485675.07
A78: Farningham | B78: =VLOOKUP(A78,'Locations & Types'!$E:$F,2,FALSE) -> GDN (SE) | C78: 135120000 | D78: 135120000 | E78: 133637105.6 | F78: 27264425.21
A79: Farningham B | B79: =VLOOKUP(A79,'Locations & Types'!$E:$F,2,FALSE) -> GDN (SE) | C79: 117883000 | D79: 117883000 | E79: 58225359 | F79: 8810303.836
A80: Ferny Knoll (AM Paper) | B80: =VLOOKUP(A80,'Locations & Types'!$E:$F,2,FALSE) -> DC | C80: 1080000 | D80: 1080000 | E80: 0 | F80: 0
A81: Fiddington | B81: =VLOOKUP(A81,'Locations & Types'!$E:$F,2,FALSE) -> GDN (SW) | C81: 25952278 | D81: 25952278 | E81: 22229864 | F81: 8521790.411
A82: Ganstead | B82: =VLOOKUP(A82,'Locations & Types'!$E:$F,2,FALSE) -> GDN (NE) | C82: 23150000 | D82: 23150000 | E82: 16864011 | F82: 23880059.73
A83: Garton Max Refill (Aldbrough) | B83: =VLOOKUP(A83,'Locations & Types'!$E:$F,2,FALSE) -> STORAGE SITE | C83: 325510001 | D83: 325510001 | E83: 335891616.4 | F83: 26591131.78
A84: Gilwern | B84: =VLOOKUP(A84,'Locations & Types'!$E:$F,2,FALSE) -> GDN (WS) | C84: 82680000 | D84: 82680000 | E84: 78188679 | F84: 53323223.29
A85: Glenmavis | B85: =VLOOKUP(A85,'Locations & Types'!$E:$F,2,FALSE) -> GDN (SC) | C85: 145790000 | D85: 145790000 | E85: 128262344 | F85: 18636230.14
A86: Glenmavis Max Refill | B86: =VLOOKUP(A86,'Locations & Types'!$E:$F,2,FALSE) -> STORAGE SITE | C86: 1620000 | D86: 1620000 | E86: 488720 | F86: 0
A87: Goole (Guardian Glass) | B87: =VLOOKUP(A87,'Locations & Types'!$E:$F,2,FALSE) -> DC | C87: 1620000 | D87: 1620000 | E87: 0 | F87: 1430087.397
A88: Gosberton | B88: =VLOOKUP(A88,'Locations & Types'!$E:$F,2,FALSE) -> GDN (EM) | C88: 15230000 | D88: 15230000 | E88: 12321120 | F88: 8230667.123
A89: Gowkhall (Longannet) | B89: =VLOOKUP(A89,'Locations & Types'!$E:$F,2,FALSE) -> DC | C89: 43320000 | D89: 43320000 | E89: 43320000 | F89: 92610.9589
A90: Grain Power Station | B90: =VLOOKUP(A90,'Locations & Types'!$E:$F,2,FALSE) -> DC | C90: 0 | D90: 0 | E90: 53594520.55 | F90: 36506748.77
A91: Great Wilbraham | B91: =VLOOKUP(A91,'Locations & Types'!$E:$F,2,FALSE) -> GDN (EA) | C91: 35590000 | D91: 35590000 | E91: 20622606 | F91: 3121531.781
A92: Guyzance | B92: =VLOOKUP(A92,'Locations & Types'!$E:$F,2,FALSE) -> GDN (NO) | C92: 2190000 | D92: 2190000 | E92: 1806988 | F92: 29186694.79
A93: Hardwick | B93: =VLOOKUP(A93,'Locations & Types'!$E:$F,2,FALSE) -> GDN (SO) | C93: 123699000 | D93: 123699000 | E93: 95134383 | F93: 20472030.68
A94: Harwarden (Shotton, aka Shotton Paper) | B94: =VLOOKUP(A94,'Locations & Types'!$E:$F,2,FALSE) -> DC | C94: 11590000 | D94: 11590000 | E94: 0 | F94: 0
A95: Hatfield Moor Max Refill | B95: =VLOOKUP(A95,'Locations & Types'!$E:$F,2,FALSE) -> STORAGE SITE | C95: 30210000 | D95: 30210000 | E95: 30210000 | F95: 3212542.466
A96: Hatfield Power Station | B96: =VLOOKUP(A96,'Locations & Types'!$E:$F,2,FALSE) -> DC | C96: 0 | D96: 0 | E96: 0 | F96: 9133444.658
A97: Hill Top Farm (Hole House Farm) | B97: =VLOOKUP(A97,'Locations & Types'!$E:$F,2,FALSE) -> STORAGE SITE | C97: 0 | D97: 0 | E97: 54493150.68 | F97: 4069156.164
A98: Hole House Max Refill | B98: =VLOOKUP(A98,'Locations & Types'!$E:$F,2,FALSE) -> STORAGE SITE | C98: 119580000 | D98: 119580000 | E98: 110327604.2 | F98: 7180733.699
A99: Holford | B99: =VLOOKUP(A99,'Locations & Types'!$E:$F,2,FALSE) -> STORAGE SITE | C99: 0 | D99: 0 | E99: 210094574.7 | F99: 35970943.29
A100: Hollingsgreen (Hays Chemicals) | B100: =VLOOKUP(A100,'Locations & Types'!$E:$F,2,FALSE) -> DC | C100: 3250000 | D100: 3250000 | E100: 2438748.737 | F100: 771943.8356
A101: Holmes Chapel | B101: =VLOOKUP(A101,'Locations & Types'!$E:$F,2,FALSE) -> GDN (NW) | C101: 22199592 | D101: 22199592 | E101: 18387106 | F101: 11444246.3
A102: Horndon | B102: =VLOOKUP(A102,'Locations & Types'!$E:$F,2,FALSE) -> GDN (NT) | C102: 46410000 | D102: 46410000 | E102: 43008039.97 | F102: 246499.4521
A103: Hornsea Max Refill | B103: =VLOOKUP(A103,'Locations & Types'!$E:$F,2,FALSE) -> STORAGE SITE | C103: 44789585 | D103: 44789585 | E103: 59866945.84 | F103: 5903555.342
A104: Humbleton | B104: =VLOOKUP(A104,'Locations & Types'!$E:$F,2,FALSE) -> GDN (NO) | C104: 250000 | D104: 250000 | E104: 250000 | F104: 378767.6712
A105: Hume | B105: =VLOOKUP(A105,'Locations & Types'!$E:$F,2,FALSE) -> GDN (SC) | C105: 1684385 | D105: 1684385 | E105: 1684385 | F105: 6006235.068
A106: Ilchester | B106: =VLOOKUP(A106,'Locations & Types'!$E:$F,2,FALSE) -> GDN (SW) | C106: 34960000 | D106: 34960000 | E106: 30242930 | F106: 1591058.082
A107: Ipsden | B107: =VLOOKUP(A107,'Locations & Types'!$E:$F,2,FALSE) -> GDN (SO) | C107: 12390000 | D107: 12390000 | E107: 9369284.904 | F107: 1893678.63
A108: Ipsden 2 | B108: =VLOOKUP(A108,'Locations & Types'!$E:$F,2,FALSE) -> GDN (SO) | C108: 15678000 | D108: 15678000 | E108: 11667297 | F108: 577921.9178
A109: Keld | B109: =VLOOKUP(A109,'Locations & Types'!$E:$F,2,FALSE) -> GDN (NO) | C109: 1890000 | D109: 1890000 | E109: 1424555 | F109: 5367104.932
A110: Kenn | B110: =VLOOKUP(A110,'Locations & Types'!$E:$F,2,FALSE) -> GDN (SW) | C110: 15430000 | D110: 15430000 | E110: 14000883 | F110: 4416020.822
A111: Kinknockie | B111: =VLOOKUP(A111,'Locations & Types'!$E:$F,2,FALSE) -> GDN (SC) | C111: 3068392 | D111: 3068392 | E111: 3068392 | F111: 544038.9041
A112: Kirkstead | B112: =VLOOKUP(A112,'Locations & Types'!$E:$F,2,FALSE) -> GDN (EM) | C112: 1210000 | D112: 1210000 | E112: 858703 | F112: 73995.34247
A113: Langage Power Station | B113: =VLOOKUP(A113,'Locations & Types'!$E:$F,2,FALSE) -> DC | C113: 41616008 | D113: 41616008 | E113: 42258904.11 | F113: 17822423.01
A114: Langholm | B114: =VLOOKUP(A114,'Locations & Types'!$E:$F,2,FALSE) -> GDN (SC) | C114: 249796 | D114: 249796 | E114: 155319 | F114: 106636.7123
A115: Lauderhill | B115: =VLOOKUP(A115,'Locations & Types'!$E:$F,2,FALSE) -> GDN (SC) | C115: 1790000 | D115: 1790000 | E115: 0 | F115: 0
A116: Leamington | B116: =VLOOKUP(A116,'Locations & Types'!$E:$F,2,FALSE) -> GDN (WM) | C116: 4260000 | D116: 4260000 | E116: 2586215 | F116: 346307.1233
A117: Little Burdon | B117: =VLOOKUP(A117,'Locations & Types'!$E:$F,2,FALSE) -> GDN (NO) | C117: 20919521 | D117: 17750000 | E117: 20919521 | F117: 7323161.096
A118: Littleton Drew | B118: =VLOOKUP(A118,'Locations & Types'!$E:$F,2,FALSE) -> GDN (SW) | C118: 2470000 | D118: 2470000 | E118: 2299463 | F118: 1767760.274
A119: Lockerbie | B119: =VLOOKUP(A119,'Locations & Types'!$E:$F,2,FALSE) -> GDN (SC) | C119: 7439745 | D119: 7439745 | E119: 6757111 | F119: 8188782.74
A120: Lower Quinton | B120: =VLOOKUP(A120,'Locations & Types'!$E:$F,2,FALSE) -> GDN (WM) | C120: 29910000 | D120: 29910000 | E120: 26684207 | F120: 2689132.329
A121: Lupton | B121: =VLOOKUP(A121,'Locations & Types'!$E:$F,2,FALSE) -> GDN (NW) | C121: 19815980 | D121: 16230000 | E121: 15464650 | F121: 25265481.1
A122: Luxborough Lane | B122: =VLOOKUP(A122,'Locations & Types'!$E:$F,2,FALSE) -> GDN (NT) | C122: 165300000 | D122: 165300000 | E122: 76147689 | F122: 17360498.36
A123: Lyneham (Choakford) | B123: =VLOOKUP(A123,'Locations & Types'!$E:$F,2,FALSE) -> GDN (SW) | C123: 50300000 | D123: 50300000 | E123: 40420636 | F123: 0
A124: Maelor | B124: =VLOOKUP(A124,'Locations & Types'!$E:$F,2,FALSE) -> GDN (WN) | C124: 57560000 | D124: 57560000 | E124: 49258990 | F124: 5945692.877
A125: Malpas | B125: =VLOOKUP(A125,'Locations & Types'!$E:$F,2,FALSE) -> GDN (NW) | C125: 990000 | D125: 990000 | E125: 685222 | F125: 9142425.479
A126: Mappowder | B126: =VLOOKUP(A126,'Locations & Types'!$E:$F,2,FALSE) -> GDN (SO) | C126: 47680000 | D126: 47680000 | E126: 36407083 | F126: 19618955.07
A127: Marchwood Power Station | B127: =VLOOKUP(A127,'Locations & Types'!$E:$F,2,FALSE) -> DC | C127: 39840000 | D127: 39840000 | E127: 47696807.02 | F127: 28886536.44
A128: Market Harborough | B128: =VLOOKUP(A128,'Locations & Types'!$E:$F,2,FALSE) -> GDN (EM) | C128: 9480000 | D128: 9480000 | E128: 6965982 | F128: 62241.91781
A129: Matching Green | B129: =VLOOKUP(A129,'Locations & Types'!$E:$F,2,FALSE) -> GDN (EA) | C129: 92341877 | D129: 92341877 | E129: 57949003.03 | F129: 7128843.836
A130: Medway (aka Isle of Grain Power Station, NOT Grain Power) | B130: =VLOOKUP(A130,'Locations & Types'!$E:$F,2,FALSE) -> DC | C130: 38120000 | D130: 38120000 | E130: 36047733 | F130: 12681354.52
A131: Melkinthorpe | B131: =VLOOKUP(A131,'Locations & Types'!$E:$F,2,FALSE) -> GDN (NO) | C131: 2432914 | D131: 1990565 | E131: 2432914 | F131: 8057156.438
A132: Mickle Trafford | B132: =VLOOKUP(A132,'Locations & Types'!$E:$F,2,FALSE) -> GDN (NW) | C132: 29209411 | D132: 29209411 | E132: 29209411 | F132: 9793474.795
A133: Middle Stoke (Damhead Creek, aka Kingsnorth Power Station) | B133: =VLOOKUP(A133,'Locations & Types'!$E:$F,2,FALSE) -> DC | C133: 40940000 | D133: 95336184 | E133: 95336184 | F133: 28264656.71
A134: Milwich | B134: =VLOOKUP(A134,'Locations & Types'!$E:$F,2,FALSE) -> GDN (WM) | C134: 21635242 | D134: 21635242 | E134: 18949988 | F134: 3291787.671
A135: Moffat (Irish Interconnector) | B135: =VLOOKUP(A135,'Locations & Types'!$E:$F,2,FALSE) -> INTERCONNECTOR | C135: 530089918 | D135: 529210705 | E135: 223318206.9 | F135: 98632422.19
A136: Netherhowcleugh | B136: =VLOOKUP(A136,'Locations & Types'!$E:$F,2,FALSE) -> GDN (SC) | C136: 322112 | D136: 222112 | E136: 322112 | F136: 35830453.7
A137: Pannal | B137: =VLOOKUP(A137,'Locations & Types'!$E:$F,2,FALSE) -> GDN (NE) | C137: 148410000 | D137: 148410000 | E137: 127560152 | F137: 23964563.84
A138: Partington | B138: =VLOOKUP(A138,'Locations & Types'!$E:$F,2,FALSE) -> GDN (NW) | C138: 87630000 | D138: 87630000 | E138: 54702858 | F138: 10040938.63
A139: Partington Max Refill | B139: =VLOOKUP(A139,'Locations & Types'!$E:$F,2,FALSE) -> STORAGE SITE | C139: 2410000 | D139: 2410000 | E139: 0 | F139: 0
A140: Paull | B140: =VLOOKUP(A140,'Locations & Types'!$E:$F,2,FALSE) -> GDN (NE) | C140: 46858561 | D140: 42637979 | E140: 46858561 | F140: 10475073.97
A141: Pembroke Power Station | B141: =VLOOKUP(A141,'Locations & Types'!$E:$F,2,FALSE) -> DC | C141: 121200056 | D141: 110200056 | E141: 125391780.8 | F141: 80151207.67
A142: Peterborough (Peterborough Power Station) | B142: =VLOOKUP(A142,'Locations & Types'!$E:$F,2,FALSE) -> DC | C142: 23280000 | D142: 23280000 | E142: 12860273.97 | F142: 362728.7671
A143: Peterborough Eye (Tee) | B143: =VLOOKUP(A143,'Locations & Types'!$E:$F,2,FALSE) -> GDN (EA) | C143: 25450000 | D143: 25450000 | E143: 20423482 | F143: 32758988.49
A144: Peters Green | B144: =VLOOKUP(A144,'Locations & Types'!$E:$F,2,FALSE) -> GDN (NT) | C144: 151860000 | D144: 151860000 | E144: 111963144 | F144: 58700710.41
A145: Peters Green South Mimms | B145: =VLOOKUP(A145,'Locations & Types'!$E:$F,2,FALSE) -> GDN (NT) | C145: 197176511 | D145: 197176511 | E145: 164876045 | F145: 19121806.3
A146: Phillips Petroleum, Teesside | B146: =VLOOKUP(A146,'Locations & Types'!$E:$F,2,FALSE) -> DC | C146: 3690000 | D146: 3690000 | E146: 4528356.164 | F146: 220744.3836
A147: Pickering | B147: =VLOOKUP(A147,'Locations & Types'!$E:$F,2,FALSE) -> GDN (NE) | C147: 9380000 | D147: 9380000 | E147: 8379084 | F147: 1200485.753
A148: Pickmere (Winnington Power, aka Brunner Mond) | B148: =VLOOKUP(A148,'Locations & Types'!$E:$F,2,FALSE) -> DC | C148: 15380000 | D148: 15380000 | E148: 8000000 | F148: 5459134.247
A149: Pitcairngreen | B149: =VLOOKUP(A149,'Locations & Types'!$E:$F,2,FALSE) -> GDN (SC) | C149: 1915791 | D149: 1915791 | E149: 3185654.014 | F149: 6652185.205
A150: Pucklechurch | B150: =VLOOKUP(A150,'Locations & Types'!$E:$F,2,FALSE) -> GDN (SW) | C150: 25794765 | D150: 25794765 | E150: 22688355 | F150: 2082287.945
A151: Rawcliffe | B151: =VLOOKUP(A151,'Locations & Types'!$E:$F,2,FALSE) -> GDN (NE) | C151: 5046154 | D151: 3953802 | E151: 5046154 | F151: 1596003.562
A152: Rollswood Kintore | B152: =VLOOKUP(A152,'Locations & Types'!$E:$F,2,FALSE) -> DC | C152: 0 | D152: 0 | E152: 0 | F152: 0
A153: Roosecote Power Station (Barrow) | B153: =VLOOKUP(A153,'Locations & Types'!$E:$F,2,FALSE) -> DC | C153: 14730000 | D153: 14730000 | E153: 0 | F153: 0
A154: Rosehill (Saltend Power Station) | B154: =VLOOKUP(A154,'Locations & Types'!$E:$F,2,FALSE) -> DC | C154: 57830000 | D154: 57830000 | E154: 57830000 | F154: 44186722.74
A155: Ross (SW) | B155: =VLOOKUP(A155,'Locations & Types'!$E:$F,2,FALSE) -> GDN (SW) | C155: 4530000 | D155: 4530000 | E155: 4023357 | F155: 4297064.11
A156: Ross (WM) | B156: =VLOOKUP(A156,'Locations & Types'!$E:$F,2,FALSE) -> GDN (WM) | C156: 16520000 | D156: 16520000 | E156: 10023883.36 | F156: 21188302.47
A157: Roudham Heath | B157: =VLOOKUP(A157,'Locations & Types'!$E:$F,2,FALSE) -> GDN (EA) | C157: 25472176 | D157: 25472176 | E157: 16281005 | F157: 3779307.671
A158: Rough Max Refill | B158: =VLOOKUP(A158,'Locations & Types'!$E:$F,2,FALSE) -> STORAGE SITE | C158: 370479121 | D158: 370479121 | E158: 368609643.6 | F158: 25972353.15
A159: Royston | B159: =VLOOKUP(A159,'Locations & Types'!$E:$F,2,FALSE) -> GDN (EA) | C159: 2700000 | D159: 2700000 | E159: 2367780 | F159: 23071315.62
A160: Rugby | B160: =VLOOKUP(A160,'Locations & Types'!$E:$F,2,FALSE) -> GDN (WM) | C160: 80080000 | D160: 80080000 | E160: 63016793 | F160: 24026184.93
A161: Ryehouse | B161: =VLOOKUP(A161,'Locations & Types'!$E:$F,2,FALSE) -> DC | C161: 38660000 | D161: 38660000 | E161: 38660000 | F161: 6797948.767
A162: Saddle Bow (Kings Lynn) | B162: =VLOOKUP(A162,'Locations & Types'!$E:$F,2,FALSE) -> DC | C162: 17980000 | D162: 17980000 | E162: 14500000 | F162: 36.16438356
A163: Saltend BPHP (BP Saltend HP) | B163: =VLOOKUP(A163,'Locations & Types'!$E:$F,2,FALSE) -> DC | C163: 9100000 | D163: 9100000 | E163: 9055895 | F163: 4218056.986
A164: Saltfleetby Storage (Theddlethorpe) | B164: =VLOOKUP(A164,'Locations & Types'!$E:$F,2,FALSE) -> STORAGE SITE | C164: 0 | D164: 0 | E164: 0 | F164: 0
A165: Saltwick Pressure Controlled | B165: =VLOOKUP(A165,'Locations & Types'!$E:$F,2,FALSE) -> GDN (NO) | C165: 9220000 | D165: 9220000 | E165: 5673152 | F165: 4276317.808
A166: Saltwick Volumetric Controlled | B166: =VLOOKUP(A166,'Locations & Types'!$E:$F,2,FALSE) -> GDN (NO) | C166: 69070000 | D166: 69070000 | E166: 39749273 | F166: 21776148.49
A167: Samlesbury | B167: =VLOOKUP(A167,'Locations & Types'!$E:$F,2,FALSE) -> GDN (NW) | C167: 110990000 | D167: 110990000 | E167: 99858652 | F167: 16708984.93
A168: Sandy Lane (Blackburn CHP, aka Sappi Paper Mill) | B168: =VLOOKUP(A168,'Locations & Types'!$E:$F,2,FALSE) -> DC | C168: 4550000 | D168: 4550000 | E168: 3433103 | F168: 271293.1507
A169: Seabank (DN) | B169: =VLOOKUP(A169,'Locations & Types'!$E:$F,2,FALSE) -> GDN (SW) | C169: 60740000 | D169: 60740000 | E169: 50999376 | F169: 7038303.288
A170: Seabank (Seabank Power Station phase II) | B170: =VLOOKUP(A170,'Locations & Types'!$E:$F,2,FALSE) -> DC | C170: 19100000 | D170: 19100000 | E170: 26727896.9 | F170: 3236073.425
A171: Seal Sands TGPP | B171: =VLOOKUP(A171,'Locations & Types'!$E:$F,2,FALSE) -> DC | C171: 0 | D171: 0 | E171: 0 | F171: 0
A172: Sellafield Power Station | B172: =VLOOKUP(A172,'Locations & Types'!$E:$F,2,FALSE) -> DC | C172: 12350000 | D172: 12350000 | E172: 12349999 | F172: 5835930.959
A173: Shellstar (aka Kemira, not Kemira CHP) | B173: =VLOOKUP(A173,'Locations & Types'!$E:$F,2,FALSE) -> DC | C173: 16240000 | D173: 16240000 | E173: 11732444 | F173: 0
A174: Shorne | B174: =VLOOKUP(A174,'Locations & Types'!$E:$F,2,FALSE) -> GDN (SE) | C174: 67060000 | D174: 67060000 | E174: 48279307 | F174: 29938.08219
A175: Shotwick (Bridgewater Paper) | B175: =VLOOKUP(A175,'Locations & Types'!$E:$F,2,FALSE) -> DC | C175: 5520000 | D175: 5520000 | E175: 3820705.279 | F175: 135327.1233
A176: Shustoke | B176: =VLOOKUP(A176,'Locations & Types'!$E:$F,2,FALSE) -> GDN (WM) | C176: 44760000 | D176: 44760000 | E176: 2793603.211 | F176: 566680.8219
A177: Silk Willoughby | B177: =VLOOKUP(A177,'Locations & Types'!$E:$F,2,FALSE) -> GDN (EM) | C177: 3530000 | D177: 3530000 | E177: 2203090 | F177: 1916709.315
A178: Soutra | B178: =VLOOKUP(A178,'Locations & Types'!$E:$F,2,FALSE) -> GDN (SC) | C178: 10726995 | D178: 10726995 | E178: 10726995 | F178: 695890.137
A179: Spalding 2 (South Holland) Power Station | B179: =VLOOKUP(A179,'Locations & Types'!$E:$F,2,FALSE) -> DC | C179: 0 | D179: 0 | E179: 0 | F179: 0
A180: St Fergus | B180: =VLOOKUP(A180,'Locations & Types'!$E:$F,2,FALSE) -> GDN (SC) | C180: 1058074 | D180: 1058074 | E180: 1093487.058 | F180: 1133201.918
A181: St. Fergus (Peterhead) | B181: =VLOOKUP(A181,'Locations & Types'!$E:$F,2,FALSE) -> DC | C181: 108300000 | D181: 108300000 | E181: 73267750 | F181: 7745395.342
A182: St. Fergus (Shell Blackstart) | B182: =VLOOKUP(A182,'Locations & Types'!$E:$F,2,FALSE) -> DC | C182: 2583336 | D182: 2583336 | E182: 2584138.934 | F182: 0
A183: St. Neots (Little Barford) | B183: =VLOOKUP(A183,'Locations & Types'!$E:$F,2,FALSE) -> DC | C183: 35200000 | D183: 35200000 | E183: 30576190.68 | F183: 22259277.53
A184: Stallingborough | B184: =VLOOKUP(A184,'Locations & Types'!$E:$F,2,FALSE) -> DC | C184: 68012169 | D184: 68012169 | E184: 59650684.93 | F184: 13466139.73
A185: Stanford Le Hope (Coryton) | B185: =VLOOKUP(A185,'Locations & Types'!$E:$F,2,FALSE) -> DC | C185: 38600000 | D185: 38600000 | E185: 32360547.95 | F185: 0
A186: Staythorpe | B186: =VLOOKUP(A186,'Locations & Types'!$E:$F,2,FALSE) -> DC | C186: 82000000 | D186: 82000000 | E186: 70421917.81 | F186: 52735856.44
A187: Stranraer | B187: =VLOOKUP(A187,'Locations & Types'!$E:$F,2,FALSE) -> GDN (SC) | C187: 930433 | D187: 930433 | E187: 742435 | F187: 0
A188: Stratford-upon-Avon | B188: =VLOOKUP(A188,'Locations & Types'!$E:$F,2,FALSE) -> GDN (WM) | C188: 4680000 | D188: 4680000 | E188: 3735040 | F188: 655428.2192
A189: Stublach (Cheshire) | B189: =VLOOKUP(A189,'Locations & Types'!$E:$F,2,FALSE) -> STORAGE SITE | C189: 0 | D189: 0 | E189: 342676080.9 | F189: 16340445.75
A190: Sutton Bridge | B190: =VLOOKUP(A190,'Locations & Types'!$E:$F,2,FALSE) -> GDN (EM) | C190: 1710546 | D190: 1710546 | E190: 1079269 | F190: 38075336.71
A191: Sutton Bridge Power Station | B191: =VLOOKUP(A191,'Locations & Types'!$E:$F,2,FALSE) -> DC | C191: 37470000 | D191: 37470000 | E191: 37480397.26 | F191: 15243287.67
A192: Tatsfield | B192: =VLOOKUP(A192,'Locations & Types'!$E:$F,2,FALSE) -> GDN (SE) | C192: 221742083 | D192: 221742083 | E192: 192774633 | F192: 35058627.4
A193: Teesside (BASF, aka BASF Teesside) | B193: =VLOOKUP(A193,'Locations & Types'!$E:$F,2,FALSE) -> DC | C193: 9750000 | D193: 9750000 | E193: 10588356.16 | F193: 4528335.342
A194: Teesside Hydrogen | B194: =VLOOKUP(A194,'Locations & Types'!$E:$F,2,FALSE) -> DC | C194: 13277455 | D194: 13277455 | E194: 13276800 | F194: 4072028.219
A195: Terra Nitrogen (aka ICI, Terra Severnside) | B195: =VLOOKUP(A195,'Locations & Types'!$E:$F,2,FALSE) -> DC | C195: 13100000 | D195: 13100000 | E195: 0 | F195: 0
A196: Thornton Curtis (DN) | B196: =VLOOKUP(A196,'Locations & Types'!$E:$F,2,FALSE) -> GDN (EM) | C196: 118190411 | D196: 118150000 | E196: 95532642 | F196: 18644599.18
A197: Thornton Curtis (Humber Refinery, aka Immingham) | B197: =VLOOKUP(A197,'Locations & Types'!$E:$F,2,FALSE) -> DC | C197: 67000000 | D197: 67000000 | E197: 67000000 | F197: 49242931.51
A198: Thornton Curtis (Killingholme) | B198: =VLOOKUP(A198,'Locations & Types'!$E:$F,2,FALSE) -> DC | C198: 91000001 | D198: 91000001 | E198: 23898630.14 | F198: 7427878.082
A199: Thrintoft | B199: =VLOOKUP(A199,'Locations & Types'!$E:$F,2,FALSE) -> GDN (NO) | C199: 6921484 | D199: 5578881 | E199: 6921484 | F199: 756326.8493
A200: Tilbury Power Station | B200: =VLOOKUP(A200,'Locations & Types'!$E:$F,2,FALSE) -> DC | C200: 0 | D200: 0 | E200: 0 | F200: 0
... 23 more rows

Sheet 19-20 FCC - Exit (hidden)
A1: Exit Point | B1: Exit Point Type | C1: Obligated Exit Capacity | D1: Non-Incremental Obligated Exit Capacity | E1: Historical Sold Exit Capacity Levels | F1: Historical Exit Flow Levels
C2: (kWh/d) | D2: (kWh/d) | E2: (kWh/d) | F2: (kWh/d)
A3: Aberdeen | B3: =VLOOKUP(A3,'Locations & Types'!$E:$F,2,FALSE) -> GDN (SC) | C3: 23536855 | D3: 23536855 | E3: 21639348 | F3: 7628906.849
A4: Abson (Seabank Power Station phase I) | B4: =VLOOKUP(A4,'Locations & Types'!$E:$F,2,FALSE) -> DC | C4: 36590000 | D4: 36590000 | E4: 54842243.05 | F4: 19890790.68
A5: Alrewas (EM) | B5: =VLOOKUP(A5,'Locations & Types'!$E:$F,2,FALSE) -> GDN (EM) | C5: 139912893 | D5: 139912893 | E5: 67834101 | F5: 23670945.21
A6: Alrewas (WM) | B6: =VLOOKUP(A6,'Locations & Types'!$E:$F,2,FALSE) -> GDN (WM) | C6: 128480000 | D6: 128480000 | E6: 72669637 | F6: 15030791.78
A7: Apache (Sage Black Start) | B7: =VLOOKUP(A7,'Locations & Types'!$E:$F,2,FALSE) -> DC | C7: 0 | D7: 0 | E7: 0 | F7: 0
A8: Armadale | B8: =VLOOKUP(A8,'Locations & Types'!$E:$F,2,FALSE) -> GDN (SC) | C8: 16011750 | D8: 16011750 | E8: 7519525 | F8: 1900640.274
A9: Aspley | B9: =VLOOKUP(A9,'Locations & Types'!$E:$F,2,FALSE) -> GDN (WM) | C9: 84650000 | D9: 84650000 | E9: 50992393 | F9: 30855518.36
A10: Asselby | B10: =VLOOKUP(A10,'Locations & Types'!$E:$F,2,FALSE) -> GDN (NE) | C10: 4586470 | D10: 4310531 | E10: 4586470 | F10: 1556096.164
A11: Audley (NW) | B11: =VLOOKUP(A11,'Locations & Types'!$E:$F,2,FALSE) -> GDN (NW) | C11: 12140000 | D11: 12140000 | E11: 8037574 | F11: 3263868.767
A12: Audley (WM) | B12: =VLOOKUP(A12,'Locations & Types'!$E:$F,2,FALSE) -> GDN (WM) | C12: 21830000 | D12: 21830000 | E12: 15330890 | F12: 165777.5342
A13: Austrey | B13: =VLOOKUP(A13,'Locations & Types'!$E:$F,2,FALSE) -> GDN (WM) | C13: 87835508 | D13: 87835508 | E13: 59601211 | F13: 18256115.34
A14: Avonmouth Max Refill | B14: =VLOOKUP(A14,'Locations & Types'!$E:$F,2,FALSE) -> STORAGE SITE | C14: 2300000 | D14: 2300000 | E14: 1070290.74 | F14: 183.8356164
A15: Aylesbeare | B15: =VLOOKUP(A15,'Locations & Types'!$E:$F,2,FALSE) -> GDN (SW) | C15: 22680000 | D15: 22680000 | E15: 19128874 | F15: 6191683.014
A16: Bacton | B16: =VLOOKUP(A16,'Locations & Types'!$E:$F,2,FALSE) -> GDN (EA) | C16: 3660000 | D16: 3660000 | E16: 2472724 | F16: 187210054.8
A17: Bacton (Baird) | B17: =VLOOKUP(A17,'Locations & Types'!$E:$F,2,FALSE) -> STORAGE SITE | C17: 0 | D17: 0 | E17: 0 | F17: 0
A18: Bacton (BBL) | B18: =VLOOKUP(A18,'Locations & Types'!$E:$F,2,FALSE) -> INTERCONNECTOR | C18: 0 | D18: 0 | E18: 94149369.86 | F18: 1018.630137
A19: Bacton (Great Yarmouth) | B19: =VLOOKUP(A19,'Locations & Types'!$E:$F,2,FALSE) -> DC | C19: 20040000 | D19: 20040000 | E19: 23544055.64 | F19: 12451602.19
A20: Bacton (IUK) | B20: =VLOOKUP(A20,'Locations & Types'!$E:$F,2,FALSE) -> INTERCONNECTOR | C20: 651676940 | D20: 651676940 | E20: 491724443.7 | F20: 0
A21: Baldersby | B21: =VLOOKUP(A21,'Locations & Types'!$E:$F,2,FALSE) -> GDN (NE) | C21: 1340000 | D21: 1340000 | E21: 1126642 | F21: 484355.6164
A22: Balgray | B22: =VLOOKUP(A22,'Locations & Types'!$E:$F,2,FALSE) -> GDN (SC) | C22: 15723362 | D22: 15723362 | E22: 14957981 | F22: 5016358.63
A23: Barking (Horndon) | B23: =VLOOKUP(A23,'Locations & Types'!$E:$F,2,FALSE) -> DC | C23: 58590000 | D23: 58590000 | E23: 0 | F23: 0
A24: Barrow (Bains) | B24: =VLOOKUP(A24,'Locations & Types'!$E:$F,2,FALSE) -> STORAGE SITE | C24: 0 | D24: 0 | E24: 0 | F24: 0
A25: Barrow (Black Start) | B25: =VLOOKUP(A25,'Locations & Types'!$E:$F,2,FALSE) -> DC | C25: 1000000 | D25: 1000000 | E25: 1000000 | F25: 0
A26: Barrow (Gateway) | B26: =VLOOKUP(A26,'Locations & Types'!$E:$F,2,FALSE) -> STORAGE SITE | C26: 0 | D26: 0 | E26: 0 | F26: 0
A27: Barton Stacey Max Refill (Humbly Grove) | B27: =VLOOKUP(A27,'Locations & Types'!$E:$F,2,FALSE) -> STORAGE SITE | C27: 100940000 | D27: 100940000 | E27: 82739726.03 | F27: 10634185.21
A28: Bathgate | B28: =VLOOKUP(A28,'Locations & Types'!$E:$F,2,FALSE) -> GDN (SC) | C28: 24176039 | D28: 24176039 | E28: 21081766 | F28: 7883046.027
A29: Billingham ICI (Terra Billingham) | B29: =VLOOKUP(A29,'Locations & Types'!$E:$F,2,FALSE) -> DC | C29: 43540000 | D29: 36881691 | E29: 33644543 | F29: 15595417.26
A30: Bishop Auckland | B30: =VLOOKUP(A30,'Locations & Types'!$E:$F,2,FALSE) -> GDN (NO) | C30: 62130000 | D30: 62130000 | E30: 52568615 | F30: 22932016.44
A31: Bishop Auckland (test facility) | B31: =VLOOKUP(A31,'Locations & Types'!$E:$F,2,FALSE) -> DC | C31: 0 | D31: 0 | E31: 0 | F31: 1022578.082
A32: Blaby | B32: =VLOOKUP(A32,'Locations & Types'!$E:$F,2,FALSE) -> GDN (EM) | C32: 13400271 | D32: 13400271 | E32: 9867513 | F32: 6249039.726
A33: Blackness (BP Grangemouth) | B33: =VLOOKUP(A33,'Locations & Types'!$E:$F,2,FALSE) -> DC | C33: 27290000 | D33: 27290000 | E33: 27290000 | F33: 16366026.03
A34: Blackrod | B34: =VLOOKUP(A34,'Locations & Types'!$E:$F,2,FALSE) -> GDN (NW) | C34: 166545212 | D34: 166545212 | E34: 123939267 | F34: 45674320.55
A35: Blyborough | B35: =VLOOKUP(A35,'Locations & Types'!$E:$F,2,FALSE) -> GDN (EM) | C35: 79330000 | D35: 79330000 | E35: 56288103 | F35: 10867448.49
A36: Blyborough (Brigg) | B36: =VLOOKUP(A36,'Locations & Types'!$E:$F,2,FALSE) -> DC | C36: 16890000 | D36: 16890000 | E36: 10238356.16 | F36: 234233.6986
A37: Blyborough (Cottam) | B37: =VLOOKUP(A37,'Locations & Types'!$E:$F,2,FALSE) -> DC | C37: 19300000 | D37: 19300000 | E37: 18364383.56 | F37: 12385403.29
A38: Braishfield A | B38: =VLOOKUP(A38,'Locations & Types'!$E:$F,2,FALSE) -> GDN (SO) | C38: 107280000 | D38: 107280000 | E38: 61600632 | F38: 29091413.7
A39: Braishfield B | B39: =VLOOKUP(A39,'Locations & Types'!$E:$F,2,FALSE) -> GDN (SO) | C39: 58866000 | D39: 58866000 | E39: 57139307 | F39: 18894458.9
A40: Brine Field (Teesside) Power Station | B40: =VLOOKUP(A40,'Locations & Types'!$E:$F,2,FALSE) -> DC | C40: 0 | D40: 0 | E40: 0 | F40: 18376256.44
A41: Brisley | B41: =VLOOKUP(A41,'Locations & Types'!$E:$F,2,FALSE) -> GDN (EA) | C41: 3110000 | D41: 3110000 | E41: 2295523 | F41: 981724.3836
A42: Broxburn | B42: =VLOOKUP(A42,'Locations & Types'!$E:$F,2,FALSE) -> GDN (SC) | C42: 60444108 | D42: 60444108 | E42: 56250554 | F42: 19367067.12
A43: Burley Bank | B43: =VLOOKUP(A43,'Locations & Types'!$E:$F,2,FALSE) -> GDN (NE) | C43: 20310000 | D43: 20310000 | E43: 14453143 | F43: 7737758.63
A44: Burnhervie | B44: =VLOOKUP(A44,'Locations & Types'!$E:$F,2,FALSE) -> GDN (SC) | C44: 22380000 | D44: 22380000 | E44: 20624435 | F44: 9981400
A45: Burton Point (Connahs Quay) | B45: =VLOOKUP(A45,'Locations & Types'!$E:$F,2,FALSE) -> DC | C45: 73210000 | D45: 73210000 | E45: 60361643.84 | F45: 0
A46: Caldecott | B46: =VLOOKUP(A46,'Locations & Types'!$E:$F,2,FALSE) -> GDN (EM) | C46: 11080000 | D46: 11080000 | E46: 8977861 | F46: 3821198.082
A47: Caldecott (Corby Power Station) | B47: =VLOOKUP(A47,'Locations & Types'!$E:$F,2,FALSE) -> DC | C47: 21120000 | D47: 21120000 | E47: 5318910.17 | F47: 129917.5342
A48: Cambridge | B48: =VLOOKUP(A48,'Locations & Types'!$E:$F,2,FALSE) -> GDN (EA) | C48: 0 | D48: 0 | E48: 0 | F48: 0
A49: Careston | B49: =VLOOKUP(A49,'Locations & Types'!$E:$F,2,FALSE) -> GDN (SC) | C49: 3851761 | D49: 3851761 | E49: 3576724 | F49: 1703351.507
A50: Carrington (Partington) Power Station | B50: =VLOOKUP(A50,'Locations & Types'!$E:$F,2,FALSE) -> DC | C50: 45000000 | D50: 45000000 | E50: 11342739.73 | F50: 21149992.33
A51: Caythorpe | B51: =VLOOKUP(A51,'Locations & Types'!$E:$F,2,FALSE) -> STORAGE SITE | C51: 75000000 | D51: 75000000 | E51: 0 | F51: 0
A52: Centrax Industrial | B52: =VLOOKUP(A52,'Locations & Types'!$E:$F,2,FALSE) -> DC | C52: 85000 | D52: 85000 | E52: 87465.75342 | F52: 19739.72603
A53: Cirencester | B53: =VLOOKUP(A53,'Locations & Types'!$E:$F,2,FALSE) -> GDN (SW) | C53: 8970000 | D53: 8970000 | E53: 7743399 | F53: 1840110.137
A54: Cockenzie Power Station | B54: =VLOOKUP(A54,'Locations & Types'!$E:$F,2,FALSE) -> DC | C54: 0 | D54: 0 | E54: 0 | F54: 0
A55: Coffinswell | B55: =VLOOKUP(A55,'Locations & Types'!$E:$F,2,FALSE) -> GDN (SW) | C55: 5150000 | D55: 5150000 | E55: 4830571 | F55: 1133771.507
A56: Coldstream | B56: =VLOOKUP(A56,'Locations & Types'!$E:$F,2,FALSE) -> GDN (NO) | C56: 2848927 | D56: 2642415 | E56: 2848927 | F56: 357858.6301
A57: Corbridge | B57: =VLOOKUP(A57,'Locations & Types'!$E:$F,2,FALSE) -> GDN (NO) | C57: 166692 | D57: 166692 | E57: 166692 | F57: 9837309.041
A58: Coryton 2 (Thames Haven) Power Station | B58: =VLOOKUP(A58,'Locations & Types'!$E:$F,2,FALSE) -> DC | C58: 0 | D58: 0 | E58: 0 | F58: 22694976.99
A59: Cowpen Bewley | B59: =VLOOKUP(A59,'Locations & Types'!$E:$F,2,FALSE) -> GDN (NO) | C59: 52120008 | D59: 52120000 | E59: 35635800 | F59: 27841060.27
A60: Crawley Down | B60: =VLOOKUP(A60,'Locations & Types'!$E:$F,2,FALSE) -> GDN (SO) | C60: 0 | D60: 0 | E60: 0 | F60: 0
A61: Deborah Storage (Bacton) | B61: =VLOOKUP(A61,'Locations & Types'!$E:$F,2,FALSE) -> STORAGE SITE | C61: 0 | D61: 0 | E61: 0 | F61: 0
A62: Deeside | B62: =VLOOKUP(A62,'Locations & Types'!$E:$F,2,FALSE) -> DC | C62: 28480000 | D62: 28480000 | E62: 22467945.21 | F62: 3702964.658
A63: Didcot | B63: =VLOOKUP(A63,'Locations & Types'!$E:$F,2,FALSE) -> DC | C63: 137760000 | D63: 137760000 | E63: 75452054.79 | F63: 36315291.51
A64: Dowlais | B64: =VLOOKUP(A64,'Locations & Types'!$E:$F,2,FALSE) -> GDN (WS) | C64: 105977456 | D64: 105977456 | E64: 94743289 | F64: 33411415.07
A65: Drakelow Power Station | B65: =VLOOKUP(A65,'Locations & Types'!$E:$F,2,FALSE) -> DC | C65: 0 | D65: 0 | E65: 0 | F65: 0
A66: Drointon | B66: =VLOOKUP(A66,'Locations & Types'!$E:$F,2,FALSE) -> GDN (EM) | C66: 74272791 | D66: 74270000 | E66: 60805329.36 | F66: 24882241.1
A67: Drum | B67: =VLOOKUP(A67,'Locations & Types'!$E:$F,2,FALSE) -> GDN (SC) | C67: 82525354 | D67: 82525354 | E67: 66956781 | F67: 17074329.59
A68: Dyffryn Clydach | B68: =VLOOKUP(A68,'Locations & Types'!$E:$F,2,FALSE) -> GDN (WS) | C68: 40231974 | D68: 40231974 | E68: 40231974 | F68: 8670474.247
A69: Dynevor Max Refill | B69: =VLOOKUP(A69,'Locations & Types'!$E:$F,2,FALSE) -> STORAGE SITE | C69: 2610000 | D69: 2610000 | E69: 23931 | F69: 0
A70: Eastoft (Keadby Blackstart) | B70: =VLOOKUP(A70,'Locations & Types'!$E:$F,2,FALSE) -> DC | C70: 2380000 | D70: 2380000 | E70: 1457215 | F70: 10078932.33
A71: Eastoft (Keadby) | B71: =VLOOKUP(A71,'Locations & Types'!$E:$F,2,FALSE) -> DC | C71: 36060000 | D71: 36060000 | E71: 36060000 | F71: 0
A72: Easton Grey | B72: =VLOOKUP(A72,'Locations & Types'!$E:$F,2,FALSE) -> GDN (SW) | C72: 29600000 | D72: 29600000 | E72: 27391725 | F72: 3880124.932
A73: Ecclestone | B73: =VLOOKUP(A73,'Locations & Types'!$E:$F,2,FALSE) -> GDN (NW) | C73: 21140000 | D73: 21140000 | E73: 16370887 | F73: 13975337.26
A74: Elton | B74: =VLOOKUP(A74,'Locations & Types'!$E:$F,2,FALSE) -> GDN (NO) | C74: 60212185 | D74: 60212185 | E74: 60212185 | F74: 8542738.63
A75: Enron Billingham | B75: =VLOOKUP(A75,'Locations & Types'!$E:$F,2,FALSE) -> DC | C75: 121510000 | D75: 121510000 | E75: 2297677 | F75: 0
A76: Epping Green (Enfield Energy, aka Brimsdown) | B76: =VLOOKUP(A76,'Locations & Types'!$E:$F,2,FALSE) -> DC | C76: 19600000 | D76: 19600000 | E76: 19053424.66 | F76: 8689135.068
A77: Evesham | B77: =VLOOKUP(A77,'Locations & Types'!$E:$F,2,FALSE) -> GDN (SW) | C77: 6570000 | D77: 6570000 | E77: 5584329 | F77: 45485675.07
A78: Farningham | B78: =VLOOKUP(A78,'Locations & Types'!$E:$F,2,FALSE) -> GDN (SE) | C78: 135120000 | D78: 135120000 | E78: 133637105.6 | F78: 27264425.21
A79: Farningham B | B79: =VLOOKUP(A79,'Locations & Types'!$E:$F,2,FALSE) -> GDN (SE) | C79: 117883000 | D79: 117883000 | E79: 58225359 | F79: 8810303.836
A80: Ferny Knoll (AM Paper) | B80: =VLOOKUP(A80,'Locations & Types'!$E:$F,2,FALSE) -> DC | C80: 1080000 | D80: 1080000 | E80: 0 | F80: 0
A81: Fiddington | B81: =VLOOKUP(A81,'Locations & Types'!$E:$F,2,FALSE) -> GDN (SW) | C81: 25952278 | D81: 25952278 | E81: 22229864 | F81: 8521790.411
A82: Ganstead | B82: =VLOOKUP(A82,'Locations & Types'!$E:$F,2,FALSE) -> GDN (NE) | C82: 23150000 | D82: 23150000 | E82: 16864011 | F82: 23880059.73
A83: Garton Max Refill (Aldbrough) | B83: =VLOOKUP(A83,'Locations & Types'!$E:$F,2,FALSE) -> STORAGE SITE | C83: 325510001 | D83: 325510001 | E83: 335891616.4 | F83: 26591131.78
A84: Gilwern | B84: =VLOOKUP(A84,'Locations & Types'!$E:$F,2,FALSE) -> GDN (WS) | C84: 82680000 | D84: 82680000 | E84: 78188679 | F84: 53323223.29
A85: Glenmavis | B85: =VLOOKUP(A85,'Locations & Types'!$E:$F,2,FALSE) -> GDN (SC) | C85: 145790000 | D85: 145790000 | E85: 128262344 | F85: 18636230.14
A86: Glenmavis Max Refill | B86: =VLOOKUP(A86,'Locations & Types'!$E:$F,2,FALSE) -> STORAGE SITE | C86: 1620000 | D86: 1620000 | E86: 488720 | F86: 0
A87: Goole (Guardian Glass) | B87: =VLOOKUP(A87,'Locations & Types'!$E:$F,2,FALSE) -> DC | C87: 1620000 | D87: 1620000 | E87: 0 | F87: 1430087.397
A88: Gosberton | B88: =VLOOKUP(A88,'Locations & Types'!$E:$F,2,FALSE) -> GDN (EM) | C88: 15230000 | D88: 15230000 | E88: 12321120 | F88: 8230667.123
A89: Gowkhall (Longannet) | B89: =VLOOKUP(A89,'Locations & Types'!$E:$F,2,FALSE) -> DC | C89: 43320000 | D89: 43320000 | E89: 43320000 | F89: 92610.9589
A90: Grain Power Station | B90: =VLOOKUP(A90,'Locations & Types'!$E:$F,2,FALSE) -> DC | C90: 0 | D90: 0 | E90: 53594520.55 | F90: 36506748.77
A91: Great Wilbraham | B91: =VLOOKUP(A91,'Locations & Types'!$E:$F,2,FALSE) -> GDN (EA) | C91: 35590000 | D91: 35590000 | E91: 20622606 | F91: 3121531.781
A92: Guyzance | B92: =VLOOKUP(A92,'Locations & Types'!$E:$F,2,FALSE) -> GDN (NO) | C92: 2190000 | D92: 2190000 | E92: 1806988 | F92: 29186694.79
A93: Hardwick | B93: =VLOOKUP(A93,'Locations & Types'!$E:$F,2,FALSE) -> GDN (SO) | C93: 123699000 | D93: 123699000 | E93: 95134383 | F93: 20472030.68
A94: Harwarden (Shotton, aka Shotton Paper) | B94: =VLOOKUP(A94,'Locations & Types'!$E:$F,2,FALSE) -> DC | C94: 11590000 | D94: 11590000 | E94: 0 | F94: 0
A95: Hatfield Moor Max Refill | B95: =VLOOKUP(A95,'Locations & Types'!$E:$F,2,FALSE) -> STORAGE SITE | C95: 30210000 | D95: 30210000 | E95: 30210000 | F95: 3212542.466
A96: Hatfield Power Station | B96: =VLOOKUP(A96,'Locations & Types'!$E:$F,2,FALSE) -> DC | C96: 0 | D96: 0 | E96: 0 | F96: 9133444.658
A97: Hill Top Farm (Hole House Farm) | B97: =VLOOKUP(A97,'Locations & Types'!$E:$F,2,FALSE) -> STORAGE SITE | C97: 0 | D97: 0 | E97: 54493150.68 | F97: 4069156.164
A98: Hole House Max Refill | B98: =VLOOKUP(A98,'Locations & Types'!$E:$F,2,FALSE) -> STORAGE SITE | C98: 119580000 | D98: 119580000 | E98: 110327604.2 | F98: 7180733.699
A99: Holford | B99: =VLOOKUP(A99,'Locations & Types'!$E:$F,2,FALSE) -> STORAGE SITE | C99: 0 | D99: 0 | E99: 210094574.7 | F99: 35970943.29
A100: Hollingsgreen (Hays Chemicals) | B100: =VLOOKUP(A100,'Locations & Types'!$E:$F,2,FALSE) -> DC | C100: 3250000 | D100: 3250000 | E100: 2438748.737 | F100: 771943.8356
A101: Holmes Chapel | B101: =VLOOKUP(A101,'Locations & Types'!$E:$F,2,FALSE) -> GDN (NW) | C101: 22199592 | D101: 22199592 | E101: 18387106 | F101: 11444246.3
A102: Horndon | B102: =VLOOKUP(A102,'Locations & Types'!$E:$F,2,FALSE) -> GDN (NT) | C102: 46410000 | D102: 46410000 | E102: 43008039.97 | F102: 246499.4521
A103: Hornsea Max Refill | B103: =VLOOKUP(A103,'Locations & Types'!$E:$F,2,FALSE) -> STORAGE SITE | C103: 44789585 | D103: 44789585 | E103: 59866945.84 | F103: 5903555.342
A104: Humbleton | B104: =VLOOKUP(A104,'Locations & Types'!$E:$F,2,FALSE) -> GDN (NO) | C104: 250000 | D104: 250000 | E104: 250000 | F104: 378767.6712
A105: Hume | B105: =VLOOKUP(A105,'Locations & Types'!$E:$F,2,FALSE) -> GDN (SC) | C105: 1684385 | D105: 1684385 | E105: 1684385 | F105: 6006235.068
A106: Ilchester | B106: =VLOOKUP(A106,'Locations & Types'!$E:$F,2,FALSE) -> GDN (SW) | C106: 34960000 | D106: 34960000 | E106: 30242930 | F106: 1591058.082
A107: Ipsden | B107: =VLOOKUP(A107,'Locations & Types'!$E:$F,2,FALSE) -> GDN (SO) | C107: 12390000 | D107: 12390000 | E107: 9369284.904 | F107: 1893678.63
A108: Ipsden 2 | B108: =VLOOKUP(A108,'Locations & Types'!$E:$F,2,FALSE) -> GDN (SO) | C108: 15678000 | D108: 15678000 | E108: 11667297 | F108: 577921.9178
A109: Keld | B109: =VLOOKUP(A109,'Locations & Types'!$E:$F,2,FALSE) -> GDN (NO) | C109: 1890000 | D109: 1890000 | E109: 1424555 | F109: 5367104.932
A110: Kenn | B110: =VLOOKUP(A110,'Locations & Types'!$E:$F,2,FALSE) -> GDN (SW) | C110: 15430000 | D110: 15430000 | E110: 14000883 | F110: 4416020.822
A111: Kinknockie | B111: =VLOOKUP(A111,'Locations & Types'!$E:$F,2,FALSE) -> GDN (SC) | C111: 3068392 | D111: 3068392 | E111: 3068392 | F111: 544038.9041
A112: Kirkstead | B112: =VLOOKUP(A112,'Locations & Types'!$E:$F,2,FALSE) -> GDN (EM) | C112: 1210000 | D112: 1210000 | E112: 858703 | F112: 73995.34247
A113: Langage Power Station | B113: =VLOOKUP(A113,'Locations & Types'!$E:$F,2,FALSE) -> DC | C113: 41616008 | D113: 41616008 | E113: 42258904.11 | F113: 17822423.01
A114: Langholm | B114: =VLOOKUP(A114,'Locations & Types'!$E:$F,2,FALSE) -> GDN (SC) | C114: 249796 | D114: 249796 | E114: 155319 | F114: 106636.7123
A115: Lauderhill | B115: =VLOOKUP(A115,'Locations & Types'!$E:$F,2,FALSE) -> GDN (SC) | C115: 1790000 | D115: 1790000 | E115: 0 | F115: 0
A116: Leamington | B116: =VLOOKUP(A116,'Locations & Types'!$E:$F,2,FALSE) -> GDN (WM) | C116: 4260000 | D116: 4260000 | E116: 2586215 | F116: 346307.1233
A117: Little Burdon | B117: =VLOOKUP(A117,'Locations & Types'!$E:$F,2,FALSE) -> GDN (NO) | C117: 20919521 | D117: 18656588 | E117: 20919521 | F117: 7323161.096
A118: Littleton Drew | B118: =VLOOKUP(A118,'Locations & Types'!$E:$F,2,FALSE) -> GDN (SW) | C118: 2470000 | D118: 2470000 | E118: 2299463 | F118: 1767760.274
A119: Lockerbie | B119: =VLOOKUP(A119,'Locations & Types'!$E:$F,2,FALSE) -> GDN (SC) | C119: 7439745 | D119: 7439745 | E119: 6757111 | F119: 8188782.74
A120: Lower Quinton | B120: =VLOOKUP(A120,'Locations & Types'!$E:$F,2,FALSE) -> GDN (WM) | C120: 29910000 | D120: 29910000 | E120: 26684207 | F120: 2689132.329
A121: Lupton | B121: =VLOOKUP(A121,'Locations & Types'!$E:$F,2,FALSE) -> GDN (NW) | C121: 19815980 | D121: 16230000 | E121: 15464650 | F121: 25265481.1
A122: Luxborough Lane | B122: =VLOOKUP(A122,'Locations & Types'!$E:$F,2,FALSE) -> GDN (NT) | C122: 165300000 | D122: 165300000 | E122: 76147689 | F122: 17360498.36
A123: Lyneham (Choakford) | B123: =VLOOKUP(A123,'Locations & Types'!$E:$F,2,FALSE) -> GDN (SW) | C123: 50300000 | D123: 50300000 | E123: 40420636 | F123: 0
A124: Maelor | B124: =VLOOKUP(A124,'Locations & Types'!$E:$F,2,FALSE) -> GDN (WN) | C124: 57560000 | D124: 57560000 | E124: 49258990 | F124: 5945692.877
A125: Malpas | B125: =VLOOKUP(A125,'Locations & Types'!$E:$F,2,FALSE) -> GDN (NW) | C125: 990000 | D125: 990000 | E125: 685222 | F125: 9142425.479
A126: Mappowder | B126: =VLOOKUP(A126,'Locations & Types'!$E:$F,2,FALSE) -> GDN (SO) | C126: 47680000 | D126: 47680000 | E126: 36407083 | F126: 19618955.07
A127: Marchwood Power Station | B127: =VLOOKUP(A127,'Locations & Types'!$E:$F,2,FALSE) -> DC | C127: 39840000 | D127: 39840000 | E127: 47696807.02 | F127: 28886536.44
A128: Market Harborough | B128: =VLOOKUP(A128,'Locations & Types'!$E:$F,2,FALSE) -> GDN (EM) | C128: 9480000 | D128: 9480000 | E128: 6965982 | F128: 62241.91781
A129: Matching Green | B129: =VLOOKUP(A129,'Locations & Types'!$E:$F,2,FALSE) -> GDN (EA) | C129: 92341877 | D129: 92341877 | E129: 57949003.03 | F129: 7128843.836
A130: Medway (aka Isle of Grain Power Station, NOT Grain Power) | B130: =VLOOKUP(A130,'Locations & Types'!$E:$F,2,FALSE) -> DC | C130: 38120000 | D130: 38120000 | E130: 36047733 | F130: 12681354.52
A131: Melkinthorpe | B131: =VLOOKUP(A131,'Locations & Types'!$E:$F,2,FALSE) -> GDN (NO) | C131: 2432914 | D131: 2211420 | E131: 2432914 | F131: 8057156.438
A132: Mickle Trafford | B132: =VLOOKUP(A132,'Locations & Types'!$E:$F,2,FALSE) -> GDN (NW) | C132: 29209411 | D132: 29209411 | E132: 29209411 | F132: 9793474.795
A133: Middle Stoke (Damhead Creek, aka Kingsnorth Power Station) | B133: =VLOOKUP(A133,'Locations & Types'!$E:$F,2,FALSE) -> DC | C133: 40940000 | D133: 95336184 | E133: 95336184 | F133: 28264656.71
A134: Milwich | B134: =VLOOKUP(A134,'Locations & Types'!$E:$F,2,FALSE) -> GDN (WM) | C134: 21635242 | D134: 21635242 | E134: 18949988 | F134: 3291787.671
A135: Moffat (Irish Interconnector) | B135: =VLOOKUP(A135,'Locations & Types'!$E:$F,2,FALSE) -> INTERCONNECTOR | C135: 530089918 | D135: 530089918 | E135: 155346939.9 | F135: 98632422.19
A136: Netherhowcleugh | B136: =VLOOKUP(A136,'Locations & Types'!$E:$F,2,FALSE) -> GDN (SC) | C136: 322112 | D136: 222112 | E136: 322112 | F136: 35830453.7
A137: Pannal | B137: =VLOOKUP(A137,'Locations & Types'!$E:$F,2,FALSE) -> GDN (NE) | C137: 148410000 | D137: 148410000 | E137: 127560152 | F137: 23964563.84
A138: Partington | B138: =VLOOKUP(A138,'Locations & Types'!$E:$F,2,FALSE) -> GDN (NW) | C138: 87630000 | D138: 87630000 | E138: 54702858 | F138: 10040938.63
A139: Partington Max Refill | B139: =VLOOKUP(A139,'Locations & Types'!$E:$F,2,FALSE) -> STORAGE SITE | C139: 2410000 | D139: 2410000 | E139: 0 | F139: 0
A140: Paull | B140: =VLOOKUP(A140,'Locations & Types'!$E:$F,2,FALSE) -> GDN (NE) | C140: 46858561 | D140: 44781578 | E140: 46858561 | F140: 10475073.97
A141: Pembroke Power Station | B141: =VLOOKUP(A141,'Locations & Types'!$E:$F,2,FALSE) -> DC | C141: 121200056 | D141: 110200056 | E141: 125391780.8 | F141: 80151207.67
A142: Peterborough (Peterborough Power Station) | B142: =VLOOKUP(A142,'Locations & Types'!$E:$F,2,FALSE) -> DC | C142: 23280000 | D142: 23280000 | E142: 12860273.97 | F142: 362728.7671
A143: Peterborough Eye (Tee) | B143: =VLOOKUP(A143,'Locations & Types'!$E:$F,2,FALSE) -> GDN (EA) | C143: 25450000 | D143: 25450000 | E143: 20423482 | F143: 32758988.49
A144: Peters Green | B144: =VLOOKUP(A144,'Locations & Types'!$E:$F,2,FALSE) -> GDN (NT) | C144: 151860000 | D144: 151860000 | E144: 111963144 | F144: 58700710.41
A145: Peters Green South Mimms | B145: =VLOOKUP(A145,'Locations & Types'!$E:$F,2,FALSE) -> GDN (NT) | C145: 197176511 | D145: 197176511 | E145: 164876045 | F145: 19121806.3
A146: Phillips Petroleum, Teesside | B146: =VLOOKUP(A146,'Locations & Types'!$E:$F,2,FALSE) -> DC | C146: 3690000 | D146: 3690000 | E146: 4528356.164 | F146: 220744.3836
A147: Pickering | B147: =VLOOKUP(A147,'Locations & Types'!$E:$F,2,FALSE) -> GDN (NE) | C147: 9380000 | D147: 9380000 | E147: 8379084 | F147: 1200485.753
A148: Pickmere (Winnington Power, aka Brunner Mond) | B148: =VLOOKUP(A148,'Locations & Types'!$E:$F,2,FALSE) -> DC | C148: 15380000 | D148: 15380000 | E148: 8000000 | F148: 5459134.247
A149: Pitcairngreen | B149: =VLOOKUP(A149,'Locations & Types'!$E:$F,2,FALSE) -> GDN (SC) | C149: 1915791 | D149: 1915791 | E149: 3185654.014 | F149: 6652185.205
A150: Pucklechurch | B150: =VLOOKUP(A150,'Locations & Types'!$E:$F,2,FALSE) -> GDN (SW) | C150: 25794765 | D150: 25794765 | E150: 22688355 | F150: 2082287.945
A151: Rawcliffe | B151: =VLOOKUP(A151,'Locations & Types'!$E:$F,2,FALSE) -> GDN (NE) | C151: 5046154 | D151: 4494672 | E151: 5046154 | F151: 1596003.562
A152: Rollswood Kintore | B152: =VLOOKUP(A152,'Locations & Types'!$E:$F,2,FALSE) -> DC | C152: 0 | D152: 0 | E152: 0 | F152: 0
A153: Roosecote Power Station (Barrow) | B153: =VLOOKUP(A153,'Locations & Types'!$E:$F,2,FALSE) -> DC | C153: 14730000 | D153: 14730000 | E153: 0 | F153: 0
A154: Rosehill (Saltend Power Station) | B154: =VLOOKUP(A154,'Locations & Types'!$E:$F,2,FALSE) -> DC | C154: 57830000 | D154: 57830000 | E154: 57830000 | F154: 44186722.74
A155: Ross (SW) | B155: =VLOOKUP(A155,'Locations & Types'!$E:$F,2,FALSE) -> GDN (SW) | C155: 4530000 | D155: 4530000 | E155: 4023357 | F155: 4297064.11
A156: Ross (WM) | B156: =VLOOKUP(A156,'Locations & Types'!$E:$F,2,FALSE) -> GDN (WM) | C156: 16520000 | D156: 16520000 | E156: 10023883.36 | F156: 21188302.47
A157: Roudham Heath | B157: =VLOOKUP(A157,'Locations & Types'!$E:$F,2,FALSE) -> GDN (EA) | C157: 25472176 | D157: 25472176 | E157: 16281005 | F157: 3779307.671
A158: Rough Max Refill | B158: =VLOOKUP(A158,'Locations & Types'!$E:$F,2,FALSE) -> STORAGE SITE | C158: 370479121 | D158: 370479121 | E158: 368609643.6 | F158: 25972353.15
A159: Royston | B159: =VLOOKUP(A159,'Locations & Types'!$E:$F,2,FALSE) -> GDN (EA) | C159: 2700000 | D159: 2700000 | E159: 2367780 | F159: 23071315.62
A160: Rugby | B160: =VLOOKUP(A160,'Locations & Types'!$E:$F,2,FALSE) -> GDN (WM) | C160: 80080000 | D160: 80080000 | E160: 63016793 | F160: 24026184.93
A161: Ryehouse | B161: =VLOOKUP(A161,'Locations & Types'!$E:$F,2,FALSE) -> DC | C161: 38660000 | D161: 38660000 | E161: 38660000 | F161: 6797948.767
A162: Saddle Bow (Kings Lynn) | B162: =VLOOKUP(A162,'Locations & Types'!$E:$F,2,FALSE) -> DC | C162: 17980000 | D162: 17980000 | E162: 14500000 | F162: 36.16438356
A163: Saltend BPHP (BP Saltend HP) | B163: =VLOOKUP(A163,'Locations & Types'!$E:$F,2,FALSE) -> DC | C163: 9100000 | D163: 9100000 | E163: 9055895 | F163: 4218056.986
A164: Saltfleetby Storage (Theddlethorpe) | B164: =VLOOKUP(A164,'Locations & Types'!$E:$F,2,FALSE) -> STORAGE SITE | C164: 0 | D164: 0 | E164: 0 | F164: 0
A165: Saltwick Pressure Controlled | B165: =VLOOKUP(A165,'Locations & Types'!$E:$F,2,FALSE) -> GDN (NO) | C165: 9220000 | D165: 9220000 | E165: 5673152 | F165: 4276317.808
A166: Saltwick Volumetric Controlled | B166: =VLOOKUP(A166,'Locations & Types'!$E:$F,2,FALSE) -> GDN (NO) | C166: 69070000 | D166: 69070000 | E166: 39749273 | F166: 21776148.49
A167: Samlesbury | B167: =VLOOKUP(A167,'Locations & Types'!$E:$F,2,FALSE) -> GDN (NW) | C167: 110990000 | D167: 110990000 | E167: 99858652 | F167: 16708984.93
A168: Sandy Lane (Blackburn CHP, aka Sappi Paper Mill) | B168: =VLOOKUP(A168,'Locations & Types'!$E:$F,2,FALSE) -> DC | C168: 4550000 | D168: 4550000 | E168: 3433103 | F168: 271293.1507
A169: Seabank (DN) | B169: =VLOOKUP(A169,'Locations & Types'!$E:$F,2,FALSE) -> GDN (SW) | C169: 60740000 | D169: 60740000 | E169: 50999376 | F169: 7038303.288
A170: Seabank (Seabank Power Station phase II) | B170: =VLOOKUP(A170,'Locations & Types'!$E:$F,2,FALSE) -> DC | C170: 19100000 | D170: 19100000 | E170: 26727896.9 | F170: 3236073.425
A171: Seal Sands TGPP | B171: =VLOOKUP(A171,'Locations & Types'!$E:$F,2,FALSE) -> DC | C171: 0 | D171: 0 | E171: 1023287.671 | F171: 0
A172: Sellafield Power Station | B172: =VLOOKUP(A172,'Locations & Types'!$E:$F,2,FALSE) -> DC | C172: 12350000 | D172: 12350000 | E172: 12349999 | F172: 5835930.959
A173: Shellstar (aka Kemira, not Kemira CHP) | B173: =VLOOKUP(A173,'Locations & Types'!$E:$F,2,FALSE) -> DC | C173: 16240000 | D173: 16240000 | E173: 11732444 | F173: 0
A174: Shorne | B174: =VLOOKUP(A174,'Locations & Types'!$E:$F,2,FALSE) -> GDN (SE) | C174: 67060000 | D174: 67060000 | E174: 48279307 | F174: 29938.08219
A175: Shotwick (Bridgewater Paper) | B175: =VLOOKUP(A175,'Locations & Types'!$E:$F,2,FALSE) -> DC | C175: 5520000 | D175: 5520000 | E175: 3655705.279 | F175: 135327.1233
A176: Shustoke | B176: =VLOOKUP(A176,'Locations & Types'!$E:$F,2,FALSE) -> GDN (WM) | C176: 44760000 | D176: 44760000 | E176: 2793603.211 | F176: 566680.8219
A177: Silk Willoughby | B177: =VLOOKUP(A177,'Locations & Types'!$E:$F,2,FALSE) -> GDN (EM) | C177: 3530000 | D177: 3530000 | E177: 2203090 | F177: 1916709.315
A178: Soutra | B178: =VLOOKUP(A178,'Locations & Types'!$E:$F,2,FALSE) -> GDN (SC) | C178: 10726995 | D178: 10726995 | E178: 10726995 | F178: 695890.137
A179: Spalding 2 (South Holland) Power Station | B179: =VLOOKUP(A179,'Locations & Types'!$E:$F,2,FALSE) -> DC | C179: 0 | D179: 0 | E179: 0 | F179: 0
A180: St Fergus | B180: =VLOOKUP(A180,'Locations & Types'!$E:$F,2,FALSE) -> GDN (SC) | C180: 1058074 | D180: 1058074 | E180: 1093487.058 | F180: 1133201.918
A181: St. Fergus (Peterhead) | B181: =VLOOKUP(A181,'Locations & Types'!$E:$F,2,FALSE) -> DC | C181: 108300000 | D181: 108300000 | E181: 73267750 | F181: 7745395.342
A182: St. Fergus (Shell Blackstart) | B182: =VLOOKUP(A182,'Locations & Types'!$E:$F,2,FALSE) -> DC | C182: 2583336 | D182: 2583336 | E182: 2584138.934 | F182: 0
A183: St. Neots (Little Barford) | B183: =VLOOKUP(A183,'Locations & Types'!$E:$F,2,FALSE) -> DC | C183: 35200000 | D183: 35200000 | E183: 30576190.68 | F183: 22259277.53
A184: Stallingborough | B184: =VLOOKUP(A184,'Locations & Types'!$E:$F,2,FALSE) -> DC | C184: 68012169 | D184: 68012169 | E184: 59650684.93 | F184: 13466139.73
A185: Stanford Le Hope (Coryton) | B185: =VLOOKUP(A185,'Locations & Types'!$E:$F,2,FALSE) -> DC | C185: 38600000 | D185: 38600000 | E185: 32360547.95 | F185: 0
A186: Staythorpe | B186: =VLOOKUP(A186,'Locations & Types'!$E:$F,2,FALSE) -> DC | C186: 82000000 | D186: 82000000 | E186: 70421917.81 | F186: 52735856.44
A187: Stranraer | B187: =VLOOKUP(A187,'Locations & Types'!$E:$F,2,FALSE) -> GDN (SC) | C187: 930433 | D187: 930433 | E187: 742435 | F187: 0
A188: Stratford-upon-Avon | B188: =VLOOKUP(A188,'Locations & Types'!$E:$F,2,FALSE) -> GDN (WM) | C188: 4680000 | D188: 4680000 | E188: 3735040 | F188: 655428.2192
A189: Stublach (Cheshire) | B189: =VLOOKUP(A189,'Locations & Types'!$E:$F,2,FALSE) -> STORAGE SITE | C189: 0 | D189: 0 | E189: 342676080.9 | F189: 16340445.75
A190: Sutton Bridge | B190: =VLOOKUP(A190,'Locations & Types'!$E:$F,2,FALSE) -> GDN (EM) | C190: 1710546 | D190: 1710546 | E190: 1079269 | F190: 38075336.71
A191: Sutton Bridge Power Station | B191: =VLOOKUP(A191,'Locations & Types'!$E:$F,2,FALSE) -> DC | C191: 37470000 | D191: 37470000 | E191: 37480397.26 | F191: 15243287.67
A192: Tatsfield | B192: =VLOOKUP(A192,'Locations & Types'!$E:$F,2,FALSE) -> GDN (SE) | C192: 221742083 | D192: 221742083 | E192: 192774633 | F192: 35058627.4
A193: Teesside (BASF, aka BASF Teesside) | B193: =VLOOKUP(A193,'Locations & Types'!$E:$F,2,FALSE) -> DC | C193: 9750000 | D193: 9750000 | E193: 9207356.164 | F193: 4528335.342
A194: Teesside Hydrogen | B194: =VLOOKUP(A194,'Locations & Types'!$E:$F,2,FALSE) -> DC | C194: 13277455 | D194: 13277455 | E194: 13276800 | F194: 4072028.219
A195: Terra Nitrogen (aka ICI, Terra Severnside) | B195: =VLOOKUP(A195,'Locations & Types'!$E:$F,2,FALSE) -> DC | C195: 13100000 | D195: 13100000 | E195: 0 | F195: 0
A196: Thornton Curtis (DN) | B196: =VLOOKUP(A196,'Locations & Types'!$E:$F,2,FALSE) -> GDN (EM) | C196: 118190411 | D196: 118150000 | E196: 95532642 | F196: 18644599.18
A197: Thornton Curtis (Humber Refinery, aka Immingham) | B197: =VLOOKUP(A197,'Locations & Types'!$E:$F,2,FALSE) -> DC | C197: 67000000 | D197: 67000000 | E197: 67000000 | F197: 49242931.51
A198: Thornton Curtis (Killingholme) | B198: =VLOOKUP(A198,'Locations & Types'!$E:$F,2,FALSE) -> DC | C198: 91000001 | D198: 91000001 | E198: 23898630.14 | F198: 7427878.082
A199: Thrintoft | B199: =VLOOKUP(A199,'Locations & Types'!$E:$F,2,FALSE) -> GDN (NO) | C199: 6921484 | D199: 6225399 | E199: 6921484 | F199: 756326.8493
A200: Tilbury Power Station | B200: =VLOOKUP(A200,'Locations & Types'!$E:$F,2,FALSE) -> DC | C200: 0 | D200: 0 | E200: 0 | F200: 0
... 23 more rows

Sheet Entry Prices
A1: Entry Point | B1: Entry Point Type | C1: Forecast Contracted Capacity (CAP_En) | D1: Remaining Forecast Contracted Capacity (with Existing Contracts Removed if appropriate) (CAP_En) | E1: Unit Reference Price Adjustment (p/kWh/a) | F1: Scaling Factor Adjustment | G1: Reference price at an entry point (T_En) p/kWh/a | I1: ENTRY RESERVE PRICES | J1: Unit Reserve Price Adjustment (p/kWh/d) | K1: Reserve Price for Yearly Standard Capacity (p/kWh/d) | L1: Reserve Price for Quarterly Standard Capacity (p/kWh/d) | M1: Reserve Price for Monthly Standard Capacity (p/kWh/d) | N1: Reserve Price for Daily Standard Capacity (p/kWh/d) | O1: Reserve Price for Within-day Standard Capacity (p/kWh/d) | P1: Reserve Price for Daily Interruptible Capacity (p/kWh/d)
A2: Avonmouth | B2: =VLOOKUP(A2,'Locations & Types'!$A:$B,2,FALSE) -> STORAGE SITE | C2: =(VLOOKUP(A2, INDIRECT("'"&'Drop Down Inputs'!$A$10&"'!"&" $A:$F"),MATCH('User Inputs'!$C$19, INDIRECT("'"&'Drop Down Inputs'!$A$10&"'!"&"$A$1:$F$1"),0), FALSE))*'User Inputs'!$C$20/100 -> 179300000 | D2: =IF('User Inputs'!$C$23="YES",IF('Entry Prices'!C2-VLOOKUP('Entry Prices'!A2,'Existing Contracts - Entry'!$A:$E,MATCH('User Inputs'!$C$7,'Existing Contracts - Entry'!$A$1:$E$1,0),FALSE)<0,0,'Entry Prices'!C2-VLOOKUP('Entry Prices'!A2,'Existing Contracts - Entry'!$A:$E,MATCH('User Inputs'!$C$7,'Existing Contracts - Entry'!$A$1:$E$1,0),FALSE)),'Entry Prices'!C2) -> 179300000 | E2: ='Entry Adjustment Calcs'!$C$22*'User Inputs'!$D$7 -> 0 | F2: ='Entry Adjustment Calcs'!$C$24 -> 1 | G2: =(('Revenue Input'!$B$5/SUM($D$2:$D$27))*F2)+E2 -> 4.590210519 | J2: ='Entry Adjustment Calcs'!$C$23 -> 0 | K2: =(IF(B2="STORAGE SITE",((100-'User Inputs'!$C$38)/100)*G2/'User Inputs'!$D$7,(IF(B2="LNG IMPORTATION TERMINAL",((100-'User Inputs'!$C$39)/100)*G2/'User Inputs'!$D$7,(IF(B2="INTERCONNECTION POINT",((100-'User Inputs'!$C$40)/100)*G2/'User Inputs'!$D$7,G2/'User Inputs'!$D$7))))))+J2 -> 0.006287959616 | L2: =(IF(B2="STORAGE SITE",((100-'User Inputs'!$C$38)/100)*'User Inputs'!$C$26*'Entry Prices'!G2/'User Inputs'!$D$7,IF(B2="LNG IMPORTATION TERMINAL",((100-'User Inputs'!$C$39)/100)*'User Inputs'!$C$26*'Entry Prices'!G2/'User Inputs'!$D$7,IF(B2="INTERCONNECTION POINT",((100-'User Inputs'!$C$40)/100)*'User Inputs'!$C$32*'Entry Prices'!G2/'User Inputs'!$D$7,'User Inputs'!$C$26*'Entry Prices'!G2/'User Inputs'!$D$7)))+J2) -> 0.006287959616 | M2: =(IF(B2="STORAGE SITE",((100-'User Inputs'!$C$38)/100)* 'User Inputs'!$C$27*'Entry Prices'!G2/'User Inputs'!$D$7, IF(B2="LNG IMPORTATION TERMINAL",((100-'User Inputs'!$C$39)/100)*'User Inputs'!$C$27*'Entry Prices'!G2/'User Inputs'!$D$7,IF(B2="INTERCONNECTION POINT", ((100-'User Inputs'!$C$40)/100)*'User Inputs'!$C$33*'Entry Prices'!G2/'User Inputs'!$D$7, 'User Inputs'!$C$27*'Entry Prices'!G2/'User Inputs'!$D$7))))+J2 -> 0.006287959616 | N2: =(IF(B2="STORAGE SITE",((100-'User Inputs'!$C$38)/100)* 'User Inputs'!$C$28*'Entry Prices'!G2/'User Inputs'!$D$7, IF(B2="LNG IMPORTATION TERMINAL",((100-'User Inputs'!$C$39)/100)*'User Inputs'!$C$28*'Entry Prices'!G2/'User Inputs'!$D$7,IF(B2="INTERCONNECTION POINT",((100-'User Inputs'!$C$40)/100)* 'User Inputs'!$C$34*'Entry Prices'!G2/'User Inputs'!$D$7, 'User Inputs'!$C$28*'Entry Prices'!G2/'User Inputs'!$D$7))))+J2 -> 0.006287959616 | O2: =(IF(B2="STORAGE SITE",((100-'User Inputs'!$C$38)/100)* 'User Inputs'!$C$29*'Entry Prices'!G2/'User Inputs'!$D$7, IF(B2="LNG IMPORTATION TERMINAL",((100-'User Inputs'!$C$39)/100)*'User Inputs'!$C$29*'Entry Prices'!G2/'User Inputs'!$D$7,IF(B2="INTERCONNECTION POINT", ((100-'User Inputs'!$C$40)/100)*'User Inputs'!$C$35*'Entry Prices'!G2/'User Inputs'!$D$7, 'User Inputs'!$C$29*'Entry Prices'!G2/'User Inputs'!$D$7))))+J2 -> 0.006287959616 | P2: =(100-(VLOOKUP(A2,'Entry Interruption Prob''s'!$A:$E,5,FALSE)))*N2/100 -> 0.006287959616
A3: Bacton IP | B3: =VLOOKUP(A3,'Locations & Types'!$A:$B,2,FALSE) -> INTERCONNECTION POINT | C3: =(VLOOKUP(A3, INDIRECT("'"&'Drop Down Inputs'!$A$10&"'!"&" $A:$F"),MATCH('User Inputs'!$C$19, INDIRECT("'"&'Drop Down Inputs'!$A$10&"'!"&"$A$1:$F$1"),0), FALSE))*'User Inputs'!$C$20/100 -> 1297800000 | D3: =IF('User Inputs'!$C$23="YES",IF('Entry Prices'!C3-VLOOKUP('Entry Prices'!A3,'Existing Contracts - Entry'!$A:$E,MATCH('User Inputs'!$C$7,'Existing Contracts - Entry'!$A$1:$E$1,0),FALSE)<0,0,'Entry Prices'!C3-VLOOKUP('Entry Prices'!A3,'Existing Contracts - Entry'!$A:$E,MATCH('User Inputs'!$C$7,'Existing Contracts - Entry'!$A$1:$E$1,0),FALSE)),'Entry Prices'!C3) -> 1085949743 | E3: ='Entry Adjustment Calcs'!$C$22*'User Inputs'!$D$7 -> 0 | F3: ='Entry Adjustment Calcs'!$C$24 -> 1 | G3: =(('Revenue Input'!$B$5/SUM($D$2:$D$27))*F3)+E3 -> 4.590210519 | J3: ='Entry Adjustment Calcs'!$C$23 -> 0 | K3: =(IF(B3="STORAGE SITE",((100-'User Inputs'!$C$38)/100)*G3/'User Inputs'!$D$7,(IF(B3="LNG IMPORTATION TERMINAL",((100-'User Inputs'!$C$39)/100)*G3/'User Inputs'!$D$7,(IF(B3="INTERCONNECTION POINT",((100-'User Inputs'!$C$40)/100)*G3/'User Inputs'!$D$7,G3/'User Inputs'!$D$7))))))+J3 -> 0.01257591923 | L3: =(IF(B3="STORAGE SITE",((100-'User Inputs'!$C$38)/100)*'User Inputs'!$C$26*'Entry Prices'!G3/'User Inputs'!$D$7,IF(B3="LNG IMPORTATION TERMINAL",((100-'User Inputs'!$C$39)/100)*'User Inputs'!$C$26*'Entry Prices'!G3/'User Inputs'!$D$7,IF(B3="INTERCONNECTION POINT",((100-'User Inputs'!$C$40)/100)*'User Inputs'!$C$32*'Entry Prices'!G3/'User Inputs'!$D$7,'User Inputs'!$C$26*'Entry Prices'!G3/'User Inputs'!$D$7)))+J3) -> 0.01257591923 | M3: =(IF(B3="STORAGE SITE",((100-'User Inputs'!$C$38)/100)* 'User Inputs'!$C$27*'Entry Prices'!G3/'User Inputs'!$D$7, IF(B3="LNG IMPORTATION TERMINAL",((100-'User Inputs'!$C$39)/100)*'User Inputs'!$C$27*'Entry Prices'!G3/'User Inputs'!$D$7,IF(B3="INTERCONNECTION POINT", ((100-'User Inputs'!$C$40)/100)*'User Inputs'!$C$33*'Entry Prices'!G3/'User Inputs'!$D$7, 'User Inputs'!$C$27*'Entry Prices'!G3/'User Inputs'!$D$7))))+J3 -> 0.01257591923 | N3: =(IF(B3="STORAGE SITE",((100-'User Inputs'!$C$38)/100)* 'User Inputs'!$C$28*'Entry Prices'!G3/'User Inputs'!$D$7, IF(B3="LNG IMPORTATION TERMINAL",((100-'User Inputs'!$C$39)/100)*'User Inputs'!$C$28*'Entry Prices'!G3/'User Inputs'!$D$7,IF(B3="INTERCONNECTION POINT",((100-'User Inputs'!$C$40)/100)* 'User Inputs'!$C$34*'Entry Prices'!G3/'User Inputs'!$D$7, 'User Inputs'!$C$28*'Entry Prices'!G3/'User Inputs'!$D$7))))+J3 -> 0.01257591923 | O3: =(IF(B3="STORAGE SITE",((100-'User Inputs'!$C$38)/100)* 'User Inputs'!$C$29*'Entry Prices'!G3/'User Inputs'!$D$7, IF(B3="LNG IMPORTATION TERMINAL",((100-'User Inputs'!$C$39)/100)*'User Inputs'!$C$29*'Entry Prices'!G3/'User Inputs'!$D$7,IF(B3="INTERCONNECTION POINT", ((100-'User Inputs'!$C$40)/100)*'User Inputs'!$C$35*'Entry Prices'!G3/'User Inputs'!$D$7, 'User Inputs'!$C$29*'Entry Prices'!G3/'User Inputs'!$D$7))))+J3 -> 0.01257591923 | P3: =(100-(VLOOKUP(A3,'Entry Interruption Prob''s'!$A:$E,5,FALSE)))*N3/100 -> 0.01257591923
A4: Bacton UKCS | B4: =VLOOKUP(A4,'Locations & Types'!$A:$B,2,FALSE) -> BEACH TERMINAL | C4: =(VLOOKUP(A4, INDIRECT("'"&'Drop Down Inputs'!$A$10&"'!"&" $A:$F"),MATCH('User Inputs'!$C$19, INDIRECT("'"&'Drop Down Inputs'!$A$10&"'!"&"$A$1:$F$1"),0), FALSE))*'User Inputs'!$C$20/100 -> 485600000 | D4: =IF('User Inputs'!$C$23="YES",IF('Entry Prices'!C4-VLOOKUP('Entry Prices'!A4,'Existing Contracts - Entry'!$A:$E,MATCH('User Inputs'!$C$7,'Existing Contracts - Entry'!$A$1:$E$1,0),FALSE)<0,0,'Entry Prices'!C4-VLOOKUP('Entry Prices'!A4,'Existing Contracts - Entry'!$A:$E,MATCH('User Inputs'!$C$7,'Existing Contracts - Entry'!$A$1:$E$1,0),FALSE)),'Entry Prices'!C4) -> 230414282.1 | E4: ='Entry Adjustment Calcs'!$C$22*'User Inputs'!$D$7 -> 0 | F4: ='Entry Adjustment Calcs'!$C$24 -> 1 | G4: =(('Revenue Input'!$B$5/SUM($D$2:$D$27))*F4)+E4 -> 4.590210519 | J4: ='Entry Adjustment Calcs'!$C$23 -> 0 | K4: =(IF(B4="STORAGE SITE",((100-'User Inputs'!$C$38)/100)*G4/'User Inputs'!$D$7,(IF(B4="LNG IMPORTATION TERMINAL",((100-'User Inputs'!$C$39)/100)*G4/'User Inputs'!$D$7,(IF(B4="INTERCONNECTION POINT",((100-'User Inputs'!$C$40)/100)*G4/'User Inputs'!$D$7,G4/'User Inputs'!$D$7))))))+J4 -> 0.01257591923 | L4: =(IF(B4="STORAGE SITE",((100-'User Inputs'!$C$38)/100)*'User Inputs'!$C$26*'Entry Prices'!G4/'User Inputs'!$D$7,IF(B4="LNG IMPORTATION TERMINAL",((100-'User Inputs'!$C$39)/100)*'User Inputs'!$C$26*'Entry Prices'!G4/'User Inputs'!$D$7,IF(B4="INTERCONNECTION POINT",((100-'User Inputs'!$C$40)/100)*'User Inputs'!$C$32*'Entry Prices'!G4/'User Inputs'!$D$7,'User Inputs'!$C$26*'Entry Prices'!G4/'User Inputs'!$D$7)))+J4) -> 0.01257591923 | M4: =(IF(B4="STORAGE SITE",((100-'User Inputs'!$C$38)/100)* 'User Inputs'!$C$27*'Entry Prices'!G4/'User Inputs'!$D$7, IF(B4="LNG IMPORTATION TERMINAL",((100-'User Inputs'!$C$39)/100)*'User Inputs'!$C$27*'Entry Prices'!G4/'User Inputs'!$D$7,IF(B4="INTERCONNECTION POINT", ((100-'User Inputs'!$C$40)/100)*'User Inputs'!$C$33*'Entry Prices'!G4/'User Inputs'!$D$7, 'User Inputs'!$C$27*'Entry Prices'!G4/'User Inputs'!$D$7))))+J4 -> 0.01257591923 | N4: =(IF(B4="STORAGE SITE",((100-'User Inputs'!$C$38)/100)* 'User Inputs'!$C$28*'Entry Prices'!G4/'User Inputs'!$D$7, IF(B4="LNG IMPORTATION TERMINAL",((100-'User Inputs'!$C$39)/100)*'User Inputs'!$C$28*'Entry Prices'!G4/'User Inputs'!$D$7,IF(B4="INTERCONNECTION POINT",((100-'User Inputs'!$C$40)/100)* 'User Inputs'!$C$34*'Entry Prices'!G4/'User Inputs'!$D$7, 'User Inputs'!$C$28*'Entry Prices'!G4/'User Inputs'!$D$7))))+J4 -> 0.01257591923 | O4: =(IF(B4="STORAGE SITE",((100-'User Inputs'!$C$38)/100)* 'User Inputs'!$C$29*'Entry Prices'!G4/'User Inputs'!$D$7, IF(B4="LNG IMPORTATION TERMINAL",((100-'User Inputs'!$C$39)/100)*'User Inputs'!$C$29*'Entry Prices'!G4/'User Inputs'!$D$7,IF(B4="INTERCONNECTION POINT", ((100-'User Inputs'!$C$40)/100)*'User Inputs'!$C$35*'Entry Prices'!G4/'User Inputs'!$D$7, 'User Inputs'!$C$29*'Entry Prices'!G4/'User Inputs'!$D$7))))+J4 -> 0.01257591923 | P4: =(100-(VLOOKUP(A4,'Entry Interruption Prob''s'!$A:$E,5,FALSE)))*N4/100 -> 0.01257591923
A5: Burton Point | B5: =VLOOKUP(A5,'Locations & Types'!$A:$B,2,FALSE) -> ONSHORE FIELD | C5: =(VLOOKUP(A5, INDIRECT("'"&'Drop Down Inputs'!$A$10&"'!"&" $A:$F"),MATCH('User Inputs'!$C$19, INDIRECT("'"&'Drop Down Inputs'!$A$10&"'!"&"$A$1:$F$1"),0), FALSE))*'User Inputs'!$C$20/100 -> 73500000 | D5: =IF('User Inputs'!$C$23="YES",IF('Entry Prices'!C5-VLOOKUP('Entry Prices'!A5,'Existing Contracts - Entry'!$A:$E,MATCH('User Inputs'!$C$7,'Existing Contracts - Entry'!$A$1:$E$1,0),FALSE)<0,0,'Entry Prices'!C5-VLOOKUP('Entry Prices'!A5,'Existing Contracts - Entry'!$A:$E,MATCH('User Inputs'!$C$7,'Existing Contracts - Entry'!$A$1:$E$1,0),FALSE)),'Entry Prices'!C5) -> 33843087.83 | E5: ='Entry Adjustment Calcs'!$C$22*'User Inputs'!$D$7 -> 0 | F5: ='Entry Adjustment Calcs'!$C$24 -> 1 | G5: =(('Revenue Input'!$B$5/SUM($D$2:$D$27))*F5)+E5 -> 4.590210519 | J5: ='Entry Adjustment Calcs'!$C$23 -> 0 | K5: =(IF(B5="STORAGE SITE",((100-'User Inputs'!$C$38)/100)*G5/'User Inputs'!$D$7,(IF(B5="LNG IMPORTATION TERMINAL",((100-'User Inputs'!$C$39)/100)*G5/'User Inputs'!$D$7,(IF(B5="INTERCONNECTION POINT",((100-'User Inputs'!$C$40)/100)*G5/'User Inputs'!$D$7,G5/'User Inputs'!$D$7))))))+J5 -> 0.01257591923 | L5: =(IF(B5="STORAGE SITE",((100-'User Inputs'!$C$38)/100)*'User Inputs'!$C$26*'Entry Prices'!G5/'User Inputs'!$D$7,IF(B5="LNG IMPORTATION TERMINAL",((100-'User Inputs'!$C$39)/100)*'User Inputs'!$C$26*'Entry Prices'!G5/'User Inputs'!$D$7,IF(B5="INTERCONNECTION POINT",((100-'User Inputs'!$C$40)/100)*'User Inputs'!$C$32*'Entry Prices'!G5/'User Inputs'!$D$7,'User Inputs'!$C$26*'Entry Prices'!G5/'User Inputs'!$D$7)))+J5) -> 0.01257591923 | M5: =(IF(B5="STORAGE SITE",((100-'User Inputs'!$C$38)/100)* 'User Inputs'!$C$27*'Entry Prices'!G5/'User Inputs'!$D$7, IF(B5="LNG IMPORTATION TERMINAL",((100-'User Inputs'!$C$39)/100)*'User Inputs'!$C$27*'Entry Prices'!G5/'User Inputs'!$D$7,IF(B5="INTERCONNECTION POINT", ((100-'User Inputs'!$C$40)/100)*'User Inputs'!$C$33*'Entry Prices'!G5/'User Inputs'!$D$7, 'User Inputs'!$C$27*'Entry Prices'!G5/'User Inputs'!$D$7))))+J5 -> 0.01257591923 | N5: =(IF(B5="STORAGE SITE",((100-'User Inputs'!$C$38)/100)* 'User Inputs'!$C$28*'Entry Prices'!G5/'User Inputs'!$D$7, IF(B5="LNG IMPORTATION TERMINAL",((100-'User Inputs'!$C$39)/100)*'User Inputs'!$C$28*'Entry Prices'!G5/'User Inputs'!$D$7,IF(B5="INTERCONNECTION POINT",((100-'User Inputs'!$C$40)/100)* 'User Inputs'!$C$34*'Entry Prices'!G5/'User Inputs'!$D$7, 'User Inputs'!$C$28*'Entry Prices'!G5/'User Inputs'!$D$7))))+J5 -> 0.01257591923 | O5: =(IF(B5="STORAGE SITE",((100-'User Inputs'!$C$38)/100)* 'User Inputs'!$C$29*'Entry Prices'!G5/'User Inputs'!$D$7, IF(B5="LNG IMPORTATION TERMINAL",((100-'User Inputs'!$C$39)/100)*'User Inputs'!$C$29*'Entry Prices'!G5/'User Inputs'!$D$7,IF(B5="INTERCONNECTION POINT", ((100-'User Inputs'!$C$40)/100)*'User Inputs'!$C$35*'Entry Prices'!G5/'User Inputs'!$D$7, 'User Inputs'!$C$29*'Entry Prices'!G5/'User Inputs'!$D$7))))+J5 -> 0.01257591923 | P5: =(100-(VLOOKUP(A5,'Entry Interruption Prob''s'!$A:$E,5,FALSE)))*N5/100 -> 0.01257591923
A6: Barrow | B6: =VLOOKUP(A6,'Locations & Types'!$A:$B,2,FALSE) -> BEACH TERMINAL | C6: =(VLOOKUP(A6, INDIRECT("'"&'Drop Down Inputs'!$A$10&"'!"&" $A:$F"),MATCH('User Inputs'!$C$19, INDIRECT("'"&'Drop Down Inputs'!$A$10&"'!"&"$A$1:$F$1"),0), FALSE))*'User Inputs'!$C$20/100 -> 340010000 | D6: =IF('User Inputs'!$C$23="YES",IF('Entry Prices'!C6-VLOOKUP('Entry Prices'!A6,'Existing Contracts - Entry'!$A:$E,MATCH('User Inputs'!$C$7,'Existing Contracts - Entry'!$A$1:$E$1,0),FALSE)<0,0,'Entry Prices'!C6-VLOOKUP('Entry Prices'!A6,'Existing Contracts - Entry'!$A:$E,MATCH('User Inputs'!$C$7,'Existing Contracts - Entry'!$A$1:$E$1,0),FALSE)),'Entry Prices'!C6) -> 241318236.8 | E6: ='Entry Adjustment Calcs'!$C$22*'User Inputs'!$D$7 -> 0 | F6: ='Entry Adjustment Calcs'!$C$24 -> 1 | G6: =(('Revenue Input'!$B$5/SUM($D$2:$D$27))*F6)+E6 -> 4.590210519 | J6: ='Entry Adjustment Calcs'!$C$23 -> 0 | K6: =(IF(B6="STORAGE SITE",((100-'User Inputs'!$C$38)/100)*G6/'User Inputs'!$D$7,(IF(B6="LNG IMPORTATION TERMINAL",((100-'User Inputs'!$C$39)/100)*G6/'User Inputs'!$D$7,(IF(B6="INTERCONNECTION POINT",((100-'User Inputs'!$C$40)/100)*G6/'User Inputs'!$D$7,G6/'User Inputs'!$D$7))))))+J6 -> 0.01257591923 | L6: =(IF(B6="STORAGE SITE",((100-'User Inputs'!$C$38)/100)*'User Inputs'!$C$26*'Entry Prices'!G6/'User Inputs'!$D$7,IF(B6="LNG IMPORTATION TERMINAL",((100-'User Inputs'!$C$39)/100)*'User Inputs'!$C$26*'Entry Prices'!G6/'User Inputs'!$D$7,IF(B6="INTERCONNECTION POINT",((100-'User Inputs'!$C$40)/100)*'User Inputs'!$C$32*'Entry Prices'!G6/'User Inputs'!$D$7,'User Inputs'!$C$26*'Entry Prices'!G6/'User Inputs'!$D$7)))+J6) -> 0.01257591923 | M6: =(IF(B6="STORAGE SITE",((100-'User Inputs'!$C$38)/100)* 'User Inputs'!$C$27*'Entry Prices'!G6/'User Inputs'!$D$7, IF(B6="LNG IMPORTATION TERMINAL",((100-'User Inputs'!$C$39)/100)*'User Inputs'!$C$27*'Entry Prices'!G6/'User Inputs'!$D$7,IF(B6="INTERCONNECTION POINT", ((100-'User Inputs'!$C$40)/100)*'User Inputs'!$C$33*'Entry Prices'!G6/'User Inputs'!$D$7, 'User Inputs'!$C$27*'Entry Prices'!G6/'User Inputs'!$D$7))))+J6 -> 0.01257591923 | N6: =(IF(B6="STORAGE SITE",((100-'User Inputs'!$C$38)/100)* 'User Inputs'!$C$28*'Entry Prices'!G6/'User Inputs'!$D$7, IF(B6="LNG IMPORTATION TERMINAL",((100-'User Inputs'!$C$39)/100)*'User Inputs'!$C$28*'Entry Prices'!G6/'User Inputs'!$D$7,IF(B6="INTERCONNECTION POINT",((100-'User Inputs'!$C$40)/100)* 'User Inputs'!$C$34*'Entry Prices'!G6/'User Inputs'!$D$7, 'User Inputs'!$C$28*'Entry Prices'!G6/'User Inputs'!$D$7))))+J6 -> 0.01257591923 | O6: =(IF(B6="STORAGE SITE",((100-'User Inputs'!$C$38)/100)* 'User Inputs'!$C$29*'Entry Prices'!G6/'User Inputs'!$D$7, IF(B6="LNG IMPORTATION TERMINAL",((100-'User Inputs'!$C$39)/100)*'User Inputs'!$C$29*'Entry Prices'!G6/'User Inputs'!$D$7,IF(B6="INTERCONNECTION POINT", ((100-'User Inputs'!$C$40)/100)*'User Inputs'!$C$35*'Entry Prices'!G6/'User Inputs'!$D$7, 'User Inputs'!$C$29*'Entry Prices'!G6/'User Inputs'!$D$7))))+J6 -> 0.01257591923 | P6: =(100-(VLOOKUP(A6,'Entry Interruption Prob''s'!$A:$E,5,FALSE)))*N6/100 -> 0.01257591923
A7: Barton Stacey | B7: =VLOOKUP(A7,'Locations & Types'!$A:$B,2,FALSE) -> STORAGE SITE | C7: =(VLOOKUP(A7, INDIRECT("'"&'Drop Down Inputs'!$A$10&"'!"&" $A:$F"),MATCH('User Inputs'!$C$19, INDIRECT("'"&'Drop Down Inputs'!$A$10&"'!"&"$A$1:$F$1"),0), FALSE))*'User Inputs'!$C$20/100 -> 172600000 | D7: =IF('User Inputs'!$C$23="YES",IF('Entry Prices'!C7-VLOOKUP('Entry Prices'!A7,'Existing Contracts - Entry'!$A:$E,MATCH('User Inputs'!$C$7,'Existing Contracts - Entry'!$A$1:$E$1,0),FALSE)<0,0,'Entry Prices'!C7-VLOOKUP('Entry Prices'!A7,'Existing Contracts - Entry'!$A:$E,MATCH('User Inputs'!$C$7,'Existing Contracts - Entry'!$A$1:$E$1,0),FALSE)),'Entry Prices'!C7) -> 82600000 | E7: ='Entry Adjustment Calcs'!$C$22*'User Inputs'!$D$7 -> 0 | F7: ='Entry Adjustment Calcs'!$C$24 -> 1 | G7: =(('Revenue Input'!$B$5/SUM($D$2:$D$27))*F7)+E7 -> 4.590210519 | J7: ='Entry Adjustment Calcs'!$C$23 -> 0 | K7: =(IF(B7="STORAGE SITE",((100-'User Inputs'!$C$38)/100)*G7/'User Inputs'!$D$7,(IF(B7="LNG IMPORTATION TERMINAL",((100-'User Inputs'!$C$39)/100)*G7/'User Inputs'!$D$7,(IF(B7="INTERCONNECTION POINT",((100-'User Inputs'!$C$40)/100)*G7/'User Inputs'!$D$7,G7/'User Inputs'!$D$7))))))+J7 -> 0.006287959616 | L7: =(IF(B7="STORAGE SITE",((100-'User Inputs'!$C$38)/100)*'User Inputs'!$C$26*'Entry Prices'!G7/'User Inputs'!$D$7,IF(B7="LNG IMPORTATION TERMINAL",((100-'User Inputs'!$C$39)/100)*'User Inputs'!$C$26*'Entry Prices'!G7/'User Inputs'!$D$7,IF(B7="INTERCONNECTION POINT",((100-'User Inputs'!$C$40)/100)*'User Inputs'!$C$32*'Entry Prices'!G7/'User Inputs'!$D$7,'User Inputs'!$C$26*'Entry Prices'!G7/'User Inputs'!$D$7)))+J7) -> 0.006287959616 | M7: =(IF(B7="STORAGE SITE",((100-'User Inputs'!$C$38)/100)* 'User Inputs'!$C$27*'Entry Prices'!G7/'User Inputs'!$D$7, IF(B7="LNG IMPORTATION TERMINAL",((100-'User Inputs'!$C$39)/100)*'User Inputs'!$C$27*'Entry Prices'!G7/'User Inputs'!$D$7,IF(B7="INTERCONNECTION POINT", ((100-'User Inputs'!$C$40)/100)*'User Inputs'!$C$33*'Entry Prices'!G7/'User Inputs'!$D$7, 'User Inputs'!$C$27*'Entry Prices'!G7/'User Inputs'!$D$7))))+J7 -> 0.006287959616 | N7: =(IF(B7="STORAGE SITE",((100-'User Inputs'!$C$38)/100)* 'User Inputs'!$C$28*'Entry Prices'!G7/'User Inputs'!$D$7, IF(B7="LNG IMPORTATION TERMINAL",((100-'User Inputs'!$C$39)/100)*'User Inputs'!$C$28*'Entry Prices'!G7/'User Inputs'!$D$7,IF(B7="INTERCONNECTION POINT",((100-'User Inputs'!$C$40)/100)* 'User Inputs'!$C$34*'Entry Prices'!G7/'User Inputs'!$D$7, 'User Inputs'!$C$28*'Entry Prices'!G7/'User Inputs'!$D$7))))+J7 -> 0.006287959616 | O7: =(IF(B7="STORAGE SITE",((100-'User Inputs'!$C$38)/100)* 'User Inputs'!$C$29*'Entry Prices'!G7/'User Inputs'!$D$7, IF(B7="LNG IMPORTATION TERMINAL",((100-'User Inputs'!$C$39)/100)*'User Inputs'!$C$29*'Entry Prices'!G7/'User Inputs'!$D$7,IF(B7="INTERCONNECTION POINT", ((100-'User Inputs'!$C$40)/100)*'User Inputs'!$C$35*'Entry Prices'!G7/'User Inputs'!$D$7, 'User Inputs'!$C$29*'Entry Prices'!G7/'User Inputs'!$D$7))))+J7 -> 0.006287959616 | P7: =(100-(VLOOKUP(A7,'Entry Interruption Prob''s'!$A:$E,5,FALSE)))*N7/100 -> 0.006287959616
A8: Canonbie | B8: =VLOOKUP(A8,'Locations & Types'!$A:$B,2,FALSE) -> ONSHORE FIELD | C8: =(VLOOKUP(A8, INDIRECT("'"&'Drop Down Inputs'!$A$10&"'!"&" $A:$F"),MATCH('User Inputs'!$C$19, INDIRECT("'"&'Drop Down Inputs'!$A$10&"'!"&"$A$1:$F$1"),0), FALSE))*'User Inputs'!$C$20/100 -> 0 | D8: =IF('User Inputs'!$C$23="YES",IF('Entry Prices'!C8-VLOOKUP('Entry Prices'!A8,'Existing Contracts - Entry'!$A:$E,MATCH('User Inputs'!$C$7,'Existing Contracts - Entry'!$A$1:$E$1,0),FALSE)<0,0,'Entry Prices'!C8-VLOOKUP('Entry Prices'!A8,'Existing Contracts - Entry'!$A:$E,MATCH('User Inputs'!$C$7,'Existing Contracts - Entry'!$A$1:$E$1,0),FALSE)),'Entry Prices'!C8) -> 0 | E8: ='Entry Adjustment Calcs'!$C$22*'User Inputs'!$D$7 -> 0 | F8: ='Entry Adjustment Calcs'!$C$24 -> 1 | G8: =(('Revenue Input'!$B$5/SUM($D$2:$D$27))*F8)+E8 -> 4.590210519 | J8: ='Entry Adjustment Calcs'!$C$23 -> 0 | K8: =(IF(B8="STORAGE SITE",((100-'User Inputs'!$C$38)/100)*G8/'User Inputs'!$D$7,(IF(B8="LNG IMPORTATION TERMINAL",((100-'User Inputs'!$C$39)/100)*G8/'User Inputs'!$D$7,(IF(B8="INTERCONNECTION POINT",((100-'User Inputs'!$C$40)/100)*G8/'User Inputs'!$D$7,G8/'User Inputs'!$D$7))))))+J8 -> 0.01257591923 | L8: =(IF(B8="STORAGE SITE",((100-'User Inputs'!$C$38)/100)*'User Inputs'!$C$26*'Entry Prices'!G8/'User Inputs'!$D$7,IF(B8="LNG IMPORTATION TERMINAL",((100-'User Inputs'!$C$39)/100)*'User Inputs'!$C$26*'Entry Prices'!G8/'User Inputs'!$D$7,IF(B8="INTERCONNECTION POINT",((100-'User Inputs'!$C$40)/100)*'User Inputs'!$C$32*'Entry Prices'!G8/'User Inputs'!$D$7,'User Inputs'!$C$26*'Entry Prices'!G8/'User Inputs'!$D$7)))+J8) -> 0.01257591923 | M8: =(IF(B8="STORAGE SITE",((100-'User Inputs'!$C$38)/100)* 'User Inputs'!$C$27*'Entry Prices'!G8/'User Inputs'!$D$7, IF(B8="LNG IMPORTATION TERMINAL",((100-'User Inputs'!$C$39)/100)*'User Inputs'!$C$27*'Entry Prices'!G8/'User Inputs'!$D$7,IF(B8="INTERCONNECTION POINT", ((100-'User Inputs'!$C$40)/100)*'User Inputs'!$C$33*'Entry Prices'!G8/'User Inputs'!$D$7, 'User Inputs'!$C$27*'Entry Prices'!G8/'User Inputs'!$D$7))))+J8 -> 0.01257591923 | N8: =(IF(B8="STORAGE SITE",((100-'User Inputs'!$C$38)/100)* 'User Inputs'!$C$28*'Entry Prices'!G8/'User Inputs'!$D$7, IF(B8="LNG IMPORTATION TERMINAL",((100-'User Inputs'!$C$39)/100)*'User Inputs'!$C$28*'Entry Prices'!G8/'User Inputs'!$D$7,IF(B8="INTERCONNECTION POINT",((100-'User Inputs'!$C$40)/100)* 'User Inputs'!$C$34*'Entry Prices'!G8/'User Inputs'!$D$7, 'User Inputs'!$C$28*'Entry Prices'!G8/'User Inputs'!$D$7))))+J8 -> 0.01257591923 | O8: =(IF(B8="STORAGE SITE",((100-'User Inputs'!$C$38)/100)* 'User Inputs'!$C$29*'Entry Prices'!G8/'User Inputs'!$D$7, IF(B8="LNG IMPORTATION TERMINAL",((100-'User Inputs'!$C$39)/100)*'User Inputs'!$C$29*'Entry Prices'!G8/'User Inputs'!$D$7,IF(B8="INTERCONNECTION POINT", ((100-'User Inputs'!$C$40)/100)*'User Inputs'!$C$35*'Entry Prices'!G8/'User Inputs'!$D$7, 'User Inputs'!$C$29*'Entry Prices'!G8/'User Inputs'!$D$7))))+J8 -> 0.01257591923 | P8: =(100-(VLOOKUP(A8,'Entry Interruption Prob''s'!$A:$E,5,FALSE)))*N8/100 -> 0.01257591923
A9: Cheshire | B9: =VLOOKUP(A9,'Locations & Types'!$A:$B,2,FALSE) -> STORAGE SITE | C9: =(VLOOKUP(A9, INDIRECT("'"&'Drop Down Inputs'!$A$10&"'!"&" $A:$F"),MATCH('User Inputs'!$C$19, INDIRECT("'"&'Drop Down Inputs'!$A$10&"'!"&"$A$1:$F$1"),0), FALSE))*'User Inputs'!$C$20/100 -> 542700000 | D9: =IF('User Inputs'!$C$23="YES",IF('Entry Prices'!C9-VLOOKUP('Entry Prices'!A9,'Existing Contracts - Entry'!$A:$E,MATCH('User Inputs'!$C$7,'Existing Contracts - Entry'!$A$1:$E$1,0),FALSE)<0,0,'Entry Prices'!C9-VLOOKUP('Entry Prices'!A9,'Existing Contracts - Entry'!$A:$E,MATCH('User Inputs'!$C$7,'Existing Contracts - Entry'!$A$1:$E$1,0),FALSE)),'Entry Prices'!C9) -> 28590000 | E9: ='Entry Adjustment Calcs'!$C$22*'User Inputs'!$D$7 -> 0 | F9: ='Entry Adjustment Calcs'!$C$24 -> 1 | G9: =(('Revenue Input'!$B$5/SUM($D$2:$D$27))*F9)+E9 -> 4.590210519 | J9: ='Entry Adjustment Calcs'!$C$23 -> 0 | K9: =(IF(B9="STORAGE SITE",((100-'User Inputs'!$C$38)/100)*G9/'User Inputs'!$D$7,(IF(B9="LNG IMPORTATION TERMINAL",((100-'User Inputs'!$C$39)/100)*G9/'User Inputs'!$D$7,(IF(B9="INTERCONNECTION POINT",((100-'User Inputs'!$C$40)/100)*G9/'User Inputs'!$D$7,G9/'User Inputs'!$D$7))))))+J9 -> 0.006287959616 | L9: =(IF(B9="STORAGE SITE",((100-'User Inputs'!$C$38)/100)*'User Inputs'!$C$26*'Entry Prices'!G9/'User Inputs'!$D$7,IF(B9="LNG IMPORTATION TERMINAL",((100-'User Inputs'!$C$39)/100)*'User Inputs'!$C$26*'Entry Prices'!G9/'User Inputs'!$D$7,IF(B9="INTERCONNECTION POINT",((100-'User Inputs'!$C$40)/100)*'User Inputs'!$C$32*'Entry Prices'!G9/'User Inputs'!$D$7,'User Inputs'!$C$26*'Entry Prices'!G9/'User Inputs'!$D$7)))+J9) -> 0.006287959616 | M9: =(IF(B9="STORAGE SITE",((100-'User Inputs'!$C$38)/100)* 'User Inputs'!$C$27*'Entry Prices'!G9/'User Inputs'!$D$7, IF(B9="LNG IMPORTATION TERMINAL",((100-'User Inputs'!$C$39)/100)*'User Inputs'!$C$27*'Entry Prices'!G9/'User Inputs'!$D$7,IF(B9="INTERCONNECTION POINT", ((100-'User Inputs'!$C$40)/100)*'User Inputs'!$C$33*'Entry Prices'!G9/'User Inputs'!$D$7, 'User Inputs'!$C$27*'Entry Prices'!G9/'User Inputs'!$D$7))))+J9 -> 0.006287959616 | N9: =(IF(B9="STORAGE SITE",((100-'User Inputs'!$C$38)/100)* 'User Inputs'!$C$28*'Entry Prices'!G9/'User Inputs'!$D$7, IF(B9="LNG IMPORTATION TERMINAL",((100-'User Inputs'!$C$39)/100)*'User Inputs'!$C$28*'Entry Prices'!G9/'User Inputs'!$D$7,IF(B9="INTERCONNECTION POINT",((100-'User Inputs'!$C$40)/100)* 'User Inputs'!$C$34*'Entry Prices'!G9/'User Inputs'!$D$7, 'User Inputs'!$C$28*'Entry Prices'!G9/'User Inputs'!$D$7))))+J9 -> 0.006287959616 | O9: =(IF(B9="STORAGE SITE",((100-'User Inputs'!$C$38)/100)* 'User Inputs'!$C$29*'Entry Prices'!G9/'User Inputs'!$D$7, IF(B9="LNG IMPORTATION TERMINAL",((100-'User Inputs'!$C$39)/100)*'User Inputs'!$C$29*'Entry Prices'!G9/'User Inputs'!$D$7,IF(B9="INTERCONNECTION POINT", ((100-'User Inputs'!$C$40)/100)*'User Inputs'!$C$35*'Entry Prices'!G9/'User Inputs'!$D$7, 'User Inputs'!$C$29*'Entry Prices'!G9/'User Inputs'!$D$7))))+J9 -> 0.006287959616 | P9: =(100-(VLOOKUP(A9,'Entry Interruption Prob''s'!$A:$E,5,FALSE)))*N9/100 -> 0.006287959616
A10: Caythorpe | B10: =VLOOKUP(A10,'Locations & Types'!$A:$B,2,FALSE) -> STORAGE SITE | C10: =(VLOOKUP(A10, INDIRECT("'"&'Drop Down Inputs'!$A$10&"'!"&" $A:$F"),MATCH('User Inputs'!$C$19, INDIRECT("'"&'Drop Down Inputs'!$A$10&"'!"&"$A$1:$F$1"),0), FALSE))*'User Inputs'!$C$20/100 -> 90000000 | D10: =IF('User Inputs'!$C$23="YES",IF('Entry Prices'!C10-VLOOKUP('Entry Prices'!A10,'Existing Contracts - Entry'!$A:$E,MATCH('User Inputs'!$C$7,'Existing Contracts - Entry'!$A$1:$E$1,0),FALSE)<0,0,'Entry Prices'!C10-VLOOKUP('Entry Prices'!A10,'Existing Contracts - Entry'!$A:$E,MATCH('User Inputs'!$C$7,'Existing Contracts - Entry'!$A$1:$E$1,0),FALSE)),'Entry Prices'!C10) -> 0 | E10: ='Entry Adjustment Calcs'!$C$22*'User Inputs'!$D$7 -> 0 | F10: ='Entry Adjustment Calcs'!$C$24 -> 1 | G10: =(('Revenue Input'!$B$5/SUM($D$2:$D$27))*F10)+E10 -> 4.590210519 | J10: ='Entry Adjustment Calcs'!$C$23 -> 0 | K10: =(IF(B10="STORAGE SITE",((100-'User Inputs'!$C$38)/100)*G10/'User Inputs'!$D$7,(IF(B10="LNG IMPORTATION TERMINAL",((100-'User Inputs'!$C$39)/100)*G10/'User Inputs'!$D$7,(IF(B10="INTERCONNECTION POINT",((100-'User Inputs'!$C$40)/100)*G10/'User Inputs'!$D$7,G10/'User Inputs'!$D$7))))))+J10 -> 0.006287959616 | L10: =(IF(B10="STORAGE SITE",((100-'User Inputs'!$C$38)/100)*'User Inputs'!$C$26*'Entry Prices'!G10/'User Inputs'!$D$7,IF(B10="LNG IMPORTATION TERMINAL",((100-'User Inputs'!$C$39)/100)*'User Inputs'!$C$26*'Entry Prices'!G10/'User Inputs'!$D$7,IF(B10="INTERCONNECTION POINT",((100-'User Inputs'!$C$40)/100)*'User Inputs'!$C$32*'Entry Prices'!G10/'User Inputs'!$D$7,'User Inputs'!$C$26*'Entry Prices'!G10/'User Inputs'!$D$7)))+J10) -> 0.006287959616 | M10: =(IF(B10="STORAGE SITE",((100-'User Inputs'!$C$38)/100)* 'User Inputs'!$C$27*'Entry Prices'!G10/'User Inputs'!$D$7, IF(B10="LNG IMPORTATION TERMINAL",((100-'User Inputs'!$C$39)/100)*'User Inputs'!$C$27*'Entry Prices'!G10/'User Inputs'!$D$7,IF(B10="INTERCONNECTION POINT", ((100-'User Inputs'!$C$40)/100)*'User Inputs'!$C$33*'Entry Prices'!G10/'User Inputs'!$D$7, 'User Inputs'!$C$27*'Entry Prices'!G10/'User Inputs'!$D$7))))+J10 -> 0.006287959616 | N10: =(IF(B10="STORAGE SITE",((100-'User Inputs'!$C$38)/100)* 'User Inputs'!$C$28*'Entry Prices'!G10/'User Inputs'!$D$7, IF(B10="LNG IMPORTATION TERMINAL",((100-'User Inputs'!$C$39)/100)*'User Inputs'!$C$28*'Entry Prices'!G10/'User Inputs'!$D$7,IF(B10="INTERCONNECTION POINT",((100-'User Inputs'!$C$40)/100)* 'User Inputs'!$C$34*'Entry Prices'!G10/'User Inputs'!$D$7, 'User Inputs'!$C$28*'Entry Prices'!G10/'User Inputs'!$D$7))))+J10 -> 0.006287959616 | O10: =(IF(B10="STORAGE SITE",((100-'User Inputs'!$C$38)/100)* 'User Inputs'!$C$29*'Entry Prices'!G10/'User Inputs'!$D$7, IF(B10="LNG IMPORTATION TERMINAL",((100-'User Inputs'!$C$39)/100)*'User Inputs'!$C$29*'Entry Prices'!G10/'User Inputs'!$D$7,IF(B10="INTERCONNECTION POINT", ((100-'User Inputs'!$C$40)/100)*'User Inputs'!$C$35*'Entry Prices'!G10/'User Inputs'!$D$7, 'User Inputs'!$C$29*'Entry Prices'!G10/'User Inputs'!$D$7))))+J10 -> 0.006287959616 | P10: =(100-(VLOOKUP(A10,'Entry Interruption Prob''s'!$A:$E,5,FALSE)))*N10/100 -> 0.006287959616
A11: Dynevor Arms | B11: =VLOOKUP(A11,'Locations & Types'!$A:$B,2,FALSE) -> STORAGE SITE | C11: =(VLOOKUP(A11, INDIRECT("'"&'Drop Down Inputs'!$A$10&"'!"&" $A:$F"),MATCH('User Inputs'!$C$19, INDIRECT("'"&'Drop Down Inputs'!$A$10&"'!"&"$A$1:$F$1"),0), FALSE))*'User Inputs'!$C$20/100 -> 49000000 | D11: =IF('User Inputs'!$C$23="YES",IF('Entry Prices'!C11-VLOOKUP('Entry Prices'!A11,'Existing Contracts - Entry'!$A:$E,MATCH('User Inputs'!$C$7,'Existing Contracts - Entry'!$A$1:$E$1,0),FALSE)<0,0,'Entry Prices'!C11-VLOOKUP('Entry Prices'!A11,'Existing Contracts - Entry'!$A:$E,MATCH('User Inputs'!$C$7,'Existing Contracts - Entry'!$A$1:$E$1,0),FALSE)),'Entry Prices'!C11) -> 49000000 | E11: ='Entry Adjustment Calcs'!$C$22*'User Inputs'!$D$7 -> 0 | F11: ='Entry Adjustment Calcs'!$C$24 -> 1 | G11: =(('Revenue Input'!$B$5/SUM($D$2:$D$27))*F11)+E11 -> 4.590210519 | J11: ='Entry Adjustment Calcs'!$C$23 -> 0 | K11: =(IF(B11="STORAGE SITE",((100-'User Inputs'!$C$38)/100)*G11/'User Inputs'!$D$7,(IF(B11="LNG IMPORTATION TERMINAL",((100-'User Inputs'!$C$39)/100)*G11/'User Inputs'!$D$7,(IF(B11="INTERCONNECTION POINT",((100-'User Inputs'!$C$40)/100)*G11/'User Inputs'!$D$7,G11/'User Inputs'!$D$7))))))+J11 -> 0.006287959616 | L11: =(IF(B11="STORAGE SITE",((100-'User Inputs'!$C$38)/100)*'User Inputs'!$C$26*'Entry Prices'!G11/'User Inputs'!$D$7,IF(B11="LNG IMPORTATION TERMINAL",((100-'User Inputs'!$C$39)/100)*'User Inputs'!$C$26*'Entry Prices'!G11/'User Inputs'!$D$7,IF(B11="INTERCONNECTION POINT",((100-'User Inputs'!$C$40)/100)*'User Inputs'!$C$32*'Entry Prices'!G11/'User Inputs'!$D$7,'User Inputs'!$C$26*'Entry Prices'!G11/'User Inputs'!$D$7)))+J11) -> 0.006287959616 | M11: =(IF(B11="STORAGE SITE",((100-'User Inputs'!$C$38)/100)* 'User Inputs'!$C$27*'Entry Prices'!G11/'User Inputs'!$D$7, IF(B11="LNG IMPORTATION TERMINAL",((100-'User Inputs'!$C$39)/100)*'User Inputs'!$C$27*'Entry Prices'!G11/'User Inputs'!$D$7,IF(B11="INTERCONNECTION POINT", ((100-'User Inputs'!$C$40)/100)*'User Inputs'!$C$33*'Entry Prices'!G11/'User Inputs'!$D$7, 'User Inputs'!$C$27*'Entry Prices'!G11/'User Inputs'!$D$7))))+J11 -> 0.006287959616 | N11: =(IF(B11="STORAGE SITE",((100-'User Inputs'!$C$38)/100)* 'User Inputs'!$C$28*'Entry Prices'!G11/'User Inputs'!$D$7, IF(B11="LNG IMPORTATION TERMINAL",((100-'User Inputs'!$C$39)/100)*'User Inputs'!$C$28*'Entry Prices'!G11/'User Inputs'!$D$7,IF(B11="INTERCONNECTION POINT",((100-'User Inputs'!$C$40)/100)* 'User Inputs'!$C$34*'Entry Prices'!G11/'User Inputs'!$D$7, 'User Inputs'!$C$28*'Entry Prices'!G11/'User Inputs'!$D$7))))+J11 -> 0.006287959616 | O11: =(IF(B11="STORAGE SITE",((100-'User Inputs'!$C$38)/100)* 'User Inputs'!$C$29*'Entry Prices'!G11/'User Inputs'!$D$7, IF(B11="LNG IMPORTATION TERMINAL",((100-'User Inputs'!$C$39)/100)*'User Inputs'!$C$29*'Entry Prices'!G11/'User Inputs'!$D$7,IF(B11="INTERCONNECTION POINT", ((100-'User Inputs'!$C$40)/100)*'User Inputs'!$C$35*'Entry Prices'!G11/'User Inputs'!$D$7, 'User Inputs'!$C$29*'Entry Prices'!G11/'User Inputs'!$D$7))))+J11 -> 0.006287959616 | P11: =(100-(VLOOKUP(A11,'Entry Interruption Prob''s'!$A:$E,5,FALSE)))*N11/100 -> 0.006287959616
A12: Easington (not incl. Rough) | B12: =VLOOKUP(A12,'Locations & Types'!$A:$B,2,FALSE) -> BEACH TERMINAL | C12: =(VLOOKUP(A12, INDIRECT("'"&'Drop Down Inputs'!$A$10&"'!"&" $A:$F"),MATCH('User Inputs'!$C$19, INDIRECT("'"&'Drop Down Inputs'!$A$10&"'!"&"$A$1:$F$1"),0), FALSE))*'User Inputs'!$C$20/100 -> 1036670879 | D12: =IF('User Inputs'!$C$23="YES",IF('Entry Prices'!C12-VLOOKUP('Entry Prices'!A12,'Existing Contracts - Entry'!$A:$E,MATCH('User Inputs'!$C$7,'Existing Contracts - Entry'!$A$1:$E$1,0),FALSE)<0,0,'Entry Prices'!C12-VLOOKUP('Entry Prices'!A12,'Existing Contracts - Entry'!$A:$E,MATCH('User Inputs'!$C$7,'Existing Contracts - Entry'!$A$1:$E$1,0),FALSE)),'Entry Prices'!C12) -> 422147587.1 | E12: ='Entry Adjustment Calcs'!$C$22*'User Inputs'!$D$7 -> 0 | F12: ='Entry Adjustment Calcs'!$C$24 -> 1 | G12: =(('Revenue Input'!$B$5/SUM($D$2:$D$27))*F12)+E12 -> 4.590210519 | J12: ='Entry Adjustment Calcs'!$C$23 -> 0 | K12: =(IF(B12="STORAGE SITE",((100-'User Inputs'!$C$38)/100)*G12/'User Inputs'!$D$7,(IF(B12="LNG IMPORTATION TERMINAL",((100-'User Inputs'!$C$39)/100)*G12/'User Inputs'!$D$7,(IF(B12="INTERCONNECTION POINT",((100-'User Inputs'!$C$40)/100)*G12/'User Inputs'!$D$7,G12/'User Inputs'!$D$7))))))+J12 -> 0.01257591923 | L12: =(IF(B12="STORAGE SITE",((100-'User Inputs'!$C$38)/100)*'User Inputs'!$C$26*'Entry Prices'!G12/'User Inputs'!$D$7,IF(B12="LNG IMPORTATION TERMINAL",((100-'User Inputs'!$C$39)/100)*'User Inputs'!$C$26*'Entry Prices'!G12/'User Inputs'!$D$7,IF(B12="INTERCONNECTION POINT",((100-'User Inputs'!$C$40)/100)*'User Inputs'!$C$32*'Entry Prices'!G12/'User Inputs'!$D$7,'User Inputs'!$C$26*'Entry Prices'!G12/'User Inputs'!$D$7)))+J12) -> 0.01257591923 | M12: =(IF(B12="STORAGE SITE",((100-'User Inputs'!$C$38)/100)* 'User Inputs'!$C$27*'Entry Prices'!G12/'User Inputs'!$D$7, IF(B12="LNG IMPORTATION TERMINAL",((100-'User Inputs'!$C$39)/100)*'User Inputs'!$C$27*'Entry Prices'!G12/'User Inputs'!$D$7,IF(B12="INTERCONNECTION POINT", ((100-'User Inputs'!$C$40)/100)*'User Inputs'!$C$33*'Entry Prices'!G12/'User Inputs'!$D$7, 'User Inputs'!$C$27*'Entry Prices'!G12/'User Inputs'!$D$7))))+J12 -> 0.01257591923 | N12: =(IF(B12="STORAGE SITE",((100-'User Inputs'!$C$38)/100)* 'User Inputs'!$C$28*'Entry Prices'!G12/'User Inputs'!$D$7, IF(B12="LNG IMPORTATION TERMINAL",((100-'User Inputs'!$C$39)/100)*'User Inputs'!$C$28*'Entry Prices'!G12/'User Inputs'!$D$7,IF(B12="INTERCONNECTION POINT",((100-'User Inputs'!$C$40)/100)* 'User Inputs'!$C$34*'Entry Prices'!G12/'User Inputs'!$D$7, 'User Inputs'!$C$28*'Entry Prices'!G12/'User Inputs'!$D$7))))+J12 -> 0.01257591923 | O12: =(IF(B12="STORAGE SITE",((100-'User Inputs'!$C$38)/100)* 'User Inputs'!$C$29*'Entry Prices'!G12/'User Inputs'!$D$7, IF(B12="LNG IMPORTATION TERMINAL",((100-'User Inputs'!$C$39)/100)*'User Inputs'!$C$29*'Entry Prices'!G12/'User Inputs'!$D$7,IF(B12="INTERCONNECTION POINT", ((100-'User Inputs'!$C$40)/100)*'User Inputs'!$C$35*'Entry Prices'!G12/'User Inputs'!$D$7, 'User Inputs'!$C$29*'Entry Prices'!G12/'User Inputs'!$D$7))))+J12 -> 0.01257591923 | P12: =(100-(VLOOKUP(A12,'Entry Interruption Prob''s'!$A:$E,5,FALSE)))*N12/100 -> 0.01257591923
A13: Fleetwood | B13: =VLOOKUP(A13,'Locations & Types'!$A:$B,2,FALSE) -> STORAGE SITE | C13: =(VLOOKUP(A13, INDIRECT("'"&'Drop Down Inputs'!$A$10&"'!"&" $A:$F"),MATCH('User Inputs'!$C$19, INDIRECT("'"&'Drop Down Inputs'!$A$10&"'!"&"$A$1:$F$1"),0), FALSE))*'User Inputs'!$C$20/100 -> 650000000 | D13: =IF('User Inputs'!$C$23="YES",IF('Entry Prices'!C13-VLOOKUP('Entry Prices'!A13,'Existing Contracts - Entry'!$A:$E,MATCH('User Inputs'!$C$7,'Existing Contracts - Entry'!$A$1:$E$1,0),FALSE)<0,0,'Entry Prices'!C13-VLOOKUP('Entry Prices'!A13,'Existing Contracts - Entry'!$A:$E,MATCH('User Inputs'!$C$7,'Existing Contracts - Entry'!$A$1:$E$1,0),FALSE)),'Entry Prices'!C13) -> 650000000 | E13: ='Entry Adjustment Calcs'!$C$22*'User Inputs'!$D$7 -> 0 | F13: ='Entry Adjustment Calcs'!$C$24 -> 1 | G13: =(('Revenue Input'!$B$5/SUM($D$2:$D$27))*F13)+E13 -> 4.590210519 | J13: ='Entry Adjustment Calcs'!$C$23 -> 0 | K13: =(IF(B13="STORAGE SITE",((100-'User Inputs'!$C$38)/100)*G13/'User Inputs'!$D$7,(IF(B13="LNG IMPORTATION TERMINAL",((100-'User Inputs'!$C$39)/100)*G13/'User Inputs'!$D$7,(IF(B13="INTERCONNECTION POINT",((100-'User Inputs'!$C$40)/100)*G13/'User Inputs'!$D$7,G13/'User Inputs'!$D$7))))))+J13 -> 0.006287959616 | L13: =(IF(B13="STORAGE SITE",((100-'User Inputs'!$C$38)/100)*'User Inputs'!$C$26*'Entry Prices'!G13/'User Inputs'!$D$7,IF(B13="LNG IMPORTATION TERMINAL",((100-'User Inputs'!$C$39)/100)*'User Inputs'!$C$26*'Entry Prices'!G13/'User Inputs'!$D$7,IF(B13="INTERCONNECTION POINT",((100-'User Inputs'!$C$40)/100)*'User Inputs'!$C$32*'Entry Prices'!G13/'User Inputs'!$D$7,'User Inputs'!$C$26*'Entry Prices'!G13/'User Inputs'!$D$7)))+J13) -> 0.006287959616 | M13: =(IF(B13="STORAGE SITE",((100-'User Inputs'!$C$38)/100)* 'User Inputs'!$C$27*'Entry Prices'!G13/'User Inputs'!$D$7, IF(B13="LNG IMPORTATION TERMINAL",((100-'User Inputs'!$C$39)/100)*'User Inputs'!$C$27*'Entry Prices'!G13/'User Inputs'!$D$7,IF(B13="INTERCONNECTION POINT", ((100-'User Inputs'!$C$40)/100)*'User Inputs'!$C$33*'Entry Prices'!G13/'User Inputs'!$D$7, 'User Inputs'!$C$27*'Entry Prices'!G13/'User Inputs'!$D$7))))+J13 -> 0.006287959616 | N13: =(IF(B13="STORAGE SITE",((100-'User Inputs'!$C$38)/100)* 'User Inputs'!$C$28*'Entry Prices'!G13/'User Inputs'!$D$7, IF(B13="LNG IMPORTATION TERMINAL",((100-'User Inputs'!$C$39)/100)*'User Inputs'!$C$28*'Entry Prices'!G13/'User Inputs'!$D$7,IF(B13="INTERCONNECTION POINT",((100-'User Inputs'!$C$40)/100)* 'User Inputs'!$C$34*'Entry Prices'!G13/'User Inputs'!$D$7, 'User Inputs'!$C$28*'Entry Prices'!G13/'User Inputs'!$D$7))))+J13 -> 0.006287959616 | O13: =(IF(B13="STORAGE SITE",((100-'User Inputs'!$C$38)/100)* 'User Inputs'!$C$29*'Entry Prices'!G13/'User Inputs'!$D$7, IF(B13="LNG IMPORTATION TERMINAL",((100-'User Inputs'!$C$39)/100)*'User Inputs'!$C$29*'Entry Prices'!G13/'User Inputs'!$D$7,IF(B13="INTERCONNECTION POINT", ((100-'User Inputs'!$C$40)/100)*'User Inputs'!$C$35*'Entry Prices'!G13/'User Inputs'!$D$7, 'User Inputs'!$C$29*'Entry Prices'!G13/'User Inputs'!$D$7))))+J13 -> 0.006287959616 | P13: =(100-(VLOOKUP(A13,'Entry Interruption Prob''s'!$A:$E,5,FALSE)))*N13/100 -> 0.006287959616
A14: Glenmavis | B14: =VLOOKUP(A14,'Locations & Types'!$A:$B,2,FALSE) -> STORAGE SITE | C14: =(VLOOKUP(A14, INDIRECT("'"&'Drop Down Inputs'!$A$10&"'!"&" $A:$F"),MATCH('User Inputs'!$C$19, INDIRECT("'"&'Drop Down Inputs'!$A$10&"'!"&"$A$1:$F$1"),0), FALSE))*'User Inputs'!$C$20/100 -> 99000000 | D14: =IF('User Inputs'!$C$23="YES",IF('Entry Prices'!C14-VLOOKUP('Entry Prices'!A14,'Existing Contracts - Entry'!$A:$E,MATCH('User Inputs'!$C$7,'Existing Contracts - Entry'!$A$1:$E$1,0),FALSE)<0,0,'Entry Prices'!C14-VLOOKUP('Entry Prices'!A14,'Existing Contracts - Entry'!$A:$E,MATCH('User Inputs'!$C$7,'Existing Contracts - Entry'!$A$1:$E$1,0),FALSE)),'Entry Prices'!C14) -> 99000000 | E14: ='Entry Adjustment Calcs'!$C$22*'User Inputs'!$D$7 -> 0 | F14: ='Entry Adjustment Calcs'!$C$24 -> 1 | G14: =(('Revenue Input'!$B$5/SUM($D$2:$D$27))*F14)+E14 -> 4.590210519 | J14: ='Entry Adjustment Calcs'!$C$23 -> 0 | K14: =(IF(B14="STORAGE SITE",((100-'User Inputs'!$C$38)/100)*G14/'User Inputs'!$D$7,(IF(B14="LNG IMPORTATION TERMINAL",((100-'User Inputs'!$C$39)/100)*G14/'User Inputs'!$D$7,(IF(B14="INTERCONNECTION POINT",((100-'User Inputs'!$C$40)/100)*G14/'User Inputs'!$D$7,G14/'User Inputs'!$D$7))))))+J14 -> 0.006287959616 | L14: =(IF(B14="STORAGE SITE",((100-'User Inputs'!$C$38)/100)*'User Inputs'!$C$26*'Entry Prices'!G14/'User Inputs'!$D$7,IF(B14="LNG IMPORTATION TERMINAL",((100-'User Inputs'!$C$39)/100)*'User Inputs'!$C$26*'Entry Prices'!G14/'User Inputs'!$D$7,IF(B14="INTERCONNECTION POINT",((100-'User Inputs'!$C$40)/100)*'User Inputs'!$C$32*'Entry Prices'!G14/'User Inputs'!$D$7,'User Inputs'!$C$26*'Entry Prices'!G14/'User Inputs'!$D$7)))+J14) -> 0.006287959616 | M14: =(IF(B14="STORAGE SITE",((100-'User Inputs'!$C$38)/100)* 'User Inputs'!$C$27*'Entry Prices'!G14/'User Inputs'!$D$7, IF(B14="LNG IMPORTATION TERMINAL",((100-'User Inputs'!$C$39)/100)*'User Inputs'!$C$27*'Entry Prices'!G14/'User Inputs'!$D$7,IF(B14="INTERCONNECTION POINT", ((100-'User Inputs'!$C$40)/100)*'User Inputs'!$C$33*'Entry Prices'!G14/'User Inputs'!$D$7, 'User Inputs'!$C$27*'Entry Prices'!G14/'User Inputs'!$D$7))))+J14 -> 0.006287959616 | N14: =(IF(B14="STORAGE SITE",((100-'User Inputs'!$C$38)/100)* 'User Inputs'!$C$28*'Entry Prices'!G14/'User Inputs'!$D$7, IF(B14="LNG IMPORTATION TERMINAL",((100-'User Inputs'!$C$39)/100)*'User Inputs'!$C$28*'Entry Prices'!G14/'User Inputs'!$D$7,IF(B14="INTERCONNECTION POINT",((100-'User Inputs'!$C$40)/100)* 'User Inputs'!$C$34*'Entry Prices'!G14/'User Inputs'!$D$7, 'User Inputs'!$C$28*'Entry Prices'!G14/'User Inputs'!$D$7))))+J14 -> 0.006287959616 | O14: =(IF(B14="STORAGE SITE",((100-'User Inputs'!$C$38)/100)* 'User Inputs'!$C$29*'Entry Prices'!G14/'User Inputs'!$D$7, IF(B14="LNG IMPORTATION TERMINAL",((100-'User Inputs'!$C$39)/100)*'User Inputs'!$C$29*'Entry Prices'!G14/'User Inputs'!$D$7,IF(B14="INTERCONNECTION POINT", ((100-'User Inputs'!$C$40)/100)*'User Inputs'!$C$35*'Entry Prices'!G14/'User Inputs'!$D$7, 'User Inputs'!$C$29*'Entry Prices'!G14/'User Inputs'!$D$7))))+J14 -> 0.006287959616 | P14: =(100-(VLOOKUP(A14,'Entry Interruption Prob''s'!$A:$E,5,FALSE)))*N14/100 -> 0.006287959616
A15: Garton | B15: =VLOOKUP(A15,'Locations & Types'!$A:$B,2,FALSE) -> STORAGE SITE | C15: =(VLOOKUP(A15, INDIRECT("'"&'Drop Down Inputs'!$A$10&"'!"&" $A:$F"),MATCH('User Inputs'!$C$19, INDIRECT("'"&'Drop Down Inputs'!$A$10&"'!"&"$A$1:$F$1"),0), FALSE))*'User Inputs'!$C$20/100 -> 420000000 | D15: =IF('User Inputs'!$C$23="YES",IF('Entry Prices'!C15-VLOOKUP('Entry Prices'!A15,'Existing Contracts - Entry'!$A:$E,MATCH('User Inputs'!$C$7,'Existing Contracts - Entry'!$A$1:$E$1,0),FALSE)<0,0,'Entry Prices'!C15-VLOOKUP('Entry Prices'!A15,'Existing Contracts - Entry'!$A:$E,MATCH('User Inputs'!$C$7,'Existing Contracts - Entry'!$A$1:$E$1,0),FALSE)),'Entry Prices'!C15) -> 0 | E15: ='Entry Adjustment Calcs'!$C$22*'User Inputs'!$D$7 -> 0 | F15: ='Entry Adjustment Calcs'!$C$24 -> 1 | G15: =(('Revenue Input'!$B$5/SUM($D$2:$D$27))*F15)+E15 -> 4.590210519 | J15: ='Entry Adjustment Calcs'!$C$23 -> 0 | K15: =(IF(B15="STORAGE SITE",((100-'User Inputs'!$C$38)/100)*G15/'User Inputs'!$D$7,(IF(B15="LNG IMPORTATION TERMINAL",((100-'User Inputs'!$C$39)/100)*G15/'User Inputs'!$D$7,(IF(B15="INTERCONNECTION POINT",((100-'User Inputs'!$C$40)/100)*G15/'User Inputs'!$D$7,G15/'User Inputs'!$D$7))))))+J15 -> 0.006287959616 | L15: =(IF(B15="STORAGE SITE",((100-'User Inputs'!$C$38)/100)*'User Inputs'!$C$26*'Entry Prices'!G15/'User Inputs'!$D$7,IF(B15="LNG IMPORTATION TERMINAL",((100-'User Inputs'!$C$39)/100)*'User Inputs'!$C$26*'Entry Prices'!G15/'User Inputs'!$D$7,IF(B15="INTERCONNECTION POINT",((100-'User Inputs'!$C$40)/100)*'User Inputs'!$C$32*'Entry Prices'!G15/'User Inputs'!$D$7,'User Inputs'!$C$26*'Entry Prices'!G15/'User Inputs'!$D$7)))+J15) -> 0.006287959616 | M15: =(IF(B15="STORAGE SITE",((100-'User Inputs'!$C$38)/100)* 'User Inputs'!$C$27*'Entry Prices'!G15/'User Inputs'!$D$7, IF(B15="LNG IMPORTATION TERMINAL",((100-'User Inputs'!$C$39)/100)*'User Inputs'!$C$27*'Entry Prices'!G15/'User Inputs'!$D$7,IF(B15="INTERCONNECTION POINT", ((100-'User Inputs'!$C$40)/100)*'User Inputs'!$C$33*'Entry Prices'!G15/'User Inputs'!$D$7, 'User Inputs'!$C$27*'Entry Prices'!G15/'User Inputs'!$D$7))))+J15 -> 0.006287959616 | N15: =(IF(B15="STORAGE SITE",((100-'User Inputs'!$C$38)/100)* 'User Inputs'!$C$28*'Entry Prices'!G15/'User Inputs'!$D$7, IF(B15="LNG IMPORTATION TERMINAL",((100-'User Inputs'!$C$39)/100)*'User Inputs'!$C$28*'Entry Prices'!G15/'User Inputs'!$D$7,IF(B15="INTERCONNECTION POINT",((100-'User Inputs'!$C$40)/100)* 'User Inputs'!$C$34*'Entry Prices'!G15/'User Inputs'!$D$7, 'User Inputs'!$C$28*'Entry Prices'!G15/'User Inputs'!$D$7))))+J15 -> 0.006287959616 | O15: =(IF(B15="STORAGE SITE",((100-'User Inputs'!$C$38)/100)* 'User Inputs'!$C$29*'Entry Prices'!G15/'User Inputs'!$D$7, IF(B15="LNG IMPORTATION TERMINAL",((100-'User Inputs'!$C$39)/100)*'User Inputs'!$C$29*'Entry Prices'!G15/'User Inputs'!$D$7,IF(B15="INTERCONNECTION POINT", ((100-'User Inputs'!$C$40)/100)*'User Inputs'!$C$35*'Entry Prices'!G15/'User Inputs'!$D$7, 'User Inputs'!$C$29*'Entry Prices'!G15/'User Inputs'!$D$7))))+J15 -> 0.006287959616 | P15: =(100-(VLOOKUP(A15,'Entry Interruption Prob''s'!$A:$E,5,FALSE)))*N15/100 -> 0.006287959616
A16: Hole House Farm | B16: =VLOOKUP(A16,'Locations & Types'!$A:$B,2,FALSE) -> STORAGE SITE | C16: =(VLOOKUP(A16, INDIRECT("'"&'Drop Down Inputs'!$A$10&"'!"&" $A:$F"),MATCH('User Inputs'!$C$19, INDIRECT("'"&'Drop Down Inputs'!$A$10&"'!"&"$A$1:$F$1"),0), FALSE))*'User Inputs'!$C$20/100 -> 296600000 | D16: =IF('User Inputs'!$C$23="YES",IF('Entry Prices'!C16-VLOOKUP('Entry Prices'!A16,'Existing Contracts - Entry'!$A:$E,MATCH('User Inputs'!$C$7,'Existing Contracts - Entry'!$A$1:$E$1,0),FALSE)<0,0,'Entry Prices'!C16-VLOOKUP('Entry Prices'!A16,'Existing Contracts - Entry'!$A:$E,MATCH('User Inputs'!$C$7,'Existing Contracts - Entry'!$A$1:$E$1,0),FALSE)),'Entry Prices'!C16) -> 13160000 | E16: ='Entry Adjustment Calcs'!$C$22*'User Inputs'!$D$7 -> 0 | F16: ='Entry Adjustment Calcs'!$C$24 -> 1 | G16: =(('Revenue Input'!$B$5/SUM($D$2:$D$27))*F16)+E16 -> 4.590210519 | J16: ='Entry Adjustment Calcs'!$C$23 -> 0 | K16: =(IF(B16="STORAGE SITE",((100-'User Inputs'!$C$38)/100)*G16/'User Inputs'!$D$7,(IF(B16="LNG IMPORTATION TERMINAL",((100-'User Inputs'!$C$39)/100)*G16/'User Inputs'!$D$7,(IF(B16="INTERCONNECTION POINT",((100-'User Inputs'!$C$40)/100)*G16/'User Inputs'!$D$7,G16/'User Inputs'!$D$7))))))+J16 -> 0.006287959616 | L16: =(IF(B16="STORAGE SITE",((100-'User Inputs'!$C$38)/100)*'User Inputs'!$C$26*'Entry Prices'!G16/'User Inputs'!$D$7,IF(B16="LNG IMPORTATION TERMINAL",((100-'User Inputs'!$C$39)/100)*'User Inputs'!$C$26*'Entry Prices'!G16/'User Inputs'!$D$7,IF(B16="INTERCONNECTION POINT",((100-'User Inputs'!$C$40)/100)*'User Inputs'!$C$32*'Entry Prices'!G16/'User Inputs'!$D$7,'User Inputs'!$C$26*'Entry Prices'!G16/'User Inputs'!$D$7)))+J16) -> 0.006287959616 | M16: =(IF(B16="STORAGE SITE",((100-'User Inputs'!$C$38)/100)* 'User Inputs'!$C$27*'Entry Prices'!G16/'User Inputs'!$D$7, IF(B16="LNG IMPORTATION TERMINAL",((100-'User Inputs'!$C$39)/100)*'User Inputs'!$C$27*'Entry Prices'!G16/'User Inputs'!$D$7,IF(B16="INTERCONNECTION POINT", ((100-'User Inputs'!$C$40)/100)*'User Inputs'!$C$33*'Entry Prices'!G16/'User Inputs'!$D$7, 'User Inputs'!$C$27*'Entry Prices'!G16/'User Inputs'!$D$7))))+J16 -> 0.006287959616 | N16: =(IF(B16="STORAGE SITE",((100-'User Inputs'!$C$38)/100)* 'User Inputs'!$C$28*'Entry Prices'!G16/'User Inputs'!$D$7, IF(B16="LNG IMPORTATION TERMINAL",((100-'User Inputs'!$C$39)/100)*'User Inputs'!$C$28*'Entry Prices'!G16/'User Inputs'!$D$7,IF(B16="INTERCONNECTION POINT",((100-'User Inputs'!$C$40)/100)* 'User Inputs'!$C$34*'Entry Prices'!G16/'User Inputs'!$D$7, 'User Inputs'!$C$28*'Entry Prices'!G16/'User Inputs'!$D$7))))+J16 -> 0.006287959616 | O16: =(IF(B16="STORAGE SITE",((100-'User Inputs'!$C$38)/100)* 'User Inputs'!$C$29*'Entry Prices'!G16/'User Inputs'!$D$7, IF(B16="LNG IMPORTATION TERMINAL",((100-'User Inputs'!$C$39)/100)*'User Inputs'!$C$29*'Entry Prices'!G16/'User Inputs'!$D$7,IF(B16="INTERCONNECTION POINT", ((100-'User Inputs'!$C$40)/100)*'User Inputs'!$C$35*'Entry Prices'!G16/'User Inputs'!$D$7, 'User Inputs'!$C$29*'Entry Prices'!G16/'User Inputs'!$D$7))))+J16 -> 0.006287959616 | P16: =(100-(VLOOKUP(A16,'Entry Interruption Prob''s'!$A:$E,5,FALSE)))*N16/100 -> 0.006287959616
A17: Hatfield Moor (onshore) | B17: =VLOOKUP(A17,'Locations & Types'!$A:$B,2,FALSE) -> ONSHORE FIELD | C17: =(VLOOKUP(A17, INDIRECT("'"&'Drop Down Inputs'!$A$10&"'!"&" $A:$F"),MATCH('User Inputs'!$C$19, INDIRECT("'"&'Drop Down Inputs'!$A$10&"'!"&"$A$1:$F$1"),0), FALSE))*'User Inputs'!$C$20/100 -> 300000 | D17: =IF('User Inputs'!$C$23="YES",IF('Entry Prices'!C17-VLOOKUP('Entry Prices'!A17,'Existing Contracts - Entry'!$A:$E,MATCH('User Inputs'!$C$7,'Existing Contracts - Entry'!$A$1:$E$1,0),FALSE)<0,0,'Entry Prices'!C17-VLOOKUP('Entry Prices'!A17,'Existing Contracts - Entry'!$A:$E,MATCH('User Inputs'!$C$7,'Existing Contracts - Entry'!$A$1:$E$1,0),FALSE)),'Entry Prices'!C17) -> 300000 | E17: ='Entry Adjustment Calcs'!$C$22*'User Inputs'!$D$7 -> 0 | F17: ='Entry Adjustment Calcs'!$C$24 -> 1 | G17: =(('Revenue Input'!$B$5/SUM($D$2:$D$27))*F17)+E17 -> 4.590210519 | J17: ='Entry Adjustment Calcs'!$C$23 -> 0 | K17: =(IF(B17="STORAGE SITE",((100-'User Inputs'!$C$38)/100)*G17/'User Inputs'!$D$7,(IF(B17="LNG IMPORTATION TERMINAL",((100-'User Inputs'!$C$39)/100)*G17/'User Inputs'!$D$7,(IF(B17="INTERCONNECTION POINT",((100-'User Inputs'!$C$40)/100)*G17/'User Inputs'!$D$7,G17/'User Inputs'!$D$7))))))+J17 -> 0.01257591923 | L17: =(IF(B17="STORAGE SITE",((100-'User Inputs'!$C$38)/100)*'User Inputs'!$C$26*'Entry Prices'!G17/'User Inputs'!$D$7,IF(B17="LNG IMPORTATION TERMINAL",((100-'User Inputs'!$C$39)/100)*'User Inputs'!$C$26*'Entry Prices'!G17/'User Inputs'!$D$7,IF(B17="INTERCONNECTION POINT",((100-'User Inputs'!$C$40)/100)*'User Inputs'!$C$32*'Entry Prices'!G17/'User Inputs'!$D$7,'User Inputs'!$C$26*'Entry Prices'!G17/'User Inputs'!$D$7)))+J17) -> 0.01257591923 | M17: =(IF(B17="STORAGE SITE",((100-'User Inputs'!$C$38)/100)* 'User Inputs'!$C$27*'Entry Prices'!G17/'User Inputs'!$D$7, IF(B17="LNG IMPORTATION TERMINAL",((100-'User Inputs'!$C$39)/100)*'User Inputs'!$C$27*'Entry Prices'!G17/'User Inputs'!$D$7,IF(B17="INTERCONNECTION POINT", ((100-'User Inputs'!$C$40)/100)*'User Inputs'!$C$33*'Entry Prices'!G17/'User Inputs'!$D$7, 'User Inputs'!$C$27*'Entry Prices'!G17/'User Inputs'!$D$7))))+J17 -> 0.01257591923 | N17: =(IF(B17="STORAGE SITE",((100-'User Inputs'!$C$38)/100)* 'User Inputs'!$C$28*'Entry Prices'!G17/'User Inputs'!$D$7, IF(B17="LNG IMPORTATION TERMINAL",((100-'User Inputs'!$C$39)/100)*'User Inputs'!$C$28*'Entry Prices'!G17/'User Inputs'!$D$7,IF(B17="INTERCONNECTION POINT",((100-'User Inputs'!$C$40)/100)* 'User Inputs'!$C$34*'Entry Prices'!G17/'User Inputs'!$D$7, 'User Inputs'!$C$28*'Entry Prices'!G17/'User Inputs'!$D$7))))+J17 -> 0.01257591923 | O17: =(IF(B17="STORAGE SITE",((100-'User Inputs'!$C$38)/100)* 'User Inputs'!$C$29*'Entry Prices'!G17/'User Inputs'!$D$7, IF(B17="LNG IMPORTATION TERMINAL",((100-'User Inputs'!$C$39)/100)*'User Inputs'!$C$29*'Entry Prices'!G17/'User Inputs'!$D$7,IF(B17="INTERCONNECTION POINT", ((100-'User Inputs'!$C$40)/100)*'User Inputs'!$C$35*'Entry Prices'!G17/'User Inputs'!$D$7, 'User Inputs'!$C$29*'Entry Prices'!G17/'User Inputs'!$D$7))))+J17 -> 0.01257591923 | P17: =(100-(VLOOKUP(A17,'Entry Interruption Prob''s'!$A:$E,5,FALSE)))*N17/100 -> 0.01257591923
A18: Hornsea | B18: =VLOOKUP(A18,'Locations & Types'!$A:$B,2,FALSE) -> STORAGE SITE | C18: =(VLOOKUP(A18, INDIRECT("'"&'Drop Down Inputs'!$A$10&"'!"&" $A:$F"),MATCH('User Inputs'!$C$19, INDIRECT("'"&'Drop Down Inputs'!$A$10&"'!"&"$A$1:$F$1"),0), FALSE))*'User Inputs'!$C$20/100 -> 233100000 | D18: =IF('User Inputs'!$C$23="YES",IF('Entry Prices'!C18-VLOOKUP('Entry Prices'!A18,'Existing Contracts - Entry'!$A:$E,MATCH('User Inputs'!$C$7,'Existing Contracts - Entry'!$A$1:$E$1,0),FALSE)<0,0,'Entry Prices'!C18-VLOOKUP('Entry Prices'!A18,'Existing Contracts - Entry'!$A:$E,MATCH('User Inputs'!$C$7,'Existing Contracts - Entry'!$A$1:$E$1,0),FALSE)),'Entry Prices'!C18) -> 132425205.5 | E18: ='Entry Adjustment Calcs'!$C$22*'User Inputs'!$D$7 -> 0 | F18: ='Entry Adjustment Calcs'!$C$24 -> 1 | G18: =(('Revenue Input'!$B$5/SUM($D$2:$D$27))*F18)+E18 -> 4.590210519 | J18: ='Entry Adjustment Calcs'!$C$23 -> 0 | K18: =(IF(B18="STORAGE SITE",((100-'User Inputs'!$C$38)/100)*G18/'User Inputs'!$D$7,(IF(B18="LNG IMPORTATION TERMINAL",((100-'User Inputs'!$C$39)/100)*G18/'User Inputs'!$D$7,(IF(B18="INTERCONNECTION POINT",((100-'User Inputs'!$C$40)/100)*G18/'User Inputs'!$D$7,G18/'User Inputs'!$D$7))))))+J18 -> 0.006287959616 | L18: =(IF(B18="STORAGE SITE",((100-'User Inputs'!$C$38)/100)*'User Inputs'!$C$26*'Entry Prices'!G18/'User Inputs'!$D$7,IF(B18="LNG IMPORTATION TERMINAL",((100-'User Inputs'!$C$39)/100)*'User Inputs'!$C$26*'Entry Prices'!G18/'User Inputs'!$D$7,IF(B18="INTERCONNECTION POINT",((100-'User Inputs'!$C$40)/100)*'User Inputs'!$C$32*'Entry Prices'!G18/'User Inputs'!$D$7,'User Inputs'!$C$26*'Entry Prices'!G18/'User Inputs'!$D$7)))+J18) -> 0.006287959616 | M18: =(IF(B18="STORAGE SITE",((100-'User Inputs'!$C$38)/100)* 'User Inputs'!$C$27*'Entry Prices'!G18/'User Inputs'!$D$7, IF(B18="LNG IMPORTATION TERMINAL",((100-'User Inputs'!$C$39)/100)*'User Inputs'!$C$27*'Entry Prices'!G18/'User Inputs'!$D$7,IF(B18="INTERCONNECTION POINT", ((100-'User Inputs'!$C$40)/100)*'User Inputs'!$C$33*'Entry Prices'!G18/'User Inputs'!$D$7, 'User Inputs'!$C$27*'Entry Prices'!G18/'User Inputs'!$D$7))))+J18 -> 0.006287959616 | N18: =(IF(B18="STORAGE SITE",((100-'User Inputs'!$C$38)/100)* 'User Inputs'!$C$28*'Entry Prices'!G18/'User Inputs'!$D$7, IF(B18="LNG IMPORTATION TERMINAL",((100-'User Inputs'!$C$39)/100)*'User Inputs'!$C$28*'Entry Prices'!G18/'User Inputs'!$D$7,IF(B18="INTERCONNECTION POINT",((100-'User Inputs'!$C$40)/100)* 'User Inputs'!$C$34*'Entry Prices'!G18/'User Inputs'!$D$7, 'User Inputs'!$C$28*'Entry Prices'!G18/'User Inputs'!$D$7))))+J18 -> 0.006287959616 | O18: =(IF(B18="STORAGE SITE",((100-'User Inputs'!$C$38)/100)* 'User Inputs'!$C$29*'Entry Prices'!G18/'User Inputs'!$D$7, IF(B18="LNG IMPORTATION TERMINAL",((100-'User Inputs'!$C$39)/100)*'User Inputs'!$C$29*'Entry Prices'!G18/'User Inputs'!$D$7,IF(B18="INTERCONNECTION POINT", ((100-'User Inputs'!$C$40)/100)*'User Inputs'!$C$35*'Entry Prices'!G18/'User Inputs'!$D$7, 'User Inputs'!$C$29*'Entry Prices'!G18/'User Inputs'!$D$7))))+J18 -> 0.006287959616 | P18: =(100-(VLOOKUP(A18,'Entry Interruption Prob''s'!$A:$E,5,FALSE)))*N18/100 -> 0.006287959616
A19: Hatfield Moor (storage) | B19: =VLOOKUP(A19,'Locations & Types'!$A:$B,2,FALSE) -> STORAGE SITE | C19: =(VLOOKUP(A19, INDIRECT("'"&'Drop Down Inputs'!$A$10&"'!"&" $A:$F"),MATCH('User Inputs'!$C$19, INDIRECT("'"&'Drop Down Inputs'!$A$10&"'!"&"$A$1:$F$1"),0), FALSE))*'User Inputs'!$C$20/100 -> 25000000 | D19: =IF('User Inputs'!$C$23="YES",IF('Entry Prices'!C19-VLOOKUP('Entry Prices'!A19,'Existing Contracts - Entry'!$A:$E,MATCH('User Inputs'!$C$7,'Existing Contracts - Entry'!$A$1:$E$1,0),FALSE)<0,0,'Entry Prices'!C19-VLOOKUP('Entry Prices'!A19,'Existing Contracts - Entry'!$A:$E,MATCH('User Inputs'!$C$7,'Existing Contracts - Entry'!$A$1:$E$1,0),FALSE)),'Entry Prices'!C19) -> 19575342.47 | E19: ='Entry Adjustment Calcs'!$C$22*'User Inputs'!$D$7 -> 0 | F19: ='Entry Adjustment Calcs'!$C$24 -> 1 | G19: =(('Revenue Input'!$B$5/SUM($D$2:$D$27))*F19)+E19 -> 4.590210519 | J19: ='Entry Adjustment Calcs'!$C$23 -> 0 | K19: =(IF(B19="STORAGE SITE",((100-'User Inputs'!$C$38)/100)*G19/'User Inputs'!$D$7,(IF(B19="LNG IMPORTATION TERMINAL",((100-'User Inputs'!$C$39)/100)*G19/'User Inputs'!$D$7,(IF(B19="INTERCONNECTION POINT",((100-'User Inputs'!$C$40)/100)*G19/'User Inputs'!$D$7,G19/'User Inputs'!$D$7))))))+J19 -> 0.006287959616 | L19: =(IF(B19="STORAGE SITE",((100-'User Inputs'!$C$38)/100)*'User Inputs'!$C$26*'Entry Prices'!G19/'User Inputs'!$D$7,IF(B19="LNG IMPORTATION TERMINAL",((100-'User Inputs'!$C$39)/100)*'User Inputs'!$C$26*'Entry Prices'!G19/'User Inputs'!$D$7,IF(B19="INTERCONNECTION POINT",((100-'User Inputs'!$C$40)/100)*'User Inputs'!$C$32*'Entry Prices'!G19/'User Inputs'!$D$7,'User Inputs'!$C$26*'Entry Prices'!G19/'User Inputs'!$D$7)))+J19) -> 0.006287959616 | M19: =(IF(B19="STORAGE SITE",((100-'User Inputs'!$C$38)/100)* 'User Inputs'!$C$27*'Entry Prices'!G19/'User Inputs'!$D$7, IF(B19="LNG IMPORTATION TERMINAL",((100-'User Inputs'!$C$39)/100)*'User Inputs'!$C$27*'Entry Prices'!G19/'User Inputs'!$D$7,IF(B19="INTERCONNECTION POINT", ((100-'User Inputs'!$C$40)/100)*'User Inputs'!$C$33*'Entry Prices'!G19/'User Inputs'!$D$7, 'User Inputs'!$C$27*'Entry Prices'!G19/'User Inputs'!$D$7))))+J19 -> 0.006287959616 | N19: =(IF(B19="STORAGE SITE",((100-'User Inputs'!$C$38)/100)* 'User Inputs'!$C$28*'Entry Prices'!G19/'User Inputs'!$D$7, IF(B19="LNG IMPORTATION TERMINAL",((100-'User Inputs'!$C$39)/100)*'User Inputs'!$C$28*'Entry Prices'!G19/'User Inputs'!$D$7,IF(B19="INTERCONNECTION POINT",((100-'User Inputs'!$C$40)/100)* 'User Inputs'!$C$34*'Entry Prices'!G19/'User Inputs'!$D$7, 'User Inputs'!$C$28*'Entry Prices'!G19/'User Inputs'!$D$7))))+J19 -> 0.006287959616 | O19: =(IF(B19="STORAGE SITE",((100-'User Inputs'!$C$38)/100)* 'User Inputs'!$C$29*'Entry Prices'!G19/'User Inputs'!$D$7, IF(B19="LNG IMPORTATION TERMINAL",((100-'User Inputs'!$C$39)/100)*'User Inputs'!$C$29*'Entry Prices'!G19/'User Inputs'!$D$7,IF(B19="INTERCONNECTION POINT", ((100-'User Inputs'!$C$40)/100)*'User Inputs'!$C$35*'Entry Prices'!G19/'User Inputs'!$D$7, 'User Inputs'!$C$29*'Entry Prices'!G19/'User Inputs'!$D$7))))+J19 -> 0.006287959616 | P19: =(100-(VLOOKUP(A19,'Entry Interruption Prob''s'!$A:$E,5,FALSE)))*N19/100 -> 0.006287959616
A20: Isle of Grain | B20: =VLOOKUP(A20,'Locations & Types'!$A:$B,2,FALSE) -> LNG IMPORTATION TERMINAL | C20: =(VLOOKUP(A20, INDIRECT("'"&'Drop Down Inputs'!$A$10&"'!"&" $A:$F"),MATCH('User Inputs'!$C$19, INDIRECT("'"&'Drop Down Inputs'!$A$10&"'!"&"$A$1:$F$1"),0), FALSE))*'User Inputs'!$C$20/100 -> 699680000 | D20: =IF('User Inputs'!$C$23="YES",IF('Entry Prices'!C20-VLOOKUP('Entry Prices'!A20,'Existing Contracts - Entry'!$A:$E,MATCH('User Inputs'!$C$7,'Existing Contracts - Entry'!$A$1:$E$1,0),FALSE)<0,0,'Entry Prices'!C20-VLOOKUP('Entry Prices'!A20,'Existing Contracts - Entry'!$A:$E,MATCH('User Inputs'!$C$7,'Existing Contracts - Entry'!$A$1:$E$1,0),FALSE)),'Entry Prices'!C20) -> 91383014.2 | E20: ='Entry Adjustment Calcs'!$C$22*'User Inputs'!$D$7 -> 0 | F20: ='Entry Adjustment Calcs'!$C$24 -> 1 | G20: =(('Revenue Input'!$B$5/SUM($D$2:$D$27))*F20)+E20 -> 4.590210519 | J20: ='Entry Adjustment Calcs'!$C$23 -> 0 | K20: =(IF(B20="STORAGE SITE",((100-'User Inputs'!$C$38)/100)*G20/'User Inputs'!$D$7,(IF(B20="LNG IMPORTATION TERMINAL",((100-'User Inputs'!$C$39)/100)*G20/'User Inputs'!$D$7,(IF(B20="INTERCONNECTION POINT",((100-'User Inputs'!$C$40)/100)*G20/'User Inputs'!$D$7,G20/'User Inputs'!$D$7))))))+J20 -> 0.01257591923 | L20: =(IF(B20="STORAGE SITE",((100-'User Inputs'!$C$38)/100)*'User Inputs'!$C$26*'Entry Prices'!G20/'User Inputs'!$D$7,IF(B20="LNG IMPORTATION TERMINAL",((100-'User Inputs'!$C$39)/100)*'User Inputs'!$C$26*'Entry Prices'!G20/'User Inputs'!$D$7,IF(B20="INTERCONNECTION POINT",((100-'User Inputs'!$C$40)/100)*'User Inputs'!$C$32*'Entry Prices'!G20/'User Inputs'!$D$7,'User Inputs'!$C$26*'Entry Prices'!G20/'User Inputs'!$D$7)))+J20) -> 0.01257591923 | M20: =(IF(B20="STORAGE SITE",((100-'User Inputs'!$C$38)/100)* 'User Inputs'!$C$27*'Entry Prices'!G20/'User Inputs'!$D$7, IF(B20="LNG IMPORTATION TERMINAL",((100-'User Inputs'!$C$39)/100)*'User Inputs'!$C$27*'Entry Prices'!G20/'User Inputs'!$D$7,IF(B20="INTERCONNECTION POINT", ((100-'User Inputs'!$C$40)/100)*'User Inputs'!$C$33*'Entry Prices'!G20/'User Inputs'!$D$7, 'User Inputs'!$C$27*'Entry Prices'!G20/'User Inputs'!$D$7))))+J20 -> 0.01257591923 | N20: =(IF(B20="STORAGE SITE",((100-'User Inputs'!$C$38)/100)* 'User Inputs'!$C$28*'Entry Prices'!G20/'User Inputs'!$D$7, IF(B20="LNG IMPORTATION TERMINAL",((100-'User Inputs'!$C$39)/100)*'User Inputs'!$C$28*'Entry Prices'!G20/'User Inputs'!$D$7,IF(B20="INTERCONNECTION POINT",((100-'User Inputs'!$C$40)/100)* 'User Inputs'!$C$34*'Entry Prices'!G20/'User Inputs'!$D$7, 'User Inputs'!$C$28*'Entry Prices'!G20/'User Inputs'!$D$7))))+J20 -> 0.01257591923 | O20: =(IF(B20="STORAGE SITE",((100-'User Inputs'!$C$38)/100)* 'User Inputs'!$C$29*'Entry Prices'!G20/'User Inputs'!$D$7, IF(B20="LNG IMPORTATION TERMINAL",((100-'User Inputs'!$C$39)/100)*'User Inputs'!$C$29*'Entry Prices'!G20/'User Inputs'!$D$7,IF(B20="INTERCONNECTION POINT", ((100-'User Inputs'!$C$40)/100)*'User Inputs'!$C$35*'Entry Prices'!G20/'User Inputs'!$D$7, 'User Inputs'!$C$29*'Entry Prices'!G20/'User Inputs'!$D$7))))+J20 -> 0.01257591923 | P20: =(100-(VLOOKUP(A20,'Entry Interruption Prob''s'!$A:$E,5,FALSE)))*N20/100 -> 0.01257591923
A21: Milford Haven | B21: =VLOOKUP(A21,'Locations & Types'!$A:$B,2,FALSE) -> LNG IMPORTATION TERMINAL | C21: =(VLOOKUP(A21, INDIRECT("'"&'Drop Down Inputs'!$A$10&"'!"&" $A:$F"),MATCH('User Inputs'!$C$19, INDIRECT("'"&'Drop Down Inputs'!$A$10&"'!"&"$A$1:$F$1"),0), FALSE))*'User Inputs'!$C$20/100 -> 950000000 | D21: =IF('User Inputs'!$C$23="YES",IF('Entry Prices'!C21-VLOOKUP('Entry Prices'!A21,'Existing Contracts - Entry'!$A:$E,MATCH('User Inputs'!$C$7,'Existing Contracts - Entry'!$A$1:$E$1,0),FALSE)<0,0,'Entry Prices'!C21-VLOOKUP('Entry Prices'!A21,'Existing Contracts - Entry'!$A:$E,MATCH('User Inputs'!$C$7,'Existing Contracts - Entry'!$A$1:$E$1,0),FALSE)),'Entry Prices'!C21) -> 73701369.86 | E21: ='Entry Adjustment Calcs'!$C$22*'User Inputs'!$D$7 -> 0 | F21: ='Entry Adjustment Calcs'!$C$24 -> 1 | G21: =(('Revenue Input'!$B$5/SUM($D$2:$D$27))*F21)+E21 -> 4.590210519 | J21: ='Entry Adjustment Calcs'!$C$23 -> 0 | K21: =(IF(B21="STORAGE SITE",((100-'User Inputs'!$C$38)/100)*G21/'User Inputs'!$D$7,(IF(B21="LNG IMPORTATION TERMINAL",((100-'User Inputs'!$C$39)/100)*G21/'User Inputs'!$D$7,(IF(B21="INTERCONNECTION POINT",((100-'User Inputs'!$C$40)/100)*G21/'User Inputs'!$D$7,G21/'User Inputs'!$D$7))))))+J21 -> 0.01257591923 | L21: =(IF(B21="STORAGE SITE",((100-'User Inputs'!$C$38)/100)*'User Inputs'!$C$26*'Entry Prices'!G21/'User Inputs'!$D$7,IF(B21="LNG IMPORTATION TERMINAL",((100-'User Inputs'!$C$39)/100)*'User Inputs'!$C$26*'Entry Prices'!G21/'User Inputs'!$D$7,IF(B21="INTERCONNECTION POINT",((100-'User Inputs'!$C$40)/100)*'User Inputs'!$C$32*'Entry Prices'!G21/'User Inputs'!$D$7,'User Inputs'!$C$26*'Entry Prices'!G21/'User Inputs'!$D$7)))+J21) -> 0.01257591923 | M21: =(IF(B21="STORAGE SITE",((100-'User Inputs'!$C$38)/100)* 'User Inputs'!$C$27*'Entry Prices'!G21/'User Inputs'!$D$7, IF(B21="LNG IMPORTATION TERMINAL",((100-'User Inputs'!$C$39)/100)*'User Inputs'!$C$27*'Entry Prices'!G21/'User Inputs'!$D$7,IF(B21="INTERCONNECTION POINT", ((100-'User Inputs'!$C$40)/100)*'User Inputs'!$C$33*'Entry Prices'!G21/'User Inputs'!$D$7, 'User Inputs'!$C$27*'Entry Prices'!G21/'User Inputs'!$D$7))))+J21 -> 0.01257591923 | N21: =(IF(B21="STORAGE SITE",((100-'User Inputs'!$C$38)/100)* 'User Inputs'!$C$28*'Entry Prices'!G21/'User Inputs'!$D$7, IF(B21="LNG IMPORTATION TERMINAL",((100-'User Inputs'!$C$39)/100)*'User Inputs'!$C$28*'Entry Prices'!G21/'User Inputs'!$D$7,IF(B21="INTERCONNECTION POINT",((100-'User Inputs'!$C$40)/100)* 'User Inputs'!$C$34*'Entry Prices'!G21/'User Inputs'!$D$7, 'User Inputs'!$C$28*'Entry Prices'!G21/'User Inputs'!$D$7))))+J21 -> 0.01257591923 | O21: =(IF(B21="STORAGE SITE",((100-'User Inputs'!$C$38)/100)* 'User Inputs'!$C$29*'Entry Prices'!G21/'User Inputs'!$D$7, IF(B21="LNG IMPORTATION TERMINAL",((100-'User Inputs'!$C$39)/100)*'User Inputs'!$C$29*'Entry Prices'!G21/'User Inputs'!$D$7,IF(B21="INTERCONNECTION POINT", ((100-'User Inputs'!$C$40)/100)*'User Inputs'!$C$35*'Entry Prices'!G21/'User Inputs'!$D$7, 'User Inputs'!$C$29*'Entry Prices'!G21/'User Inputs'!$D$7))))+J21 -> 0.01257591923 | P21: =(100-(VLOOKUP(A21,'Entry Interruption Prob''s'!$A:$E,5,FALSE)))*N21/100 -> 0.01257591923
A22: Partington | B22: =VLOOKUP(A22,'Locations & Types'!$A:$B,2,FALSE) -> STORAGE SITE | C22: =(VLOOKUP(A22, INDIRECT("'"&'Drop Down Inputs'!$A$10&"'!"&" $A:$F"),MATCH('User Inputs'!$C$19, INDIRECT("'"&'Drop Down Inputs'!$A$10&"'!"&"$A$1:$F$1"),0), FALSE))*'User Inputs'!$C$20/100 -> 215000000 | D22: =IF('User Inputs'!$C$23="YES",IF('Entry Prices'!C22-VLOOKUP('Entry Prices'!A22,'Existing Contracts - Entry'!$A:$E,MATCH('User Inputs'!$C$7,'Existing Contracts - Entry'!$A$1:$E$1,0),FALSE)<0,0,'Entry Prices'!C22-VLOOKUP('Entry Prices'!A22,'Existing Contracts - Entry'!$A:$E,MATCH('User Inputs'!$C$7,'Existing Contracts - Entry'!$A$1:$E$1,0),FALSE)),'Entry Prices'!C22) -> 215000000 | E22: ='Entry Adjustment Calcs'!$C$22*'User Inputs'!$D$7 -> 0 | F22: ='Entry Adjustment Calcs'!$C$24 -> 1 | G22: =(('Revenue Input'!$B$5/SUM($D$2:$D$27))*F22)+E22 -> 4.590210519 | J22: ='Entry Adjustment Calcs'!$C$23 -> 0 | K22: =(IF(B22="STORAGE SITE",((100-'User Inputs'!$C$38)/100)*G22/'User Inputs'!$D$7,(IF(B22="LNG IMPORTATION TERMINAL",((100-'User Inputs'!$C$39)/100)*G22/'User Inputs'!$D$7,(IF(B22="INTERCONNECTION POINT",((100-'User Inputs'!$C$40)/100)*G22/'User Inputs'!$D$7,G22/'User Inputs'!$D$7))))))+J22 -> 0.006287959616 | L22: =(IF(B22="STORAGE SITE",((100-'User Inputs'!$C$38)/100)*'User Inputs'!$C$26*'Entry Prices'!G22/'User Inputs'!$D$7,IF(B22="LNG IMPORTATION TERMINAL",((100-'User Inputs'!$C$39)/100)*'User Inputs'!$C$26*'Entry Prices'!G22/'User Inputs'!$D$7,IF(B22="INTERCONNECTION POINT",((100-'User Inputs'!$C$40)/100)*'User Inputs'!$C$32*'Entry Prices'!G22/'User Inputs'!$D$7,'User Inputs'!$C$26*'Entry Prices'!G22/'User Inputs'!$D$7)))+J22) -> 0.006287959616 | M22: =(IF(B22="STORAGE SITE",((100-'User Inputs'!$C$38)/100)* 'User Inputs'!$C$27*'Entry Prices'!G22/'User Inputs'!$D$7, IF(B22="LNG IMPORTATION TERMINAL",((100-'User Inputs'!$C$39)/100)*'User Inputs'!$C$27*'Entry Prices'!G22/'User Inputs'!$D$7,IF(B22="INTERCONNECTION POINT", ((100-'User Inputs'!$C$40)/100)*'User Inputs'!$C$33*'Entry Prices'!G22/'User Inputs'!$D$7, 'User Inputs'!$C$27*'Entry Prices'!G22/'User Inputs'!$D$7))))+J22 -> 0.006287959616 | N22: =(IF(B22="STORAGE SITE",((100-'User Inputs'!$C$38)/100)* 'User Inputs'!$C$28*'Entry Prices'!G22/'User Inputs'!$D$7, IF(B22="LNG IMPORTATION TERMINAL",((100-'User Inputs'!$C$39)/100)*'User Inputs'!$C$28*'Entry Prices'!G22/'User Inputs'!$D$7,IF(B22="INTERCONNECTION POINT",((100-'User Inputs'!$C$40)/100)* 'User Inputs'!$C$34*'Entry Prices'!G22/'User Inputs'!$D$7, 'User Inputs'!$C$28*'Entry Prices'!G22/'User Inputs'!$D$7))))+J22 -> 0.006287959616 | O22: =(IF(B22="STORAGE SITE",((100-'User Inputs'!$C$38)/100)* 'User Inputs'!$C$29*'Entry Prices'!G22/'User Inputs'!$D$7, IF(B22="LNG IMPORTATION TERMINAL",((100-'User Inputs'!$C$39)/100)*'User Inputs'!$C$29*'Entry Prices'!G22/'User Inputs'!$D$7,IF(B22="INTERCONNECTION POINT", ((100-'User Inputs'!$C$40)/100)*'User Inputs'!$C$35*'Entry Prices'!G22/'User Inputs'!$D$7, 'User Inputs'!$C$29*'Entry Prices'!G22/'User Inputs'!$D$7))))+J22 -> 0.006287959616 | P22: =(100-(VLOOKUP(A22,'Entry Interruption Prob''s'!$A:$E,5,FALSE)))*N22/100 -> 0.006287959616
A23: Rough | B23: =VLOOKUP(A23,'Locations & Types'!$A:$B,2,FALSE) -> STORAGE SITE | C23: =(VLOOKUP(A23, INDIRECT("'"&'Drop Down Inputs'!$A$10&"'!"&" $A:$F"),MATCH('User Inputs'!$C$19, INDIRECT("'"&'Drop Down Inputs'!$A$10&"'!"&"$A$1:$F$1"),0), FALSE))*'User Inputs'!$C$20/100 -> 370479121 | D23: =IF('User Inputs'!$C$23="YES",IF('Entry Prices'!C23-VLOOKUP('Entry Prices'!A23,'Existing Contracts - Entry'!$A:$E,MATCH('User Inputs'!$C$7,'Existing Contracts - Entry'!$A$1:$E$1,0),FALSE)<0,0,'Entry Prices'!C23-VLOOKUP('Entry Prices'!A23,'Existing Contracts - Entry'!$A:$E,MATCH('User Inputs'!$C$7,'Existing Contracts - Entry'!$A$1:$E$1,0),FALSE)),'Entry Prices'!C23) -> 370479121 | E23: ='Entry Adjustment Calcs'!$C$22*'User Inputs'!$D$7 -> 0 | F23: ='Entry Adjustment Calcs'!$C$24 -> 1 | G23: =(('Revenue Input'!$B$5/SUM($D$2:$D$27))*F23)+E23 -> 4.590210519 | J23: ='Entry Adjustment Calcs'!$C$23 -> 0 | K23: =(IF(B23="STORAGE SITE",((100-'User Inputs'!$C$38)/100)*G23/'User Inputs'!$D$7,(IF(B23="LNG IMPORTATION TERMINAL",((100-'User Inputs'!$C$39)/100)*G23/'User Inputs'!$D$7,(IF(B23="INTERCONNECTION POINT",((100-'User Inputs'!$C$40)/100)*G23/'User Inputs'!$D$7,G23/'User Inputs'!$D$7))))))+J23 -> 0.006287959616 | L23: =(IF(B23="STORAGE SITE",((100-'User Inputs'!$C$38)/100)*'User Inputs'!$C$26*'Entry Prices'!G23/'User Inputs'!$D$7,IF(B23="LNG IMPORTATION TERMINAL",((100-'User Inputs'!$C$39)/100)*'User Inputs'!$C$26*'Entry Prices'!G23/'User Inputs'!$D$7,IF(B23="INTERCONNECTION POINT",((100-'User Inputs'!$C$40)/100)*'User Inputs'!$C$32*'Entry Prices'!G23/'User Inputs'!$D$7,'User Inputs'!$C$26*'Entry Prices'!G23/'User Inputs'!$D$7)))+J23) -> 0.006287959616 | M23: =(IF(B23="STORAGE SITE",((100-'User Inputs'!$C$38)/100)* 'User Inputs'!$C$27*'Entry Prices'!G23/'User Inputs'!$D$7, IF(B23="LNG IMPORTATION TERMINAL",((100-'User Inputs'!$C$39)/100)*'User Inputs'!$C$27*'Entry Prices'!G23/'User Inputs'!$D$7,IF(B23="INTERCONNECTION POINT", ((100-'User Inputs'!$C$40)/100)*'User Inputs'!$C$33*'Entry Prices'!G23/'User Inputs'!$D$7, 'User Inputs'!$C$27*'Entry Prices'!G23/'User Inputs'!$D$7))))+J23 -> 0.006287959616 | N23: =(IF(B23="STORAGE SITE",((100-'User Inputs'!$C$38)/100)* 'User Inputs'!$C$28*'Entry Prices'!G23/'User Inputs'!$D$7, IF(B23="LNG IMPORTATION TERMINAL",((100-'User Inputs'!$C$39)/100)*'User Inputs'!$C$28*'Entry Prices'!G23/'User Inputs'!$D$7,IF(B23="INTERCONNECTION POINT",((100-'User Inputs'!$C$40)/100)* 'User Inputs'!$C$34*'Entry Prices'!G23/'User Inputs'!$D$7, 'User Inputs'!$C$28*'Entry Prices'!G23/'User Inputs'!$D$7))))+J23 -> 0.006287959616 | O23: =(IF(B23="STORAGE SITE",((100-'User Inputs'!$C$38)/100)* 'User Inputs'!$C$29*'Entry Prices'!G23/'User Inputs'!$D$7, IF(B23="LNG IMPORTATION TERMINAL",((100-'User Inputs'!$C$39)/100)*'User Inputs'!$C$29*'Entry Prices'!G23/'User Inputs'!$D$7,IF(B23="INTERCONNECTION POINT", ((100-'User Inputs'!$C$40)/100)*'User Inputs'!$C$35*'Entry Prices'!G23/'User Inputs'!$D$7, 'User Inputs'!$C$29*'Entry Prices'!G23/'User Inputs'!$D$7))))+J23 -> 0.006287959616 | P23: =(100-(VLOOKUP(A23,'Entry Interruption Prob''s'!$A:$E,5,FALSE)))*N23/100 -> 0.006287959616
A24: St Fergus | B24: =VLOOKUP(A24,'Locations & Types'!$A:$B,2,FALSE) -> BEACH TERMINAL | C24: =(VLOOKUP(A24, INDIRECT("'"&'Drop Down Inputs'!$A$10&"'!"&" $A:$F"),MATCH('User Inputs'!$C$19, INDIRECT("'"&'Drop Down Inputs'!$A$10&"'!"&"$A$1:$F$1"),0), FALSE))*'User Inputs'!$C$20/100 -> 1670700000 | D24: =IF('User Inputs'!$C$23="YES",IF('Entry Prices'!C24-VLOOKUP('Entry Prices'!A24,'Existing Contracts - Entry'!$A:$E,MATCH('User Inputs'!$C$7,'Existing Contracts - Entry'!$A$1:$E$1,0),FALSE)<0,0,'Entry Prices'!C24-VLOOKUP('Entry Prices'!A24,'Existing Contracts - Entry'!$A:$E,MATCH('User Inputs'!$C$7,'Existing Contracts - Entry'!$A$1:$E$1,0),FALSE)),'Entry Prices'!C24) -> 1416958207 | E24: ='Entry Adjustment Calcs'!$C$22*'User Inputs'!$D$7 -> 0 | F24: ='Entry Adjustment Calcs'!$C$24 -> 1 | G24: =(('Revenue Input'!$B$5/SUM($D$2:$D$27))*F24)+E24 -> 4.590210519 | J24: ='Entry Adjustment Calcs'!$C$23 -> 0 | K24: =(IF(B24="STORAGE SITE",((100-'User Inputs'!$C$38)/100)*G24/'User Inputs'!$D$7,(IF(B24="LNG IMPORTATION TERMINAL",((100-'User Inputs'!$C$39)/100)*G24/'User Inputs'!$D$7,(IF(B24="INTERCONNECTION POINT",((100-'User Inputs'!$C$40)/100)*G24/'User Inputs'!$D$7,G24/'User Inputs'!$D$7))))))+J24 -> 0.01257591923 | L24: =(IF(B24="STORAGE SITE",((100-'User Inputs'!$C$38)/100)*'User Inputs'!$C$26*'Entry Prices'!G24/'User Inputs'!$D$7,IF(B24="LNG IMPORTATION TERMINAL",((100-'User Inputs'!$C$39)/100)*'User Inputs'!$C$26*'Entry Prices'!G24/'User Inputs'!$D$7,IF(B24="INTERCONNECTION POINT",((100-'User Inputs'!$C$40)/100)*'User Inputs'!$C$32*'Entry Prices'!G24/'User Inputs'!$D$7,'User Inputs'!$C$26*'Entry Prices'!G24/'User Inputs'!$D$7)))+J24) -> 0.01257591923 | M24: =(IF(B24="STORAGE SITE",((100-'User Inputs'!$C$38)/100)* 'User Inputs'!$C$27*'Entry Prices'!G24/'User Inputs'!$D$7, IF(B24="LNG IMPORTATION TERMINAL",((100-'User Inputs'!$C$39)/100)*'User Inputs'!$C$27*'Entry Prices'!G24/'User Inputs'!$D$7,IF(B24="INTERCONNECTION POINT", ((100-'User Inputs'!$C$40)/100)*'User Inputs'!$C$33*'Entry Prices'!G24/'User Inputs'!$D$7, 'User Inputs'!$C$27*'Entry Prices'!G24/'User Inputs'!$D$7))))+J24 -> 0.01257591923 | N24: =(IF(B24="STORAGE SITE",((100-'User Inputs'!$C$38)/100)* 'User Inputs'!$C$28*'Entry Prices'!G24/'User Inputs'!$D$7, IF(B24="LNG IMPORTATION TERMINAL",((100-'User Inputs'!$C$39)/100)*'User Inputs'!$C$28*'Entry Prices'!G24/'User Inputs'!$D$7,IF(B24="INTERCONNECTION POINT",((100-'User Inputs'!$C$40)/100)* 'User Inputs'!$C$34*'Entry Prices'!G24/'User Inputs'!$D$7, 'User Inputs'!$C$28*'Entry Prices'!G24/'User Inputs'!$D$7))))+J24 -> 0.01257591923 | O24: =(IF(B24="STORAGE SITE",((100-'User Inputs'!$C$38)/100)* 'User Inputs'!$C$29*'Entry Prices'!G24/'User Inputs'!$D$7, IF(B24="LNG IMPORTATION TERMINAL",((100-'User Inputs'!$C$39)/100)*'User Inputs'!$C$29*'Entry Prices'!G24/'User Inputs'!$D$7,IF(B24="INTERCONNECTION POINT", ((100-'User Inputs'!$C$40)/100)*'User Inputs'!$C$35*'Entry Prices'!G24/'User Inputs'!$D$7, 'User Inputs'!$C$29*'Entry Prices'!G24/'User Inputs'!$D$7))))+J24 -> 0.01257591923 | P24: =(100-(VLOOKUP(A24,'Entry Interruption Prob''s'!$A:$E,5,FALSE)))*N24/100 -> 0.01257591923
A25: Teesside | B25: =VLOOKUP(A25,'Locations & Types'!$A:$B,2,FALSE) -> BEACH TERMINAL | C25: =(VLOOKUP(A25, INDIRECT("'"&'Drop Down Inputs'!$A$10&"'!"&" $A:$F"),MATCH('User Inputs'!$C$19, INDIRECT("'"&'Drop Down Inputs'!$A$10&"'!"&"$A$1:$F$1"),0), FALSE))*'User Inputs'!$C$20/100 -> 445090000 | D25: =IF('User Inputs'!$C$23="YES",IF('Entry Prices'!C25-VLOOKUP('Entry Prices'!A25,'Existing Contracts - Entry'!$A:$E,MATCH('User Inputs'!$C$7,'Existing Contracts - Entry'!$A$1:$E$1,0),FALSE)<0,0,'Entry Prices'!C25-VLOOKUP('Entry Prices'!A25,'Existing Contracts - Entry'!$A:$E,MATCH('User Inputs'!$C$7,'Existing Contracts - Entry'!$A$1:$E$1,0),FALSE)),'Entry Prices'!C25) -> 281272684 | E25: ='Entry Adjustment Calcs'!$C$22*'User Inputs'!$D$7 -> 0 | F25: ='Entry Adjustment Calcs'!$C$24 -> 1 | G25: =(('Revenue Input'!$B$5/SUM($D$2:$D$27))*F25)+E25 -> 4.590210519 | J25: ='Entry Adjustment Calcs'!$C$23 -> 0 | K25: =(IF(B25="STORAGE SITE",((100-'User Inputs'!$C$38)/100)*G25/'User Inputs'!$D$7,(IF(B25="LNG IMPORTATION TERMINAL",((100-'User Inputs'!$C$39)/100)*G25/'User Inputs'!$D$7,(IF(B25="INTERCONNECTION POINT",((100-'User Inputs'!$C$40)/100)*G25/'User Inputs'!$D$7,G25/'User Inputs'!$D$7))))))+J25 -> 0.01257591923 | L25: =(IF(B25="STORAGE SITE",((100-'User Inputs'!$C$38)/100)*'User Inputs'!$C$26*'Entry Prices'!G25/'User Inputs'!$D$7,IF(B25="LNG IMPORTATION TERMINAL",((100-'User Inputs'!$C$39)/100)*'User Inputs'!$C$26*'Entry Prices'!G25/'User Inputs'!$D$7,IF(B25="INTERCONNECTION POINT",((100-'User Inputs'!$C$40)/100)*'User Inputs'!$C$32*'Entry Prices'!G25/'User Inputs'!$D$7,'User Inputs'!$C$26*'Entry Prices'!G25/'User Inputs'!$D$7)))+J25) -> 0.01257591923 | M25: =(IF(B25="STORAGE SITE",((100-'User Inputs'!$C$38)/100)* 'User Inputs'!$C$27*'Entry Prices'!G25/'User Inputs'!$D$7, IF(B25="LNG IMPORTATION TERMINAL",((100-'User Inputs'!$C$39)/100)*'User Inputs'!$C$27*'Entry Prices'!G25/'User Inputs'!$D$7,IF(B25="INTERCONNECTION POINT", ((100-'User Inputs'!$C$40)/100)*'User Inputs'!$C$33*'Entry Prices'!G25/'User Inputs'!$D$7, 'User Inputs'!$C$27*'Entry Prices'!G25/'User Inputs'!$D$7))))+J25 -> 0.01257591923 | N25: =(IF(B25="STORAGE SITE",((100-'User Inputs'!$C$38)/100)* 'User Inputs'!$C$28*'Entry Prices'!G25/'User Inputs'!$D$7, IF(B25="LNG IMPORTATION TERMINAL",((100-'User Inputs'!$C$39)/100)*'User Inputs'!$C$28*'Entry Prices'!G25/'User Inputs'!$D$7,IF(B25="INTERCONNECTION POINT",((100-'User Inputs'!$C$40)/100)* 'User Inputs'!$C$34*'Entry Prices'!G25/'User Inputs'!$D$7, 'User Inputs'!$C$28*'Entry Prices'!G25/'User Inputs'!$D$7))))+J25 -> 0.01257591923 | O25: =(IF(B25="STORAGE SITE",((100-'User Inputs'!$C$38)/100)* 'User Inputs'!$C$29*'Entry Prices'!G25/'User Inputs'!$D$7, IF(B25="LNG IMPORTATION TERMINAL",((100-'User Inputs'!$C$39)/100)*'User Inputs'!$C$29*'Entry Prices'!G25/'User Inputs'!$D$7,IF(B25="INTERCONNECTION POINT", ((100-'User Inputs'!$C$40)/100)*'User Inputs'!$C$35*'Entry Prices'!G25/'User Inputs'!$D$7, 'User Inputs'!$C$29*'Entry Prices'!G25/'User Inputs'!$D$7))))+J25 -> 0.01257591923 | P25: =(100-(VLOOKUP(A25,'Entry Interruption Prob''s'!$A:$E,5,FALSE)))*N25/100 -> 0.01257591923
A26: Theddlethorpe | B26: =VLOOKUP(A26,'Locations & Types'!$A:$B,2,FALSE) -> BEACH TERMINAL | C26: =(VLOOKUP(A26, INDIRECT("'"&'Drop Down Inputs'!$A$10&"'!"&" $A:$F"),MATCH('User Inputs'!$C$19, INDIRECT("'"&'Drop Down Inputs'!$A$10&"'!"&"$A$1:$F$1"),0), FALSE))*'User Inputs'!$C$20/100 -> 610700000 | D26: =IF('User Inputs'!$C$23="YES",IF('Entry Prices'!C26-VLOOKUP('Entry Prices'!A26,'Existing Contracts - Entry'!$A:$E,MATCH('User Inputs'!$C$7,'Existing Contracts - Entry'!$A$1:$E$1,0),FALSE)<0,0,'Entry Prices'!C26-VLOOKUP('Entry Prices'!A26,'Existing Contracts - Entry'!$A:$E,MATCH('User Inputs'!$C$7,'Existing Contracts - Entry'!$A$1:$E$1,0),FALSE)),'Entry Prices'!C26) -> 584626626.3 | E26: ='Entry Adjustment Calcs'!$C$22*'User Inputs'!$D$7 -> 0 | F26: ='Entry Adjustment Calcs'!$C$24 -> 1 | G26: =(('Revenue Input'!$B$5/SUM($D$2:$D$27))*F26)+E26 -> 4.590210519 | J26: ='Entry Adjustment Calcs'!$C$23 -> 0 | K26: =(IF(B26="STORAGE SITE",((100-'User Inputs'!$C$38)/100)*G26/'User Inputs'!$D$7,(IF(B26="LNG IMPORTATION TERMINAL",((100-'User Inputs'!$C$39)/100)*G26/'User Inputs'!$D$7,(IF(B26="INTERCONNECTION POINT",((100-'User Inputs'!$C$40)/100)*G26/'User Inputs'!$D$7,G26/'User Inputs'!$D$7))))))+J26 -> 0.01257591923 | L26: =(IF(B26="STORAGE SITE",((100-'User Inputs'!$C$38)/100)*'User Inputs'!$C$26*'Entry Prices'!G26/'User Inputs'!$D$7,IF(B26="LNG IMPORTATION TERMINAL",((100-'User Inputs'!$C$39)/100)*'User Inputs'!$C$26*'Entry Prices'!G26/'User Inputs'!$D$7,IF(B26="INTERCONNECTION POINT",((100-'User Inputs'!$C$40)/100)*'User Inputs'!$C$32*'Entry Prices'!G26/'User Inputs'!$D$7,'User Inputs'!$C$26*'Entry Prices'!G26/'User Inputs'!$D$7)))+J26) -> 0.01257591923 | M26: =(IF(B26="STORAGE SITE",((100-'User Inputs'!$C$38)/100)* 'User Inputs'!$C$27*'Entry Prices'!G26/'User Inputs'!$D$7, IF(B26="LNG IMPORTATION TERMINAL",((100-'User Inputs'!$C$39)/100)*'User Inputs'!$C$27*'Entry Prices'!G26/'User Inputs'!$D$7,IF(B26="INTERCONNECTION POINT", ((100-'User Inputs'!$C$40)/100)*'User Inputs'!$C$33*'Entry Prices'!G26/'User Inputs'!$D$7, 'User Inputs'!$C$27*'Entry Prices'!G26/'User Inputs'!$D$7))))+J26 -> 0.01257591923 | N26: =(IF(B26="STORAGE SITE",((100-'User Inputs'!$C$38)/100)* 'User Inputs'!$C$28*'Entry Prices'!G26/'User Inputs'!$D$7, IF(B26="LNG IMPORTATION TERMINAL",((100-'User Inputs'!$C$39)/100)*'User Inputs'!$C$28*'Entry Prices'!G26/'User Inputs'!$D$7,IF(B26="INTERCONNECTION POINT",((100-'User Inputs'!$C$40)/100)* 'User Inputs'!$C$34*'Entry Prices'!G26/'User Inputs'!$D$7, 'User Inputs'!$C$28*'Entry Prices'!G26/'User Inputs'!$D$7))))+J26 -> 0.01257591923 | O26: =(IF(B26="STORAGE SITE",((100-'User Inputs'!$C$38)/100)* 'User Inputs'!$C$29*'Entry Prices'!G26/'User Inputs'!$D$7, IF(B26="LNG IMPORTATION TERMINAL",((100-'User Inputs'!$C$39)/100)*'User Inputs'!$C$29*'Entry Prices'!G26/'User Inputs'!$D$7,IF(B26="INTERCONNECTION POINT", ((100-'User Inputs'!$C$40)/100)*'User Inputs'!$C$35*'Entry Prices'!G26/'User Inputs'!$D$7, 'User Inputs'!$C$29*'Entry Prices'!G26/'User Inputs'!$D$7))))+J26 -> 0.01257591923 | P26: =(100-(VLOOKUP(A26,'Entry Interruption Prob''s'!$A:$E,5,FALSE)))*N26/100 -> 0.01257591923
A27: Wytch Farm | B27: =VLOOKUP(A27,'Locations & Types'!$A:$B,2,FALSE) -> ONSHORE FIELD | C27: =(VLOOKUP(A27, INDIRECT("'"&'Drop Down Inputs'!$A$10&"'!"&" $A:$F"),MATCH('User Inputs'!$C$19, INDIRECT("'"&'Drop Down Inputs'!$A$10&"'!"&"$A$1:$F$1"),0), FALSE))*'User Inputs'!$C$20/100 -> 3300000 | D27: =IF('User Inputs'!$C$23="YES",IF('Entry Prices'!C27-VLOOKUP('Entry Prices'!A27,'Existing Contracts - Entry'!$A:$E,MATCH('User Inputs'!$C$7,'Existing Contracts - Entry'!$A$1:$E$1,0),FALSE)<0,0,'Entry Prices'!C27-VLOOKUP('Entry Prices'!A27,'Existing Contracts - Entry'!$A:$E,MATCH('User Inputs'!$C$7,'Existing Contracts - Entry'!$A$1:$E$1,0),FALSE)),'Entry Prices'!C27) -> 3300000 | E27: ='Entry Adjustment Calcs'!$C$22*'User Inputs'!$D$7 -> 0 | F27: ='Entry Adjustment Calcs'!$C$24 -> 1 | G27: =(('Revenue Input'!$B$5/SUM($D$2:$D$27))*F27)+E27 -> 4.590210519 | J27: ='Entry Adjustment Calcs'!$C$23 -> 0 | K27: =(IF(B27="STORAGE SITE",((100-'User Inputs'!$C$38)/100)*G27/'User Inputs'!$D$7,(IF(B27="LNG IMPORTATION TERMINAL",((100-'User Inputs'!$C$39)/100)*G27/'User Inputs'!$D$7,(IF(B27="INTERCONNECTION POINT",((100-'User Inputs'!$C$40)/100)*G27/'User Inputs'!$D$7,G27/'User Inputs'!$D$7))))))+J27 -> 0.01257591923 | L27: =(IF(B27="STORAGE SITE",((100-'User Inputs'!$C$38)/100)*'User Inputs'!$C$26*'Entry Prices'!G27/'User Inputs'!$D$7,IF(B27="LNG IMPORTATION TERMINAL",((100-'User Inputs'!$C$39)/100)*'User Inputs'!$C$26*'Entry Prices'!G27/'User Inputs'!$D$7,IF(B27="INTERCONNECTION POINT",((100-'User Inputs'!$C$40)/100)*'User Inputs'!$C$32*'Entry Prices'!G27/'User Inputs'!$D$7,'User Inputs'!$C$26*'Entry Prices'!G27/'User Inputs'!$D$7)))+J27) -> 0.01257591923 | M27: =(IF(B27="STORAGE SITE",((100-'User Inputs'!$C$38)/100)* 'User Inputs'!$C$27*'Entry Prices'!G27/'User Inputs'!$D$7, IF(B27="LNG IMPORTATION TERMINAL",((100-'User Inputs'!$C$39)/100)*'User Inputs'!$C$27*'Entry Prices'!G27/'User Inputs'!$D$7,IF(B27="INTERCONNECTION POINT", ((100-'User Inputs'!$C$40)/100)*'User Inputs'!$C$33*'Entry Prices'!G27/'User Inputs'!$D$7, 'User Inputs'!$C$27*'Entry Prices'!G27/'User Inputs'!$D$7))))+J27 -> 0.01257591923 | N27: =(IF(B27="STORAGE SITE",((100-'User Inputs'!$C$38)/100)* 'User Inputs'!$C$28*'Entry Prices'!G27/'User Inputs'!$D$7, IF(B27="LNG IMPORTATION TERMINAL",((100-'User Inputs'!$C$39)/100)*'User Inputs'!$C$28*'Entry Prices'!G27/'User Inputs'!$D$7,IF(B27="INTERCONNECTION POINT",((100-'User Inputs'!$C$40)/100)* 'User Inputs'!$C$34*'Entry Prices'!G27/'User Inputs'!$D$7, 'User Inputs'!$C$28*'Entry Prices'!G27/'User Inputs'!$D$7))))+J27 -> 0.01257591923 | O27: =(IF(B27="STORAGE SITE",((100-'User Inputs'!$C$38)/100)* 'User Inputs'!$C$29*'Entry Prices'!G27/'User Inputs'!$D$7, IF(B27="LNG IMPORTATION TERMINAL",((100-'User Inputs'!$C$39)/100)*'User Inputs'!$C$29*'Entry Prices'!G27/'User Inputs'!$D$7,IF(B27="INTERCONNECTION POINT", ((100-'User Inputs'!$C$40)/100)*'User Inputs'!$C$35*'Entry Prices'!G27/'User Inputs'!$D$7, 'User Inputs'!$C$29*'Entry Prices'!G27/'User Inputs'!$D$7))))+J27 -> 0.01257591923 | P27: =(100-(VLOOKUP(A27,'Entry Interruption Prob''s'!$A:$E,5,FALSE)))*N27/100 -> 0.01257591923

Sheet Exit Prices
A1: Exit Points | B1: Exit Point Type | C1: Forecast Contracted Capacity (CAP_Ex) | D1: Unit Reference Price Adjustment (p/kWh/a) | E1: Scaling Factor Adjustment | F1: Reference price at an exit point (T_Ex) p/kWh/a | H1: EXIT RESERVE PRICES | I1: Unit Reserve Price Adjustment (p/kWh/d) | J1: Reserve Price for Yearly Standard Capacity (p/kWh/d) | K1: Reserve Price for Quarterly Standard Capacity (p/kWh/d) | L1: Reserve Price for Monthly Standard Capacity (p/kWh/d) | M1: Reserve Price for Daily Standard Capacity (p/kWh/d) | N1: Reserve Price for Within-day Standard Capacity (p/kWh/d) | O1: Reserve Price for Daily Interruptible Capacity (p/kWh/d)
A2: Aberdeen | B2: =VLOOKUP(A2,'Locations & Types'!$E:$F,2,FALSE) -> GDN (SC) | C2: =(VLOOKUP(A2, INDIRECT("'"&'Drop Down Inputs'!$B$10&"'!"&" $A:$F"),MATCH('User Inputs'!$D$19, INDIRECT("'"&'Drop Down Inputs'!$B$10&"'!"&"$A$1:$F$1"),0), FALSE))*'User Inputs'!$D$20/100 -> 23536855 | D2: ='Exit Adjustment Calcs'!$C$21*'User Inputs'!$D$7 -> 0 | E2: ='Exit Adjustment Calcs'!$C$23 -> 1 | F2: =(('Revenue Input'!$B$6/SUM($C$2:$C$222))*E2)+D2 -> 3.758188543 | I2: ='Exit Adjustment Calcs'!$C$22 -> 0 | J2: =(IF(B2="STORAGE SITE",((100-'User Inputs'!$D$38)/100)*F2/'User Inputs'!$D$7,(IF(B2="INTERCONNECTOR ",((100-'User Inputs'!$D$40)/100)*F2/'User Inputs'!$D$7,F2/'User Inputs'!$D$7))))+I2 -> 0.01029640697 | K2: =(IF(B2="STORAGE SITE",((100-'User Inputs'!$D$38)/100)* 'User Inputs'!$D$26*'Exit Prices'!F2/'User Inputs'!D$7, IF(B2="INTERCONNECTOR", ((100-'User Inputs'!$D$40)/100)*'User Inputs'!$D$32*'Exit Prices'!F2/'User Inputs'!$D$7, 'User Inputs'!$D$26*'Exit Prices'!F2/'User Inputs'!$D$7)))+I2 -> 0.01029640697 | L2: =(IF(B2="STORAGE SITE",((100-'User Inputs'!$D$38)/100)* 'User Inputs'!$D$27*'Exit Prices'!F2/'User Inputs'!$D$7, IF(B2="INTERCONNECTOR", ((100-'User Inputs'!$D$40)/100)*'User Inputs'!$D$33*'Exit Prices'!F2/'User Inputs'!$D$7, 'User Inputs'!$D$27*'Exit Prices'!F2/'User Inputs'!$D$7)))+I2 -> 0.01029640697 | M2: =(IF(B2="STORAGE SITE",((100-'User Inputs'!$D$38)/100)* 'User Inputs'!$D$28*'Exit Prices'!F2/'User Inputs'!$D$7, IF(B2="INTERCONNECTOR", ((100-'User Inputs'!$D$40)/100)*'User Inputs'!$D$34*'Exit Prices'!F2/'User Inputs'!$D$7, 'User Inputs'!$D$28*'Exit Prices'!F2/'User Inputs'!$D$7)))+I2 -> 0.01029640697 | N2: =(IF(B2="STORAGE SITE",((100-'User Inputs'!$D$38)/100)* 'User Inputs'!$D$29*'Exit Prices'!F2/'User Inputs'!$D$7, IF(B2="INTERCONNECTOR", ((100-'User Inputs'!$D$40)/100)*'User Inputs'!$D$35*'Exit Prices'!F2/'User Inputs'!$D$7, 'User Inputs'!$D$29*'Exit Prices'!F2/'User Inputs'!$D$7)))+I2 -> 0.01029640697 | O2: =(100-(VLOOKUP(A2,'Exit Interruption Prob''s'!$A:$E,5,FALSE)))*M2/100 -> 0.01029640697
A3: Abson (Seabank Power Station phase I) | B3: =VLOOKUP(A3,'Locations & Types'!$E:$F,2,FALSE) -> DC | C3: =(VLOOKUP(A3, INDIRECT("'"&'Drop Down Inputs'!$B$10&"'!"&" $A:$F"),MATCH('User Inputs'!$D$19, INDIRECT("'"&'Drop Down Inputs'!$B$10&"'!"&"$A$1:$F$1"),0), FALSE))*'User Inputs'!$D$20/100 -> 36590000 | D3: ='Exit Adjustment Calcs'!$C$21*'User Inputs'!$D$7 -> 0 | E3: ='Exit Adjustment Calcs'!$C$23 -> 1 | F3: =(('Revenue Input'!$B$6/SUM($C$2:$C$222))*E3)+D3 -> 3.758188543 | I3: ='Exit Adjustment Calcs'!$C$22 -> 0 | J3: =(IF(B3="STORAGE SITE",((100-'User Inputs'!$D$38)/100)*F3/'User Inputs'!$D$7,(IF(B3="INTERCONNECTOR ",((100-'User Inputs'!$D$40)/100)*F3/'User Inputs'!$D$7,F3/'User Inputs'!$D$7))))+I3 -> 0.01029640697 | K3: =(IF(B3="STORAGE SITE",((100-'User Inputs'!$D$38)/100)* 'User Inputs'!$D$26*'Exit Prices'!F3/'User Inputs'!D$7, IF(B3="INTERCONNECTOR", ((100-'User Inputs'!$D$40)/100)*'User Inputs'!$D$32*'Exit Prices'!F3/'User Inputs'!$D$7, 'User Inputs'!$D$26*'Exit Prices'!F3/'User Inputs'!$D$7)))+I3 -> 0.01029640697 | L3: =(IF(B3="STORAGE SITE",((100-'User Inputs'!$D$38)/100)* 'User Inputs'!$D$27*'Exit Prices'!F3/'User Inputs'!$D$7, IF(B3="INTERCONNECTOR", ((100-'User Inputs'!$D$40)/100)*'User Inputs'!$D$33*'Exit Prices'!F3/'User Inputs'!$D$7, 'User Inputs'!$D$27*'Exit Prices'!F3/'User Inputs'!$D$7)))+I3 -> 0.01029640697 | M3: =(IF(B3="STORAGE SITE",((100-'User Inputs'!$D$38)/100)* 'User Inputs'!$D$28*'Exit Prices'!F3/'User Inputs'!$D$7, IF(B3="INTERCONNECTOR", ((100-'User Inputs'!$D$40)/100)*'User Inputs'!$D$34*'Exit Prices'!F3/'User Inputs'!$D$7, 'User Inputs'!$D$28*'Exit Prices'!F3/'User Inputs'!$D$7)))+I3 -> 0.01029640697 | N3: =(IF(B3="STORAGE SITE",((100-'User Inputs'!$D$38)/100)* 'User Inputs'!$D$29*'Exit Prices'!F3/'User Inputs'!$D$7, IF(B3="INTERCONNECTOR", ((100-'User Inputs'!$D$40)/100)*'User Inputs'!$D$35*'Exit Prices'!F3/'User Inputs'!$D$7, 'User Inputs'!$D$29*'Exit Prices'!F3/'User Inputs'!$D$7)))+I3 -> 0.01029640697 | O3: =(100-(VLOOKUP(A3,'Exit Interruption Prob''s'!$A:$E,5,FALSE)))*M3/100 -> 0.01029640697
A4: Alrewas (EM) | B4: =VLOOKUP(A4,'Locations & Types'!$E:$F,2,FALSE) -> GDN (EM) | C4: =(VLOOKUP(A4, INDIRECT("'"&'Drop Down Inputs'!$B$10&"'!"&" $A:$F"),MATCH('User Inputs'!$D$19, INDIRECT("'"&'Drop Down Inputs'!$B$10&"'!"&"$A$1:$F$1"),0), FALSE))*'User Inputs'!$D$20/100 -> 139912893 | D4: ='Exit Adjustment Calcs'!$C$21*'User Inputs'!$D$7 -> 0 | E4: ='Exit Adjustment Calcs'!$C$23 -> 1 | F4: =(('Revenue Input'!$B$6/SUM($C$2:$C$222))*E4)+D4 -> 3.758188543 | I4: ='Exit Adjustment Calcs'!$C$22 -> 0 | J4: =(IF(B4="STORAGE SITE",((100-'User Inputs'!$D$38)/100)*F4/'User Inputs'!$D$7,(IF(B4="INTERCONNECTOR ",((100-'User Inputs'!$D$40)/100)*F4/'User Inputs'!$D$7,F4/'User Inputs'!$D$7))))+I4 -> 0.01029640697 | K4: =(IF(B4="STORAGE SITE",((100-'User Inputs'!$D$38)/100)* 'User Inputs'!$D$26*'Exit Prices'!F4/'User Inputs'!D$7, IF(B4="INTERCONNECTOR", ((100-'User Inputs'!$D$40)/100)*'User Inputs'!$D$32*'Exit Prices'!F4/'User Inputs'!$D$7, 'User Inputs'!$D$26*'Exit Prices'!F4/'User Inputs'!$D$7)))+I4 -> 0.01029640697 | L4: =(IF(B4="STORAGE SITE",((100-'User Inputs'!$D$38)/100)* 'User Inputs'!$D$27*'Exit Prices'!F4/'User Inputs'!$D$7, IF(B4="INTERCONNECTOR", ((100-'User Inputs'!$D$40)/100)*'User Inputs'!$D$33*'Exit Prices'!F4/'User Inputs'!$D$7, 'User Inputs'!$D$27*'Exit Prices'!F4/'User Inputs'!$D$7)))+I4 -> 0.01029640697 | M4: =(IF(B4="STORAGE SITE",((100-'User Inputs'!$D$38)/100)* 'User Inputs'!$D$28*'Exit Prices'!F4/'User Inputs'!$D$7, IF(B4="INTERCONNECTOR", ((100-'User Inputs'!$D$40)/100)*'User Inputs'!$D$34*'Exit Prices'!F4/'User Inputs'!$D$7, 'User Inputs'!$D$28*'Exit Prices'!F4/'User Inputs'!$D$7)))+I4 -> 0.01029640697 | N4: =(IF(B4="STORAGE SITE",((100-'User Inputs'!$D$38)/100)* 'User Inputs'!$D$29*'Exit Prices'!F4/'User Inputs'!$D$7, IF(B4="INTERCONNECTOR", ((100-'User Inputs'!$D$40)/100)*'User Inputs'!$D$35*'Exit Prices'!F4/'User Inputs'!$D$7, 'User Inputs'!$D$29*'Exit Prices'!F4/'User Inputs'!$D$7)))+I4 -> 0.01029640697 | O4: =(100-(VLOOKUP(A4,'Exit Interruption Prob''s'!$A:$E,5,FALSE)))*M4/100 -> 0.01029640697
A5: Alrewas (WM) | B5: =VLOOKUP(A5,'Locations & Types'!$E:$F,2,FALSE) -> GDN (WM) | C5: =(VLOOKUP(A5, INDIRECT("'"&'Drop Down Inputs'!$B$10&"'!"&" $A:$F"),MATCH('User Inputs'!$D$19, INDIRECT("'"&'Drop Down Inputs'!$B$10&"'!"&"$A$1:$F$1"),0), FALSE))*'User Inputs'!$D$20/100 -> 128480000 | D5: ='Exit Adjustment Calcs'!$C$21*'User Inputs'!$D$7 -> 0 | E5: ='Exit Adjustment Calcs'!$C$23 -> 1 | F5: =(('Revenue Input'!$B$6/SUM($C$2:$C$222))*E5)+D5 -> 3.758188543 | I5: ='Exit Adjustment Calcs'!$C$22 -> 0 | J5: =(IF(B5="STORAGE SITE",((100-'User Inputs'!$D$38)/100)*F5/'User Inputs'!$D$7,(IF(B5="INTERCONNECTOR ",((100-'User Inputs'!$D$40)/100)*F5/'User Inputs'!$D$7,F5/'User Inputs'!$D$7))))+I5 -> 0.01029640697 | K5: =(IF(B5="STORAGE SITE",((100-'User Inputs'!$D$38)/100)* 'User Inputs'!$D$26*'Exit Prices'!F5/'User Inputs'!D$7, IF(B5="INTERCONNECTOR", ((100-'User Inputs'!$D$40)/100)*'User Inputs'!$D$32*'Exit Prices'!F5/'User Inputs'!$D$7, 'User Inputs'!$D$26*'Exit Prices'!F5/'User Inputs'!$D$7)))+I5 -> 0.01029640697 | L5: =(IF(B5="STORAGE SITE",((100-'User Inputs'!$D$38)/100)* 'User Inputs'!$D$27*'Exit Prices'!F5/'User Inputs'!$D$7, IF(B5="INTERCONNECTOR", ((100-'User Inputs'!$D$40)/100)*'User Inputs'!$D$33*'Exit Prices'!F5/'User Inputs'!$D$7, 'User Inputs'!$D$27*'Exit Prices'!F5/'User Inputs'!$D$7)))+I5 -> 0.01029640697 | M5: =(IF(B5="STORAGE SITE",((100-'User Inputs'!$D$38)/100)* 'User Inputs'!$D$28*'Exit Prices'!F5/'User Inputs'!$D$7, IF(B5="INTERCONNECTOR", ((100-'User Inputs'!$D$40)/100)*'User Inputs'!$D$34*'Exit Prices'!F5/'User Inputs'!$D$7, 'User Inputs'!$D$28*'Exit Prices'!F5/'User Inputs'!$D$7)))+I5 -> 0.01029640697 | N5: =(IF(B5="STORAGE SITE",((100-'User Inputs'!$D$38)/100)* 'User Inputs'!$D$29*'Exit Prices'!F5/'User Inputs'!$D$7, IF(B5="INTERCONNECTOR", ((100-'User Inputs'!$D$40)/100)*'User Inputs'!$D$35*'Exit Prices'!F5/'User Inputs'!$D$7, 'User Inputs'!$D$29*'Exit Prices'!F5/'User Inputs'!$D$7)))+I5 -> 0.01029640697 | O5: =(100-(VLOOKUP(A5,'Exit Interruption Prob''s'!$A:$E,5,FALSE)))*M5/100 -> 0.01029640697
A6: Apache (Sage Black Start) | B6: =VLOOKUP(A6,'Locations & Types'!$E:$F,2,FALSE) -> DC | C6: =(VLOOKUP(A6, INDIRECT("'"&'Drop Down Inputs'!$B$10&"'!"&" $A:$F"),MATCH('User Inputs'!$D$19, INDIRECT("'"&'Drop Down Inputs'!$B$10&"'!"&"$A$1:$F$1"),0), FALSE))*'User Inputs'!$D$20/100 -> 0 | D6: ='Exit Adjustment Calcs'!$C$21*'User Inputs'!$D$7 -> 0 | E6: ='Exit Adjustment Calcs'!$C$23 -> 1 | F6: =(('Revenue Input'!$B$6/SUM($C$2:$C$222))*E6)+D6 -> 3.758188543 | I6: ='Exit Adjustment Calcs'!$C$22 -> 0 | J6: =(IF(B6="STORAGE SITE",((100-'User Inputs'!$D$38)/100)*F6/'User Inputs'!$D$7,(IF(B6="INTERCONNECTOR ",((100-'User Inputs'!$D$40)/100)*F6/'User Inputs'!$D$7,F6/'User Inputs'!$D$7))))+I6 -> 0.01029640697 | K6: =(IF(B6="STORAGE SITE",((100-'User Inputs'!$D$38)/100)* 'User Inputs'!$D$26*'Exit Prices'!F6/'User Inputs'!D$7, IF(B6="INTERCONNECTOR", ((100-'User Inputs'!$D$40)/100)*'User Inputs'!$D$32*'Exit Prices'!F6/'User Inputs'!$D$7, 'User Inputs'!$D$26*'Exit Prices'!F6/'User Inputs'!$D$7)))+I6 -> 0.01029640697 | L6: =(IF(B6="STORAGE SITE",((100-'User Inputs'!$D$38)/100)* 'User Inputs'!$D$27*'Exit Prices'!F6/'User Inputs'!$D$7, IF(B6="INTERCONNECTOR", ((100-'User Inputs'!$D$40)/100)*'User Inputs'!$D$33*'Exit Prices'!F6/'User Inputs'!$D$7, 'User Inputs'!$D$27*'Exit Prices'!F6/'User Inputs'!$D$7)))+I6 -> 0.01029640697 | M6: =(IF(B6="STORAGE SITE",((100-'User Inputs'!$D$38)/100)* 'User Inputs'!$D$28*'Exit Prices'!F6/'User Inputs'!$D$7, IF(B6="INTERCONNECTOR", ((100-'User Inputs'!$D$40)/100)*'User Inputs'!$D$34*'Exit Prices'!F6/'User Inputs'!$D$7, 'User Inputs'!$D$28*'Exit Prices'!F6/'User Inputs'!$D$7)))+I6 -> 0.01029640697 | N6: =(IF(B6="STORAGE SITE",((100-'User Inputs'!$D$38)/100)* 'User Inputs'!$D$29*'Exit Prices'!F6/'User Inputs'!$D$7, IF(B6="INTERCONNECTOR", ((100-'User Inputs'!$D$40)/100)*'User Inputs'!$D$35*'Exit Prices'!F6/'User Inputs'!$D$7, 'User Inputs'!$D$29*'Exit Prices'!F6/'User Inputs'!$D$7)))+I6 -> 0.01029640697 | O6: =(100-(VLOOKUP(A6,'Exit Interruption Prob''s'!$A:$E,5,FALSE)))*M6/100 -> 0.01029640697
A7: Armadale | B7: =VLOOKUP(A7,'Locations & Types'!$E:$F,2,FALSE) -> GDN (SC) | C7: =(VLOOKUP(A7, INDIRECT("'"&'Drop Down Inputs'!$B$10&"'!"&" $A:$F"),MATCH('User Inputs'!$D$19, INDIRECT("'"&'Drop Down Inputs'!$B$10&"'!"&"$A$1:$F$1"),0), FALSE))*'User Inputs'!$D$20/100 -> 16011750 | D7: ='Exit Adjustment Calcs'!$C$21*'User Inputs'!$D$7 -> 0 | E7: ='Exit Adjustment Calcs'!$C$23 -> 1 | F7: =(('Revenue Input'!$B$6/SUM($C$2:$C$222))*E7)+D7 -> 3.758188543 | I7: ='Exit Adjustment Calcs'!$C$22 -> 0 | J7: =(IF(B7="STORAGE SITE",((100-'User Inputs'!$D$38)/100)*F7/'User Inputs'!$D$7,(IF(B7="INTERCONNECTOR ",((100-'User Inputs'!$D$40)/100)*F7/'User Inputs'!$D$7,F7/'User Inputs'!$D$7))))+I7 -> 0.01029640697 | K7: =(IF(B7="STORAGE SITE",((100-'User Inputs'!$D$38)/100)* 'User Inputs'!$D$26*'Exit Prices'!F7/'User Inputs'!D$7, IF(B7="INTERCONNECTOR", ((100-'User Inputs'!$D$40)/100)*'User Inputs'!$D$32*'Exit Prices'!F7/'User Inputs'!$D$7, 'User Inputs'!$D$26*'Exit Prices'!F7/'User Inputs'!$D$7)))+I7 -> 0.01029640697 | L7: =(IF(B7="STORAGE SITE",((100-'User Inputs'!$D$38)/100)* 'User Inputs'!$D$27*'Exit Prices'!F7/'User Inputs'!$D$7, IF(B7="INTERCONNECTOR", ((100-'User Inputs'!$D$40)/100)*'User Inputs'!$D$33*'Exit Prices'!F7/'User Inputs'!$D$7, 'User Inputs'!$D$27*'Exit Prices'!F7/'User Inputs'!$D$7)))+I7 -> 0.01029640697 | M7: =(IF(B7="STORAGE SITE",((100-'User Inputs'!$D$38)/100)* 'User Inputs'!$D$28*'Exit Prices'!F7/'User Inputs'!$D$7, IF(B7="INTERCONNECTOR", ((100-'User Inputs'!$D$40)/100)*'User Inputs'!$D$34*'Exit Prices'!F7/'User Inputs'!$D$7, 'User Inputs'!$D$28*'Exit Prices'!F7/'User Inputs'!$D$7)))+I7 -> 0.01029640697 | N7: =(IF(B7="STORAGE SITE",((100-'User Inputs'!$D$38)/100)* 'User Inputs'!$D$29*'Exit Prices'!F7/'User Inputs'!$D$7, IF(B7="INTERCONNECTOR", ((100-'User Inputs'!$D$40)/100)*'User Inputs'!$D$35*'Exit Prices'!F7/'User Inputs'!$D$7, 'User Inputs'!$D$29*'Exit Prices'!F7/'User Inputs'!$D$7)))+I7 -> 0.01029640697 | O7: =(100-(VLOOKUP(A7,'Exit Interruption Prob''s'!$A:$E,5,FALSE)))*M7/100 -> 0.01029640697
A8: Aspley | B8: =VLOOKUP(A8,'Locations & Types'!$E:$F,2,FALSE) -> GDN (WM) | C8: =(VLOOKUP(A8, INDIRECT("'"&'Drop Down Inputs'!$B$10&"'!"&" $A:$F"),MATCH('User Inputs'!$D$19, INDIRECT("'"&'Drop Down Inputs'!$B$10&"'!"&"$A$1:$F$1"),0), FALSE))*'User Inputs'!$D$20/100 -> 84650000 | D8: ='Exit Adjustment Calcs'!$C$21*'User Inputs'!$D$7 -> 0 | E8: ='Exit Adjustment Calcs'!$C$23 -> 1 | F8: =(('Revenue Input'!$B$6/SUM($C$2:$C$222))*E8)+D8 -> 3.758188543 | I8: ='Exit Adjustment Calcs'!$C$22 -> 0 | J8: =(IF(B8="STORAGE SITE",((100-'User Inputs'!$D$38)/100)*F8/'User Inputs'!$D$7,(IF(B8="INTERCONNECTOR ",((100-'User Inputs'!$D$40)/100)*F8/'User Inputs'!$D$7,F8/'User Inputs'!$D$7))))+I8 -> 0.01029640697 | K8: =(IF(B8="STORAGE SITE",((100-'User Inputs'!$D$38)/100)* 'User Inputs'!$D$26*'Exit Prices'!F8/'User Inputs'!D$7, IF(B8="INTERCONNECTOR", ((100-'User Inputs'!$D$40)/100)*'User Inputs'!$D$32*'Exit Prices'!F8/'User Inputs'!$D$7, 'User Inputs'!$D$26*'Exit Prices'!F8/'User Inputs'!$D$7)))+I8 -> 0.01029640697 | L8: =(IF(B8="STORAGE SITE",((100-'User Inputs'!$D$38)/100)* 'User Inputs'!$D$27*'Exit Prices'!F8/'User Inputs'!$D$7, IF(B8="INTERCONNECTOR", ((100-'User Inputs'!$D$40)/100)*'User Inputs'!$D$33*'Exit Prices'!F8/'User Inputs'!$D$7, 'User Inputs'!$D$27*'Exit Prices'!F8/'User Inputs'!$D$7)))+I8 -> 0.01029640697 | M8: =(IF(B8="STORAGE SITE",((100-'User Inputs'!$D$38)/100)* 'User Inputs'!$D$28*'Exit Prices'!F8/'User Inputs'!$D$7, IF(B8="INTERCONNECTOR", ((100-'User Inputs'!$D$40)/100)*'User Inputs'!$D$34*'Exit Prices'!F8/'User Inputs'!$D$7, 'User Inputs'!$D$28*'Exit Prices'!F8/'User Inputs'!$D$7)))+I8 -> 0.01029640697 | N8: =(IF(B8="STORAGE SITE",((100-'User Inputs'!$D$38)/100)* 'User Inputs'!$D$29*'Exit Prices'!F8/'User Inputs'!$D$7, IF(B8="INTERCONNECTOR", ((100-'User Inputs'!$D$40)/100)*'User Inputs'!$D$35*'Exit Prices'!F8/'User Inputs'!$D$7, 'User Inputs'!$D$29*'Exit Prices'!F8/'User Inputs'!$D$7)))+I8 -> 0.01029640697 | O8: =(100-(VLOOKUP(A8,'Exit Interruption Prob''s'!$A:$E,5,FALSE)))*M8/100 -> 0.01029640697
A9: Asselby | B9: =VLOOKUP(A9,'Locations & Types'!$E:$F,2,FALSE) -> GDN (NE) | C9: =(VLOOKUP(A9, INDIRECT("'"&'Drop Down Inputs'!$B$10&"'!"&" $A:$F"),MATCH('User Inputs'!$D$19, INDIRECT("'"&'Drop Down Inputs'!$B$10&"'!"&"$A$1:$F$1"),0), FALSE))*'User Inputs'!$D$20/100 -> 4586470 | D9: ='Exit Adjustment Calcs'!$C$21*'User Inputs'!$D$7 -> 0 | E9: ='Exit Adjustment Calcs'!$C$23 -> 1 | F9: =(('Revenue Input'!$B$6/SUM($C$2:$C$222))*E9)+D9 -> 3.758188543 | I9: ='Exit Adjustment Calcs'!$C$22 -> 0 | J9: =(IF(B9="STORAGE SITE",((100-'User Inputs'!$D$38)/100)*F9/'User Inputs'!$D$7,(IF(B9="INTERCONNECTOR ",((100-'User Inputs'!$D$40)/100)*F9/'User Inputs'!$D$7,F9/'User Inputs'!$D$7))))+I9 -> 0.01029640697 | K9: =(IF(B9="STORAGE SITE",((100-'User Inputs'!$D$38)/100)* 'User Inputs'!$D$26*'Exit Prices'!F9/'User Inputs'!D$7, IF(B9="INTERCONNECTOR", ((100-'User Inputs'!$D$40)/100)*'User Inputs'!$D$32*'Exit Prices'!F9/'User Inputs'!$D$7, 'User Inputs'!$D$26*'Exit Prices'!F9/'User Inputs'!$D$7)))+I9 -> 0.01029640697 | L9: =(IF(B9="STORAGE SITE",((100-'User Inputs'!$D$38)/100)* 'User Inputs'!$D$27*'Exit Prices'!F9/'User Inputs'!$D$7, IF(B9="INTERCONNECTOR", ((100-'User Inputs'!$D$40)/100)*'User Inputs'!$D$33*'Exit Prices'!F9/'User Inputs'!$D$7, 'User Inputs'!$D$27*'Exit Prices'!F9/'User Inputs'!$D$7)))+I9 -> 0.01029640697 | M9: =(IF(B9="STORAGE SITE",((100-'User Inputs'!$D$38)/100)* 'User Inputs'!$D$28*'Exit Prices'!F9/'User Inputs'!$D$7, IF(B9="INTERCONNECTOR", ((100-'User Inputs'!$D$40)/100)*'User Inputs'!$D$34*'Exit Prices'!F9/'User Inputs'!$D$7, 'User Inputs'!$D$28*'Exit Prices'!F9/'User Inputs'!$D$7)))+I9 -> 0.01029640697 | N9: =(IF(B9="STORAGE SITE",((100-'User Inputs'!$D$38)/100)* 'User Inputs'!$D$29*'Exit Prices'!F9/'User Inputs'!$D$7, IF(B9="INTERCONNECTOR", ((100-'User Inputs'!$D$40)/100)*'User Inputs'!$D$35*'Exit Prices'!F9/'User Inputs'!$D$7, 'User Inputs'!$D$29*'Exit Prices'!F9/'User Inputs'!$D$7)))+I9 -> 0.01029640697 | O9: =(100-(VLOOKUP(A9,'Exit Interruption Prob''s'!$A:$E,5,FALSE)))*M9/100 -> 0.01029640697
A10: Audley (NW) | B10: =VLOOKUP(A10,'Locations & Types'!$E:$F,2,FALSE) -> GDN (NW) | C10: =(VLOOKUP(A10, INDIRECT("'"&'Drop Down Inputs'!$B$10&"'!"&" $A:$F"),MATCH('User Inputs'!$D$19, INDIRECT("'"&'Drop Down Inputs'!$B$10&"'!"&"$A$1:$F$1"),0), FALSE))*'User Inputs'!$D$20/100 -> 12140000 | D10: ='Exit Adjustment Calcs'!$C$21*'User Inputs'!$D$7 -> 0 | E10: ='Exit Adjustment Calcs'!$C$23 -> 1 | F10: =(('Revenue Input'!$B$6/SUM($C$2:$C$222))*E10)+D10 -> 3.758188543 | I10: ='Exit Adjustment Calcs'!$C$22 -> 0 | J10: =(IF(B10="STORAGE SITE",((100-'User Inputs'!$D$38)/100)*F10/'User Inputs'!$D$7,(IF(B10="INTERCONNECTOR ",((100-'User Inputs'!$D$40)/100)*F10/'User Inputs'!$D$7,F10/'User Inputs'!$D$7))))+I10 -> 0.01029640697 | K10: =(IF(B10="STORAGE SITE",((100-'User Inputs'!$D$38)/100)* 'User Inputs'!$D$26*'Exit Prices'!F10/'User Inputs'!D$7, IF(B10="INTERCONNECTOR", ((100-'User Inputs'!$D$40)/100)*'User Inputs'!$D$32*'Exit Prices'!F10/'User Inputs'!$D$7, 'User Inputs'!$D$26*'Exit Prices'!F10/'User Inputs'!$D$7)))+I10 -> 0.01029640697 | L10: =(IF(B10="STORAGE SITE",((100-'User Inputs'!$D$38)/100)* 'User Inputs'!$D$27*'Exit Prices'!F10/'User Inputs'!$D$7, IF(B10="INTERCONNECTOR", ((100-'User Inputs'!$D$40)/100)*'User Inputs'!$D$33*'Exit Prices'!F10/'User Inputs'!$D$7, 'User Inputs'!$D$27*'Exit Prices'!F10/'User Inputs'!$D$7)))+I10 -> 0.01029640697 | M10: =(IF(B10="STORAGE SITE",((100-'User Inputs'!$D$38)/100)* 'User Inputs'!$D$28*'Exit Prices'!F10/'User Inputs'!$D$7, IF(B10="INTERCONNECTOR", ((100-'User Inputs'!$D$40)/100)*'User Inputs'!$D$34*'Exit Prices'!F10/'User Inputs'!$D$7, 'User Inputs'!$D$28*'Exit Prices'!F10/'User Inputs'!$D$7)))+I10 -> 0.01029640697 | N10: =(IF(B10="STORAGE SITE",((100-'User Inputs'!$D$38)/100)* 'User Inputs'!$D$29*'Exit Prices'!F10/'User Inputs'!$D$7, IF(B10="INTERCONNECTOR", ((100-'User Inputs'!$D$40)/100)*'User Inputs'!$D$35*'Exit Prices'!F10/'User Inputs'!$D$7, 'User Inputs'!$D$29*'Exit Prices'!F10/'User Inputs'!$D$7)))+I10 -> 0.01029640697 | O10: =(100-(VLOOKUP(A10,'Exit Interruption Prob''s'!$A:$E,5,FALSE)))*M10/100 -> 0.01029640697
A11: Audley (WM) | B11: =VLOOKUP(A11,'Locations & Types'!$E:$F,2,FALSE) -> GDN (WM) | C11: =(VLOOKUP(A11, INDIRECT("'"&'Drop Down Inputs'!$B$10&"'!"&" $A:$F"),MATCH('User Inputs'!$D$19, INDIRECT("'"&'Drop Down Inputs'!$B$10&"'!"&"$A$1:$F$1"),0), FALSE))*'User Inputs'!$D$20/100 -> 21830000 | D11: ='Exit Adjustment Calcs'!$C$21*'User Inputs'!$D$7 -> 0 | E11: ='Exit Adjustment Calcs'!$C$23 -> 1 | F11: =(('Revenue Input'!$B$6/SUM($C$2:$C$222))*E11)+D11 -> 3.758188543 | I11: ='Exit Adjustment Calcs'!$C$22 -> 0 | J11: =(IF(B11="STORAGE SITE",((100-'User Inputs'!$D$38)/100)*F11/'User Inputs'!$D$7,(IF(B11="INTERCONNECTOR ",((100-'User Inputs'!$D$40)/100)*F11/'User Inputs'!$D$7,F11/'User Inputs'!$D$7))))+I11 -> 0.01029640697 | K11: =(IF(B11="STORAGE SITE",((100-'User Inputs'!$D$38)/100)* 'User Inputs'!$D$26*'Exit Prices'!F11/'User Inputs'!D$7, IF(B11="INTERCONNECTOR", ((100-'User Inputs'!$D$40)/100)*'User Inputs'!$D$32*'Exit Prices'!F11/'User Inputs'!$D$7, 'User Inputs'!$D$26*'Exit Prices'!F11/'User Inputs'!$D$7)))+I11 -> 0.01029640697 | L11: =(IF(B11="STORAGE SITE",((100-'User Inputs'!$D$38)/100)* 'User Inputs'!$D$27*'Exit Prices'!F11/'User Inputs'!$D$7, IF(B11="INTERCONNECTOR", ((100-'User Inputs'!$D$40)/100)*'User Inputs'!$D$33*'Exit Prices'!F11/'User Inputs'!$D$7, 'User Inputs'!$D$27*'Exit Prices'!F11/'User Inputs'!$D$7)))+I11 -> 0.01029640697 | M11: =(IF(B11="STORAGE SITE",((100-'User Inputs'!$D$38)/100)* 'User Inputs'!$D$28*'Exit Prices'!F11/'User Inputs'!$D$7, IF(B11="INTERCONNECTOR", ((100-'User Inputs'!$D$40)/100)*'User Inputs'!$D$34*'Exit Prices'!F11/'User Inputs'!$D$7, 'User Inputs'!$D$28*'Exit Prices'!F11/'User Inputs'!$D$7)))+I11 -> 0.01029640697 | N11: =(IF(B11="STORAGE SITE",((100-'User Inputs'!$D$38)/100)* 'User Inputs'!$D$29*'Exit Prices'!F11/'User Inputs'!$D$7, IF(B11="INTERCONNECTOR", ((100-'User Inputs'!$D$40)/100)*'User Inputs'!$D$35*'Exit Prices'!F11/'User Inputs'!$D$7, 'User Inputs'!$D$29*'Exit Prices'!F11/'User Inputs'!$D$7)))+I11 -> 0.01029640697 | O11: =(100-(VLOOKUP(A11,'Exit Interruption Prob''s'!$A:$E,5,FALSE)))*M11/100 -> 0.01029640697
A12: Austrey | B12: =VLOOKUP(A12,'Locations & Types'!$E:$F,2,FALSE) -> GDN (WM) | C12: =(VLOOKUP(A12, INDIRECT("'"&'Drop Down Inputs'!$B$10&"'!"&" $A:$F"),MATCH('User Inputs'!$D$19, INDIRECT("'"&'Drop Down Inputs'!$B$10&"'!"&"$A$1:$F$1"),0), FALSE))*'User Inputs'!$D$20/100 -> 87835508 | D12: ='Exit Adjustment Calcs'!$C$21*'User Inputs'!$D$7 -> 0 | E12: ='Exit Adjustment Calcs'!$C$23 -> 1 | F12: =(('Revenue Input'!$B$6/SUM($C$2:$C$222))*E12)+D12 -> 3.758188543 | I12: ='Exit Adjustment Calcs'!$C$22 -> 0 | J12: =(IF(B12="STORAGE SITE",((100-'User Inputs'!$D$38)/100)*F12/'User Inputs'!$D$7,(IF(B12="INTERCONNECTOR ",((100-'User Inputs'!$D$40)/100)*F12/'User Inputs'!$D$7,F12/'User Inputs'!$D$7))))+I12 -> 0.01029640697 | K12: =(IF(B12="STORAGE SITE",((100-'User Inputs'!$D$38)/100)* 'User Inputs'!$D$26*'Exit Prices'!F12/'User Inputs'!D$7, IF(B12="INTERCONNECTOR", ((100-'User Inputs'!$D$40)/100)*'User Inputs'!$D$32*'Exit Prices'!F12/'User Inputs'!$D$7, 'User Inputs'!$D$26*'Exit Prices'!F12/'User Inputs'!$D$7)))+I12 -> 0.01029640697 | L12: =(IF(B12="STORAGE SITE",((100-'User Inputs'!$D$38)/100)* 'User Inputs'!$D$27*'Exit Prices'!F12/'User Inputs'!$D$7, IF(B12="INTERCONNECTOR", ((100-'User Inputs'!$D$40)/100)*'User Inputs'!$D$33*'Exit Prices'!F12/'User Inputs'!$D$7, 'User Inputs'!$D$27*'Exit Prices'!F12/'User Inputs'!$D$7)))+I12 -> 0.01029640697 | M12: =(IF(B12="STORAGE SITE",((100-'User Inputs'!$D$38)/100)* 'User Inputs'!$D$28*'Exit Prices'!F12/'User Inputs'!$D$7, IF(B12="INTERCONNECTOR", ((100-'User Inputs'!$D$40)/100)*'User Inputs'!$D$34*'Exit Prices'!F12/'User Inputs'!$D$7, 'User Inputs'!$D$28*'Exit Prices'!F12/'User Inputs'!$D$7)))+I12 -> 0.01029640697 | N12: =(IF(B12="STORAGE SITE",((100-'User Inputs'!$D$38)/100)* 'User Inputs'!$D$29*'Exit Prices'!F12/'User Inputs'!$D$7, IF(B12="INTERCONNECTOR", ((100-'User Inputs'!$D$40)/100)*'User Inputs'!$D$35*'Exit Prices'!F12/'User Inputs'!$D$7, 'User Inputs'!$D$29*'Exit Prices'!F12/'User Inputs'!$D$7)))+I12 -> 0.01029640697 | O12: =(100-(VLOOKUP(A12,'Exit Interruption Prob''s'!$A:$E,5,FALSE)))*M12/100 -> 0.01029640697
